{"text_format":"1","workbook":"xlsx","n_sheets":9,"sheets":["xa pqrs","Portada","Análisis","Registradas y Recibidas","Traslados","Asignadas a dependencias","Peticiones ciudadanas por tema","Peticiones asignadas a la entid","Recomendaciones a la ciudadanía"],"not_rendered":{"charts":1,"images":7,"macros":1,"external_links":4,"defined_names":34,"comments":0,"pivot_tables":7},"unopened":[],"bounds":{"document_bytes":16777216,"sheet_cells":100000,"rows_first":2000,"rows_last":500,"rows_between":2000,"halvings":0,"cell_chars":16384,"cell_head_chars":4096},"cells_cut":0,"cells_raw":0,"read":"whole","date_system":"1900"}

{"sheet":"xa pqrs","index":0,"n_rows":1301,"n_cols":20,"rows_kept":1301,"cut":false,"hidden":false,"merged":[[19,3,19,11]]}
["TOTAL RTECIBIDAS","TRASLADADAS OTRA ENTIDAD"]
[]
["Cuenta de Número petición","Cuenta de Número petición"]
[540,315]
[]
[]
[]
["PROMEDIO"]
[]
["Estado petición final","Solucionado - Por respuesta definitiva"]
[]
["Promedio de Días gestión","Etiquetas de columna"]
["Etiquetas de fila","CONSULTA","DERECHO DE PETICION DE INTERES GENERAL","DERECHO DE PETICION DE INTERES PARTICULAR","QUEJA","RECLAMO","SOLICITUD DE ACCESO A LA INFORMACION","SOLICITUD DE COPIA","Total general"]
["AREA DE ATENCION A LA CIUDADANIA",1.5,24.875,27.5,10,1,1,null,20.666666666666668]
["OFICINA ASESORA JURIDICA",17,null,10.8,null,null,null,null,11.833333333333334]
["SUBDIRECCION ADMINISTRATIVA Y FINANCIERA",18,null,13.333333333333334,null,null,null,null,14.5]
["SUBDIRECCION DE ADMINISTRACION INMOBILIARIA Y DE ESPACIO PUBLICO",32.166666666666664,27.689655172413794,27.333333333333332,28,27,null,16.666666666666668,27.441176470588236]
["SUBDIRECCION DE REGISTRO INMOBILIARIO",24.666666666666668,22.923076923076923,21.1864406779661,null,null,null,null,21.952380952380953]
["Total general",23.954545454545453,26,23.818840579710145,22,9.6666666666666661,1,16.666666666666668,23.858407079646017]
[null,null,null,"Dependencia",null,null,null,null,null,null,null,null,"Consulta","Derecho de petición de interés general","Derecho de petición de interés particular","Queja","Reclamo","Solicitud de acceso a la información","Solicitud de copia","Total general"]
[null,null,null,"Área de atención a la ciudadanía",null,null,null,null,null,null,null,null,{"$f":"+B14","v":1.5},{"$f":"+C14","v":24.875},27.5,10,1,1,0,20.666666666666668]
["POR TIPO DE PETICION",null,null,"Oficina asesora jurídica",null,null,null,null,null,null,null,null,{"$f":"+B15","v":17},0,10.8,0,0,0,0,11.833333333333334]
["Etiquetas de fila","Cuenta de Tipo petición",null,"Subdirección administrativa y financiera",null,null,null,null,null,null,null,null,18,0,13.333333333333334,0,0,0,0,14.5]
["DERECHO DE PETICION DE INTERES PARTICULAR",324,null,"Subdirección de administración inmobiliaria y de espacio publico",null,null,null,null,null,null,null,null,32.166666666666664,27.689655172413794,27.333333333333332,28,27,0,16.666666666666668,27.441176470588236]
["DERECHO DE PETICION DE INTERES GENERAL",150,null,"Subdirección de registro inmobiliario",null,null,null,null,null,null,null,null,24.666666666666668,22.923076923076923,21.1864406779661,0,0,0,0,21.952380952380953]
["QUEJA",35,null,"Total general",null,null,null,null,null,null,null,null,23.954545454545453,26,23.818840579710145,22,9.6666666666666661,1,16.666666666666668,23.858407079646017]
["RECLAMO",12]
["CONSULTA",12]
["SOLICITUD DE ACCESO A LA INFORMACION",3]
["SOLICITUD DE COPIA",1]
["DENUNCIA POR ACTOS DE CORRUPCION",1]
["SUGERENCIA",1]
["FELICITACION",1]
["Total general",540]
[]
[]
["REGISTRADAS Y RECIBIDAS"]
["Número petición","Dependencia hija","Canal","Tipo petición","Días gestión","Tipo reporte por entidad"]
[2691222021,"AREA DE ATENCION A LA CIUDADANIA","WEB","DERECHO DE PETICION DE INTERES GENERAL",1,"GESTIONADO"]
[2842242021,"SUBDIRECCION DE REGISTRO INMOBILIARIO","ESCRITO","DERECHO DE PETICION DE INTERES PARTICULAR",1,"PENDIENTE"]
[2888292021,"AREA DE ATENCION A LA CIUDADANIA","ESCRITO","SOLICITUD DE ACCESO A LA INFORMACION",1,"GESTIONADO"]
[2916552021,"AREA DE ATENCION A LA CIUDADANIA","E-MAIL","DERECHO DE PETICION DE INTERES GENERAL",1,"GESTIONADO"]
[3089232021,"SUBDIRECCION ADMINISTRATIVA  FINANCIERA Y DE CONTROL DISCIPLINARIO","WEB","DERECHO DE PETICION DE INTERES GENERAL",2,"PENDIENTE"]
[3089252021,"SUBDIRECCION DE ADMINISTRACION INMOBILIARIA Y DE ESPACIO PUBLICO","WEB","DERECHO DE PETICION DE INTERES GENERAL",1,"PENDIENTE"]
[3089262021,"SUBDIRECCION ADMINISTRATIVA  FINANCIERA Y DE CONTROL DISCIPLINARIO","WEB","DERECHO DE PETICION DE INTERES GENERAL",1,"GESTIONADO"]
[3089452021,"AREA DE ATENCION A LA CIUDADANIA","WEB","DERECHO DE PETICION DE INTERES GENERAL",1,"GESTIONADO"]
[3095302021,"AREA DE ATENCION A LA CIUDADANIA","ESCRITO","DERECHO DE PETICION DE INTERES GENERAL",1,"GESTIONADO"]
[3108282021,"AREA DE ATENCION A LA CIUDADANIA","WEB","DERECHO DE PETICION DE INTERES GENERAL",1,"GESTIONADO"]
[3121752021,"AREA DE ATENCION A LA CIUDADANIA","WEB","DERECHO DE PETICION DE INTERES PARTICULAR",1,"GESTIONADO"]
[3149232021,"AREA DE ATENCION A LA CIUDADANIA","TELEFONO","RECLAMO",1,"GESTIONADO"]
[3150282021,"SUBDIRECCION DE ADMINISTRACION INMOBILIARIA Y DE ESPACIO PUBLICO","WEB","DERECHO DE PETICION DE INTERES GENERAL",1,"PENDIENTE"]
[3156142021,"AREA DE ATENCION A LA CIUDADANIA","WEB","QUEJA",1,"GESTIONADO"]
[3156292021,"AREA DE ATENCION A LA CIUDADANIA","WEB","RECLAMO",1,"GESTIONADO"]
[3159822021,"AREA DE ATENCION A LA CIUDADANIA","WEB","DERECHO DE PETICION DE INTERES PARTICULAR",1,"GESTIONADO"]
[3160972021,"SUBDIRECCION DE ADMINISTRACION INMOBILIARIA Y DE ESPACIO PUBLICO","WEB","QUEJA",1,"PENDIENTE"]
[3162702021,"SUBDIRECCION DE ADMINISTRACION INMOBILIARIA Y DE ESPACIO PUBLICO","WEB","DERECHO DE PETICION DE INTERES GENERAL",1,"PENDIENTE"]
[3163052021,"AREA DE ATENCION A LA CIUDADANIA","WEB","DERECHO DE PETICION DE INTERES PARTICULAR",1,"GESTIONADO"]
[3163562021,"SUBDIRECCION DE ADMINISTRACION INMOBILIARIA Y DE ESPACIO PUBLICO","WEB","QUEJA",1,"PENDIENTE"]
[3167002021,"SUBDIRECCION DE ADMINISTRACION INMOBILIARIA Y DE ESPACIO PUBLICO","E-MAIL","DERECHO DE PETICION DE INTERES PARTICULAR",1,"PENDIENTE"]
[3167252021,"SUBDIRECCION DE ADMINISTRACION INMOBILIARIA Y DE ESPACIO PUBLICO","ESCRITO","DERECHO DE PETICION DE INTERES PARTICULAR",1,"PENDIENTE"]
[3169842021,"AREA DE ATENCION A LA CIUDADANIA","WEB","CONSULTA",2,"GESTIONADO"]
[3171062021,"AREA DE ATENCION A LA CIUDADANIA","WEB","QUEJA",1,"GESTIONADO"]
[3171232021,"SUBDIRECCION DE ADMINISTRACION INMOBILIARIA Y DE ESPACIO PUBLICO","WEB","QUEJA",1,"PENDIENTE"]
[3171392021,"SUBDIRECCION DE ADMINISTRACION INMOBILIARIA Y DE ESPACIO PUBLICO","WEB","DERECHO DE PETICION DE INTERES GENERAL",1,"PENDIENTE"]
[3172032021,"AREA DE ATENCION A LA CIUDADANIA","WEB","DERECHO DE PETICION DE INTERES GENERAL",1,"GESTIONADO"]
[3174542021,"AREA DE ATENCION A LA CIUDADANIA","WEB","DERECHO DE PETICION DE INTERES GENERAL",1,"GESTIONADO"]
[3174562021,"AREA DE ATENCION A LA CIUDADANIA","WEB","CONSULTA",2,"GESTIONADO"]
[3174582021,"AREA DE ATENCION A LA CIUDADANIA","WEB","QUEJA",1,"GESTIONADO"]
[3175732021,"SUBDIRECCION DE ADMINISTRACION INMOBILIARIA Y DE ESPACIO PUBLICO","TELEFONO","DERECHO DE PETICION DE INTERES GENERAL",1,"PENDIENTE"]
[3176722021,"AREA DE ATENCION A LA CIUDADANIA","WEB","SOLICITUD DE ACCESO A LA INFORMACION",1,"GESTIONADO"]
[3177482021,"AREA DE ATENCION A LA CIUDADANIA","WEB","DERECHO DE PETICION DE INTERES GENERAL",1,"GESTIONADO"]
[3178682021,"SUBDIRECCION DE ADMINISTRACION INMOBILIARIA Y DE ESPACIO PUBLICO","WEB","DERECHO DE PETICION DE INTERES GENERAL",1,"PENDIENTE"]
[3179292021,"SUBDIRECCION DE ADMINISTRACION INMOBILIARIA Y DE ESPACIO PUBLICO","WEB","QUEJA",1,"PENDIENTE"]
[3179942021,"SUBDIRECCION DE ADMINISTRACION INMOBILIARIA Y DE ESPACIO PUBLICO","WEB","DERECHO DE PETICION DE INTERES PARTICULAR",1,"PENDIENTE"]
[3182672021,"SUBDIRECCION DE ADMINISTRACION INMOBILIARIA Y DE ESPACIO PUBLICO","WEB","DERECHO DE PETICION DE INTERES GENERAL",1,"PENDIENTE"]
[3184432021,"SUBDIRECCION DE ADMINISTRACION INMOBILIARIA Y DE ESPACIO PUBLICO","WEB","DERECHO DE PETICION DE INTERES GENERAL",1,"PENDIENTE"]
[3185162021,"SUBDIRECCION DE ADMINISTRACION INMOBILIARIA Y DE ESPACIO PUBLICO","ESCRITO","DERECHO DE PETICION DE INTERES GENERAL",1,"PENDIENTE"]
[3186352021,"AREA DE ATENCION A LA CIUDADANIA","WEB","QUEJA",1,"GESTIONADO"]
[3186402021,"SUBDIRECCION DE ADMINISTRACION INMOBILIARIA Y DE ESPACIO PUBLICO","WEB","QUEJA",1,"PENDIENTE"]
[3186522021,"SUBDIRECCION DE ADMINISTRACION INMOBILIARIA Y DE ESPACIO PUBLICO","ESCRITO","DERECHO DE PETICION DE INTERES PARTICULAR",1,"PENDIENTE"]
[3186842021,"AREA DE ATENCION A LA CIUDADANIA","WEB","RECLAMO",1,"GESTIONADO"]
[3187682021,"SUBDIRECCION DE ADMINISTRACION INMOBILIARIA Y DE ESPACIO PUBLICO","ESCRITO","DERECHO DE PETICION DE INTERES PARTICULAR",1,"PENDIENTE"]
[3187822021,"SUBDIRECCION DE ADMINISTRACION INMOBILIARIA Y DE ESPACIO PUBLICO","ESCRITO","DERECHO DE PETICION DE INTERES PARTICULAR",1,"PENDIENTE"]
[3187852021,"SUBDIRECCION DE ADMINISTRACION INMOBILIARIA Y DE ESPACIO PUBLICO","ESCRITO","DERECHO DE PETICION DE INTERES PARTICULAR",1,"PENDIENTE"]
[3187912021,"SUBDIRECCION DE ADMINISTRACION INMOBILIARIA Y DE ESPACIO PUBLICO","ESCRITO","DERECHO DE PETICION DE INTERES PARTICULAR",1,"PENDIENTE"]
[3188312021,"SUBDIRECCION DE ADMINISTRACION INMOBILIARIA Y DE ESPACIO PUBLICO","ESCRITO","DERECHO DE PETICION DE INTERES GENERAL",1,"PENDIENTE"]
[3189532021,"AREA DE ATENCION A LA CIUDADANIA","WEB","DERECHO DE PETICION DE INTERES GENERAL",1,"GESTIONADO"]
[3190392021,"AREA DE ATENCION A LA CIUDADANIA","WEB","DERECHO DE PETICION DE INTERES GENERAL",1,"GESTIONADO"]
[3190482021,"SUBDIRECCION DE REGISTRO INMOBILIARIO","WEB","DERECHO DE PETICION DE INTERES PARTICULAR",1,"PENDIENTE"]
[3191152021,"SUBDIRECCION DE ADMINISTRACION INMOBILIARIA Y DE ESPACIO PUBLICO","ESCRITO","DERECHO DE PETICION DE INTERES GENERAL",1,"PENDIENTE"]
[3191262021,"AREA DE ATENCION A LA CIUDADANIA","WEB","DERECHO DE PETICION DE INTERES PARTICULAR",1,"GESTIONADO"]
[3191382021,"SUBDIRECCION DE ADMINISTRACION INMOBILIARIA Y DE ESPACIO PUBLICO","ESCRITO","DERECHO DE PETICION DE INTERES GENERAL",1,"PENDIENTE"]
[3191582021,"SUBDIRECCION DE ADMINISTRACION INMOBILIARIA Y DE ESPACIO PUBLICO","ESCRITO","DERECHO DE PETICION DE INTERES PARTICULAR",1,"PENDIENTE"]
[3193332021,"AREA DE ATENCION A LA CIUDADANIA","WEB","DERECHO DE PETICION DE INTERES GENERAL",1,"GESTIONADO"]
[3193632021,"AREA DE ATENCION A LA CIUDADANIA","WEB","DERECHO DE PETICION DE INTERES PARTICULAR",1,"GESTIONADO"]
[3194232021,"SUBDIRECCION DE REGISTRO INMOBILIARIO","E-MAIL","DERECHO DE PETICION DE INTERES PARTICULAR",1,"GESTIONADO"]
[3194262021,"SUBDIRECCION DE ADMINISTRACION INMOBILIARIA Y DE ESPACIO PUBLICO","E-MAIL","DERECHO DE PETICION DE INTERES PARTICULAR",1,"PENDIENTE"]
[3194302021,"SUBDIRECCION DE ADMINISTRACION INMOBILIARIA Y DE ESPACIO PUBLICO","E-MAIL","DERECHO DE PETICION DE INTERES PARTICULAR",1,"PENDIENTE"]
[3195782021,"AREA DE ATENCION A LA CIUDADANIA","WEB","SUGERENCIA",1,"GESTIONADO"]
[3198022021,"AREA DE ATENCION A LA CIUDADANIA","WEB","DERECHO DE PETICION DE INTERES GENERAL",1,"GESTIONADO"]
[3198142021,"AREA DE ATENCION A LA CIUDADANIA","WEB","DERECHO DE PETICION DE INTERES GENERAL",1,"GESTIONADO"]
[3200252021,"AREA DE ATENCION A LA CIUDADANIA","WEB","DERECHO DE PETICION DE INTERES PARTICULAR",1,"GESTIONADO"]
[3200452021,"SUBDIRECCION DE ADMINISTRACION INMOBILIARIA Y DE ESPACIO PUBLICO","ESCRITO","DERECHO DE PETICION DE INTERES PARTICULAR",1,"PENDIENTE"]
[3200462021,"AREA DE ATENCION A LA CIUDADANIA","WEB","DERECHO DE PETICION DE INTERES GENERAL",1,"GESTIONADO"]
[3200562021,"AREA DE ATENCION A LA CIUDADANIA","WEB","DERECHO DE PETICION DE INTERES PARTICULAR",1,"GESTIONADO"]
[3200582021,"SUBDIRECCION DE ADMINISTRACION INMOBILIARIA Y DE ESPACIO PUBLICO","ESCRITO","DERECHO DE PETICION DE INTERES PARTICULAR",1,"PENDIENTE"]
[3200642021,"SUBDIRECCION DE REGISTRO INMOBILIARIO","ESCRITO","DERECHO DE PETICION DE INTERES PARTICULAR",1,"GESTIONADO"]
[3200702021,"SUBDIRECCION DE ADMINISTRACION INMOBILIARIA Y DE ESPACIO PUBLICO","ESCRITO","DERECHO DE PETICION DE INTERES PARTICULAR",1,"PENDIENTE"]
[3200852021,"SUBDIRECCION DE ADMINISTRACION INMOBILIARIA Y DE ESPACIO PUBLICO","ESCRITO","CONSULTA",1,"PENDIENTE"]
[3201682021,"AREA DE ATENCION A LA CIUDADANIA","WEB","DERECHO DE PETICION DE INTERES GENERAL",1,"GESTIONADO"]
[3202812021,"SUBDIRECCION DE ADMINISTRACION INMOBILIARIA Y DE ESPACIO PUBLICO","TELEFONO","DERECHO DE PETICION DE INTERES GENERAL",1,"PENDIENTE"]
[3203492021,"AREA DE ATENCION A LA CIUDADANIA","WEB","QUEJA",1,"GESTIONADO"]
[3204692021,"AREA DE ATENCION A LA CIUDADANIA","WEB","QUEJA",1,"GESTIONADO"]
[3204982021,"SUBDIRECCION DE ADMINISTRACION INMOBILIARIA Y DE ESPACIO PUBLICO","ESCRITO","DERECHO DE PETICION DE INTERES PARTICULAR",1,"PENDIENTE"]
[3205082021,"SUBDIRECCION DE ADMINISTRACION INMOBILIARIA Y DE ESPACIO PUBLICO","ESCRITO","DERECHO DE PETICION DE INTERES PARTICULAR",1,"PENDIENTE"]
[3205952021,"SUBDIRECCION DE ADMINISTRACION INMOBILIARIA Y DE ESPACIO PUBLICO","WEB","DERECHO DE PETICION DE INTERES PARTICULAR",1,"PENDIENTE"]
[3207102021,"SUBDIRECCION DE REGISTRO INMOBILIARIO","WEB","DERECHO DE PETICION DE INTERES GENERAL",1,"PENDIENTE"]
[3208472021,"SUBDIRECCION DE ADMINISTRACION INMOBILIARIA Y DE ESPACIO PUBLICO","E-MAIL","DERECHO DE PETICION DE INTERES GENERAL",1,"PENDIENTE"]
[3209982021,"SUBDIRECCION ADMINISTRATIVA  FINANCIERA Y DE CONTROL DISCIPLINARIO","WEB","DENUNCIA POR ACTOS DE CORRUPCION",1,"GESTIONADO"]
[3210172021,"SUBDIRECCION DE ADMINISTRACION INMOBILIARIA Y DE ESPACIO PUBLICO","WEB","DERECHO DE PETICION DE INTERES GENERAL",1,"PENDIENTE"]
[3210402021,"SUBDIRECCION ADMINISTRATIVA  FINANCIERA Y DE CONTROL DISCIPLINARIO","WEB","DERECHO DE PETICION DE INTERES GENERAL",2,"GESTIONADO"]
[3211382021,"OFICINA ASESORA JURIDICA","WEB","DERECHO DE PETICION DE INTERES PARTICULAR",1,"GESTIONADO"]
[3211622021,"AREA DE ATENCION A LA CIUDADANIA","WEB","CONSULTA",1,"GESTIONADO"]
[3212982021,"SUBDIRECCION DE ADMINISTRACION INMOBILIARIA Y DE ESPACIO PUBLICO","WEB","SOLICITUD DE COPIA",1,"GESTIONADO"]
[3216452021,"AREA DE ATENCION A LA CIUDADANIA","WEB","QUEJA",1,"GESTIONADO"]
[3217932021,"AREA DE ATENCION A LA CIUDADANIA","WEB","DERECHO DE PETICION DE INTERES PARTICULAR",1,"GESTIONADO"]
[3218112021,"SUBDIRECCION DE REGISTRO INMOBILIARIO","ESCRITO","DERECHO DE PETICION DE INTERES GENERAL",1,"PENDIENTE"]
[3218592021,"SUBDIRECCION DE ADMINISTRACION INMOBILIARIA Y DE ESPACIO PUBLICO","ESCRITO","DERECHO DE PETICION DE INTERES PARTICULAR",1,"PENDIENTE"]
[3218772021,"SUBDIRECCION DE ADMINISTRACION INMOBILIARIA Y DE ESPACIO PUBLICO","ESCRITO","DERECHO DE PETICION DE INTERES PARTICULAR",1,"PENDIENTE"]
[3218912021,"SUBDIRECCION DE ADMINISTRACION INMOBILIARIA Y DE ESPACIO PUBLICO","ESCRITO","DERECHO DE PETICION DE INTERES PARTICULAR",1,"PENDIENTE"]
[3219862021,"AREA DE ATENCION A LA CIUDADANIA","WEB","RECLAMO",1,"GESTIONADO"]
[3220072021,"SUBDIRECCION DE ADMINISTRACION INMOBILIARIA Y DE ESPACIO PUBLICO","WEB","DERECHO DE PETICION DE INTERES PARTICULAR",1,"PENDIENTE"]
[3222362021,"SUBDIRECCION DE ADMINISTRACION INMOBILIARIA Y DE ESPACIO PUBLICO","WEB","DERECHO DE PETICION DE INTERES PARTICULAR",1,"PENDIENTE"]
[3222432021,"SUBDIRECCION DE REGISTRO INMOBILIARIO","WEB","DERECHO DE PETICION DE INTERES PARTICULAR",1,"PENDIENTE"]
[3222622021,"SUBDIRECCION DE ADMINISTRACION INMOBILIARIA Y DE ESPACIO PUBLICO","ESCRITO","DERECHO DE PETICION DE INTERES PARTICULAR",1,"PENDIENTE"]
[3222812021,"SUBDIRECCION DE ADMINISTRACION INMOBILIARIA Y DE ESPACIO PUBLICO","E-MAIL","DERECHO DE PETICION DE INTERES PARTICULAR",1,"PENDIENTE"]
[3223612021,"SUBDIRECCION DE ADMINISTRACION INMOBILIARIA Y DE ESPACIO PUBLICO","ESCRITO","DERECHO DE PETICION DE INTERES PARTICULAR",1,"PENDIENTE"]
[3224062021,"SUBDIRECCION DE ADMINISTRACION INMOBILIARIA Y DE ESPACIO PUBLICO","ESCRITO","DERECHO DE PETICION DE INTERES PARTICULAR",1,"PENDIENTE"]
[3224132021,"AREA DE ATENCION A LA CIUDADANIA","WEB","CONSULTA",1,"GESTIONADO"]
[3224922021,"AREA DE ATENCION A LA CIUDADANIA","WEB","DERECHO DE PETICION DE INTERES PARTICULAR",1,"GESTIONADO"]
[3224952021,"SUBDIRECCION DE ADMINISTRACION INMOBILIARIA Y DE ESPACIO PUBLICO","WEB","DERECHO DE PETICION DE INTERES PARTICULAR",1,"PENDIENTE"]
[3225682021,"SUBDIRECCION DE REGISTRO INMOBILIARIO","ESCRITO","DERECHO DE PETICION DE INTERES PARTICULAR",1,"PENDIENTE"]
[3226372021,"AREA DE ATENCION A LA CIUDADANIA","WEB","DERECHO DE PETICION DE INTERES GENERAL",1,"GESTIONADO"]
[3228272021,"DESPACHO","WEB","FELICITACION",1,"PENDIENTE"]
[3229712021,"SUBDIRECCION DE ADMINISTRACION INMOBILIARIA Y DE ESPACIO PUBLICO","WEB","DERECHO DE PETICION DE INTERES PARTICULAR",1,"PENDIENTE"]
[3230872021,"SUBDIRECCION DE REGISTRO INMOBILIARIO","ESCRITO","DERECHO DE PETICION DE INTERES PARTICULAR",1,"PENDIENTE"]
[3230892021,"SUBDIRECCION DE ADMINISTRACION INMOBILIARIA Y DE ESPACIO PUBLICO","ESCRITO","DERECHO DE PETICION DE INTERES PARTICULAR",1,"PENDIENTE"]
[3231132021,"SUBDIRECCION DE ADMINISTRACION INMOBILIARIA Y DE ESPACIO PUBLICO","ESCRITO","DERECHO DE PETICION DE INTERES GENERAL",1,"PENDIENTE"]
[3231642021,"SUBDIRECCION DE ADMINISTRACION INMOBILIARIA Y DE ESPACIO PUBLICO","ESCRITO","DERECHO DE PETICION DE INTERES PARTICULAR",1,"PENDIENTE"]
[3232252021,"AREA DE ATENCION A LA CIUDADANIA","WEB","DERECHO DE PETICION DE INTERES PARTICULAR",1,"GESTIONADO"]
[3233782021,"AREA DE ATENCION A LA CIUDADANIA","REDES SOCIALES","DERECHO DE PETICION DE INTERES PARTICULAR",1,"GESTIONADO"]
[3234622021,"SUBDIRECCION DE ADMINISTRACION INMOBILIARIA Y DE ESPACIO PUBLICO","TELEFONO","DERECHO DE PETICION DE INTERES GENERAL",1,"PENDIENTE"]
[3236202021,"AREA DE ATENCION A LA CIUDADANIA","WEB","DERECHO DE PETICION DE INTERES PARTICULAR",1,"GESTIONADO"]
[3238772021,"AREA DE ATENCION A LA CIUDADANIA","WEB","DERECHO DE PETICION DE INTERES GENERAL",1,"GESTIONADO"]
[3239202021,"AREA DE ATENCION A LA CIUDADANIA","E-MAIL","DERECHO DE PETICION DE INTERES GENERAL",1,"GESTIONADO"]
[3242062021,"AREA DE ATENCION A LA CIUDADANIA","WEB","DERECHO DE PETICION DE INTERES GENERAL",1,"GESTIONADO"]
[3243162021,"SUBDIRECCION DE ADMINISTRACION INMOBILIARIA Y DE ESPACIO PUBLICO","WEB","DERECHO DE PETICION DE INTERES PARTICULAR",1,"PENDIENTE"]
[3245782021,"SUBDIRECCION DE REGISTRO INMOBILIARIO","WEB","DERECHO DE PETICION DE INTERES PARTICULAR",1,"PENDIENTE"]
[3245812021,"AREA DE ATENCION A LA CIUDADANIA","WEB","SOLICITUD DE ACCESO A LA INFORMACION",1,"GESTIONADO"]
[3245852021,"AREA DE ATENCION A LA CIUDADANIA","WEB","DERECHO DE PETICION DE INTERES PARTICULAR",1,"GESTIONADO"]
[3245922021,"AREA DE ATENCION A LA CIUDADANIA","WEB","DERECHO DE PETICION DE INTERES PARTICULAR",1,"GESTIONADO"]
[3249012021,"AREA DE ATENCION A LA CIUDADANIA","WEB","CONSULTA",1,"GESTIONADO"]
[3249962021,"SUBDIRECCION DE REGISTRO INMOBILIARIO","ESCRITO","DERECHO DE PETICION DE INTERES PARTICULAR",1,"PENDIENTE"]
[3250002021,"SUBDIRECCION DE REGISTRO INMOBILIARIO","ESCRITO","DERECHO DE PETICION DE INTERES PARTICULAR",1,"PENDIENTE"]
[3250092021,"SUBDIRECCION DE ADMINISTRACION INMOBILIARIA Y DE ESPACIO PUBLICO","ESCRITO","DERECHO DE PETICION DE INTERES PARTICULAR",1,"PENDIENTE"]
[3250162021,"SUBDIRECCION DE ADMINISTRACION INMOBILIARIA Y DE ESPACIO PUBLICO","WEB","DERECHO DE PETICION DE INTERES GENERAL",1,"PENDIENTE"]
[3250182021,"SUBDIRECCION DE ADMINISTRACION INMOBILIARIA Y DE ESPACIO PUBLICO","ESCRITO","DERECHO DE PETICION DE INTERES PARTICULAR",1,"PENDIENTE"]
[3250442021,"SUBDIRECCION ADMINISTRATIVA  FINANCIERA Y DE CONTROL DISCIPLINARIO","WEB","DERECHO DE PETICION DE INTERES GENERAL",1,"GESTIONADO"]
[3251122021,"SUBDIRECCION DE ADMINISTRACION INMOBILIARIA Y DE ESPACIO PUBLICO","ESCRITO","DERECHO DE PETICION DE INTERES PARTICULAR",1,"PENDIENTE"]
[3251132021,"AREA DE ATENCION A LA CIUDADANIA","WEB","DERECHO DE PETICION DE INTERES GENERAL",1,"GESTIONADO"]
[3251722021,"SUBDIRECCION DE ADMINISTRACION INMOBILIARIA Y DE ESPACIO PUBLICO","E-MAIL","DERECHO DE PETICION DE INTERES PARTICULAR",1,"PENDIENTE"]
[3251972021,"AREA DE ATENCION A LA CIUDADANIA","WEB","DERECHO DE PETICION DE INTERES PARTICULAR",1,"GESTIONADO"]
[3252042021,"SUBDIRECCION DE REGISTRO INMOBILIARIO","ESCRITO","DERECHO DE PETICION DE INTERES PARTICULAR",1,"PENDIENTE"]
[3252632021,"SUBDIRECCION DE REGISTRO INMOBILIARIO","ESCRITO","DERECHO DE PETICION DE INTERES PARTICULAR",1,"PENDIENTE"]
[3252852021,"SUBDIRECCION DE ADMINISTRACION INMOBILIARIA Y DE ESPACIO PUBLICO","ESCRITO","DERECHO DE PETICION DE INTERES PARTICULAR",1,"PENDIENTE"]
[3253582021,"SUBDIRECCION DE ADMINISTRACION INMOBILIARIA Y DE ESPACIO PUBLICO","ESCRITO","DERECHO DE PETICION DE INTERES PARTICULAR",1,"PENDIENTE"]
[3253822021,"SUBDIRECCION DE REGISTRO INMOBILIARIO","ESCRITO","DERECHO DE PETICION DE INTERES PARTICULAR",1,"PENDIENTE"]
[3256512021,"AREA DE ATENCION A LA CIUDADANIA","E-MAIL","DERECHO DE PETICION DE INTERES GENERAL",1,"GESTIONADO"]
[3258612021,"SUBDIRECCION DE ADMINISTRACION INMOBILIARIA Y DE ESPACIO PUBLICO","WEB","DERECHO DE PETICION DE INTERES PARTICULAR",1,"PENDIENTE"]
[3259722021,"SUBDIRECCION DE ADMINISTRACION INMOBILIARIA Y DE ESPACIO PUBLICO","WEB","DERECHO DE PETICION DE INTERES GENERAL",1,"PENDIENTE"]
[3260632021,"SUBDIRECCION DE ADMINISTRACION INMOBILIARIA Y DE ESPACIO PUBLICO","WEB","DERECHO DE PETICION DE INTERES GENERAL",1,"PENDIENTE"]
[3261342021,"SUBDIRECCION DE ADMINISTRACION INMOBILIARIA Y DE ESPACIO PUBLICO","WEB","DERECHO DE PETICION DE INTERES PARTICULAR",1,"PENDIENTE"]
[3263632021,"SUBDIRECCION DE ADMINISTRACION INMOBILIARIA Y DE ESPACIO PUBLICO","WEB","QUEJA",1,"PENDIENTE"]
[3264652021,"SUBDIRECCION DE ADMINISTRACION INMOBILIARIA Y DE ESPACIO PUBLICO","WEB","DERECHO DE PETICION DE INTERES PARTICULAR",1,"PENDIENTE"]
[3264892021,"SUBDIRECCION DE ADMINISTRACION INMOBILIARIA Y DE ESPACIO PUBLICO","WEB","DERECHO DE PETICION DE INTERES PARTICULAR",1,"PENDIENTE"]
[3267372021,"AREA DE ATENCION A LA CIUDADANIA","WEB","CONSULTA",1,"GESTIONADO"]
[3268322021,"AREA DE ATENCION A LA CIUDADANIA","TELEFONO","DERECHO DE PETICION DE INTERES GENERAL",1,"GESTIONADO"]
[3270132021,"AREA DE ATENCION A LA CIUDADANIA","WEB","CONSULTA",1,"GESTIONADO"]
[3272312021,"AREA DE ATENCION A LA CIUDADANIA","WEB","DERECHO DE PETICION DE INTERES GENERAL",1,"GESTIONADO"]
[3272782021,"SUBDIRECCION DE ADMINISTRACION INMOBILIARIA Y DE ESPACIO PUBLICO","ESCRITO","DERECHO DE PETICION DE INTERES PARTICULAR",1,"PENDIENTE"]
[3272982021,"SUBDIRECCION DE REGISTRO INMOBILIARIO","ESCRITO","DERECHO DE PETICION DE INTERES PARTICULAR",1,"PENDIENTE"]
[3273412021,"SUBDIRECCION DE ADMINISTRACION INMOBILIARIA Y DE ESPACIO PUBLICO","ESCRITO","DERECHO DE PETICION DE INTERES PARTICULAR",1,"PENDIENTE"]
[3274212021,"SUBDIRECCION DE ADMINISTRACION INMOBILIARIA Y DE ESPACIO PUBLICO","ESCRITO","DERECHO DE PETICION DE INTERES PARTICULAR",1,"PENDIENTE"]
[3276032021,"AREA DE ATENCION A LA CIUDADANIA","E-MAIL","DERECHO DE PETICION DE INTERES GENERAL",1,"GESTIONADO"]
[3276682021,"SUBDIRECCION DE REGISTRO INMOBILIARIO","E-MAIL","RECLAMO",1,"PENDIENTE"]
[3277272021,"SUBDIRECCION DE ADMINISTRACION INMOBILIARIA Y DE ESPACIO PUBLICO","WEB","DERECHO DE PETICION DE INTERES GENERAL",1,"PENDIENTE"]
[3277402021,"AREA DE ATENCION A LA CIUDADANIA","WEB","DERECHO DE PETICION DE INTERES PARTICULAR",1,"GESTIONADO"]
[3278992021,"AREA DE ATENCION A LA CIUDADANIA","WEB","DERECHO DE PETICION DE INTERES PARTICULAR",1,"GESTIONADO"]
[3281132021,"SUBDIRECCION DE REGISTRO INMOBILIARIO","ESCRITO","DERECHO DE PETICION DE INTERES PARTICULAR",1,"PENDIENTE"]
[3281712021,"SUBDIRECCION DE ADMINISTRACION INMOBILIARIA Y DE ESPACIO PUBLICO","ESCRITO","DERECHO DE PETICION DE INTERES PARTICULAR",1,"PENDIENTE"]
[3281762021,"SUBDIRECCION DE REGISTRO INMOBILIARIO","ESCRITO","DERECHO DE PETICION DE INTERES PARTICULAR",1,"PENDIENTE"]
[3282232021,"SUBDIRECCION DE ADMINISTRACION INMOBILIARIA Y DE ESPACIO PUBLICO","ESCRITO","DERECHO DE PETICION DE INTERES GENERAL",1,"PENDIENTE"]
[3282312021,"AREA DE ATENCION A LA CIUDADANIA","WEB","DERECHO DE PETICION DE INTERES PARTICULAR",1,"GESTIONADO"]
[3282442021,"AREA DE ATENCION A LA CIUDADANIA","WEB","DERECHO DE PETICION DE INTERES PARTICULAR",1,"GESTIONADO"]
[3282732021,"AREA DE ATENCION A LA CIUDADANIA","WEB","DERECHO DE PETICION DE INTERES GENERAL",1,"GESTIONADO"]
[3283322021,"SUBDIRECCION DE ADMINISTRACION INMOBILIARIA Y DE ESPACIO PUBLICO","WEB","DERECHO DE PETICION DE INTERES PARTICULAR",1,"PENDIENTE"]
[3287602021,"SUBDIRECCION DE ADMINISTRACION INMOBILIARIA Y DE ESPACIO PUBLICO","ESCRITO","DERECHO DE PETICION DE INTERES GENERAL",1,"PENDIENTE"]
[3287692021,"SUBDIRECCION DE REGISTRO INMOBILIARIO","ESCRITO","DERECHO DE PETICION DE INTERES PARTICULAR",1,"PENDIENTE"]
[3287812021,"SUBDIRECCION DE ADMINISTRACION INMOBILIARIA Y DE ESPACIO PUBLICO","ESCRITO","DERECHO DE PETICION DE INTERES PARTICULAR",1,"PENDIENTE"]
[3287932021,"AREA DE ATENCION A LA CIUDADANIA","WEB","QUEJA",1,"GESTIONADO"]
[3287982021,"SUBDIRECCION DE ADMINISTRACION INMOBILIARIA Y DE ESPACIO PUBLICO","ESCRITO","DERECHO DE PETICION DE INTERES PARTICULAR",1,"PENDIENTE"]
[3288212021,"AREA DE ATENCION A LA CIUDADANIA","WEB","DERECHO DE PETICION DE INTERES PARTICULAR",1,"GESTIONADO"]
[3288412021,"SUBDIRECCION DE ADMINISTRACION INMOBILIARIA Y DE ESPACIO PUBLICO","ESCRITO","DERECHO DE PETICION DE INTERES PARTICULAR",1,"PENDIENTE"]
[3288592021,"SUBDIRECCION DE ADMINISTRACION INMOBILIARIA Y DE ESPACIO PUBLICO","ESCRITO","DERECHO DE PETICION DE INTERES PARTICULAR",1,"PENDIENTE"]
[3288732021,"SUBDIRECCION DE ADMINISTRACION INMOBILIARIA Y DE ESPACIO PUBLICO","TELEFONO","DERECHO DE PETICION DE INTERES GENERAL",1,"PENDIENTE"]
[3288962021,"SUBDIRECCION DE ADMINISTRACION INMOBILIARIA Y DE ESPACIO PUBLICO","ESCRITO","DERECHO DE PETICION DE INTERES PARTICULAR",1,"PENDIENTE"]
[3289352021,"SUBDIRECCION DE ADMINISTRACION INMOBILIARIA Y DE ESPACIO PUBLICO","ESCRITO","DERECHO DE PETICION DE INTERES PARTICULAR",1,"PENDIENTE"]
[3289502021,"AREA DE ATENCION A LA CIUDADANIA","WEB","DERECHO DE PETICION DE INTERES PARTICULAR",1,"GESTIONADO"]
[3289542021,"AREA DE ATENCION A LA CIUDADANIA","WEB","DERECHO DE PETICION DE INTERES PARTICULAR",1,"GESTIONADO"]
[3289562021,"SUBDIRECCION DE ADMINISTRACION INMOBILIARIA Y DE ESPACIO PUBLICO","ESCRITO","DERECHO DE PETICION DE INTERES PARTICULAR",1,"PENDIENTE"]
[3289622021,"AREA DE ATENCION A LA CIUDADANIA","E-MAIL","DERECHO DE PETICION DE INTERES PARTICULAR",1,"GESTIONADO"]
[3290232021,"SUBDIRECCION DE ADMINISTRACION INMOBILIARIA Y DE ESPACIO PUBLICO","ESCRITO","DERECHO DE PETICION DE INTERES PARTICULAR",1,"PENDIENTE"]
[3290602021,"AREA DE ATENCION A LA CIUDADANIA","WEB","DERECHO DE PETICION DE INTERES PARTICULAR",1,"GESTIONADO"]
[3290672021,"SUBDIRECCION DE ADMINISTRACION INMOBILIARIA Y DE ESPACIO PUBLICO","ESCRITO","DERECHO DE PETICION DE INTERES PARTICULAR",1,"PENDIENTE"]
[3290942021,"SUBDIRECCION DE REGISTRO INMOBILIARIO","ESCRITO","DERECHO DE PETICION DE INTERES PARTICULAR",1,"PENDIENTE"]
[3292992021,"SUBDIRECCION DE ADMINISTRACION INMOBILIARIA Y DE ESPACIO PUBLICO","ESCRITO","DERECHO DE PETICION DE INTERES PARTICULAR",1,"PENDIENTE"]
[3293052021,"SUBDIRECCION DE REGISTRO INMOBILIARIO","ESCRITO","DERECHO DE PETICION DE INTERES PARTICULAR",1,"PENDIENTE"]
[3294572021,"AREA DE ATENCION A LA CIUDADANIA","WEB","RECLAMO",1,"GESTIONADO"]
[3296242021,"AREA DE ATENCION A LA CIUDADANIA","WEB","DERECHO DE PETICION DE INTERES PARTICULAR",1,"GESTIONADO"]
[3298922021,"AREA DE ATENCION A LA CIUDADANIA","WEB","DERECHO DE PETICION DE INTERES PARTICULAR",1,"GESTIONADO"]
[3299802021,"AREA DE ATENCION A LA CIUDADANIA","WEB","DERECHO DE PETICION DE INTERES PARTICULAR",1,"GESTIONADO"]
[3300202021,"AREA DE ATENCION A LA CIUDADANIA","WEB","DERECHO DE PETICION DE INTERES PARTICULAR",1,"GESTIONADO"]
[3300432021,"AREA DE ATENCION A LA CIUDADANIA","WEB","DERECHO DE PETICION DE INTERES GENERAL",1,"GESTIONADO"]
[3300452021,"AREA DE ATENCION A LA CIUDADANIA","WEB","DERECHO DE PETICION DE INTERES PARTICULAR",1,"GESTIONADO"]
[3300472021,"AREA DE ATENCION A LA CIUDADANIA","WEB","RECLAMO",1,"GESTIONADO"]
[3300492021,"AREA DE ATENCION A LA CIUDADANIA","WEB","DERECHO DE PETICION DE INTERES GENERAL",1,"GESTIONADO"]
[3300502021,"AREA DE ATENCION A LA CIUDADANIA","WEB","DERECHO DE PETICION DE INTERES GENERAL",1,"GESTIONADO"]
[3301532021,"AREA DE ATENCION A LA CIUDADANIA","WEB","DERECHO DE PETICION DE INTERES PARTICULAR",1,"GESTIONADO"]
[3301682021,"AREA DE ATENCION A LA CIUDADANIA","TELEFONO","DERECHO DE PETICION DE INTERES GENERAL",1,"GESTIONADO"]
[3302362021,"AREA DE ATENCION A LA CIUDADANIA","WEB","RECLAMO",1,"GESTIONADO"]
[3302992021,"AREA DE ATENCION A LA CIUDADANIA","WEB","CONSULTA",1,"GESTIONADO"]
[3304952021,"AREA DE ATENCION A LA CIUDADANIA","WEB","DERECHO DE PETICION DE INTERES PARTICULAR",1,"GESTIONADO"]
[3305332021,"SUBDIRECCION DE REGISTRO INMOBILIARIO","ESCRITO","DERECHO DE PETICION DE INTERES PARTICULAR",1,"PENDIENTE"]
[3305352021,"SUBDIRECCION DE REGISTRO INMOBILIARIO","ESCRITO","DERECHO DE PETICION DE INTERES PARTICULAR",1,"PENDIENTE"]
[3305402021,"SUBDIRECCION DE REGISTRO INMOBILIARIO","ESCRITO","DERECHO DE PETICION DE INTERES PARTICULAR",1,"PENDIENTE"]
[3305472021,"AREA DE ATENCION A LA CIUDADANIA","WEB","DERECHO DE PETICION DE INTERES GENERAL",1,"GESTIONADO"]
[3305632021,"AREA DE ATENCION A LA CIUDADANIA","WEB","DERECHO DE PETICION DE INTERES PARTICULAR",1,"GESTIONADO"]
[3305642021,"SUBDIRECCION DE REGISTRO INMOBILIARIO","ESCRITO","DERECHO DE PETICION DE INTERES PARTICULAR",1,"PENDIENTE"]
[3305732021,"SUBDIRECCION DE ADMINISTRACION INMOBILIARIA Y DE ESPACIO PUBLICO","ESCRITO","DERECHO DE PETICION DE INTERES PARTICULAR",1,"PENDIENTE"]
[3305762021,"SUBDIRECCION DE REGISTRO INMOBILIARIO","ESCRITO","DERECHO DE PETICION DE INTERES PARTICULAR",1,"PENDIENTE"]
[3305982021,"AREA DE ATENCION A LA CIUDADANIA","WEB","DERECHO DE PETICION DE INTERES GENERAL",1,"GESTIONADO"]
[3307752021,"SUBDIRECCION DE ADMINISTRACION INMOBILIARIA Y DE ESPACIO PUBLICO","ESCRITO","DERECHO DE PETICION DE INTERES PARTICULAR",1,"PENDIENTE"]
[3307892021,"SUBDIRECCION DE ADMINISTRACION INMOBILIARIA Y DE ESPACIO PUBLICO","ESCRITO","DERECHO DE PETICION DE INTERES PARTICULAR",1,"PENDIENTE"]
[3308012021,"SUBDIRECCION DE REGISTRO INMOBILIARIO","ESCRITO","DERECHO DE PETICION DE INTERES PARTICULAR",1,"PENDIENTE"]
[3308322021,"OFICINA ASESORA JURIDICA","WEB","DERECHO DE PETICION DE INTERES PARTICULAR",1,"PENDIENTE"]
[3308502021,"SUBDIRECCION DE REGISTRO INMOBILIARIO","ESCRITO","DERECHO DE PETICION DE INTERES PARTICULAR",1,"PENDIENTE"]
[3308772021,"SUBDIRECCION DE ADMINISTRACION INMOBILIARIA Y DE ESPACIO PUBLICO","ESCRITO","DERECHO DE PETICION DE INTERES PARTICULAR",1,"PENDIENTE"]
[3308982021,"SUBDIRECCION DE ADMINISTRACION INMOBILIARIA Y DE ESPACIO PUBLICO","WEB","DERECHO DE PETICION DE INTERES PARTICULAR",1,"PENDIENTE"]
[3309282021,"SUBDIRECCION DE ADMINISTRACION INMOBILIARIA Y DE ESPACIO PUBLICO","E-MAIL","DERECHO DE PETICION DE INTERES PARTICULAR",1,"PENDIENTE"]
[3309312021,"SUBDIRECCION DE ADMINISTRACION INMOBILIARIA Y DE ESPACIO PUBLICO","WEB","DERECHO DE PETICION DE INTERES PARTICULAR",1,"PENDIENTE"]
[3309432021,"SUBDIRECCION DE ADMINISTRACION INMOBILIARIA Y DE ESPACIO PUBLICO","ESCRITO","DERECHO DE PETICION DE INTERES PARTICULAR",1,"PENDIENTE"]
[3309862021,"SUBDIRECCION DE ADMINISTRACION INMOBILIARIA Y DE ESPACIO PUBLICO","WEB","DERECHO DE PETICION DE INTERES PARTICULAR",1,"PENDIENTE"]
[3310012021,"SUBDIRECCION DE ADMINISTRACION INMOBILIARIA Y DE ESPACIO PUBLICO","WEB","DERECHO DE PETICION DE INTERES PARTICULAR",1,"PENDIENTE"]
[3310062021,"SUBDIRECCION DE ADMINISTRACION INMOBILIARIA Y DE ESPACIO PUBLICO","WEB","DERECHO DE PETICION DE INTERES PARTICULAR",1,"PENDIENTE"]
[3311152021,"SUBDIRECCION DE ADMINISTRACION INMOBILIARIA Y DE ESPACIO PUBLICO","E-MAIL","DERECHO DE PETICION DE INTERES PARTICULAR",1,"PENDIENTE"]
[3311292021,"SUBDIRECCION DE ADMINISTRACION INMOBILIARIA Y DE ESPACIO PUBLICO","E-MAIL","DERECHO DE PETICION DE INTERES PARTICULAR",1,"PENDIENTE"]
[3311522021,"SUBDIRECCION DE REGISTRO INMOBILIARIO","E-MAIL","DERECHO DE PETICION DE INTERES PARTICULAR",1,"PENDIENTE"]
[3311742021,"SUBDIRECCION DE ADMINISTRACION INMOBILIARIA Y DE ESPACIO PUBLICO","E-MAIL","DERECHO DE PETICION DE INTERES PARTICULAR",1,"PENDIENTE"]
[3311892021,"SUBDIRECCION DE ADMINISTRACION INMOBILIARIA Y DE ESPACIO PUBLICO","E-MAIL","DERECHO DE PETICION DE INTERES PARTICULAR",1,"PENDIENTE"]
[3312132021,"SUBDIRECCION DE ADMINISTRACION INMOBILIARIA Y DE ESPACIO PUBLICO","E-MAIL","DERECHO DE PETICION DE INTERES PARTICULAR",1,"PENDIENTE"]
[3312292021,"SUBDIRECCION DE ADMINISTRACION INMOBILIARIA Y DE ESPACIO PUBLICO","E-MAIL","DERECHO DE PETICION DE INTERES PARTICULAR",1,"PENDIENTE"]
[3312382021,"SUBDIRECCION DE ADMINISTRACION INMOBILIARIA Y DE ESPACIO PUBLICO","WEB","QUEJA",1,"PENDIENTE"]
[3312462021,"SUBDIRECCION DE ADMINISTRACION INMOBILIARIA Y DE ESPACIO PUBLICO","E-MAIL","DERECHO DE PETICION DE INTERES PARTICULAR",1,"PENDIENTE"]
[3312542021,"SUBDIRECCION DE REGISTRO INMOBILIARIO","WEB","DERECHO DE PETICION DE INTERES GENERAL",1,"PENDIENTE"]
[3312602021,"SUBDIRECCION DE REGISTRO INMOBILIARIO","ESCRITO","DERECHO DE PETICION DE INTERES PARTICULAR",1,"PENDIENTE"]
[3313142021,"AREA DE ATENCION A LA CIUDADANIA","ESCRITO","DERECHO DE PETICION DE INTERES PARTICULAR",1,"GESTIONADO"]
[3313422021,"SUBDIRECCION DE ADMINISTRACION INMOBILIARIA Y DE ESPACIO PUBLICO","WEB","CONSULTA",1,"PENDIENTE"]
[3313452021,"SUBDIRECCION DE ADMINISTRACION INMOBILIARIA Y DE ESPACIO PUBLICO","ESCRITO","DERECHO DE PETICION DE INTERES PARTICULAR",1,"PENDIENTE"]
[3313642021,"SUBDIRECCION DE ADMINISTRACION INMOBILIARIA Y DE ESPACIO PUBLICO","ESCRITO","DERECHO DE PETICION DE INTERES PARTICULAR",1,"PENDIENTE"]
[3313702021,"SUBDIRECCION DE REGISTRO INMOBILIARIO","WEB","DERECHO DE PETICION DE INTERES GENERAL",1,"PENDIENTE"]
[3313802021,"SUBDIRECCION DE ADMINISTRACION INMOBILIARIA Y DE ESPACIO PUBLICO","ESCRITO","DERECHO DE PETICION DE INTERES PARTICULAR",1,"PENDIENTE"]
[3313932021,"AREA DE ATENCION A LA CIUDADANIA","ESCRITO","DERECHO DE PETICION DE INTERES GENERAL",1,"GESTIONADO"]
[3316292021,"AREA DE ATENCION A LA CIUDADANIA","WEB","DERECHO DE PETICION DE INTERES PARTICULAR",1,"GESTIONADO"]
[3317272021,"SUBDIRECCION DE REGISTRO INMOBILIARIO","WEB","DERECHO DE PETICION DE INTERES GENERAL",1,"PENDIENTE"]
[3318982021,"SUBDIRECCION DE ADMINISTRACION INMOBILIARIA Y DE ESPACIO PUBLICO","ESCRITO","DERECHO DE PETICION DE INTERES PARTICULAR",1,"PENDIENTE"]
[3319022021,"SUBDIRECCION DE ADMINISTRACION INMOBILIARIA Y DE ESPACIO PUBLICO","ESCRITO","DERECHO DE PETICION DE INTERES PARTICULAR",1,"PENDIENTE"]
[3322502021,"SUBDIRECCION DE ADMINISTRACION INMOBILIARIA Y DE ESPACIO PUBLICO","TELEFONO","DERECHO DE PETICION DE INTERES GENERAL",1,"PENDIENTE"]
[3325802021,"AREA DE ATENCION A LA CIUDADANIA","WEB","QUEJA",1,"GESTIONADO"]
[3325852021,"SUBDIRECCION DE REGISTRO INMOBILIARIO","ESCRITO","DERECHO DE PETICION DE INTERES PARTICULAR",1,"PENDIENTE"]
[3326052021,"SUBDIRECCION DE REGISTRO INMOBILIARIO","E-MAIL","DERECHO DE PETICION DE INTERES PARTICULAR",1,"PENDIENTE"]
[3326082021,"AREA DE ATENCION A LA CIUDADANIA","WEB","DERECHO DE PETICION DE INTERES PARTICULAR",1,"GESTIONADO"]
[3326292021,"OFICINA ASESORA JURIDICA","ESCRITO","DERECHO DE PETICION DE INTERES PARTICULAR",1,"PENDIENTE"]
[3326802021,"SUBDIRECCION DE REGISTRO INMOBILIARIO","E-MAIL","DERECHO DE PETICION DE INTERES PARTICULAR",1,"PENDIENTE"]
[3326812021,"AREA DE ATENCION A LA CIUDADANIA","TELEFONO","DERECHO DE PETICION DE INTERES PARTICULAR",1,"GESTIONADO"]
[3326832021,"SUBDIRECCION DE ADMINISTRACION INMOBILIARIA Y DE ESPACIO PUBLICO","ESCRITO","DERECHO DE PETICION DE INTERES PARTICULAR",1,"PENDIENTE"]
[3328022021,"AREA DE ATENCION A LA CIUDADANIA","WEB","DERECHO DE PETICION DE INTERES GENERAL",1,"GESTIONADO"]
[3328122021,"SUBDIRECCION DE ADMINISTRACION INMOBILIARIA Y DE ESPACIO PUBLICO","WEB","DERECHO DE PETICION DE INTERES GENERAL",1,"PENDIENTE"]
[3329172021,"DESPACHO","ESCRITO","DERECHO DE PETICION DE INTERES PARTICULAR",1,"PENDIENTE"]
[3329432021,"AREA DE ATENCION A LA CIUDADANIA","WEB","DERECHO DE PETICION DE INTERES PARTICULAR",1,"GESTIONADO"]
[3329502021,"SUBDIRECCION DE ADMINISTRACION INMOBILIARIA Y DE ESPACIO PUBLICO","ESCRITO","DERECHO DE PETICION DE INTERES PARTICULAR",1,"PENDIENTE"]
[3337172021,"AREA DE ATENCION A LA CIUDADANIA","WEB","DERECHO DE PETICION DE INTERES GENERAL",1,"GESTIONADO"]
[3338142021,"SUBDIRECCION DE ADMINISTRACION INMOBILIARIA Y DE ESPACIO PUBLICO","WEB","DERECHO DE PETICION DE INTERES PARTICULAR",1,"PENDIENTE"]
[3338972021,"SUBDIRECCION DE ADMINISTRACION INMOBILIARIA Y DE ESPACIO PUBLICO","ESCRITO","DERECHO DE PETICION DE INTERES PARTICULAR",1,"PENDIENTE"]
[3339052021,"SUBDIRECCION DE REGISTRO INMOBILIARIO","ESCRITO","DERECHO DE PETICION DE INTERES PARTICULAR",1,"PENDIENTE"]
[3339092021,"SUBDIRECCION DE ADMINISTRACION INMOBILIARIA Y DE ESPACIO PUBLICO","ESCRITO","DERECHO DE PETICION DE INTERES PARTICULAR",1,"GESTIONADO"]
[3339152021,"SUBDIRECCION DE ADMINISTRACION INMOBILIARIA Y DE ESPACIO PUBLICO","ESCRITO","DERECHO DE PETICION DE INTERES PARTICULAR",1,"PENDIENTE"]
[3339572021,"SUBDIRECCION DE ADMINISTRACION INMOBILIARIA Y DE ESPACIO PUBLICO","WEB","DERECHO DE PETICION DE INTERES GENERAL",1,"PENDIENTE"]
[3342412021,"SUBDIRECCION DE ADMINISTRACION INMOBILIARIA Y DE ESPACIO PUBLICO","ESCRITO","DERECHO DE PETICION DE INTERES PARTICULAR",1,"PENDIENTE"]
[3343252021,"AREA DE ATENCION A LA CIUDADANIA","WEB","DERECHO DE PETICION DE INTERES PARTICULAR",1,"GESTIONADO"]
[3344672021,"SUBDIRECCION DE ADMINISTRACION INMOBILIARIA Y DE ESPACIO PUBLICO","ESCRITO","DERECHO DE PETICION DE INTERES PARTICULAR",1,"PENDIENTE"]
[3345452021,"SUBDIRECCION DE ADMINISTRACION INMOBILIARIA Y DE ESPACIO PUBLICO","ESCRITO","DERECHO DE PETICION DE INTERES PARTICULAR",1,"PENDIENTE"]
[3345592021,"SUBDIRECCION DE ADMINISTRACION INMOBILIARIA Y DE ESPACIO PUBLICO","ESCRITO","DERECHO DE PETICION DE INTERES PARTICULAR",1,"PENDIENTE"]
[3345652021,"SUBDIRECCION DE ADMINISTRACION INMOBILIARIA Y DE ESPACIO PUBLICO","ESCRITO","DERECHO DE PETICION DE INTERES PARTICULAR",1,"PENDIENTE"]
[3345682021,"AREA DE ATENCION A LA CIUDADANIA","WEB","DERECHO DE PETICION DE INTERES PARTICULAR",1,"GESTIONADO"]
[3345892021,"SUBDIRECCION DE ADMINISTRACION INMOBILIARIA Y DE ESPACIO PUBLICO","WEB","DERECHO DE PETICION DE INTERES PARTICULAR",1,"PENDIENTE"]
[3348592021,"SUBDIRECCION DE ADMINISTRACION INMOBILIARIA Y DE ESPACIO PUBLICO","ESCRITO","DERECHO DE PETICION DE INTERES PARTICULAR",1,"PENDIENTE"]
[3348832021,"SUBDIRECCION DE ADMINISTRACION INMOBILIARIA Y DE ESPACIO PUBLICO","ESCRITO","DERECHO DE PETICION DE INTERES PARTICULAR",1,"PENDIENTE"]
[3349012021,"SUBDIRECCION DE ADMINISTRACION INMOBILIARIA Y DE ESPACIO PUBLICO","ESCRITO","DERECHO DE PETICION DE INTERES PARTICULAR",1,"PENDIENTE"]
[3349062021,"AREA DE ATENCION A LA CIUDADANIA","TELEFONO","DERECHO DE PETICION DE INTERES GENERAL",1,"GESTIONADO"]
[3349172021,"SUBDIRECCION DE ADMINISTRACION INMOBILIARIA Y DE ESPACIO PUBLICO","ESCRITO","DERECHO DE PETICION DE INTERES GENERAL",1,"PENDIENTE"]
[3349312021,"SUBDIRECCION DE ADMINISTRACION INMOBILIARIA Y DE ESPACIO PUBLICO","ESCRITO","DERECHO DE PETICION DE INTERES PARTICULAR",1,"PENDIENTE"]
[3351312021,"SUBDIRECCION DE ADMINISTRACION INMOBILIARIA Y DE ESPACIO PUBLICO","WEB","DERECHO DE PETICION DE INTERES GENERAL",1,"PENDIENTE"]
[3351432021,"AREA DE ATENCION A LA CIUDADANIA","ESCRITO","DERECHO DE PETICION DE INTERES GENERAL",1,"GESTIONADO"]
[3353962021,"AREA DE ATENCION A LA CIUDADANIA","TELEFONO","DERECHO DE PETICION DE INTERES GENERAL",1,"GESTIONADO"]
[3354602021,"AREA DE ATENCION A LA CIUDADANIA","TELEFONO","DERECHO DE PETICION DE INTERES PARTICULAR",1,"GESTIONADO"]
[3354782021,"AREA DE ATENCION A LA CIUDADANIA","WEB","RECLAMO",1,"GESTIONADO"]
[3354892021,"SUBDIRECCION DE ADMINISTRACION INMOBILIARIA Y DE ESPACIO PUBLICO","TELEFONO","DERECHO DE PETICION DE INTERES GENERAL",1,"PENDIENTE"]
[3355602021,"AREA DE ATENCION A LA CIUDADANIA","WEB","QUEJA",1,"GESTIONADO"]
[3355632021,"AREA DE ATENCION A LA CIUDADANIA","WEB","QUEJA",1,"GESTIONADO"]
[3355902021,"AREA DE ATENCION A LA CIUDADANIA","TELEFONO","DERECHO DE PETICION DE INTERES GENERAL",1,"GESTIONADO"]
[3356022021,"AREA DE ATENCION A LA CIUDADANIA","WEB","QUEJA",1,"GESTIONADO"]
[3356972021,"SUBDIRECCION DE ADMINISTRACION INMOBILIARIA Y DE ESPACIO PUBLICO","WEB","DERECHO DE PETICION DE INTERES GENERAL",1,"PENDIENTE"]
[3357212021,"SUBDIRECCION ADMINISTRATIVA  FINANCIERA Y DE CONTROL DISCIPLINARIO","WEB","DERECHO DE PETICION DE INTERES GENERAL",1,"GESTIONADO"]
[3358222021,"AREA DE ATENCION A LA CIUDADANIA","WEB","DERECHO DE PETICION DE INTERES PARTICULAR",1,"GESTIONADO"]
[3358332021,"AREA DE ATENCION A LA CIUDADANIA","WEB","DERECHO DE PETICION DE INTERES GENERAL",1,"GESTIONADO"]
[3358352021,"AREA DE ATENCION A LA CIUDADANIA","WEB","DERECHO DE PETICION DE INTERES GENERAL",1,"GESTIONADO"]
[3358372021,"AREA DE ATENCION A LA CIUDADANIA","WEB","DERECHO DE PETICION DE INTERES GENERAL",1,"GESTIONADO"]
[3358412021,"SUBDIRECCION DE ADMINISTRACION INMOBILIARIA Y DE ESPACIO PUBLICO","WEB","DERECHO DE PETICION DE INTERES GENERAL",1,"PENDIENTE"]
[3359242021,"AREA DE ATENCION A LA CIUDADANIA","WEB","QUEJA",1,"GESTIONADO"]
[3359432021,"SUBDIRECCION DE ADMINISTRACION INMOBILIARIA Y DE ESPACIO PUBLICO","TELEFONO","DERECHO DE PETICION DE INTERES PARTICULAR",1,"PENDIENTE"]
[3359982021,"AREA DE ATENCION A LA CIUDADANIA","WEB","DERECHO DE PETICION DE INTERES GENERAL",1,"GESTIONADO"]
[3360592021,"AREA DE ATENCION A LA CIUDADANIA","WEB","DERECHO DE PETICION DE INTERES GENERAL",1,"GESTIONADO"]
[3360692021,"AREA DE ATENCION A LA CIUDADANIA","WEB","DERECHO DE PETICION DE INTERES GENERAL",1,"GESTIONADO"]
[3360782021,"AREA DE ATENCION A LA CIUDADANIA","WEB","DERECHO DE PETICION DE INTERES GENERAL",1,"GESTIONADO"]
[3361542021,"AREA DE ATENCION A LA CIUDADANIA","WEB","DERECHO DE PETICION DE INTERES GENERAL",1,"GESTIONADO"]
[3361772021,"SUBDIRECCION DE ADMINISTRACION INMOBILIARIA Y DE ESPACIO PUBLICO","ESCRITO","DERECHO DE PETICION DE INTERES PARTICULAR",1,"PENDIENTE"]
[3361962021,"SUBDIRECCION DE ADMINISTRACION INMOBILIARIA Y DE ESPACIO PUBLICO","ESCRITO","DERECHO DE PETICION DE INTERES PARTICULAR",1,"PENDIENTE"]
[3362022021,"SUBDIRECCION DE ADMINISTRACION INMOBILIARIA Y DE ESPACIO PUBLICO","ESCRITO","DERECHO DE PETICION DE INTERES PARTICULAR",1,"PENDIENTE"]
[3362122021,"SUBDIRECCION DE ADMINISTRACION INMOBILIARIA Y DE ESPACIO PUBLICO","ESCRITO","DERECHO DE PETICION DE INTERES GENERAL",1,"PENDIENTE"]
[3362142021,"SUBDIRECCION DE REGISTRO INMOBILIARIO","ESCRITO","DERECHO DE PETICION DE INTERES PARTICULAR",1,"PENDIENTE"]
[3362342021,"AREA DE ATENCION A LA CIUDADANIA","ESCRITO","DERECHO DE PETICION DE INTERES PARTICULAR",1,"GESTIONADO"]
[3363162021,"AREA DE ATENCION A LA CIUDADANIA","WEB","DERECHO DE PETICION DE INTERES GENERAL",1,"GESTIONADO"]
[3366572021,"AREA DE ATENCION A LA CIUDADANIA","WEB","DERECHO DE PETICION DE INTERES GENERAL",1,"GESTIONADO"]
[3366842021,"AREA DE ATENCION A LA CIUDADANIA","WEB","DERECHO DE PETICION DE INTERES PARTICULAR",1,"GESTIONADO"]
[3367672021,"SUBDIRECCION DE REGISTRO INMOBILIARIO","ESCRITO","DERECHO DE PETICION DE INTERES PARTICULAR",1,"PENDIENTE"]
[3367832021,"SUBDIRECCION DE ADMINISTRACION INMOBILIARIA Y DE ESPACIO PUBLICO","ESCRITO","DERECHO DE PETICION DE INTERES PARTICULAR",1,"PENDIENTE"]
[3368012021,"SUBDIRECCION DE ADMINISTRACION INMOBILIARIA Y DE ESPACIO PUBLICO","ESCRITO","DERECHO DE PETICION DE INTERES PARTICULAR",1,"PENDIENTE"]
[3368282021,"SUBDIRECCION DE ADMINISTRACION INMOBILIARIA Y DE ESPACIO PUBLICO","ESCRITO","DERECHO DE PETICION DE INTERES PARTICULAR",1,"PENDIENTE"]
[3368562021,"SUBDIRECCION DE ADMINISTRACION INMOBILIARIA Y DE ESPACIO PUBLICO","ESCRITO","DERECHO DE PETICION DE INTERES PARTICULAR",1,"PENDIENTE"]
[3368922021,"SUBDIRECCION DE ADMINISTRACION INMOBILIARIA Y DE ESPACIO PUBLICO","ESCRITO","DERECHO DE PETICION DE INTERES PARTICULAR",1,"PENDIENTE"]
[3369242021,"SUBDIRECCION DE ADMINISTRACION INMOBILIARIA Y DE ESPACIO PUBLICO","E-MAIL","DERECHO DE PETICION DE INTERES PARTICULAR",1,"PENDIENTE"]
[3370412021,"AREA DE ATENCION A LA CIUDADANIA","WEB","RECLAMO",1,"GESTIONADO"]
[3370492021,"SUBDIRECCION DE REGISTRO INMOBILIARIO","ESCRITO","DERECHO DE PETICION DE INTERES PARTICULAR",1,"PENDIENTE"]
[3371042021,"SUBDIRECCION DE ADMINISTRACION INMOBILIARIA Y DE ESPACIO PUBLICO","ESCRITO","DERECHO DE PETICION DE INTERES PARTICULAR",1,"PENDIENTE"]
[3371172021,"SUBDIRECCION DE REGISTRO INMOBILIARIO","ESCRITO","DERECHO DE PETICION DE INTERES PARTICULAR",1,"PENDIENTE"]
[3371552021,"SUBDIRECCION DE ADMINISTRACION INMOBILIARIA Y DE ESPACIO PUBLICO","ESCRITO","DERECHO DE PETICION DE INTERES PARTICULAR",1,"PENDIENTE"]
[3372262021,"SUBDIRECCION DE ADMINISTRACION INMOBILIARIA Y DE ESPACIO PUBLICO","ESCRITO","DERECHO DE PETICION DE INTERES PARTICULAR",1,"PENDIENTE"]
[3374862021,"SUBDIRECCION DE ADMINISTRACION INMOBILIARIA Y DE ESPACIO PUBLICO","ESCRITO","DERECHO DE PETICION DE INTERES PARTICULAR",1,"PENDIENTE"]
[3374872021,"SUBDIRECCION DE REGISTRO INMOBILIARIO","ESCRITO","DERECHO DE PETICION DE INTERES PARTICULAR",1,"PENDIENTE"]
[3374912021,"SUBDIRECCION DE ADMINISTRACION INMOBILIARIA Y DE ESPACIO PUBLICO","ESCRITO","DERECHO DE PETICION DE INTERES PARTICULAR",1,"PENDIENTE"]
[3375112021,"SUBDIRECCION DE ADMINISTRACION INMOBILIARIA Y DE ESPACIO PUBLICO","ESCRITO","DERECHO DE PETICION DE INTERES PARTICULAR",1,"PENDIENTE"]
[3375222021,"SUBDIRECCION DE REGISTRO INMOBILIARIO","ESCRITO","DERECHO DE PETICION DE INTERES PARTICULAR",1,"PENDIENTE"]
[3376532021,"AREA DE ATENCION A LA CIUDADANIA","WEB","QUEJA",1,"GESTIONADO"]
[3376592021,"AREA DE ATENCION A LA CIUDADANIA","WEB","DERECHO DE PETICION DE INTERES PARTICULAR",1,"GESTIONADO"]
[3376792021,"SUBDIRECCION DE ADMINISTRACION INMOBILIARIA Y DE ESPACIO PUBLICO","WEB","DERECHO DE PETICION DE INTERES PARTICULAR",1,"PENDIENTE"]
[3376862021,"SUBDIRECCION DE ADMINISTRACION INMOBILIARIA Y DE ESPACIO PUBLICO","WEB","DERECHO DE PETICION DE INTERES GENERAL",1,"PENDIENTE"]
[3378062021,"SUBDIRECCION DE ADMINISTRACION INMOBILIARIA Y DE ESPACIO PUBLICO","WEB","DERECHO DE PETICION DE INTERES GENERAL",1,"PENDIENTE"]
[3379722021,"SUBDIRECCION DE REGISTRO INMOBILIARIO","WEB","DERECHO DE PETICION DE INTERES GENERAL",1,"PENDIENTE"]
[3380742021,"AREA DE ATENCION A LA CIUDADANIA","WEB","QUEJA",1,"GESTIONADO"]
[3380952021,"AREA DE ATENCION A LA CIUDADANIA","TELEFONO","DERECHO DE PETICION DE INTERES PARTICULAR",1,"GESTIONADO"]
[3382022021,"SUBDIRECCION DE ADMINISTRACION INMOBILIARIA Y DE ESPACIO PUBLICO","ESCRITO","DERECHO DE PETICION DE INTERES PARTICULAR",1,"PENDIENTE"]
[3382082021,"SUBDIRECCION DE REGISTRO INMOBILIARIO","ESCRITO","DERECHO DE PETICION DE INTERES PARTICULAR",1,"PENDIENTE"]
[3384192021,"SUBDIRECCION DE ADMINISTRACION INMOBILIARIA Y DE ESPACIO PUBLICO","ESCRITO","DERECHO DE PETICION DE INTERES PARTICULAR",1,"PENDIENTE"]
[3384392021,"OFICINA ASESORA JURIDICA","ESCRITO","DERECHO DE PETICION DE INTERES PARTICULAR",1,"GESTIONADO"]
[3385372021,"AREA DE ATENCION A LA CIUDADANIA","E-MAIL","DERECHO DE PETICION DE INTERES PARTICULAR",1,"GESTIONADO"]
[3385392021,"SUBDIRECCION DE ADMINISTRACION INMOBILIARIA Y DE ESPACIO PUBLICO","ESCRITO","DERECHO DE PETICION DE INTERES PARTICULAR",1,"PENDIENTE"]
[3385612021,"SUBDIRECCION DE ADMINISTRACION INMOBILIARIA Y DE ESPACIO PUBLICO","ESCRITO","DERECHO DE PETICION DE INTERES PARTICULAR",1,"PENDIENTE"]
[3385832021,"SUBDIRECCION DE REGISTRO INMOBILIARIO","ESCRITO","DERECHO DE PETICION DE INTERES PARTICULAR",1,"PENDIENTE"]
[3386572021,"SUBDIRECCION DE ADMINISTRACION INMOBILIARIA Y DE ESPACIO PUBLICO","WEB","DERECHO DE PETICION DE INTERES PARTICULAR",1,"PENDIENTE"]
[3387142021,"SUBDIRECCION DE ADMINISTRACION INMOBILIARIA Y DE ESPACIO PUBLICO","WEB","DERECHO DE PETICION DE INTERES GENERAL",1,"PENDIENTE"]
[3387362021,"AREA DE ATENCION A LA CIUDADANIA","WEB","QUEJA",1,"GESTIONADO"]
[3387572021,"AREA DE ATENCION A LA CIUDADANIA","WEB","DERECHO DE PETICION DE INTERES PARTICULAR",1,"GESTIONADO"]
[3388732021,"AREA DE ATENCION A LA CIUDADANIA","WEB","DERECHO DE PETICION DE INTERES GENERAL",1,"GESTIONADO"]
[3396832021,"SUBDIRECCION DE ADMINISTRACION INMOBILIARIA Y DE ESPACIO PUBLICO","WEB","DERECHO DE PETICION DE INTERES PARTICULAR",1,"PENDIENTE"]
[3397642021,"AREA DE ATENCION A LA CIUDADANIA","WEB","DERECHO DE PETICION DE INTERES PARTICULAR",1,"GESTIONADO"]
[3397672021,"SUBDIRECCION DE ADMINISTRACION INMOBILIARIA Y DE ESPACIO PUBLICO","WEB","DERECHO DE PETICION DE INTERES GENERAL",1,"PENDIENTE"]
[3399382021,"SUBDIRECCION DE ADMINISTRACION INMOBILIARIA Y DE ESPACIO PUBLICO","WEB","DERECHO DE PETICION DE INTERES PARTICULAR",1,"PENDIENTE"]
[3399732021,"SUBDIRECCION DE ADMINISTRACION INMOBILIARIA Y DE ESPACIO PUBLICO","ESCRITO","DERECHO DE PETICION DE INTERES GENERAL",1,"PENDIENTE"]
[3399872021,"SUBDIRECCION DE REGISTRO INMOBILIARIO","ESCRITO","DERECHO DE PETICION DE INTERES PARTICULAR",1,"PENDIENTE"]
[3399932021,"SUBDIRECCION DE ADMINISTRACION INMOBILIARIA Y DE ESPACIO PUBLICO","ESCRITO","DERECHO DE PETICION DE INTERES PARTICULAR",1,"PENDIENTE"]
[3400022021,"SUBDIRECCION DE ADMINISTRACION INMOBILIARIA Y DE ESPACIO PUBLICO","ESCRITO","DERECHO DE PETICION DE INTERES GENERAL",1,"PENDIENTE"]
[3400082021,"SUBDIRECCION DE ADMINISTRACION INMOBILIARIA Y DE ESPACIO PUBLICO","ESCRITO","DERECHO DE PETICION DE INTERES PARTICULAR",1,"PENDIENTE"]
[3403922021,"AREA DE ATENCION A LA CIUDADANIA","TELEFONO","DERECHO DE PETICION DE INTERES GENERAL",1,"GESTIONADO"]
[3404822021,"AREA DE ATENCION A LA CIUDADANIA","WEB","DERECHO DE PETICION DE INTERES GENERAL",1,"GESTIONADO"]
[3405442021,"SUBDIRECCION DE ADMINISTRACION INMOBILIARIA Y DE ESPACIO PUBLICO","WEB","DERECHO DE PETICION DE INTERES PARTICULAR",1,"PENDIENTE"]
[3406392021,"AREA DE ATENCION A LA CIUDADANIA","WEB","DERECHO DE PETICION DE INTERES GENERAL",1,"GESTIONADO"]
[3407242021,"DESPACHO","ESCRITO","DERECHO DE PETICION DE INTERES PARTICULAR",1,"PENDIENTE"]
[3407512021,"SUBDIRECCION DE REGISTRO INMOBILIARIO","ESCRITO","DERECHO DE PETICION DE INTERES PARTICULAR",1,"PENDIENTE"]
[3408362021,"SUBDIRECCION DE REGISTRO INMOBILIARIO","ESCRITO","DERECHO DE PETICION DE INTERES PARTICULAR",1,"PENDIENTE"]
[3408552021,"AREA DE ATENCION A LA CIUDADANIA","TELEFONO","DERECHO DE PETICION DE INTERES PARTICULAR",1,"GESTIONADO"]
[3409592021,"AREA DE ATENCION A LA CIUDADANIA","WEB","DERECHO DE PETICION DE INTERES PARTICULAR",1,"GESTIONADO"]
[3409632021,"SUBDIRECCION DE ADMINISTRACION INMOBILIARIA Y DE ESPACIO PUBLICO","WEB","DERECHO DE PETICION DE INTERES PARTICULAR",1,"PENDIENTE"]
[3409882021,"AREA DE ATENCION A LA CIUDADANIA","TELEFONO","DERECHO DE PETICION DE INTERES PARTICULAR",1,"GESTIONADO"]
[3410042021,"SUBDIRECCION DE ADMINISTRACION INMOBILIARIA Y DE ESPACIO PUBLICO","ESCRITO","DERECHO DE PETICION DE INTERES PARTICULAR",1,"PENDIENTE"]
[3410252021,"SUBDIRECCION DE ADMINISTRACION INMOBILIARIA Y DE ESPACIO PUBLICO","ESCRITO","DERECHO DE PETICION DE INTERES PARTICULAR",1,"PENDIENTE"]
[3411762021,"AREA DE ATENCION A LA CIUDADANIA","WEB","DERECHO DE PETICION DE INTERES PARTICULAR",1,"GESTIONADO"]
[3414032021,"AREA DE ATENCION A LA CIUDADANIA","E-MAIL","DERECHO DE PETICION DE INTERES PARTICULAR",1,"GESTIONADO"]
[3414602021,"SUBDIRECCION DE REGISTRO INMOBILIARIO","WEB","DERECHO DE PETICION DE INTERES PARTICULAR",1,"PENDIENTE"]
[3414652021,"AREA DE ATENCION A LA CIUDADANIA","WEB","DERECHO DE PETICION DE INTERES PARTICULAR",1,"GESTIONADO"]
[3414872021,"SUBDIRECCION DE REGISTRO INMOBILIARIO","WEB","DERECHO DE PETICION DE INTERES PARTICULAR",1,"PENDIENTE"]
[3414962021,"SUBDIRECCION DE ADMINISTRACION INMOBILIARIA Y DE ESPACIO PUBLICO","WEB","DERECHO DE PETICION DE INTERES GENERAL",1,"PENDIENTE"]
[3415032021,"SUBDIRECCION DE REGISTRO INMOBILIARIO","E-MAIL","DERECHO DE PETICION DE INTERES GENERAL",1,"PENDIENTE"]
[3415062021,"SUBDIRECCION DE ADMINISTRACION INMOBILIARIA Y DE ESPACIO PUBLICO","ESCRITO","DERECHO DE PETICION DE INTERES PARTICULAR",1,"PENDIENTE"]
[3415802021,"SUBDIRECCION DE REGISTRO INMOBILIARIO","WEB","DERECHO DE PETICION DE INTERES GENERAL",1,"PENDIENTE"]
[3416912021,"SUBDIRECCION DE ADMINISTRACION INMOBILIARIA Y DE ESPACIO PUBLICO","WEB","DERECHO DE PETICION DE INTERES PARTICULAR",1,"PENDIENTE"]
[3417382021,"SUBDIRECCION DE ADMINISTRACION INMOBILIARIA Y DE ESPACIO PUBLICO","WEB","DERECHO DE PETICION DE INTERES PARTICULAR",1,"PENDIENTE"]
[3418602021,"SUBDIRECCION DE REGISTRO INMOBILIARIO","ESCRITO","DERECHO DE PETICION DE INTERES PARTICULAR",1,"PENDIENTE"]
[3418712021,"SUBDIRECCION DE ADMINISTRACION INMOBILIARIA Y DE ESPACIO PUBLICO","ESCRITO","DERECHO DE PETICION DE INTERES PARTICULAR",1,"PENDIENTE"]
[3418862021,"SUBDIRECCION DE ADMINISTRACION INMOBILIARIA Y DE ESPACIO PUBLICO","ESCRITO","DERECHO DE PETICION DE INTERES GENERAL",1,"PENDIENTE"]
[3419902021,"AREA DE ATENCION A LA CIUDADANIA","TELEFONO","DERECHO DE PETICION DE INTERES GENERAL",1,"GESTIONADO"]
[3420302021,"AREA DE ATENCION A LA CIUDADANIA","WEB","DERECHO DE PETICION DE INTERES GENERAL",1,"GESTIONADO"]
[3422362021,"AREA DE ATENCION A LA CIUDADANIA","TELEFONO","DERECHO DE PETICION DE INTERES GENERAL",1,"GESTIONADO"]
[3424982021,"AREA DE ATENCION A LA CIUDADANIA","WEB","DERECHO DE PETICION DE INTERES GENERAL",1,"GESTIONADO"]
[3425362021,"DESPACHO","ESCRITO","DERECHO DE PETICION DE INTERES PARTICULAR",1,"PENDIENTE"]
[3425612021,"SUBDIRECCION DE ADMINISTRACION INMOBILIARIA Y DE ESPACIO PUBLICO","ESCRITO","DERECHO DE PETICION DE INTERES PARTICULAR",1,"PENDIENTE"]
[3425802021,"SUBDIRECCION DE ADMINISTRACION INMOBILIARIA Y DE ESPACIO PUBLICO","ESCRITO","DERECHO DE PETICION DE INTERES PARTICULAR",1,"PENDIENTE"]
[3425882021,"SUBDIRECCION DE ADMINISTRACION INMOBILIARIA Y DE ESPACIO PUBLICO","ESCRITO","DERECHO DE PETICION DE INTERES PARTICULAR",1,"PENDIENTE"]
[3425922021,"SUBDIRECCION DE ADMINISTRACION INMOBILIARIA Y DE ESPACIO PUBLICO","TELEFONO","DERECHO DE PETICION DE INTERES PARTICULAR",1,"PENDIENTE"]
[3426302021,"SUBDIRECCION DE ADMINISTRACION INMOBILIARIA Y DE ESPACIO PUBLICO","ESCRITO","DERECHO DE PETICION DE INTERES PARTICULAR",1,"PENDIENTE"]
[3427292021,"AREA DE ATENCION A LA CIUDADANIA","TELEFONO","DERECHO DE PETICION DE INTERES GENERAL",1,"GESTIONADO"]
[3431452021,"SUBDIRECCION DE ADMINISTRACION INMOBILIARIA Y DE ESPACIO PUBLICO","E-MAIL","DERECHO DE PETICION DE INTERES GENERAL",1,"PENDIENTE"]
[3431862021,"AREA DE ATENCION A LA CIUDADANIA","WEB","DERECHO DE PETICION DE INTERES GENERAL",1,"GESTIONADO"]
[3434012021,"AREA DE ATENCION A LA CIUDADANIA","WEB","QUEJA",1,"GESTIONADO"]
[3435642021,"SUBDIRECCION DE ADMINISTRACION INMOBILIARIA Y DE ESPACIO PUBLICO","WEB","DERECHO DE PETICION DE INTERES GENERAL",1,"PENDIENTE"]
[3438732021,"AREA DE ATENCION A LA CIUDADANIA","WEB","DERECHO DE PETICION DE INTERES GENERAL",1,"GESTIONADO"]
[3439692021,"SUBDIRECCION DE ADMINISTRACION INMOBILIARIA Y DE ESPACIO PUBLICO","WEB","DERECHO DE PETICION DE INTERES GENERAL",1,"PENDIENTE"]
[3439782021,"SUBDIRECCION ADMINISTRATIVA  FINANCIERA Y DE CONTROL DISCIPLINARIO","WEB","DERECHO DE PETICION DE INTERES PARTICULAR",1,"GESTIONADO"]
[3441012021,"AREA DE ATENCION A LA CIUDADANIA","WEB","QUEJA",1,"GESTIONADO"]
[3441142021,"AREA DE ATENCION A LA CIUDADANIA","WEB","DERECHO DE PETICION DE INTERES PARTICULAR",1,"GESTIONADO"]
[3443012021,"AREA DE ATENCION A LA CIUDADANIA","WEB","QUEJA",1,"GESTIONADO"]
[3443832021,"AREA DE ATENCION A LA CIUDADANIA","WEB","DERECHO DE PETICION DE INTERES PARTICULAR",1,"GESTIONADO"]
[3444032021,"AREA DE ATENCION A LA CIUDADANIA","WEB","DERECHO DE PETICION DE INTERES GENERAL",1,"GESTIONADO"]
[3444192021,"AREA DE ATENCION A LA CIUDADANIA","WEB","QUEJA",1,"GESTIONADO"]
[3444202021,"SUBDIRECCION DE ADMINISTRACION INMOBILIARIA Y DE ESPACIO PUBLICO","WEB","QUEJA",1,"PENDIENTE"]
[3444212021,"AREA DE ATENCION A LA CIUDADANIA","WEB","DERECHO DE PETICION DE INTERES PARTICULAR",1,"GESTIONADO"]
[3445032021,"AREA DE ATENCION A LA CIUDADANIA","WEB","DERECHO DE PETICION DE INTERES PARTICULAR",1,"GESTIONADO"]
[3445762021,"AREA DE ATENCION A LA CIUDADANIA","TELEFONO","DERECHO DE PETICION DE INTERES PARTICULAR",1,"GESTIONADO"]
[3446552021,"SUBDIRECCION DE REGISTRO INMOBILIARIO","WEB","QUEJA",1,"PENDIENTE"]
[3446682021,"AREA DE ATENCION A LA CIUDADANIA","WEB","DERECHO DE PETICION DE INTERES GENERAL",1,"GESTIONADO"]
[3447442021,"SUBDIRECCION DE ADMINISTRACION INMOBILIARIA Y DE ESPACIO PUBLICO","ESCRITO","DERECHO DE PETICION DE INTERES PARTICULAR",1,"PENDIENTE"]
[3447522021,"AREA DE ATENCION A LA CIUDADANIA","WEB","DERECHO DE PETICION DE INTERES PARTICULAR",1,"GESTIONADO"]
[3447852021,"SUBDIRECCION DE REGISTRO INMOBILIARIO","WEB","DERECHO DE PETICION DE INTERES PARTICULAR",1,"PENDIENTE"]
[3448462021,"AREA DE ATENCION A LA CIUDADANIA","WEB","RECLAMO",1,"GESTIONADO"]
[3449912021,"SUBDIRECCION DE ADMINISTRACION INMOBILIARIA Y DE ESPACIO PUBLICO","ESCRITO","DERECHO DE PETICION DE INTERES PARTICULAR",1,"PENDIENTE"]
[3450142021,"SUBDIRECCION DE ADMINISTRACION INMOBILIARIA Y DE ESPACIO PUBLICO","ESCRITO","DERECHO DE PETICION DE INTERES PARTICULAR",1,"PENDIENTE"]
[3450482021,"SUBDIRECCION DE ADMINISTRACION INMOBILIARIA Y DE ESPACIO PUBLICO","ESCRITO","DERECHO DE PETICION DE INTERES PARTICULAR",1,"PENDIENTE"]
[3450682021,"SUBDIRECCION DE ADMINISTRACION INMOBILIARIA Y DE ESPACIO PUBLICO","ESCRITO","DERECHO DE PETICION DE INTERES PARTICULAR",1,"PENDIENTE"]
[3450812021,"AREA DE ATENCION A LA CIUDADANIA","WEB","QUEJA",1,"GESTIONADO"]
[3451282021,"SUBDIRECCION DE REGISTRO INMOBILIARIO","ESCRITO","DERECHO DE PETICION DE INTERES PARTICULAR",1,"PENDIENTE"]
[3451602021,"SUBDIRECCION DE ADMINISTRACION INMOBILIARIA Y DE ESPACIO PUBLICO","ESCRITO","DERECHO DE PETICION DE INTERES PARTICULAR",1,"PENDIENTE"]
[3451842021,"AREA DE ATENCION A LA CIUDADANIA","WEB","DERECHO DE PETICION DE INTERES GENERAL",1,"GESTIONADO"]
[3452832021,"AREA DE ATENCION A LA CIUDADANIA","WEB","DERECHO DE PETICION DE INTERES GENERAL",1,"GESTIONADO"]
[3453922021,"SUBDIRECCION DE REGISTRO INMOBILIARIO","WEB","DERECHO DE PETICION DE INTERES PARTICULAR",1,"PENDIENTE"]
[3454722021,"AREA DE ATENCION A LA CIUDADANIA","TELEFONO","DERECHO DE PETICION DE INTERES GENERAL",3,"GESTIONADO"]
[3455862021,"AREA DE ATENCION A LA CIUDADANIA","WEB","DERECHO DE PETICION DE INTERES PARTICULAR",1,"GESTIONADO"]
[3458032021,"SUBDIRECCION DE ADMINISTRACION INMOBILIARIA Y DE ESPACIO PUBLICO","WEB","DERECHO DE PETICION DE INTERES PARTICULAR",1,"PENDIENTE"]
[3458082021,"AREA DE ATENCION A LA CIUDADANIA","WEB","DERECHO DE PETICION DE INTERES PARTICULAR",1,"GESTIONADO"]
[3458122021,"SUBDIRECCION DE REGISTRO INMOBILIARIO","WEB","DERECHO DE PETICION DE INTERES PARTICULAR",1,"PENDIENTE"]
[3458522021,"SUBDIRECCION DE ADMINISTRACION INMOBILIARIA Y DE ESPACIO PUBLICO","WEB","CONSULTA",1,"PENDIENTE"]
[3458812021,"AREA DE ATENCION A LA CIUDADANIA","WEB","DERECHO DE PETICION DE INTERES PARTICULAR",1,"GESTIONADO"]
[3460252021,"AREA DE ATENCION A LA CIUDADANIA","WEB","DERECHO DE PETICION DE INTERES PARTICULAR",1,"GESTIONADO"]
[3460972021,"SUBDIRECCION DE ADMINISTRACION INMOBILIARIA Y DE ESPACIO PUBLICO","WEB","DERECHO DE PETICION DE INTERES PARTICULAR",1,"PENDIENTE"]
[3461902021,"SUBDIRECCION DE ADMINISTRACION INMOBILIARIA Y DE ESPACIO PUBLICO","ESCRITO","DERECHO DE PETICION DE INTERES PARTICULAR",1,"PENDIENTE"]
[3462032021,"SUBDIRECCION DE ADMINISTRACION INMOBILIARIA Y DE ESPACIO PUBLICO","ESCRITO","DERECHO DE PETICION DE INTERES PARTICULAR",1,"PENDIENTE"]
[3462312021,"SUBDIRECCION DE ADMINISTRACION INMOBILIARIA Y DE ESPACIO PUBLICO","ESCRITO","DERECHO DE PETICION DE INTERES PARTICULAR",1,"PENDIENTE"]
[3463242021,"SUBDIRECCION DE ADMINISTRACION INMOBILIARIA Y DE ESPACIO PUBLICO","ESCRITO","DERECHO DE PETICION DE INTERES PARTICULAR",1,"PENDIENTE"]
[3463842021,"SUBDIRECCION DE ADMINISTRACION INMOBILIARIA Y DE ESPACIO PUBLICO","ESCRITO","DERECHO DE PETICION DE INTERES PARTICULAR",1,"PENDIENTE"]
[3463962021,"SUBDIRECCION DE REGISTRO INMOBILIARIO","ESCRITO","DERECHO DE PETICION DE INTERES GENERAL",1,"PENDIENTE"]
[3464092021,"SUBDIRECCION DE ADMINISTRACION INMOBILIARIA Y DE ESPACIO PUBLICO","ESCRITO","DERECHO DE PETICION DE INTERES PARTICULAR",1,"PENDIENTE"]
[3464462021,"AREA DE ATENCION A LA CIUDADANIA","WEB","DERECHO DE PETICION DE INTERES PARTICULAR",1,"GESTIONADO"]
[3464472021,"SUBDIRECCION DE ADMINISTRACION INMOBILIARIA Y DE ESPACIO PUBLICO","ESCRITO","DERECHO DE PETICION DE INTERES PARTICULAR",1,"PENDIENTE"]
[3464662021,"SUBDIRECCION DE ADMINISTRACION INMOBILIARIA Y DE ESPACIO PUBLICO","ESCRITO","DERECHO DE PETICION DE INTERES PARTICULAR",1,"PENDIENTE"]
[3464852021,"SUBDIRECCION DE ADMINISTRACION INMOBILIARIA Y DE ESPACIO PUBLICO","ESCRITO","DERECHO DE PETICION DE INTERES GENERAL",1,"PENDIENTE"]
[3464982021,"SUBDIRECCION DE REGISTRO INMOBILIARIO","ESCRITO","DERECHO DE PETICION DE INTERES PARTICULAR",1,"PENDIENTE"]
[3465002021,"SUBDIRECCION DE ADMINISTRACION INMOBILIARIA Y DE ESPACIO PUBLICO","ESCRITO","DERECHO DE PETICION DE INTERES PARTICULAR",1,"PENDIENTE"]
[3465032021,"SUBDIRECCION DE REGISTRO INMOBILIARIO","ESCRITO","DERECHO DE PETICION DE INTERES PARTICULAR",1,"PENDIENTE"]
[3465082021,"SUBDIRECCION DE ADMINISTRACION INMOBILIARIA Y DE ESPACIO PUBLICO","ESCRITO","DERECHO DE PETICION DE INTERES PARTICULAR",1,"PENDIENTE"]
[3467512021,"SUBDIRECCION DE ADMINISTRACION INMOBILIARIA Y DE ESPACIO PUBLICO","ESCRITO","DERECHO DE PETICION DE INTERES PARTICULAR",1,"PENDIENTE"]
[3467652021,"SUBDIRECCION DE ADMINISTRACION INMOBILIARIA Y DE ESPACIO PUBLICO","ESCRITO","DERECHO DE PETICION DE INTERES PARTICULAR",1,"PENDIENTE"]
[3467872021,"SUBDIRECCION DE ADMINISTRACION INMOBILIARIA Y DE ESPACIO PUBLICO","WEB","DERECHO DE PETICION DE INTERES PARTICULAR",1,"PENDIENTE"]
[3468112021,"SUBDIRECCION DE ADMINISTRACION INMOBILIARIA Y DE ESPACIO PUBLICO","ESCRITO","DERECHO DE PETICION DE INTERES PARTICULAR",1,"PENDIENTE"]
[3468522021,"SUBDIRECCION DE ADMINISTRACION INMOBILIARIA Y DE ESPACIO PUBLICO","ESCRITO","DERECHO DE PETICION DE INTERES PARTICULAR",1,"PENDIENTE"]
[3468582021,"SUBDIRECCION DE ADMINISTRACION INMOBILIARIA Y DE ESPACIO PUBLICO","WEB","CONSULTA",1,"PENDIENTE"]
[3468882021,"SUBDIRECCION DE ADMINISTRACION INMOBILIARIA Y DE ESPACIO PUBLICO","ESCRITO","DERECHO DE PETICION DE INTERES PARTICULAR",1,"PENDIENTE"]
[3469242021,"SUBDIRECCION DE ADMINISTRACION INMOBILIARIA Y DE ESPACIO PUBLICO","ESCRITO","DERECHO DE PETICION DE INTERES PARTICULAR",1,"PENDIENTE"]
[3469542021,"SUBDIRECCION DE ADMINISTRACION INMOBILIARIA Y DE ESPACIO PUBLICO","ESCRITO","DERECHO DE PETICION DE INTERES PARTICULAR",1,"PENDIENTE"]
[3470502021,"SUBDIRECCION DE ADMINISTRACION INMOBILIARIA Y DE ESPACIO PUBLICO","WEB","DERECHO DE PETICION DE INTERES PARTICULAR",1,"PENDIENTE"]
[3471712021,"AREA DE ATENCION A LA CIUDADANIA","WEB","DERECHO DE PETICION DE INTERES GENERAL",1,"GESTIONADO"]
[3472892021,"SUBDIRECCION DE REGISTRO INMOBILIARIO","ESCRITO","DERECHO DE PETICION DE INTERES PARTICULAR",1,"PENDIENTE"]
[3472932021,"SUBDIRECCION DE ADMINISTRACION INMOBILIARIA Y DE ESPACIO PUBLICO","ESCRITO","DERECHO DE PETICION DE INTERES PARTICULAR",1,"PENDIENTE"]
[3473832021,"SUBDIRECCION DE ADMINISTRACION INMOBILIARIA Y DE ESPACIO PUBLICO","WEB","DERECHO DE PETICION DE INTERES PARTICULAR",1,"PENDIENTE"]
[3475122021,"AREA DE ATENCION A LA CIUDADANIA","WEB","DERECHO DE PETICION DE INTERES GENERAL",1,"GESTIONADO"]
[3478252021,"AREA DE ATENCION A LA CIUDADANIA","WEB","DERECHO DE PETICION DE INTERES GENERAL",1,"GESTIONADO"]
[3479192021,"SUBDIRECCION DE ADMINISTRACION INMOBILIARIA Y DE ESPACIO PUBLICO","ESCRITO","DERECHO DE PETICION DE INTERES PARTICULAR",1,"PENDIENTE"]
[3480932021,"SUBDIRECCION DE ADMINISTRACION INMOBILIARIA Y DE ESPACIO PUBLICO","WEB","DERECHO DE PETICION DE INTERES GENERAL",1,"PENDIENTE"]
[3484732021,"AREA DE ATENCION A LA CIUDADANIA","WEB","DERECHO DE PETICION DE INTERES GENERAL",1,"GESTIONADO"]
[3484872021,"SUBDIRECCION DE ADMINISTRACION INMOBILIARIA Y DE ESPACIO PUBLICO","WEB","DERECHO DE PETICION DE INTERES GENERAL",1,"PENDIENTE"]
[3484982021,"SUBDIRECCION DE ADMINISTRACION INMOBILIARIA Y DE ESPACIO PUBLICO","WEB","DERECHO DE PETICION DE INTERES GENERAL",1,"PENDIENTE"]
[3485242021,"SUBDIRECCION ADMINISTRATIVA  FINANCIERA Y DE CONTROL DISCIPLINARIO","WEB","DERECHO DE PETICION DE INTERES GENERAL",2,"PENDIENTE"]
[3485302021,"SUBDIRECCION DE ADMINISTRACION INMOBILIARIA Y DE ESPACIO PUBLICO","WEB","DERECHO DE PETICION DE INTERES GENERAL",1,"PENDIENTE"]
[3485742021,"AREA DE ATENCION A LA CIUDADANIA","WEB","DERECHO DE PETICION DE INTERES PARTICULAR",1,"GESTIONADO"]
[3487682021,"SUBDIRECCION DE ADMINISTRACION INMOBILIARIA Y DE ESPACIO PUBLICO","ESCRITO","DERECHO DE PETICION DE INTERES PARTICULAR",1,"PENDIENTE"]
[3488192021,"AREA DE ATENCION A LA CIUDADANIA","TELEFONO","DERECHO DE PETICION DE INTERES GENERAL",1,"GESTIONADO"]
[3488812021,"AREA DE ATENCION A LA CIUDADANIA","WEB","DERECHO DE PETICION DE INTERES PARTICULAR",1,"GESTIONADO"]
[3489482021,"AREA DE ATENCION A LA CIUDADANIA","TELEFONO","DERECHO DE PETICION DE INTERES GENERAL",1,"GESTIONADO"]
[3489812021,"AREA DE ATENCION A LA CIUDADANIA","TELEFONO","DERECHO DE PETICION DE INTERES GENERAL",2,"GESTIONADO"]
[3490922021,"AREA DE ATENCION A LA CIUDADANIA","WEB","DERECHO DE PETICION DE INTERES PARTICULAR",1,"GESTIONADO"]
[3492962021,"AREA DE ATENCION A LA CIUDADANIA","WEB","QUEJA",1,"GESTIONADO"]
[3493422021,"AREA DE ATENCION A LA CIUDADANIA","WEB","DERECHO DE PETICION DE INTERES PARTICULAR",1,"GESTIONADO"]
[3493842021,"AREA DE ATENCION A LA CIUDADANIA","WEB","DERECHO DE PETICION DE INTERES GENERAL",1,"GESTIONADO"]
[3495582021,"AREA DE ATENCION A LA CIUDADANIA","WEB","DERECHO DE PETICION DE INTERES GENERAL",1,"GESTIONADO"]
[3496192021,"SUBDIRECCION DE ADMINISTRACION INMOBILIARIA Y DE ESPACIO PUBLICO","WEB","DERECHO DE PETICION DE INTERES PARTICULAR",1,"PENDIENTE"]
[3496482021,"AREA DE ATENCION A LA CIUDADANIA","WEB","DERECHO DE PETICION DE INTERES PARTICULAR",1,"GESTIONADO"]
[3496872021,"AREA DE ATENCION A LA CIUDADANIA","WEB","DERECHO DE PETICION DE INTERES GENERAL",1,"GESTIONADO"]
[3496902021,"AREA DE ATENCION A LA CIUDADANIA","WEB","DERECHO DE PETICION DE INTERES GENERAL",1,"GESTIONADO"]
[3497322021,"SUBDIRECCION DE ADMINISTRACION INMOBILIARIA Y DE ESPACIO PUBLICO","ESCRITO","DERECHO DE PETICION DE INTERES PARTICULAR",1,"PENDIENTE"]
[3497372021,"SUBDIRECCION DE REGISTRO INMOBILIARIO","ESCRITO","DERECHO DE PETICION DE INTERES PARTICULAR",1,"PENDIENTE"]
[3497392021,"SUBDIRECCION DE REGISTRO INMOBILIARIO","ESCRITO","DERECHO DE PETICION DE INTERES PARTICULAR",1,"PENDIENTE"]
[3499682021,"SUBDIRECCION DE REGISTRO INMOBILIARIO","ESCRITO","DERECHO DE PETICION DE INTERES PARTICULAR",1,"PENDIENTE"]
[3499862021,"AREA DE ATENCION A LA CIUDADANIA","WEB","DERECHO DE PETICION DE INTERES GENERAL",1,"GESTIONADO"]
[3500202021,"AREA DE ATENCION A LA CIUDADANIA","TELEFONO","DERECHO DE PETICION DE INTERES GENERAL",1,"GESTIONADO"]
[3500822021,"SUBDIRECCION DE ADMINISTRACION INMOBILIARIA Y DE ESPACIO PUBLICO","ESCRITO","DERECHO DE PETICION DE INTERES PARTICULAR",1,"PENDIENTE"]
[3501332021,"DESPACHO","ESCRITO","DERECHO DE PETICION DE INTERES PARTICULAR",1,"PENDIENTE"]
[3501752021,"SUBDIRECCION DE ADMINISTRACION INMOBILIARIA Y DE ESPACIO PUBLICO","ESCRITO","DERECHO DE PETICION DE INTERES GENERAL",1,"PENDIENTE"]
[3501982021,"SUBDIRECCION DE ADMINISTRACION INMOBILIARIA Y DE ESPACIO PUBLICO","ESCRITO","DERECHO DE PETICION DE INTERES PARTICULAR",1,"PENDIENTE"]
[3502112021,"SUBDIRECCION DE REGISTRO INMOBILIARIO","ESCRITO","DERECHO DE PETICION DE INTERES GENERAL",1,"PENDIENTE"]
[3502162021,"SUBDIRECCION DE ADMINISTRACION INMOBILIARIA Y DE ESPACIO PUBLICO","ESCRITO","DERECHO DE PETICION DE INTERES PARTICULAR",1,"PENDIENTE"]
[3502172021,"SUBDIRECCION DE ADMINISTRACION INMOBILIARIA Y DE ESPACIO PUBLICO","ESCRITO","DERECHO DE PETICION DE INTERES PARTICULAR",1,"PENDIENTE"]
[3502202021,"SUBDIRECCION DE ADMINISTRACION INMOBILIARIA Y DE ESPACIO PUBLICO","ESCRITO","DERECHO DE PETICION DE INTERES PARTICULAR",1,"PENDIENTE"]
[3504172021,"AREA DE ATENCION A LA CIUDADANIA","WEB","DERECHO DE PETICION DE INTERES PARTICULAR",1,"PENDIENTE"]
[3505672021,"AREA DE ATENCION A LA CIUDADANIA","WEB","QUEJA",1,"GESTIONADO"]
[3505982021,"AREA DE ATENCION A LA CIUDADANIA","TELEFONO","DERECHO DE PETICION DE INTERES GENERAL",1,"GESTIONADO"]
[3506422021,"AREA DE ATENCION A LA CIUDADANIA","WEB","QUEJA",1,"GESTIONADO"]
[3508412021,"SUBDIRECCION DE ADMINISTRACION INMOBILIARIA Y DE ESPACIO PUBLICO","TELEFONO","DERECHO DE PETICION DE INTERES GENERAL",1,"PENDIENTE"]
[3509442021,"SUBDIRECCION DE ADMINISTRACION INMOBILIARIA Y DE ESPACIO PUBLICO","WEB","DERECHO DE PETICION DE INTERES PARTICULAR",1,"PENDIENTE"]
[3514942021,"SUBDIRECCION DE ADMINISTRACION INMOBILIARIA Y DE ESPACIO PUBLICO","ESCRITO","DERECHO DE PETICION DE INTERES PARTICULAR",1,"PENDIENTE"]
[3514952021,"AREA DE ATENCION A LA CIUDADANIA","TELEFONO","RECLAMO",1,"GESTIONADO"]
[3514982021,"SUBDIRECCION DE REGISTRO INMOBILIARIO","ESCRITO","DERECHO DE PETICION DE INTERES PARTICULAR",1,"PENDIENTE"]
[3515472021,"OFICINA ASESORA JURIDICA","ESCRITO","DERECHO DE PETICION DE INTERES PARTICULAR",1,"PENDIENTE"]
[3516502021,"SUBDIRECCION DE REGISTRO INMOBILIARIO","WEB","DERECHO DE PETICION DE INTERES GENERAL",1,"PENDIENTE"]
[3517422021,"SUBDIRECCION DE ADMINISTRACION INMOBILIARIA Y DE ESPACIO PUBLICO","WEB","DERECHO DE PETICION DE INTERES GENERAL",1,"PENDIENTE"]
[3518772021,"SUBDIRECCION DE REGISTRO INMOBILIARIO","WEB","DERECHO DE PETICION DE INTERES GENERAL",1,"PENDIENTE"]
[3521242021,"SUBDIRECCION DE ADMINISTRACION INMOBILIARIA Y DE ESPACIO PUBLICO","WEB","DERECHO DE PETICION DE INTERES GENERAL",1,"PENDIENTE"]
[3521512021,"SUBDIRECCION DE ADMINISTRACION INMOBILIARIA Y DE ESPACIO PUBLICO","ESCRITO","DERECHO DE PETICION DE INTERES PARTICULAR",1,"PENDIENTE"]
[3521782021,"SUBDIRECCION DE REGISTRO INMOBILIARIO","ESCRITO","DERECHO DE PETICION DE INTERES PARTICULAR",1,"PENDIENTE"]
[3521922021,"SUBDIRECCION DE ADMINISTRACION INMOBILIARIA Y DE ESPACIO PUBLICO","ESCRITO","DERECHO DE PETICION DE INTERES PARTICULAR",1,"PENDIENTE"]
[3522022021,"SUBDIRECCION DE ADMINISTRACION INMOBILIARIA Y DE ESPACIO PUBLICO","ESCRITO","DERECHO DE PETICION DE INTERES PARTICULAR",1,"PENDIENTE"]
[3522152021,"SUBDIRECCION DE ADMINISTRACION INMOBILIARIA Y DE ESPACIO PUBLICO","ESCRITO","DERECHO DE PETICION DE INTERES PARTICULAR",1,"PENDIENTE"]
[3522322021,"SUBDIRECCION DE ADMINISTRACION INMOBILIARIA Y DE ESPACIO PUBLICO","ESCRITO","DERECHO DE PETICION DE INTERES PARTICULAR",1,"PENDIENTE"]
[3522442021,"SUBDIRECCION DE ADMINISTRACION INMOBILIARIA Y DE ESPACIO PUBLICO","ESCRITO","DERECHO DE PETICION DE INTERES PARTICULAR",1,"PENDIENTE"]
[3522562021,"AREA DE ATENCION A LA CIUDADANIA","WEB","DERECHO DE PETICION DE INTERES PARTICULAR",1,"GESTIONADO"]
[3524492021,"SUBDIRECCION DE REGISTRO INMOBILIARIO","ESCRITO","DERECHO DE PETICION DE INTERES PARTICULAR",1,"PENDIENTE"]
[3524712021,"SUBDIRECCION DE ADMINISTRACION INMOBILIARIA Y DE ESPACIO PUBLICO","ESCRITO","DERECHO DE PETICION DE INTERES PARTICULAR",1,"PENDIENTE"]
[3525082021,"SUBDIRECCION DE ADMINISTRACION INMOBILIARIA Y DE ESPACIO PUBLICO","ESCRITO","DERECHO DE PETICION DE INTERES PARTICULAR",1,"PENDIENTE"]
[3525292021,"SUBDIRECCION DE REGISTRO INMOBILIARIO","ESCRITO","DERECHO DE PETICION DE INTERES PARTICULAR",1,"PENDIENTE"]
[3532872021,"AREA DE ATENCION A LA CIUDADANIA","WEB","QUEJA",1,"PENDIENTE"]
[3532972021,"AREA DE ATENCION A LA CIUDADANIA","WEB","QUEJA",1,"PENDIENTE"]
[3535722021,"AREA DE ATENCION A LA CIUDADANIA","WEB","DERECHO DE PETICION DE INTERES GENERAL",1,"PENDIENTE"]
[]
[]
["TRASLADOS"]
["Número petición","Dependencia","Canal","Tipo petición","Estado petición final","Entidad que recibe","Tipo reporte por entidad"]
[1763792021,"SUBDIRECCION DE ADMINISTRACION INMOBILIARIA Y DE ESPACIO PUBLICO","ESCRITO","DERECHO DE PETICION DE INTERES GENERAL","Solucionado - Por traslado","SECRETARIA DE SALUD","GESTIONADO"]
[2403902021,"SUBDIRECCION DE ADMINISTRACION INMOBILIARIA Y DE ESPACIO PUBLICO","WEB","DERECHO DE PETICION DE INTERES GENERAL","Solucionado - Por traslado","IPES","GESTIONADO"]
[2470722021,"SUBDIRECCION DE ADMINISTRACION INMOBILIARIA Y DE ESPACIO PUBLICO","E-MAIL","DERECHO DE PETICION DE INTERES GENERAL","Solucionado - Por traslado","SECRETARIA DE GOBIERNO","GESTIONADO"]
[2658352021,"SUBDIRECCION DE ADMINISTRACION INMOBILIARIA Y DE ESPACIO PUBLICO","E-MAIL","DERECHO DE PETICION DE INTERES GENERAL","Solucionado - Por traslado","JBB - JARDIN BOTANICO","GESTIONADO"]
[2663082021,"SUBDIRECCION DE ADMINISTRACION INMOBILIARIA Y DE ESPACIO PUBLICO","WEB","DERECHO DE PETICION DE INTERES GENERAL","Solucionado - Por traslado","SECRETARIA DE GOBIERNO","GESTIONADO"]
[2667202021,"SUBDIRECCION DE ADMINISTRACION INMOBILIARIA Y DE ESPACIO PUBLICO","ESCRITO","DERECHO DE PETICION DE INTERES PARTICULAR","Solucionado - Por traslado","SECRETARIA DE GOBIERNO","GESTIONADO"]
[2667292021,"SUBDIRECCION DE ADMINISTRACION INMOBILIARIA Y DE ESPACIO PUBLICO","ESCRITO","DERECHO DE PETICION DE INTERES PARTICULAR","Solucionado - Por traslado","IDRD","GESTIONADO"]
[2667302021,"SUBDIRECCION DE ADMINISTRACION INMOBILIARIA Y DE ESPACIO PUBLICO","ESCRITO","DERECHO DE PETICION DE INTERES PARTICULAR","Solucionado - Por traslado","SECRETARIA DE GOBIERNO","GESTIONADO"]
[2667462021,"SUBDIRECCION DE ADMINISTRACION INMOBILIARIA Y DE ESPACIO PUBLICO","ESCRITO","DERECHO DE PETICION DE INTERES PARTICULAR","Solucionado - Por traslado","SECRETARIA DE GOBIERNO","GESTIONADO"]
[2667712021,"SUBDIRECCION DE ADMINISTRACION INMOBILIARIA Y DE ESPACIO PUBLICO","ESCRITO","DERECHO DE PETICION DE INTERES PARTICULAR","Solucionado - Por traslado","SECRETARIA DE GOBIERNO","GESTIONADO"]
[2674062021,"SUBDIRECCION DE ADMINISTRACION INMOBILIARIA Y DE ESPACIO PUBLICO","WEB","DERECHO DE PETICION DE INTERES GENERAL","Solucionado - Por traslado","SECRETARIA DE GOBIERNO","GESTIONADO"]
[2674862021,"SUBDIRECCION DE ADMINISTRACION INMOBILIARIA Y DE ESPACIO PUBLICO","WEB","DERECHO DE PETICION DE INTERES GENERAL","Solucionado - Por traslado","SECRETARIA DE GOBIERNO","GESTIONADO"]
[2675592021,"SUBDIRECCION DE ADMINISTRACION INMOBILIARIA Y DE ESPACIO PUBLICO","ESCRITO","DERECHO DE PETICION DE INTERES PARTICULAR","Solucionado - Por traslado","SECRETARIA DE GOBIERNO","GESTIONADO"]
[2677412021,"SUBDIRECCION DE ADMINISTRACION INMOBILIARIA Y DE ESPACIO PUBLICO","WEB","QUEJA","Solucionado - Por traslado","TRANSMILENIO","GESTIONADO"]
[2679592021,"SUBDIRECCION DE ADMINISTRACION INMOBILIARIA Y DE ESPACIO PUBLICO","ESCRITO","DERECHO DE PETICION DE INTERES PARTICULAR","Solucionado - Por traslado","SECRETARIA DE GOBIERNO","GESTIONADO"]
[2684822021,"SUBDIRECCION DE ADMINISTRACION INMOBILIARIA Y DE ESPACIO PUBLICO","ESCRITO","DERECHO DE PETICION DE INTERES PARTICULAR","Solucionado - Por traslado","SECRETARIA DE GOBIERNO","GESTIONADO"]
[2694572021,"SUBDIRECCION DE ADMINISTRACION INMOBILIARIA Y DE ESPACIO PUBLICO","ESCRITO","DERECHO DE PETICION DE INTERES PARTICULAR","Solucionado - Por traslado","SECRETARIA DE GOBIERNO","GESTIONADO"]
[2694652021,"SUBDIRECCION DE ADMINISTRACION INMOBILIARIA Y DE ESPACIO PUBLICO","ESCRITO","DERECHO DE PETICION DE INTERES PARTICULAR","Solucionado - Por traslado","SECRETARIA DE GOBIERNO","GESTIONADO"]
[2694922021,"SUBDIRECCION DE ADMINISTRACION INMOBILIARIA Y DE ESPACIO PUBLICO","ESCRITO","DERECHO DE PETICION DE INTERES GENERAL","Solucionado - Por traslado","IDPAC","GESTIONADO"]
[2694962021,"SUBDIRECCION DE ADMINISTRACION INMOBILIARIA Y DE ESPACIO PUBLICO","ESCRITO","DERECHO DE PETICION DE INTERES PARTICULAR","Solucionado - Por traslado","IDIPRON","GESTIONADO"]
[2698542021,"SUBDIRECCION DE ADMINISTRACION INMOBILIARIA Y DE ESPACIO PUBLICO","WEB","QUEJA","Solucionado - Por traslado","IDRD","GESTIONADO"]
[2699872021,"SUBDIRECCION DE ADMINISTRACION INMOBILIARIA Y DE ESPACIO PUBLICO","WEB","DERECHO DE PETICION DE INTERES GENERAL","Solucionado - Por traslado","SECRETARIA DE GOBIERNO","GESTIONADO"]
[2701892021,"SUBDIRECCION DE ADMINISTRACION INMOBILIARIA Y DE ESPACIO PUBLICO","ESCRITO","DERECHO DE PETICION DE INTERES PARTICULAR","Solucionado - Por traslado","SECRETARIA DE GOBIERNO","GESTIONADO"]
[2701922021,"SUBDIRECCION DE ADMINISTRACION INMOBILIARIA Y DE ESPACIO PUBLICO","ESCRITO","DERECHO DE PETICION DE INTERES PARTICULAR","Solucionado - Por traslado","PERSONERIA DE BOGOTA","GESTIONADO"]
[2703902021,"SUBDIRECCION DE ADMINISTRACION INMOBILIARIA Y DE ESPACIO PUBLICO","ESCRITO","DERECHO DE PETICION DE INTERES PARTICULAR","Solucionado - Por traslado","LA TERMINAL DE TRANSPORTE","GESTIONADO"]
[2703922021,"SUBDIRECCION DE ADMINISTRACION INMOBILIARIA Y DE ESPACIO PUBLICO","ESCRITO","DERECHO DE PETICION DE INTERES PARTICULAR","Solucionado - Por traslado","LA TERMINAL DE TRANSPORTE","GESTIONADO"]
[2722152021,"SUBDIRECCION DE ADMINISTRACION INMOBILIARIA Y DE ESPACIO PUBLICO","ESCRITO","DERECHO DE PETICION DE INTERES PARTICULAR","Solucionado - Por traslado","IDU","GESTIONADO"]
[2722332021,"SUBDIRECCION DE ADMINISTRACION INMOBILIARIA Y DE ESPACIO PUBLICO","ESCRITO","DERECHO DE PETICION DE INTERES PARTICULAR","Solucionado - Por traslado","IDRD","GESTIONADO"]
[2722822021,"SUBDIRECCION DE ADMINISTRACION INMOBILIARIA Y DE ESPACIO PUBLICO","WEB","DERECHO DE PETICION DE INTERES GENERAL","Solucionado - Por traslado","SECRETARIA DE GOBIERNO","GESTIONADO"]
[2734272021,"SUBDIRECCION DE ADMINISTRACION INMOBILIARIA Y DE ESPACIO PUBLICO","WEB","DERECHO DE PETICION DE INTERES PARTICULAR","Solucionado - Por traslado","SECRETARIA DE GOBIERNO","GESTIONADO"]
[2739272021,"SUBDIRECCION DE ADMINISTRACION INMOBILIARIA Y DE ESPACIO PUBLICO","ESCRITO","DERECHO DE PETICION DE INTERES PARTICULAR","Solucionado - Por traslado","SECRETARIA DE GOBIERNO","GESTIONADO"]
[2739452021,"SUBDIRECCION DE ADMINISTRACION INMOBILIARIA Y DE ESPACIO PUBLICO","ESCRITO","DERECHO DE PETICION DE INTERES PARTICULAR","Solucionado - Por traslado","SECRETARIA DE GOBIERNO","GESTIONADO"]
[2739782021,"SUBDIRECCION DE ADMINISTRACION INMOBILIARIA Y DE ESPACIO PUBLICO","ESCRITO","DERECHO DE PETICION DE INTERES GENERAL","Solucionado - Por traslado","SECRETARIA JURIDICA","GESTIONADO"]
[2740562021,"SUBDIRECCION DE ADMINISTRACION INMOBILIARIA Y DE ESPACIO PUBLICO","ESCRITO","DERECHO DE PETICION DE INTERES PARTICULAR","Solucionado - Por traslado","SECRETARIA DE GOBIERNO","GESTIONADO"]
[2743562021,"SUBDIRECCION DE ADMINISTRACION INMOBILIARIA Y DE ESPACIO PUBLICO","WEB","DERECHO DE PETICION DE INTERES PARTICULAR","Solucionado - Por traslado","IDU","GESTIONADO"]
[2746132021,"SUBDIRECCION DE ADMINISTRACION INMOBILIARIA Y DE ESPACIO PUBLICO","ESCRITO","DERECHO DE PETICION DE INTERES GENERAL","Solucionado - Por traslado","SECRETARIA DE GOBIERNO","GESTIONADO"]
[2747072021,"SUBDIRECCION DE ADMINISTRACION INMOBILIARIA Y DE ESPACIO PUBLICO","E-MAIL","DERECHO DE PETICION DE INTERES PARTICULAR","Solucionado - Por traslado","IDU","GESTIONADO"]
[2750092021,"SUBDIRECCION DE ADMINISTRACION INMOBILIARIA Y DE ESPACIO PUBLICO","WEB","QUEJA","Solucionado - Por traslado","IDRD","GESTIONADO"]
[2751812021,"SUBDIRECCION DE ADMINISTRACION INMOBILIARIA Y DE ESPACIO PUBLICO","WEB","DERECHO DE PETICION DE INTERES PARTICULAR","Solucionado - Por traslado","SECRETARIA DE GOBIERNO","GESTIONADO"]
[2753922021,"SUBDIRECCION DE ADMINISTRACION INMOBILIARIA Y DE ESPACIO PUBLICO","WEB","DERECHO DE PETICION DE INTERES GENERAL","Solucionado - Por traslado","SECRETARIA DE GOBIERNO","GESTIONADO"]
[2754832021,"SUBDIRECCION DE ADMINISTRACION INMOBILIARIA Y DE ESPACIO PUBLICO","WEB","DERECHO DE PETICION DE INTERES PARTICULAR","Solucionado - Por traslado","SECRETARIA DE GOBIERNO","GESTIONADO"]
[2755202021,"SUBDIRECCION DE ADMINISTRACION INMOBILIARIA Y DE ESPACIO PUBLICO","WEB","DERECHO DE PETICION DE INTERES GENERAL","Solucionado - Por traslado","ACUEDUCTO - EAAB-ESP","GESTIONADO"]
[2755762021,"SUBDIRECCION DE ADMINISTRACION INMOBILIARIA Y DE ESPACIO PUBLICO","ESCRITO","DERECHO DE PETICION DE INTERES PARTICULAR","Solucionado - Por traslado","SECRETARIA DE GOBIERNO","GESTIONADO"]
[2757642021,"SUBDIRECCION DE ADMINISTRACION INMOBILIARIA Y DE ESPACIO PUBLICO","ESCRITO","DERECHO DE PETICION DE INTERES PARTICULAR","Solucionado - Por traslado","SECRETARIA DE GOBIERNO","GESTIONADO"]
[2757852021,"SUBDIRECCION DE ADMINISTRACION INMOBILIARIA Y DE ESPACIO PUBLICO","ESCRITO","DERECHO DE PETICION DE INTERES PARTICULAR","Solucionado - Por traslado","ACUEDUCTO - EAAB-ESP","GESTIONADO"]
[2758052021,"SUBDIRECCION DE ADMINISTRACION INMOBILIARIA Y DE ESPACIO PUBLICO","ESCRITO","DERECHO DE PETICION DE INTERES PARTICULAR","Solucionado - Por traslado","SECRETARIA DE GOBIERNO","GESTIONADO"]
[2759512021,"SUBDIRECCION DE ADMINISTRACION INMOBILIARIA Y DE ESPACIO PUBLICO","ESCRITO","DERECHO DE PETICION DE INTERES PARTICULAR","Solucionado - Por traslado","SECRETARIA DE GOBIERNO","GESTIONADO"]
[2763342021,"SUBDIRECCION DE ADMINISTRACION INMOBILIARIA Y DE ESPACIO PUBLICO","ESCRITO","DERECHO DE PETICION DE INTERES PARTICULAR","Solucionado - Por traslado","SECRETARIA JURIDICA","GESTIONADO"]
[2766252021,"SUBDIRECCION DE ADMINISTRACION INMOBILIARIA Y DE ESPACIO PUBLICO","ESCRITO","DERECHO DE PETICION DE INTERES PARTICULAR","Solucionado - Por traslado","IPES","GESTIONADO"]
[2766382021,"SUBDIRECCION DE ADMINISTRACION INMOBILIARIA Y DE ESPACIO PUBLICO","ESCRITO","DERECHO DE PETICION DE INTERES PARTICULAR","Solucionado - Por traslado","IPES","GESTIONADO"]
[2766412021,"SUBDIRECCION DE ADMINISTRACION INMOBILIARIA Y DE ESPACIO PUBLICO","ESCRITO","DERECHO DE PETICION DE INTERES PARTICULAR","Solucionado - Por traslado","SECRETARIA DE INTEGRACION SOCIAL","GESTIONADO"]
[2767622021,"SUBDIRECCION DE ADMINISTRACION INMOBILIARIA Y DE ESPACIO PUBLICO","WEB","DERECHO DE PETICION DE INTERES GENERAL","Solucionado - Por traslado","SECRETARIA DE AMBIENTE","GESTIONADO"]
[2768232021,"SUBDIRECCION DE ADMINISTRACION INMOBILIARIA Y DE ESPACIO PUBLICO","ESCRITO","DERECHO DE PETICION DE INTERES PARTICULAR","Solucionado - Por traslado","SECRETARIA DE GOBIERNO","GESTIONADO"]
[2771052021,"SUBDIRECCION DE ADMINISTRACION INMOBILIARIA Y DE ESPACIO PUBLICO","TELEFONO","DERECHO DE PETICION DE INTERES GENERAL","Solucionado - Por traslado","SECRETARIA MOVILIDAD","GESTIONADO"]
[2778462021,"SUBDIRECCION DE ADMINISTRACION INMOBILIARIA Y DE ESPACIO PUBLICO","ESCRITO","DERECHO DE PETICION DE INTERES PARTICULAR","Solucionado - Por traslado","IDU","GESTIONADO"]
[2779352021,"SUBDIRECCION DE ADMINISTRACION INMOBILIARIA Y DE ESPACIO PUBLICO","ESCRITO","DERECHO DE PETICION DE INTERES PARTICULAR","Solucionado - Por traslado","IDRD","GESTIONADO"]
[2779422021,"SUBDIRECCION DE ADMINISTRACION INMOBILIARIA Y DE ESPACIO PUBLICO","ESCRITO","DERECHO DE PETICION DE INTERES PARTICULAR","Solucionado - Por traslado","IDRD","GESTIONADO"]
[2780282021,"SUBDIRECCION DE ADMINISTRACION INMOBILIARIA Y DE ESPACIO PUBLICO","ESCRITO","DERECHO DE PETICION DE INTERES PARTICULAR","Solucionado - Por traslado","IDU","GESTIONADO"]
[2780912021,"SUBDIRECCION DE ADMINISTRACION INMOBILIARIA Y DE ESPACIO PUBLICO","TELEFONO","DERECHO DE PETICION DE INTERES GENERAL","Solucionado - Por traslado","SECRETARIA DE GOBIERNO","GESTIONADO"]
[2786902021,"SUBDIRECCION DE ADMINISTRACION INMOBILIARIA Y DE ESPACIO PUBLICO","TELEFONO","DERECHO DE PETICION DE INTERES GENERAL","Solucionado - Por traslado","IDRD","GESTIONADO"]
[2788482021,"SUBDIRECCION DE ADMINISTRACION INMOBILIARIA Y DE ESPACIO PUBLICO","TELEFONO","DERECHO DE PETICION DE INTERES GENERAL","Solucionado - Por traslado","IPES","GESTIONADO"]
[2788912021,"SUBDIRECCION DE ADMINISTRACION INMOBILIARIA Y DE ESPACIO PUBLICO","ESCRITO","DERECHO DE PETICION DE INTERES GENERAL","Solucionado - Por traslado","SECRETARIA DE GOBIERNO","GESTIONADO"]
[2795902021,"SUBDIRECCION DE ADMINISTRACION INMOBILIARIA Y DE ESPACIO PUBLICO","ESCRITO","DERECHO DE PETICION DE INTERES PARTICULAR","Solucionado - Por traslado","SECRETARIA DE GOBIERNO","GESTIONADO"]
[2796372021,"SUBDIRECCION DE ADMINISTRACION INMOBILIARIA Y DE ESPACIO PUBLICO","ESCRITO","DERECHO DE PETICION DE INTERES PARTICULAR","Solucionado - Por traslado","ETB - EMPRESA DE TELEFONOS","GESTIONADO"]
[2797462021,"SUBDIRECCION DE ADMINISTRACION INMOBILIARIA Y DE ESPACIO PUBLICO","ESCRITO","DERECHO DE PETICION DE INTERES PARTICULAR","Solucionado - Por traslado","PERSONERIA DE BOGOTA","GESTIONADO"]
[2797642021,"SUBDIRECCION DE ADMINISTRACION INMOBILIARIA Y DE ESPACIO PUBLICO","ESCRITO","DERECHO DE PETICION DE INTERES PARTICULAR","Solucionado - Por traslado","IDPAC","GESTIONADO"]
[2797782021,"SUBDIRECCION DE ADMINISTRACION INMOBILIARIA Y DE ESPACIO PUBLICO","ESCRITO","DERECHO DE PETICION DE INTERES GENERAL","Solucionado - Por traslado","IDU","GESTIONADO"]
[2797902021,"SUBDIRECCION DE ADMINISTRACION INMOBILIARIA Y DE ESPACIO PUBLICO","ESCRITO","DERECHO DE PETICION DE INTERES GENERAL","Solucionado - Por traslado","PERSONERIA DE BOGOTA","GESTIONADO"]
[2798082021,"SUBDIRECCION DE ADMINISTRACION INMOBILIARIA Y DE ESPACIO PUBLICO","ESCRITO","DERECHO DE PETICION DE INTERES GENERAL","Solucionado - Por traslado","SECRETARIA DE GOBIERNO","GESTIONADO"]
[2803872021,"SUBDIRECCION DE ADMINISTRACION INMOBILIARIA Y DE ESPACIO PUBLICO","ESCRITO","DERECHO DE PETICION DE INTERES PARTICULAR","Solucionado - Por traslado","IDRD","GESTIONADO"]
[2804592021,"SUBDIRECCION DE ADMINISTRACION INMOBILIARIA Y DE ESPACIO PUBLICO","ESCRITO","DERECHO DE PETICION DE INTERES PARTICULAR","Solucionado - Por traslado","IPES","GESTIONADO"]
[2807512021,"SUBDIRECCION DE ADMINISTRACION INMOBILIARIA Y DE ESPACIO PUBLICO","WEB","DERECHO DE PETICION DE INTERES GENERAL","Solucionado - Por traslado","SECRETARIA DE GOBIERNO","GESTIONADO"]
[2809062021,"SUBDIRECCION DE ADMINISTRACION INMOBILIARIA Y DE ESPACIO PUBLICO","ESCRITO","DERECHO DE PETICION DE INTERES PARTICULAR","Solucionado - Por traslado","IDRD","GESTIONADO"]
[2812942021,"SUBDIRECCION DE ADMINISTRACION INMOBILIARIA Y DE ESPACIO PUBLICO","WEB","DERECHO DE PETICION DE INTERES GENERAL","Solucionado - Por traslado","IDU","GESTIONADO"]
[2814532021,"SUBDIRECCION DE REGISTRO INMOBILIARIO","WEB","CONSULTA","Solucionado - Por traslado","SECRETARIA DE PLANEACION","GESTIONADO"]
[2825152021,"SUBDIRECCION DE ADMINISTRACION INMOBILIARIA Y DE ESPACIO PUBLICO","ESCRITO","DERECHO DE PETICION DE INTERES PARTICULAR","Solucionado - Por traslado","IDU","GESTIONADO"]
[2825542021,"AREA DE ATENCION A LA CIUDADANIA","WEB","DERECHO DE PETICION DE INTERES GENERAL","Solucionado - Por traslado","SECRETARIA MOVILIDAD","GESTIONADO"]
[2825622021,"SUBDIRECCION DE ADMINISTRACION INMOBILIARIA Y DE ESPACIO PUBLICO","ESCRITO","DERECHO DE PETICION DE INTERES PARTICULAR","Solucionado - Por traslado","SECRETARIA DE GOBIERNO","GESTIONADO"]
[2825792021,"SUBDIRECCION DE ADMINISTRACION INMOBILIARIA Y DE ESPACIO PUBLICO","ESCRITO","DERECHO DE PETICION DE INTERES PARTICULAR","Solucionado - Por traslado","SECRETARIA DE GOBIERNO","GESTIONADO"]
[2826112021,"AREA DE ATENCION A LA CIUDADANIA","WEB","DERECHO DE PETICION DE INTERES GENERAL","Solucionado - Por traslado","SECRETARIA MOVILIDAD","GESTIONADO"]
[2829762021,"SUBDIRECCION DE REGISTRO INMOBILIARIO","WEB","DERECHO DE PETICION DE INTERES GENERAL","Solucionado - Por traslado","SECRETARIA DE PLANEACION","GESTIONADO"]
[2831512021,"SUBDIRECCION DE ADMINISTRACION INMOBILIARIA Y DE ESPACIO PUBLICO","ESCRITO","DERECHO DE PETICION DE INTERES PARTICULAR","Solucionado - Por traslado","SECRETARIA DE PLANEACION","GESTIONADO"]
[2831732021,"SUBDIRECCION DE ADMINISTRACION INMOBILIARIA Y DE ESPACIO PUBLICO","ESCRITO","DERECHO DE PETICION DE INTERES PARTICULAR","Solucionado - Por traslado","SECRETARIA DE GOBIERNO","GESTIONADO"]
[2833522021,"SUBDIRECCION DE ADMINISTRACION INMOBILIARIA Y DE ESPACIO PUBLICO","E-MAIL","RECLAMO","Solucionado - Por traslado","IPES","GESTIONADO"]
[2837962021,"SUBDIRECCION DE ADMINISTRACION INMOBILIARIA Y DE ESPACIO PUBLICO","WEB","DERECHO DE PETICION DE INTERES GENERAL","Solucionado - Por traslado","CATASTRO","GESTIONADO"]
[2839662021,"SUBDIRECCION DE ADMINISTRACION INMOBILIARIA Y DE ESPACIO PUBLICO","ESCRITO","DERECHO DE PETICION DE INTERES PARTICULAR","Solucionado - Por traslado","IDRD","GESTIONADO"]
[2841972021,"SUBDIRECCION DE ADMINISTRACION INMOBILIARIA Y DE ESPACIO PUBLICO","ESCRITO","DERECHO DE PETICION DE INTERES PARTICULAR","Solucionado - Por traslado","IDU","GESTIONADO"]
[2842442021,"SUBDIRECCION DE ADMINISTRACION INMOBILIARIA Y DE ESPACIO PUBLICO","ESCRITO","DERECHO DE PETICION DE INTERES PARTICULAR","Solucionado - Por traslado","SECRETARIA DE GOBIERNO","GESTIONADO"]
[2843212021,"SUBDIRECCION DE ADMINISTRACION INMOBILIARIA Y DE ESPACIO PUBLICO","ESCRITO","DERECHO DE PETICION DE INTERES PARTICULAR","Solucionado - Por traslado","SECRETARIA DE GOBIERNO","GESTIONADO"]
[2850402021,"SUBDIRECCION DE ADMINISTRACION INMOBILIARIA Y DE ESPACIO PUBLICO","ESCRITO","DERECHO DE PETICION DE INTERES PARTICULAR","Solucionado - Por traslado","SECRETARIA DE GOBIERNO","GESTIONADO"]
[2850512021,"SUBDIRECCION DE ADMINISTRACION INMOBILIARIA Y DE ESPACIO PUBLICO","ESCRITO","DERECHO DE PETICION DE INTERES PARTICULAR","Solucionado - Por traslado","SECRETARIA DE GOBIERNO","GESTIONADO"]
[2851132021,"SUBDIRECCION DE ADMINISTRACION INMOBILIARIA Y DE ESPACIO PUBLICO","WEB","DERECHO DE PETICION DE INTERES PARTICULAR","Solucionado - Por traslado","SECRETARIA DE GOBIERNO","GESTIONADO"]
[2857842021,"SUBDIRECCION DE ADMINISTRACION INMOBILIARIA Y DE ESPACIO PUBLICO","ESCRITO","DERECHO DE PETICION DE INTERES PARTICULAR","Solucionado - Por traslado","SECRETARIA DE GOBIERNO","GESTIONADO"]
[2858152021,"SUBDIRECCION DE ADMINISTRACION INMOBILIARIA Y DE ESPACIO PUBLICO","ESCRITO","DERECHO DE PETICION DE INTERES PARTICULAR","Solucionado - Por traslado","IDRD","GESTIONADO"]
[2860542021,"SUBDIRECCION DE ADMINISTRACION INMOBILIARIA Y DE ESPACIO PUBLICO","E-MAIL","DERECHO DE PETICION DE INTERES PARTICULAR","Solucionado - Por traslado","IDU","GESTIONADO"]
[2866952021,"SUBDIRECCION DE ADMINISTRACION INMOBILIARIA Y DE ESPACIO PUBLICO","ESCRITO","DERECHO DE PETICION DE INTERES PARTICULAR","Solucionado - Por traslado","IPES","GESTIONADO"]
[2867432021,"SUBDIRECCION DE ADMINISTRACION INMOBILIARIA Y DE ESPACIO PUBLICO","ESCRITO","DERECHO DE PETICION DE INTERES PARTICULAR","Solucionado - Por traslado","IDRD","GESTIONADO"]
[2867982021,"SUBDIRECCION DE ADMINISTRACION INMOBILIARIA Y DE ESPACIO PUBLICO","WEB","QUEJA","Solucionado - Por traslado","IDRD","GESTIONADO"]
[2871222021,"SUBDIRECCION DE ADMINISTRACION INMOBILIARIA Y DE ESPACIO PUBLICO","WEB","DERECHO DE PETICION DE INTERES GENERAL","Solucionado - Por traslado","SECRETARIA DE GOBIERNO","GESTIONADO"]
[2875722021,"SUBDIRECCION DE ADMINISTRACION INMOBILIARIA Y DE ESPACIO PUBLICO","TELEFONO","DERECHO DE PETICION DE INTERES GENERAL","Solucionado - Por traslado","SECRETARIA MOVILIDAD","GESTIONADO"]
[2876712021,"SUBDIRECCION DE ADMINISTRACION INMOBILIARIA Y DE ESPACIO PUBLICO","WEB","DERECHO DE PETICION DE INTERES GENERAL","Solucionado - Por traslado","IDRD","GESTIONADO"]
[2881242021,"SUBDIRECCION DE ADMINISTRACION INMOBILIARIA Y DE ESPACIO PUBLICO","ESCRITO","DERECHO DE PETICION DE INTERES PARTICULAR","Solucionado - Por traslado","SECRETARIA DE AMBIENTE","GESTIONADO"]
[2885532021,"SUBDIRECCION DE ADMINISTRACION INMOBILIARIA Y DE ESPACIO PUBLICO","ESCRITO","DERECHO DE PETICION DE INTERES PARTICULAR","Solucionado - Por traslado","IDU","GESTIONADO"]
[2885782021,"SUBDIRECCION DE ADMINISTRACION INMOBILIARIA Y DE ESPACIO PUBLICO","ESCRITO","DERECHO DE PETICION DE INTERES PARTICULAR","Solucionado - Por traslado","IDRD","GESTIONADO"]
[2886712021,"SUBDIRECCION DE ADMINISTRACION INMOBILIARIA Y DE ESPACIO PUBLICO","ESCRITO","DERECHO DE PETICION DE INTERES PARTICULAR","Solucionado - Por traslado","IDRD","GESTIONADO"]
[2901262021,"SUBDIRECCION DE ADMINISTRACION INMOBILIARIA Y DE ESPACIO PUBLICO","ESCRITO","DERECHO DE PETICION DE INTERES PARTICULAR","Solucionado - Por traslado","IDRD","GESTIONADO"]
[2901312021,"SUBDIRECCION DE ADMINISTRACION INMOBILIARIA Y DE ESPACIO PUBLICO","ESCRITO","DERECHO DE PETICION DE INTERES PARTICULAR","Solucionado - Por traslado","SECRETARIA DE GOBIERNO","GESTIONADO"]
[2901492021,"SUBDIRECCION DE ADMINISTRACION INMOBILIARIA Y DE ESPACIO PUBLICO","ESCRITO","DERECHO DE PETICION DE INTERES PARTICULAR","Solucionado - Por traslado","IDRD","GESTIONADO"]
[2908682021,"SUBDIRECCION DE ADMINISTRACION INMOBILIARIA Y DE ESPACIO PUBLICO","WEB","DERECHO DE PETICION DE INTERES GENERAL","Solucionado - Por traslado","ACUEDUCTO - EAAB-ESP","GESTIONADO"]
[2913942021,"SUBDIRECCION DE ADMINISTRACION INMOBILIARIA Y DE ESPACIO PUBLICO","ESCRITO","DERECHO DE PETICION DE INTERES PARTICULAR","Solucionado - Por traslado","SECRETARIA DE GOBIERNO","GESTIONADO"]
[2916552021,"AREA DE ATENCION A LA CIUDADANIA","E-MAIL","DERECHO DE PETICION DE INTERES GENERAL","Solucionado - Por traslado","IDRD","GESTIONADO"]
[2916832021,"SUBDIRECCION DE ADMINISTRACION INMOBILIARIA Y DE ESPACIO PUBLICO","ESCRITO","DERECHO DE PETICION DE INTERES PARTICULAR","Solucionado - Por traslado","IDU","GESTIONADO"]
[2917532021,"SUBDIRECCION DE ADMINISTRACION INMOBILIARIA Y DE ESPACIO PUBLICO","ESCRITO","DERECHO DE PETICION DE INTERES PARTICULAR","Solucionado - Por traslado","IPES","GESTIONADO"]
[2919492021,"SUBDIRECCION DE ADMINISTRACION INMOBILIARIA Y DE ESPACIO PUBLICO","ESCRITO","DERECHO DE PETICION DE INTERES PARTICULAR","Solucionado - Por traslado","SECRETARIA DE GOBIERNO","GESTIONADO"]
[2924522021,"SUBDIRECCION DE ADMINISTRACION INMOBILIARIA Y DE ESPACIO PUBLICO","WEB","DERECHO DE PETICION DE INTERES GENERAL","Solucionado - Por traslado","IDRD","GESTIONADO"]
[2929282021,"SUBDIRECCION DE ADMINISTRACION INMOBILIARIA Y DE ESPACIO PUBLICO","E-MAIL","DERECHO DE PETICION DE INTERES PARTICULAR","Solucionado - Por traslado","IPES","GESTIONADO"]
[2931052021,"SUBDIRECCION DE ADMINISTRACION INMOBILIARIA Y DE ESPACIO PUBLICO","ESCRITO","DERECHO DE PETICION DE INTERES PARTICULAR","Solucionado - Por traslado","SECRETARIA DE DESARROLLO ECONOMICO","GESTIONADO"]
[2934932021,"SUBDIRECCION DE ADMINISTRACION INMOBILIARIA Y DE ESPACIO PUBLICO","ESCRITO","DERECHO DE PETICION DE INTERES PARTICULAR","Solucionado - Por traslado","SECRETARIA DE GOBIERNO","GESTIONADO"]
[2937972021,"SUBDIRECCION DE ADMINISTRACION INMOBILIARIA Y DE ESPACIO PUBLICO","ESCRITO","DERECHO DE PETICION DE INTERES PARTICULAR","Solucionado - Por traslado","IDPAC","GESTIONADO"]
[2938332021,"SUBDIRECCION DE ADMINISTRACION INMOBILIARIA Y DE ESPACIO PUBLICO","ESCRITO","DERECHO DE PETICION DE INTERES GENERAL","Solucionado - Por traslado","PERSONERIA DE BOGOTA","GESTIONADO"]
[2938472021,"SUBDIRECCION DE ADMINISTRACION INMOBILIARIA Y DE ESPACIO PUBLICO","WEB","CONSULTA","Solucionado - Por traslado","SECRETARIA DE GOBIERNO","GESTIONADO"]
[2938542021,"SUBDIRECCION DE ADMINISTRACION INMOBILIARIA Y DE ESPACIO PUBLICO","ESCRITO","DERECHO DE PETICION DE INTERES GENERAL","Solucionado - Por traslado","SECRETARIA DE GOBIERNO","GESTIONADO"]
[2938682021,"SUBDIRECCION DE ADMINISTRACION INMOBILIARIA Y DE ESPACIO PUBLICO","ESCRITO","DERECHO DE PETICION DE INTERES PARTICULAR","Solucionado - Por traslado","SECRETARIA DE GOBIERNO","GESTIONADO"]
[2946382021,"SUBDIRECCION DE ADMINISTRACION INMOBILIARIA Y DE ESPACIO PUBLICO","ESCRITO","DERECHO DE PETICION DE INTERES PARTICULAR","Solucionado - Por traslado","SECRETARIA DE GOBIERNO","GESTIONADO"]
[2947392021,"SUBDIRECCION DE ADMINISTRACION INMOBILIARIA Y DE ESPACIO PUBLICO","WEB","QUEJA","Solucionado - Por traslado","SECRETARIA DE GOBIERNO","GESTIONADO"]
[2958332021,"SUBDIRECCION DE ADMINISTRACION INMOBILIARIA Y DE ESPACIO PUBLICO","WEB","DERECHO DE PETICION DE INTERES PARTICULAR","Solucionado - Por traslado","SECRETARIA DE GOBIERNO","GESTIONADO"]
[2959082021,"SUBDIRECCION DE ADMINISTRACION INMOBILIARIA Y DE ESPACIO PUBLICO","WEB","DERECHO DE PETICION DE INTERES GENERAL","Solucionado - Por traslado","SECRETARIA DE GOBIERNO","GESTIONADO"]
[2966972021,"SUBDIRECCION DE ADMINISTRACION INMOBILIARIA Y DE ESPACIO PUBLICO","ESCRITO","DERECHO DE PETICION DE INTERES PARTICULAR","Solucionado - Por traslado","IDRD","GESTIONADO"]
[2968162021,"SUBDIRECCION DE ADMINISTRACION INMOBILIARIA Y DE ESPACIO PUBLICO","ESCRITO","DERECHO DE PETICION DE INTERES PARTICULAR","Solucionado - Por traslado","SECRETARIA DE GOBIERNO","GESTIONADO"]
[2968692021,"SUBDIRECCION DE ADMINISTRACION INMOBILIARIA Y DE ESPACIO PUBLICO","ESCRITO","DERECHO DE PETICION DE INTERES PARTICULAR","Solucionado - Por traslado","SECRETARIA DE GOBIERNO","GESTIONADO"]
[2969052021,"SUBDIRECCION DE ADMINISTRACION INMOBILIARIA Y DE ESPACIO PUBLICO","ESCRITO","DERECHO DE PETICION DE INTERES PARTICULAR","Solucionado - Por traslado","SECRETARIA DE GOBIERNO","GESTIONADO"]
[2970092021,"SUBDIRECCION DE ADMINISTRACION INMOBILIARIA Y DE ESPACIO PUBLICO","WEB","DERECHO DE PETICION DE INTERES GENERAL","Solucionado - Por traslado","SECRETARIA DE GOBIERNO","GESTIONADO"]
[2990522021,"SUBDIRECCION DE ADMINISTRACION INMOBILIARIA Y DE ESPACIO PUBLICO","WEB","DERECHO DE PETICION DE INTERES GENERAL","Solucionado - Por traslado","SECRETARIA DE GOBIERNO","GESTIONADO"]
[2993672021,"SUBDIRECCION DE REGISTRO INMOBILIARIO","WEB","DERECHO DE PETICION DE INTERES PARTICULAR","Solucionado - Por traslado","IDRD","GESTIONADO"]
[2997822021,"SUBDIRECCION DE ADMINISTRACION INMOBILIARIA Y DE ESPACIO PUBLICO","ESCRITO","DERECHO DE PETICION DE INTERES PARTICULAR","Solucionado - Por traslado","IDPAC","GESTIONADO"]
[2998042021,"SUBDIRECCION DE ADMINISTRACION INMOBILIARIA Y DE ESPACIO PUBLICO","ESCRITO","DERECHO DE PETICION DE INTERES PARTICULAR","Solucionado - Por traslado","SECRETARIA DE GOBIERNO","GESTIONADO"]
[2998152021,"SUBDIRECCION DE ADMINISTRACION INMOBILIARIA Y DE ESPACIO PUBLICO","ESCRITO","DERECHO DE PETICION DE INTERES PARTICULAR","Solucionado - Por traslado","IDRD","GESTIONADO"]
[2998462021,"SUBDIRECCION DE ADMINISTRACION INMOBILIARIA Y DE ESPACIO PUBLICO","ESCRITO","DERECHO DE PETICION DE INTERES PARTICULAR","Solucionado - Por traslado","SECRETARIA DE GOBIERNO","GESTIONADO"]
[2998512021,"SUBDIRECCION DE ADMINISTRACION INMOBILIARIA Y DE ESPACIO PUBLICO","ESCRITO","DERECHO DE PETICION DE INTERES PARTICULAR","Solucionado - Por traslado","IPES","GESTIONADO"]
[2999132021,"SUBDIRECCION DE ADMINISTRACION INMOBILIARIA Y DE ESPACIO PUBLICO","ESCRITO","DERECHO DE PETICION DE INTERES GENERAL","Solucionado - Por traslado","SECRETARIA DE GOBIERNO","GESTIONADO"]
[2999212021,"SUBDIRECCION DE ADMINISTRACION INMOBILIARIA Y DE ESPACIO PUBLICO","ESCRITO","DERECHO DE PETICION DE INTERES GENERAL","Solucionado - Por traslado","IPES","GESTIONADO"]
[3005022021,"SUBDIRECCION DE ADMINISTRACION INMOBILIARIA Y DE ESPACIO PUBLICO","WEB","DERECHO DE PETICION DE INTERES PARTICULAR","Solucionado - Por traslado","IDRD","GESTIONADO"]
[3010162021,"SUBDIRECCION DE ADMINISTRACION INMOBILIARIA Y DE ESPACIO PUBLICO","WEB","DERECHO DE PETICION DE INTERES GENERAL","Solucionado - Por traslado","IDRD","GESTIONADO"]
[3011132021,"SUBDIRECCION DE ADMINISTRACION INMOBILIARIA Y DE ESPACIO PUBLICO","ESCRITO","DERECHO DE PETICION DE INTERES PARTICULAR","Solucionado - Por traslado","IDU","GESTIONADO"]
[3014742021,"SUBDIRECCION DE ADMINISTRACION INMOBILIARIA Y DE ESPACIO PUBLICO","ESCRITO","DERECHO DE PETICION DE INTERES PARTICULAR","Solucionado - Por traslado","SECRETARIA DE GOBIERNO","GESTIONADO"]
[3015102021,"SUBDIRECCION DE ADMINISTRACION INMOBILIARIA Y DE ESPACIO PUBLICO","ESCRITO","DERECHO DE PETICION DE INTERES PARTICULAR","Solucionado - Por traslado","PERSONERIA DE BOGOTA","GESTIONADO"]
[3015362021,"SUBDIRECCION DE ADMINISTRACION INMOBILIARIA Y DE ESPACIO PUBLICO","ESCRITO","SOLICITUD DE COPIA","Solucionado - Por traslado","SECRETARIA DE GOBIERNO","GESTIONADO"]
[3015422021,"SUBDIRECCION DE ADMINISTRACION INMOBILIARIA Y DE ESPACIO PUBLICO","ESCRITO","SOLICITUD DE COPIA","Solucionado - Por traslado","IDPAC","GESTIONADO"]
[3019312021,"SUBDIRECCION DE ADMINISTRACION INMOBILIARIA Y DE ESPACIO PUBLICO","ESCRITO","DERECHO DE PETICION DE INTERES PARTICULAR","Solucionado - Por traslado","IDRD","GESTIONADO"]
[3039712021,"SUBDIRECCION DE ADMINISTRACION INMOBILIARIA Y DE ESPACIO PUBLICO","ESCRITO","DERECHO DE PETICION DE INTERES GENERAL","Solucionado - Por traslado","SECRETARIA DE GOBIERNO","GESTIONADO"]
[3040042021,"SUBDIRECCION DE ADMINISTRACION INMOBILIARIA Y DE ESPACIO PUBLICO","WEB","DERECHO DE PETICION DE INTERES GENERAL","Solucionado - Por traslado","IDRD","GESTIONADO"]
[3085062021,"SUBDIRECCION DE REGISTRO INMOBILIARIO","WEB","DERECHO DE PETICION DE INTERES PARTICULAR","Solucionado - Por traslado","SECRETARIA DE PLANEACION","GESTIONADO"]
[3095302021,"AREA DE ATENCION A LA CIUDADANIA","ESCRITO","DERECHO DE PETICION DE INTERES GENERAL","Solucionado - Por traslado","SECRETARIA DE GOBIERNO","GESTIONADO"]
[3121752021,"AREA DE ATENCION A LA CIUDADANIA","WEB","DERECHO DE PETICION DE INTERES PARTICULAR","Solucionado - Por traslado","SECRETARIA DE SALUD","GESTIONADO"]
[3156202021,"AREA DE ATENCION A LA CIUDADANIA","WEB","RECLAMO","Solucionado - Por traslado","SECRETARIA DE AMBIENTE","GESTIONADO"]
[3159822021,"AREA DE ATENCION A LA CIUDADANIA","WEB","DERECHO DE PETICION DE INTERES PARTICULAR","Solucionado - Por traslado","ACUEDUCTO - EAAB-ESP","GESTIONADO"]
[3160972021,"AREA DE ATENCION A LA CIUDADANIA","WEB","QUEJA","Solucionado - Por traslado","SECRETARIA DE AMBIENTE","PENDIENTE"]
[3163052021,"AREA DE ATENCION A LA CIUDADANIA","WEB","DERECHO DE PETICION DE INTERES PARTICULAR","Solucionado - Por traslado","SECRETARIA DE AMBIENTE","GESTIONADO"]
[3169842021,"AREA DE ATENCION A LA CIUDADANIA","WEB","CONSULTA","Solucionado - Por traslado","SECRETARIA DE GOBIERNO","GESTIONADO"]
[3171062021,"AREA DE ATENCION A LA CIUDADANIA","WEB","QUEJA","Solucionado - Por traslado","SECRETARIA DE EDUCACION","GESTIONADO"]
[3171392021,"AREA DE ATENCION A LA CIUDADANIA","WEB","DERECHO DE PETICION DE INTERES GENERAL","Solucionado por asignar - Trasladar","SECRETARIA DE AMBIENTE","PENDIENTE"]
[3172032021,"AREA DE ATENCION A LA CIUDADANIA","WEB","DERECHO DE PETICION DE INTERES GENERAL","Solucionado - Por traslado","SECRETARIA DE AMBIENTE","GESTIONADO"]
[3174562021,"AREA DE ATENCION A LA CIUDADANIA","WEB","CONSULTA","Solucionado - Por traslado","IDRD","GESTIONADO"]
[3174582021,"AREA DE ATENCION A LA CIUDADANIA","WEB","QUEJA","Solucionado - Por traslado","IDRD","GESTIONADO"]
[3179292021,"AREA DE ATENCION A LA CIUDADANIA","WEB","QUEJA","Solucionado por asignar - Trasladar","SECRETARIA DE AMBIENTE","PENDIENTE"]
[3182672021,"AREA DE ATENCION A LA CIUDADANIA","WEB","DERECHO DE PETICION DE INTERES GENERAL","Solucionado por asignar - Trasladar","SECRETARIA DE AMBIENTE","PENDIENTE"]
[3189532021,"AREA DE ATENCION A LA CIUDADANIA","WEB","DERECHO DE PETICION DE INTERES GENERAL","Solucionado - Por traslado","IDRD","GESTIONADO"]
[3191262021,"AREA DE ATENCION A LA CIUDADANIA","WEB","DERECHO DE PETICION DE INTERES PARTICULAR","Solucionado - Por traslado","SECRETARIA DE GOBIERNO","GESTIONADO"]
[3193632021,"AREA DE ATENCION A LA CIUDADANIA","WEB","DERECHO DE PETICION DE INTERES PARTICULAR","Solucionado - Por traslado","ACUEDUCTO - EAAB-ESP","GESTIONADO"]
[3198022021,"AREA DE ATENCION A LA CIUDADANIA","WEB","DERECHO DE PETICION DE INTERES GENERAL","Solucionado - Por traslado","SECRETARIA DE GOBIERNO","GESTIONADO"]
[3198142021,"AREA DE ATENCION A LA CIUDADANIA","WEB","DERECHO DE PETICION DE INTERES GENERAL","Solucionado - Por traslado","SECRETARIA DE GOBIERNO","GESTIONADO"]
[3200562021,"AREA DE ATENCION A LA CIUDADANIA","WEB","DERECHO DE PETICION DE INTERES PARTICULAR","Solucionado - Por traslado","SECRETARIA DE GOBIERNO","GESTIONADO"]
[3201682021,"AREA DE ATENCION A LA CIUDADANIA","WEB","DERECHO DE PETICION DE INTERES GENERAL","Solucionado - Por traslado","SECRETARIA DE GOBIERNO","GESTIONADO"]
[3203492021,"AREA DE ATENCION A LA CIUDADANIA","WEB","QUEJA","Solucionado - Por traslado","SECRETARIA DE GOBIERNO","GESTIONADO"]
[3204692021,"AREA DE ATENCION A LA CIUDADANIA","WEB","QUEJA","Solucionado - Por traslado","SECRETARIA DE GOBIERNO","GESTIONADO"]
[3210402021,"AREA DE ATENCION A LA CIUDADANIA","WEB","DERECHO DE PETICION DE INTERES GENERAL","Solucionado - Por traslado","SECRETARIA MOVILIDAD","GESTIONADO"]
[3211622021,"AREA DE ATENCION A LA CIUDADANIA","WEB","CONSULTA","Solucionado - Por traslado","SECRETARIA DE GOBIERNO","GESTIONADO"]
[3216452021,"AREA DE ATENCION A LA CIUDADANIA","WEB","QUEJA","Solucionado - Por traslado","SECRETARIA DE GOBIERNO","GESTIONADO"]
[3224922021,"AREA DE ATENCION A LA CIUDADANIA","WEB","DERECHO DE PETICION DE INTERES PARTICULAR","Solucionado - Por traslado","IDRD","GESTIONADO"]
[3229712021,"AREA DE ATENCION A LA CIUDADANIA","WEB","DERECHO DE PETICION DE INTERES PARTICULAR","Solucionado - Por traslado","SECRETARIA DE GOBIERNO","PENDIENTE"]
[3232252021,"AREA DE ATENCION A LA CIUDADANIA","WEB","DERECHO DE PETICION DE INTERES PARTICULAR","Solucionado - Por traslado","SECRETARIA DE GOBIERNO","GESTIONADO"]
[3233782021,"AREA DE ATENCION A LA CIUDADANIA","REDES SOCIALES","DERECHO DE PETICION DE INTERES PARTICULAR","Solucionado - Por traslado","SECRETARIA DE GOBIERNO","GESTIONADO"]
[3236202021,"AREA DE ATENCION A LA CIUDADANIA","WEB","DERECHO DE PETICION DE INTERES PARTICULAR","Solucionado - Por traslado","SECRETARIA DE GOBIERNO","GESTIONADO"]
[3239202021,"AREA DE ATENCION A LA CIUDADANIA","E-MAIL","DERECHO DE PETICION DE INTERES GENERAL","Solucionado - Por traslado","SECRETARIA DE PLANEACION","GESTIONADO"]
[3242062021,"AREA DE ATENCION A LA CIUDADANIA","WEB","DERECHO DE PETICION DE INTERES GENERAL","Solucionado - Por traslado","SECRETARIA DE GOBIERNO","GESTIONADO"]
[3243162021,"AREA DE ATENCION A LA CIUDADANIA","WEB","DERECHO DE PETICION DE INTERES PARTICULAR","Solucionado por asignar - Trasladar","SECRETARIA DE AMBIENTE","PENDIENTE"]
[3245782021,"AREA DE ATENCION A LA CIUDADANIA","WEB","DERECHO DE PETICION DE INTERES PARTICULAR","Solucionado por asignar - Trasladar","SECRETARIA DE GOBIERNO","PENDIENTE"]
[3245852021,"AREA DE ATENCION A LA CIUDADANIA","WEB","DERECHO DE PETICION DE INTERES PARTICULAR","Solucionado - Por traslado","CATASTRO","GESTIONADO"]
[3245922021,"AREA DE ATENCION A LA CIUDADANIA","WEB","DERECHO DE PETICION DE INTERES PARTICULAR","Solucionado - Por traslado","SECRETARIA DE GOBIERNO","GESTIONADO"]
[3250162021,"AREA DE ATENCION A LA CIUDADANIA","WEB","DERECHO DE PETICION DE INTERES GENERAL","Solucionado por asignar - Trasladar","SECRETARIA DE AMBIENTE","PENDIENTE"]
[3250442021,"AREA DE ATENCION A LA CIUDADANIA","WEB","DERECHO DE PETICION DE INTERES GENERAL","Solucionado - Por traslado","SECRETARIA DE GOBIERNO","GESTIONADO"]
[3251972021,"AREA DE ATENCION A LA CIUDADANIA","WEB","DERECHO DE PETICION DE INTERES PARTICULAR","Solucionado - Por traslado","CATASTRO","GESTIONADO"]
[3258612021,"AREA DE ATENCION A LA CIUDADANIA","WEB","DERECHO DE PETICION DE INTERES PARTICULAR","Solucionado por asignar - Trasladar","SECRETARIA DE AMBIENTE","PENDIENTE"]
[3259722021,"AREA DE ATENCION A LA CIUDADANIA","WEB","DERECHO DE PETICION DE INTERES GENERAL","Solucionado por asignar - Trasladar","SECRETARIA DE AMBIENTE","PENDIENTE"]
[3267372021,"AREA DE ATENCION A LA CIUDADANIA","WEB","CONSULTA","Solucionado - Por traslado","SECRETARIA DE GOBIERNO","GESTIONADO"]
[3268322021,"AREA DE ATENCION A LA CIUDADANIA","TELEFONO","DERECHO DE PETICION DE INTERES GENERAL","Solucionado - Por traslado","IDRD","GESTIONADO"]
[3270132021,"AREA DE ATENCION A LA CIUDADANIA","WEB","CONSULTA","Solucionado - Por traslado","SECRETARIA DE GOBIERNO","GESTIONADO"]
[3276032021,"AREA DE ATENCION A LA CIUDADANIA","E-MAIL","DERECHO DE PETICION DE INTERES GENERAL","Solucionado - Por traslado","SECRETARIA DE GOBIERNO","GESTIONADO"]
[3277402021,"AREA DE ATENCION A LA CIUDADANIA","WEB","DERECHO DE PETICION DE INTERES PARTICULAR","Solucionado - Por traslado","SECRETARIA DE GOBIERNO","GESTIONADO"]
[3282312021,"AREA DE ATENCION A LA CIUDADANIA","WEB","DERECHO DE PETICION DE INTERES PARTICULAR","Solucionado - Por traslado","ACUEDUCTO - EAAB-ESP","GESTIONADO"]
[3282442021,"AREA DE ATENCION A LA CIUDADANIA","WEB","DERECHO DE PETICION DE INTERES PARTICULAR","Solucionado - Por traslado","SECRETARIA DE AMBIENTE","GESTIONADO"]
[3282732021,"AREA DE ATENCION A LA CIUDADANIA","WEB","DERECHO DE PETICION DE INTERES GENERAL","Solucionado - Por traslado","IDRD","GESTIONADO"]
[3283322021,"AREA DE ATENCION A LA CIUDADANIA","WEB","DERECHO DE PETICION DE INTERES PARTICULAR","Solucionado por asignar - Trasladar","SECRETARIA DE AMBIENTE","PENDIENTE"]
[3287932021,"AREA DE ATENCION A LA CIUDADANIA","WEB","QUEJA","Solucionado - Por traslado","SECRETARIA DE GOBIERNO","GESTIONADO"]
[3288212021,"AREA DE ATENCION A LA CIUDADANIA","WEB","DERECHO DE PETICION DE INTERES PARTICULAR","Solucionado - Por traslado","SECRETARIA DE PLANEACION","GESTIONADO"]
[3289502021,"AREA DE ATENCION A LA CIUDADANIA","WEB","DERECHO DE PETICION DE INTERES PARTICULAR","Solucionado - Por traslado","SECRETARIA DE AMBIENTE","GESTIONADO"]
[3289542021,"AREA DE ATENCION A LA CIUDADANIA","WEB","DERECHO DE PETICION DE INTERES PARTICULAR","Solucionado - Por traslado","SECRETARIA DE GOBIERNO","GESTIONADO"]
[3289622021,"AREA DE ATENCION A LA CIUDADANIA","E-MAIL","DERECHO DE PETICION DE INTERES PARTICULAR","Solucionado - Por traslado","SECRETARIA DE GOBIERNO","GESTIONADO"]
[3290602021,"AREA DE ATENCION A LA CIUDADANIA","WEB","DERECHO DE PETICION DE INTERES PARTICULAR","Solucionado - Por traslado","SECRETARIA DE GOBIERNO","GESTIONADO"]
[3294572021,"AREA DE ATENCION A LA CIUDADANIA","WEB","RECLAMO","Solucionado - Por traslado","UAESP","GESTIONADO"]
[3296242021,"AREA DE ATENCION A LA CIUDADANIA","WEB","DERECHO DE PETICION DE INTERES PARTICULAR","Solucionado - Por traslado","SECRETARIA DE GOBIERNO","GESTIONADO"]
[3298922021,"AREA DE ATENCION A LA CIUDADANIA","WEB","DERECHO DE PETICION DE INTERES PARTICULAR","Solucionado - Por traslado","SECRETARIA DE GOBIERNO","GESTIONADO"]
[3299802021,"AREA DE ATENCION A LA CIUDADANIA","WEB","DERECHO DE PETICION DE INTERES PARTICULAR","Solucionado - Por traslado","SECRETARIA DE GOBIERNO","GESTIONADO"]
[3300202021,"AREA DE ATENCION A LA CIUDADANIA","WEB","DERECHO DE PETICION DE INTERES PARTICULAR","Solucionado - Por traslado","SECRETARIA DE PLANEACION","GESTIONADO"]
[3300432021,"AREA DE ATENCION A LA CIUDADANIA","WEB","DERECHO DE PETICION DE INTERES GENERAL","Solucionado - Por traslado","SECRETARIA DE GOBIERNO","GESTIONADO"]
[3300452021,"AREA DE ATENCION A LA CIUDADANIA","WEB","DERECHO DE PETICION DE INTERES PARTICULAR","Solucionado - Por traslado","SECRETARIA DE GOBIERNO","GESTIONADO"]
[3300472021,"AREA DE ATENCION A LA CIUDADANIA","WEB","RECLAMO","Solucionado - Por traslado","SECRETARIA DE GOBIERNO","GESTIONADO"]
[3300492021,"AREA DE ATENCION A LA CIUDADANIA","WEB","DERECHO DE PETICION DE INTERES GENERAL","Solucionado - Por traslado","SECRETARIA DE GOBIERNO","GESTIONADO"]
[3300502021,"AREA DE ATENCION A LA CIUDADANIA","WEB","DERECHO DE PETICION DE INTERES GENERAL","Solucionado - Por traslado","SECRETARIA DE GOBIERNO","GESTIONADO"]
[3301532021,"AREA DE ATENCION A LA CIUDADANIA","WEB","DERECHO DE PETICION DE INTERES PARTICULAR","Solucionado - Por traslado","SECRETARIA DE GOBIERNO","GESTIONADO"]
[3302362021,"AREA DE ATENCION A LA CIUDADANIA","WEB","RECLAMO","Solucionado - Por traslado","SECRETARIA DE GOBIERNO","GESTIONADO"]
[3304952021,"AREA DE ATENCION A LA CIUDADANIA","WEB","DERECHO DE PETICION DE INTERES PARTICULAR","Solucionado - Por traslado","SECRETARIA DE GOBIERNO","GESTIONADO"]
[3305472021,"AREA DE ATENCION A LA CIUDADANIA","WEB","DERECHO DE PETICION DE INTERES GENERAL","Solucionado - Por traslado","SECRETARIA DE GOBIERNO","GESTIONADO"]
[3305632021,"AREA DE ATENCION A LA CIUDADANIA","WEB","DERECHO DE PETICION DE INTERES PARTICULAR","Solucionado - Por traslado","SECRETARIA DE GOBIERNO","GESTIONADO"]
[3305982021,"AREA DE ATENCION A LA CIUDADANIA","WEB","DERECHO DE PETICION DE INTERES GENERAL","Solucionado - Por traslado","SECRETARIA DE GOBIERNO","GESTIONADO"]
[3308982021,"AREA DE ATENCION A LA CIUDADANIA","WEB","DERECHO DE PETICION DE INTERES PARTICULAR","Solucionado por asignar - Trasladar","SECRETARIA DE INTEGRACION SOCIAL","PENDIENTE"]
[3316292021,"AREA DE ATENCION A LA CIUDADANIA","WEB","DERECHO DE PETICION DE INTERES PARTICULAR","Solucionado - Por traslado","ACUEDUCTO - EAAB-ESP","GESTIONADO"]
[3325802021,"AREA DE ATENCION A LA CIUDADANIA","WEB","QUEJA","Solucionado - Por traslado","SECRETARIA DE GOBIERNO","GESTIONADO"]
[3326082021,"AREA DE ATENCION A LA CIUDADANIA","WEB","DERECHO DE PETICION DE INTERES PARTICULAR","Solucionado - Por traslado","SECRETARIA DE GOBIERNO","GESTIONADO"]
[3329432021,"AREA DE ATENCION A LA CIUDADANIA","WEB","DERECHO DE PETICION DE INTERES PARTICULAR","Solucionado - Por traslado","SECRETARIA MOVILIDAD","GESTIONADO"]
[3337172021,"AREA DE ATENCION A LA CIUDADANIA","WEB","DERECHO DE PETICION DE INTERES GENERAL","Solucionado - Por traslado","IDRD","GESTIONADO"]
[3339572021,"AREA DE ATENCION A LA CIUDADANIA","WEB","DERECHO DE PETICION DE INTERES GENERAL","Solucionado por asignar - Trasladar","SECRETARIA DE AMBIENTE","PENDIENTE"]
[3343252021,"AREA DE ATENCION A LA CIUDADANIA","WEB","DERECHO DE PETICION DE INTERES PARTICULAR","Solucionado - Por traslado","SECRETARIA DE GOBIERNO","GESTIONADO"]
[3345682021,"AREA DE ATENCION A LA CIUDADANIA","WEB","DERECHO DE PETICION DE INTERES PARTICULAR","Solucionado - Por traslado","SECRETARIA DE AMBIENTE","GESTIONADO"]
[3345892021,"AREA DE ATENCION A LA CIUDADANIA","WEB","DERECHO DE PETICION DE INTERES PARTICULAR","Solucionado por asignar - Trasladar","SECRETARIA DE GOBIERNO","PENDIENTE"]
[3351312021,"AREA DE ATENCION A LA CIUDADANIA","WEB","DERECHO DE PETICION DE INTERES GENERAL","Solucionado por asignar - Trasladar","SECRETARIA DE GOBIERNO","PENDIENTE"]
[3354892021,"AREA DE ATENCION A LA CIUDADANIA","TELEFONO","DERECHO DE PETICION DE INTERES GENERAL","Solucionado por asignar - Trasladar","SECRETARIA DE GOBIERNO","PENDIENTE"]
[3355602021,"AREA DE ATENCION A LA CIUDADANIA","WEB","QUEJA","Solucionado - Por traslado","SECRETARIA MOVILIDAD","GESTIONADO"]
[3355632021,"AREA DE ATENCION A LA CIUDADANIA","WEB","QUEJA","Solucionado - Por traslado","SECRETARIA MOVILIDAD","GESTIONADO"]
[3355902021,"AREA DE ATENCION A LA CIUDADANIA","TELEFONO","DERECHO DE PETICION DE INTERES GENERAL","Solucionado - Por traslado","SECRETARIA DE INTEGRACION SOCIAL","GESTIONADO"]
[3356022021,"AREA DE ATENCION A LA CIUDADANIA","WEB","QUEJA","Solucionado - Por traslado","SECRETARIA DE GOBIERNO","GESTIONADO"]
[3356972021,"AREA DE ATENCION A LA CIUDADANIA","WEB","DERECHO DE PETICION DE INTERES GENERAL","Solucionado por asignar - Trasladar","SECRETARIA DE GOBIERNO","PENDIENTE"]
[3357212021,"AREA DE ATENCION A LA CIUDADANIA","WEB","DERECHO DE PETICION DE INTERES GENERAL","Solucionado - Por traslado","SECRETARIA DE GOBIERNO","GESTIONADO"]
[3358222021,"AREA DE ATENCION A LA CIUDADANIA","WEB","DERECHO DE PETICION DE INTERES PARTICULAR","Solucionado - Por traslado","SECRETARIA DE AMBIENTE","GESTIONADO"]
[3358372021,"AREA DE ATENCION A LA CIUDADANIA","WEB","DERECHO DE PETICION DE INTERES GENERAL","Solucionado - Por traslado","SECRETARIA DE GOBIERNO","GESTIONADO"]
[3359242021,"AREA DE ATENCION A LA CIUDADANIA","WEB","QUEJA","Solucionado - Por traslado","SECRETARIA DE GOBIERNO","GESTIONADO"]
[3359982021,"AREA DE ATENCION A LA CIUDADANIA","WEB","DERECHO DE PETICION DE INTERES GENERAL","Solucionado - Por traslado","SECRETARIA DE GOBIERNO","GESTIONADO"]
[3360592021,"AREA DE ATENCION A LA CIUDADANIA","WEB","DERECHO DE PETICION DE INTERES GENERAL","Solucionado - Por traslado","SECRETARIA DE GOBIERNO","GESTIONADO"]
[3360692021,"AREA DE ATENCION A LA CIUDADANIA","WEB","DERECHO DE PETICION DE INTERES GENERAL","Solucionado - Por traslado","SECRETARIA DE GOBIERNO","GESTIONADO"]
[3360782021,"AREA DE ATENCION A LA CIUDADANIA","WEB","DERECHO DE PETICION DE INTERES GENERAL","Solucionado - Por traslado","SECRETARIA DE GOBIERNO","GESTIONADO"]
[3363162021,"AREA DE ATENCION A LA CIUDADANIA","WEB","DERECHO DE PETICION DE INTERES GENERAL","Solucionado - Por traslado","ACUEDUCTO - EAAB-ESP","GESTIONADO"]
[3366572021,"AREA DE ATENCION A LA CIUDADANIA","WEB","DERECHO DE PETICION DE INTERES GENERAL","Solucionado - Por traslado","SECRETARIA DE AMBIENTE","GESTIONADO"]
[3366842021,"AREA DE ATENCION A LA CIUDADANIA","WEB","DERECHO DE PETICION DE INTERES PARTICULAR","Solucionado - Por traslado","IDU","GESTIONADO"]
[3370412021,"AREA DE ATENCION A LA CIUDADANIA","WEB","RECLAMO","Solucionado - Por traslado","SECRETARIA DE GOBIERNO","GESTIONADO"]
[3376792021,"AREA DE ATENCION A LA CIUDADANIA","WEB","DERECHO DE PETICION DE INTERES PARTICULAR","Solucionado por asignar - Trasladar","SECRETARIA DE GOBIERNO","PENDIENTE"]
[3380742021,"AREA DE ATENCION A LA CIUDADANIA","WEB","QUEJA","Solucionado - Por traslado","SECRETARIA DE GOBIERNO","GESTIONADO"]
[3386572021,"AREA DE ATENCION A LA CIUDADANIA","WEB","DERECHO DE PETICION DE INTERES PARTICULAR","Solucionado por asignar - Trasladar","SECRETARIA DE GOBIERNO","PENDIENTE"]
[3387142021,"AREA DE ATENCION A LA CIUDADANIA","WEB","DERECHO DE PETICION DE INTERES GENERAL","Solucionado por asignar - Trasladar","IDU","PENDIENTE"]
[3387362021,"AREA DE ATENCION A LA CIUDADANIA","WEB","QUEJA","Solucionado - Por traslado","SECRETARIA DE GOBIERNO","GESTIONADO"]
[3388732021,"AREA DE ATENCION A LA CIUDADANIA","WEB","DERECHO DE PETICION DE INTERES GENERAL","Solucionado - Por traslado","SECRETARIA DE GOBIERNO","GESTIONADO"]
[3396832021,"AREA DE ATENCION A LA CIUDADANIA","WEB","DERECHO DE PETICION DE INTERES PARTICULAR","Solucionado por asignar - Trasladar","IPES","PENDIENTE"]
[3397642021,"AREA DE ATENCION A LA CIUDADANIA","WEB","DERECHO DE PETICION DE INTERES PARTICULAR","Solucionado - Por traslado","ACUEDUCTO - EAAB-ESP","GESTIONADO"]
[3403922021,"AREA DE ATENCION A LA CIUDADANIA","TELEFONO","DERECHO DE PETICION DE INTERES GENERAL","Solucionado - Por traslado","ACUEDUCTO - EAAB-ESP","GESTIONADO"]
[3404822021,"AREA DE ATENCION A LA CIUDADANIA","WEB","DERECHO DE PETICION DE INTERES GENERAL","Solucionado - Por traslado","SECRETARIA DE GOBIERNO","GESTIONADO"]
[3406392021,"AREA DE ATENCION A LA CIUDADANIA","WEB","DERECHO DE PETICION DE INTERES GENERAL","Solucionado - Por traslado","SECRETARIA DE GOBIERNO","GESTIONADO"]
[3409592021,"AREA DE ATENCION A LA CIUDADANIA","WEB","DERECHO DE PETICION DE INTERES PARTICULAR","Solucionado - Por traslado","SECRETARIA MOVILIDAD","GESTIONADO"]
[3409882021,"AREA DE ATENCION A LA CIUDADANIA","TELEFONO","DERECHO DE PETICION DE INTERES PARTICULAR","Solucionado - Por traslado","UAESP","GESTIONADO"]
[3411762021,"AREA DE ATENCION A LA CIUDADANIA","WEB","DERECHO DE PETICION DE INTERES PARTICULAR","Solucionado - Por traslado","SECRETARIA DE GOBIERNO","GESTIONADO"]
[3414032021,"AREA DE ATENCION A LA CIUDADANIA","E-MAIL","DERECHO DE PETICION DE INTERES PARTICULAR","Solucionado - Por traslado","SECRETARIA DE AMBIENTE","GESTIONADO"]
[3415032021,"AREA DE ATENCION A LA CIUDADANIA","E-MAIL","DERECHO DE PETICION DE INTERES GENERAL","Solucionado por asignar - Trasladar","IDU","PENDIENTE"]
[3417382021,"AREA DE ATENCION A LA CIUDADANIA","WEB","DERECHO DE PETICION DE INTERES PARTICULAR","Solucionado por asignar - Trasladar","SECRETARIA DE GOBIERNO","PENDIENTE"]
[3420302021,"AREA DE ATENCION A LA CIUDADANIA","WEB","DERECHO DE PETICION DE INTERES GENERAL","Solucionado - Por traslado","SECRETARIA DE AMBIENTE","GESTIONADO"]
[3424982021,"AREA DE ATENCION A LA CIUDADANIA","WEB","DERECHO DE PETICION DE INTERES GENERAL","Solucionado - Por traslado","SECRETARIA DE GOBIERNO","GESTIONADO"]
[3431452021,"AREA DE ATENCION A LA CIUDADANIA","E-MAIL","DERECHO DE PETICION DE INTERES GENERAL","Solucionado por asignar - Trasladar","ACUEDUCTO - EAAB-ESP","PENDIENTE"]
[3434012021,"AREA DE ATENCION A LA CIUDADANIA","WEB","QUEJA","Solucionado - Por traslado","SECRETARIA DE GOBIERNO","GESTIONADO"]
[3438732021,"AREA DE ATENCION A LA CIUDADANIA","WEB","DERECHO DE PETICION DE INTERES GENERAL","Solucionado - Por traslado","IDIPRON","GESTIONADO"]
[3439782021,"AREA DE ATENCION A LA CIUDADANIA","WEB","DERECHO DE PETICION DE INTERES PARTICULAR","Solucionado - Por traslado","SECRETARIA DE GOBIERNO","GESTIONADO"]
[3441012021,"AREA DE ATENCION A LA CIUDADANIA","WEB","QUEJA","Solucionado - Por traslado","SECRETARIA DE GOBIERNO","GESTIONADO"]
[3441142021,"AREA DE ATENCION A LA CIUDADANIA","WEB","DERECHO DE PETICION DE INTERES PARTICULAR","Solucionado - Por traslado","SECRETARIA DE GOBIERNO","GESTIONADO"]
[3443012021,"AREA DE ATENCION A LA CIUDADANIA","WEB","QUEJA","Solucionado - Por traslado","SECRETARIA DE GOBIERNO","GESTIONADO"]
[3443832021,"AREA DE ATENCION A LA CIUDADANIA","WEB","DERECHO DE PETICION DE INTERES PARTICULAR","Solucionado - Por traslado","SECRETARIA DE AMBIENTE","GESTIONADO"]
[3444192021,"AREA DE ATENCION A LA CIUDADANIA","WEB","QUEJA","Solucionado - Por traslado","IDRD","GESTIONADO"]
[3444212021,"AREA DE ATENCION A LA CIUDADANIA","WEB","DERECHO DE PETICION DE INTERES PARTICULAR","Solucionado - Por traslado","IDRD","GESTIONADO"]
[3445032021,"AREA DE ATENCION A LA CIUDADANIA","WEB","DERECHO DE PETICION DE INTERES PARTICULAR","Solucionado - Por traslado","SECRETARIA DE GOBIERNO","GESTIONADO"]
[3445762021,"AREA DE ATENCION A LA CIUDADANIA","TELEFONO","DERECHO DE PETICION DE INTERES PARTICULAR","Solucionado - Por traslado","SECRETARIA GENERAL","GESTIONADO"]
[3446682021,"AREA DE ATENCION A LA CIUDADANIA","WEB","DERECHO DE PETICION DE INTERES GENERAL","Solucionado - Por traslado","CATASTRO","GESTIONADO"]
[3447522021,"AREA DE ATENCION A LA CIUDADANIA","WEB","DERECHO DE PETICION DE INTERES PARTICULAR","Solucionado - Por traslado","SECRETARIA DE AMBIENTE","GESTIONADO"]
[3448462021,"AREA DE ATENCION A LA CIUDADANIA","WEB","RECLAMO","Solucionado - Por traslado","SECRETARIA DE GOBIERNO","GESTIONADO"]
[3451842021,"AREA DE ATENCION A LA CIUDADANIA","WEB","DERECHO DE PETICION DE INTERES GENERAL","Solucionado - Por traslado","SECRETARIA DE GOBIERNO","GESTIONADO"]
[3454722021,"AREA DE ATENCION A LA CIUDADANIA","TELEFONO","DERECHO DE PETICION DE INTERES GENERAL","Solucionado - Por traslado","SECRETARIA DE AMBIENTE","GESTIONADO"]
[3455862021,"AREA DE ATENCION A LA CIUDADANIA","WEB","DERECHO DE PETICION DE INTERES PARTICULAR","Solucionado - Por traslado","SECRETARIA DE GOBIERNO","GESTIONADO"]
[3458082021,"AREA DE ATENCION A LA CIUDADANIA","WEB","DERECHO DE PETICION DE INTERES PARTICULAR","Solucionado - Por traslado","SECRETARIA DE GOBIERNO","GESTIONADO"]
[3460252021,"AREA DE ATENCION A LA CIUDADANIA","WEB","DERECHO DE PETICION DE INTERES PARTICULAR","Solucionado - Por traslado","IDU","GESTIONADO"]
[3464462021,"AREA DE ATENCION A LA CIUDADANIA","WEB","DERECHO DE PETICION DE INTERES PARTICULAR","Solucionado - Por traslado","SECRETARIA DE GOBIERNO","GESTIONADO"]
[3471712021,"AREA DE ATENCION A LA CIUDADANIA","WEB","DERECHO DE PETICION DE INTERES GENERAL","Solucionado - Por traslado","SECRETARIA DE INTEGRACION SOCIAL","GESTIONADO"]
[3475122021,"AREA DE ATENCION A LA CIUDADANIA","WEB","DERECHO DE PETICION DE INTERES GENERAL","Solucionado - Por traslado","SECRETARIA DE GOBIERNO","GESTIONADO"]
[3478252021,"AREA DE ATENCION A LA CIUDADANIA","WEB","DERECHO DE PETICION DE INTERES GENERAL","Solucionado - Por traslado","SECRETARIA MOVILIDAD","GESTIONADO"]
[3484732021,"AREA DE ATENCION A LA CIUDADANIA","WEB","DERECHO DE PETICION DE INTERES GENERAL","Solucionado - Por traslado","SECRETARIA DE GOBIERNO","GESTIONADO"]
[3484872021,"AREA DE ATENCION A LA CIUDADANIA","WEB","DERECHO DE PETICION DE INTERES GENERAL","Solucionado - Por traslado","IDRD","PENDIENTE"]
[3485742021,"AREA DE ATENCION A LA CIUDADANIA","WEB","DERECHO DE PETICION DE INTERES PARTICULAR","Solucionado - Por traslado","SECRETARIA DE GOBIERNO","GESTIONADO"]
[3488812021,"AREA DE ATENCION A LA CIUDADANIA","WEB","DERECHO DE PETICION DE INTERES PARTICULAR","Solucionado - Por traslado","SECRETARIA DE GOBIERNO","GESTIONADO"]
[3489482021,"AREA DE ATENCION A LA CIUDADANIA","TELEFONO","DERECHO DE PETICION DE INTERES GENERAL","Solucionado - Por traslado","SECRETARIA DE AMBIENTE","GESTIONADO"]
[3489812021,"AREA DE ATENCION A LA CIUDADANIA","TELEFONO","DERECHO DE PETICION DE INTERES GENERAL","Solucionado - Por traslado","IDU","GESTIONADO"]
[3490922021,"AREA DE ATENCION A LA CIUDADANIA","WEB","DERECHO DE PETICION DE INTERES PARTICULAR","Solucionado - Por traslado","SECRETARIA DE GOBIERNO","GESTIONADO"]
[3492962021,"AREA DE ATENCION A LA CIUDADANIA","WEB","QUEJA","Solucionado - Por traslado","SECRETARIA MOVILIDAD","GESTIONADO"]
[3493422021,"AREA DE ATENCION A LA CIUDADANIA","WEB","DERECHO DE PETICION DE INTERES PARTICULAR","Solucionado - Por traslado","SECRETARIA MOVILIDAD","GESTIONADO"]
[3493842021,"AREA DE ATENCION A LA CIUDADANIA","WEB","DERECHO DE PETICION DE INTERES GENERAL","Solucionado - Por traslado","SECRETARIA DE GOBIERNO","GESTIONADO"]
[3495582021,"AREA DE ATENCION A LA CIUDADANIA","WEB","DERECHO DE PETICION DE INTERES GENERAL","Solucionado - Por traslado","SECRETARIA DE GOBIERNO","GESTIONADO"]
[3496192021,"AREA DE ATENCION A LA CIUDADANIA","WEB","DERECHO DE PETICION DE INTERES PARTICULAR","Solucionado por asignar - Trasladar","IDU","PENDIENTE"]
[3496482021,"AREA DE ATENCION A LA CIUDADANIA","WEB","DERECHO DE PETICION DE INTERES PARTICULAR","Solucionado - Por traslado","SECRETARIA DE GOBIERNO","GESTIONADO"]
[3496872021,"AREA DE ATENCION A LA CIUDADANIA","WEB","DERECHO DE PETICION DE INTERES GENERAL","Solucionado - Por traslado","SECRETARIA DE GOBIERNO","GESTIONADO"]
[3496902021,"AREA DE ATENCION A LA CIUDADANIA","WEB","DERECHO DE PETICION DE INTERES GENERAL","Solucionado - Por traslado","JBB - JARDIN BOTANICO","GESTIONADO"]
[3499862021,"AREA DE ATENCION A LA CIUDADANIA","WEB","DERECHO DE PETICION DE INTERES GENERAL","Solucionado - Por traslado","SECRETARIA DE GOBIERNO","GESTIONADO"]
[3514952021,"AREA DE ATENCION A LA CIUDADANIA","TELEFONO","RECLAMO","Solucionado - Por traslado","SECRETARIA DE GOBIERNO","GESTIONADO"]
[3522562021,"AREA DE ATENCION A LA CIUDADANIA","WEB","DERECHO DE PETICION DE INTERES PARTICULAR","Solucionado - Por traslado","SECRETARIA DE GOBIERNO","GESTIONADO"]
[]
[]
["TOP 5 TEMAS FRECUENTES"]
["DESTINO","TEMA","Cuenta de TEMA"]
["SUBDIRECCION DE REGISTRO INMOBILIARIO","Competencia otras entidades",16]
[null,"Denuncia otros elementos",10]
[null,"Asesoría en administración y sostenibilidad del espacio público",9]
[null,"Certificación de la propiedad inmobiliaria",6]
[null,"Denuncia extensión actividad comercial",5]
["SUBDIRECCION DE ADMINISTRACION INMOBILIARIA Y DE ESPACIO PUBLICO","Competencia otras entidades",65]
[null,"Asesoría en administración y sostenibilidad del espacio público",47]
[null,"Certificación de la propiedad inmobiliaria",26]
[null,"Denuncia otros elementos",15]
[null,"Asesoria en contratos de administración",11]
["SUBDIRECCION ADMINISTRATIVA  FINANCIERA Y DE CONTROL DISCIPLINARIO","Competencia otras entidades",2]
[null,"Denuncia basuras",1]
[null,"Peticiones entre entidades",1]
[null,"Información de zonas de cesión",1]
[null,"Certificación de la propiedad inmobiliaria",1]
[null,"CAMEP Contrato de administración y mantenimiento",1]
[null,"Asesoría en administración y sostenibilidad del espacio público",1]
["OFICINA ASESORA JURIDICA","Certificación de la propiedad inmobiliaria",2]
[null,"Competencia otras entidades",1]
[null,"Asesoría en administración y sostenibilidad del espacio público",1]
[null,"Autorización de uso",1]
["DESPACHO","Mantenimiento espacio público",1]
[null,"Asesoría en administración y sostenibilidad del espacio público",1]
[null,"Parqueaderos",1]
[null,"Denuncia ventas informales",1]
[null,"Entrega de zonas de cesión",1]
["AREA DE ATENCION A LA CIUDADANIA","Competencia otras entidades",70]
[null,"Asesoría en administración y sostenibilidad del espacio público",32]
[null,"Certificación de la propiedad inmobiliaria",18]
[null,"Autorización de uso",11]
[null,"Denuncia otros elementos",10]
[]
[]
[]
["ASIGNADAS A LA ENTIDAD"]
["Número petición2","Dependencia","Canal","Tipo petición","Días gestión","Tipo reporte"]
[2694862021,"SUBDIRECCION DE REGISTRO INMOBILIARIO","ESCRITO","DERECHO DE PETICION DE INTERES GENERAL",30,"GESTIONADOS"]
[2694892021,"SUBDIRECCION DE REGISTRO INMOBILIARIO","ESCRITO","DERECHO DE PETICION DE INTERES GENERAL",30,"GESTIONADOS"]
[2728892021,"SUBDIRECCION DE REGISTRO INMOBILIARIO","ESCRITO","DERECHO DE PETICION DE INTERES PARTICULAR"]
[2747132021,"SUBDIRECCION DE ADMINISTRACION INMOBILIARIA Y DE ESPACIO PUBLICO","WEB","DERECHO DE PETICION DE INTERES GENERAL",31,"GESTIONADOS"]
[2797992021,"SUBDIRECCION DE REGISTRO INMOBILIARIO","ESCRITO","DERECHO DE PETICION DE INTERES PARTICULAR"]
[2809612021,"SUBDIRECCION DE REGISTRO INMOBILIARIO","E-MAIL","DERECHO DE PETICION DE INTERES GENERAL",28,"GESTIONADOS"]
[2829762021,"SUBDIRECCION DE REGISTRO INMOBILIARIO","WEB","DERECHO DE PETICION DE INTERES GENERAL",29,"GESTIONADOS"]
[2842242021,"SUBDIRECCION DE REGISTRO INMOBILIARIO","ESCRITO","DERECHO DE PETICION DE INTERES PARTICULAR"]
[2844282021,"SUBDIRECCION DE REGISTRO INMOBILIARIO","WEB","DERECHO DE PETICION DE INTERES PARTICULAR"]
[2868042021,"SUBDIRECCION DE REGISTRO INMOBILIARIO","ESCRITO","DERECHO DE PETICION DE INTERES PARTICULAR"]
[2887192021,"SUBDIRECCION DE REGISTRO INMOBILIARIO","WEB","DERECHO DE PETICION DE INTERES GENERAL",30,"GESTIONADOS"]
[2935812021,"SUBDIRECCION DE REGISTRO INMOBILIARIO","WEB","DERECHO DE PETICION DE INTERES GENERAL",27,"GESTIONADOS"]
[2968432021,"SUBDIRECCION DE REGISTRO INMOBILIARIO","ESCRITO","DERECHO DE PETICION DE INTERES GENERAL",27,"GESTIONADOS"]
[2998262021,"SUBDIRECCION DE ADMINISTRACION INMOBILIARIA Y DE ESPACIO PUBLICO","ESCRITO","DERECHO DE PETICION DE INTERES PARTICULAR"]
[2999072021,"SUBDIRECCION DE REGISTRO INMOBILIARIO","ESCRITO","DERECHO DE PETICION DE INTERES PARTICULAR"]
[2999212021,"SUBDIRECCION DE ADMINISTRACION INMOBILIARIA Y DE ESPACIO PUBLICO","ESCRITO","DERECHO DE PETICION DE INTERES GENERAL",27,"GESTIONADOS"]
[3011222021,"SUBDIRECCION DE REGISTRO INMOBILIARIO","ESCRITO","DERECHO DE PETICION DE INTERES PARTICULAR"]
[3066402021,"SUBDIRECCION DE ADMINISTRACION INMOBILIARIA Y DE ESPACIO PUBLICO","ESCRITO","DERECHO DE PETICION DE INTERES PARTICULAR"]
[3074242021,"SUBDIRECCION DE ADMINISTRACION INMOBILIARIA Y DE ESPACIO PUBLICO","ESCRITO","DERECHO DE PETICION DE INTERES PARTICULAR"]
[3074602021,"SUBDIRECCION DE ADMINISTRACION INMOBILIARIA Y DE ESPACIO PUBLICO","WEB","DERECHO DE PETICION DE INTERES PARTICULAR"]
[3089232021,"SUBDIRECCION DE ADMINISTRACION INMOBILIARIA Y DE ESPACIO PUBLICO","WEB","DERECHO DE PETICION DE INTERES GENERAL",7,"PENDIENTE"]
[3089232021,"SUBDIRECCION ADMINISTRATIVA  FINANCIERA Y DE CONTROL DISCIPLINARIO","WEB","DERECHO DE PETICION DE INTERES GENERAL",2,"GESTIONADOS"]
[3089252021,"SUBDIRECCION DE ADMINISTRACION INMOBILIARIA Y DE ESPACIO PUBLICO","WEB","DERECHO DE PETICION DE INTERES GENERAL",15,"PENDIENTE"]
[3089262021,"SUBDIRECCION ADMINISTRATIVA  FINANCIERA Y DE CONTROL DISCIPLINARIO","WEB","DERECHO DE PETICION DE INTERES GENERAL",1,"GESTIONADOS"]
[3131992021,"OFICINA ASESORA JURIDICA","ESCRITO","DERECHO DE PETICION DE INTERES PARTICULAR"]
[3150282021,"SUBDIRECCION DE ADMINISTRACION INMOBILIARIA Y DE ESPACIO PUBLICO","WEB","DERECHO DE PETICION DE INTERES GENERAL",19,"PENDIENTE"]
[3160972021,"SUBDIRECCION DE ADMINISTRACION INMOBILIARIA Y DE ESPACIO PUBLICO","WEB","QUEJA",19,"PENDIENTE"]
[3162702021,"SUBDIRECCION DE ADMINISTRACION INMOBILIARIA Y DE ESPACIO PUBLICO","WEB","DERECHO DE PETICION DE INTERES GENERAL",19,"PENDIENTE"]
[3163562021,"SUBDIRECCION DE ADMINISTRACION INMOBILIARIA Y DE ESPACIO PUBLICO","WEB","QUEJA",19,"PENDIENTE"]
[3167002021,"SUBDIRECCION DE ADMINISTRACION INMOBILIARIA Y DE ESPACIO PUBLICO","E-MAIL","DERECHO DE PETICION DE INTERES PARTICULAR"]
[3167252021,"SUBDIRECCION DE ADMINISTRACION INMOBILIARIA Y DE ESPACIO PUBLICO","ESCRITO","DERECHO DE PETICION DE INTERES PARTICULAR"]
[3171232021,"SUBDIRECCION DE ADMINISTRACION INMOBILIARIA Y DE ESPACIO PUBLICO","WEB","QUEJA",19,"PENDIENTE"]
[3171392021,"SUBDIRECCION DE ADMINISTRACION INMOBILIARIA Y DE ESPACIO PUBLICO","WEB","DERECHO DE PETICION DE INTERES GENERAL",19,"PENDIENTE"]
[3175732021,"SUBDIRECCION DE ADMINISTRACION INMOBILIARIA Y DE ESPACIO PUBLICO","TELEFONO","DERECHO DE PETICION DE INTERES GENERAL",19,"PENDIENTE"]
[3178682021,"SUBDIRECCION DE ADMINISTRACION INMOBILIARIA Y DE ESPACIO PUBLICO","WEB","DERECHO DE PETICION DE INTERES GENERAL",18,"PENDIENTE"]
[3179292021,"SUBDIRECCION DE ADMINISTRACION INMOBILIARIA Y DE ESPACIO PUBLICO","WEB","QUEJA",18,"PENDIENTE"]
[3179942021,"SUBDIRECCION DE ADMINISTRACION INMOBILIARIA Y DE ESPACIO PUBLICO","WEB","DERECHO DE PETICION DE INTERES PARTICULAR"]
[3182672021,"SUBDIRECCION DE ADMINISTRACION INMOBILIARIA Y DE ESPACIO PUBLICO","WEB","DERECHO DE PETICION DE INTERES GENERAL",18,"PENDIENTE"]
[3184432021,"SUBDIRECCION DE ADMINISTRACION INMOBILIARIA Y DE ESPACIO PUBLICO","WEB","DERECHO DE PETICION DE INTERES GENERAL",18,"PENDIENTE"]
[3185162021,"SUBDIRECCION DE ADMINISTRACION INMOBILIARIA Y DE ESPACIO PUBLICO","ESCRITO","DERECHO DE PETICION DE INTERES GENERAL",18,"PENDIENTE"]
[3186402021,"SUBDIRECCION DE ADMINISTRACION INMOBILIARIA Y DE ESPACIO PUBLICO","WEB","QUEJA",18,"PENDIENTE"]
[3186522021,"SUBDIRECCION DE ADMINISTRACION INMOBILIARIA Y DE ESPACIO PUBLICO","ESCRITO","DERECHO DE PETICION DE INTERES PARTICULAR"]
[3187682021,"SUBDIRECCION DE ADMINISTRACION INMOBILIARIA Y DE ESPACIO PUBLICO","ESCRITO","DERECHO DE PETICION DE INTERES PARTICULAR"]
[3187822021,"SUBDIRECCION DE ADMINISTRACION INMOBILIARIA Y DE ESPACIO PUBLICO","ESCRITO","DERECHO DE PETICION DE INTERES PARTICULAR"]
[3187852021,"SUBDIRECCION DE ADMINISTRACION INMOBILIARIA Y DE ESPACIO PUBLICO","ESCRITO","DERECHO DE PETICION DE INTERES PARTICULAR"]
[3187912021,"SUBDIRECCION DE ADMINISTRACION INMOBILIARIA Y DE ESPACIO PUBLICO","ESCRITO","DERECHO DE PETICION DE INTERES PARTICULAR"]
[3188312021,"SUBDIRECCION DE ADMINISTRACION INMOBILIARIA Y DE ESPACIO PUBLICO","ESCRITO","DERECHO DE PETICION DE INTERES GENERAL",18,"PENDIENTE"]
[3190482021,"SUBDIRECCION DE REGISTRO INMOBILIARIO","WEB","DERECHO DE PETICION DE INTERES PARTICULAR"]
[3191152021,"SUBDIRECCION DE ADMINISTRACION INMOBILIARIA Y DE ESPACIO PUBLICO","ESCRITO","DERECHO DE PETICION DE INTERES GENERAL",18,"PENDIENTE"]
[3191382021,"SUBDIRECCION DE ADMINISTRACION INMOBILIARIA Y DE ESPACIO PUBLICO","ESCRITO","DERECHO DE PETICION DE INTERES GENERAL",18,"PENDIENTE"]
[3191582021,"SUBDIRECCION DE ADMINISTRACION INMOBILIARIA Y DE ESPACIO PUBLICO","ESCRITO","DERECHO DE PETICION DE INTERES PARTICULAR"]
[3194232021,"SUBDIRECCION DE REGISTRO INMOBILIARIO","E-MAIL","DERECHO DE PETICION DE INTERES PARTICULAR"]
[3194262021,"SUBDIRECCION DE ADMINISTRACION INMOBILIARIA Y DE ESPACIO PUBLICO","E-MAIL","DERECHO DE PETICION DE INTERES PARTICULAR"]
[3194302021,"SUBDIRECCION DE ADMINISTRACION INMOBILIARIA Y DE ESPACIO PUBLICO","E-MAIL","DERECHO DE PETICION DE INTERES PARTICULAR"]
[3200452021,"SUBDIRECCION DE ADMINISTRACION INMOBILIARIA Y DE ESPACIO PUBLICO","ESCRITO","DERECHO DE PETICION DE INTERES PARTICULAR"]
[3200582021,"SUBDIRECCION DE ADMINISTRACION INMOBILIARIA Y DE ESPACIO PUBLICO","ESCRITO","DERECHO DE PETICION DE INTERES PARTICULAR"]
[3200642021,"SUBDIRECCION DE REGISTRO INMOBILIARIO","ESCRITO","DERECHO DE PETICION DE INTERES PARTICULAR"]
[3200702021,"SUBDIRECCION DE ADMINISTRACION INMOBILIARIA Y DE ESPACIO PUBLICO","ESCRITO","DERECHO DE PETICION DE INTERES PARTICULAR"]
[3200852021,"SUBDIRECCION DE ADMINISTRACION INMOBILIARIA Y DE ESPACIO PUBLICO","ESCRITO","CONSULTA",17,"PENDIENTE"]
[3202812021,"SUBDIRECCION DE ADMINISTRACION INMOBILIARIA Y DE ESPACIO PUBLICO","TELEFONO","DERECHO DE PETICION DE INTERES GENERAL",17,"PENDIENTE"]
[3204982021,"SUBDIRECCION DE ADMINISTRACION INMOBILIARIA Y DE ESPACIO PUBLICO","ESCRITO","DERECHO DE PETICION DE INTERES PARTICULAR"]
[3205082021,"SUBDIRECCION DE ADMINISTRACION INMOBILIARIA Y DE ESPACIO PUBLICO","ESCRITO","DERECHO DE PETICION DE INTERES PARTICULAR"]
[3205952021,"SUBDIRECCION DE ADMINISTRACION INMOBILIARIA Y DE ESPACIO PUBLICO","WEB","DERECHO DE PETICION DE INTERES PARTICULAR"]
[3207102021,"SUBDIRECCION DE REGISTRO INMOBILIARIO","WEB","DERECHO DE PETICION DE INTERES GENERAL",17,"PENDIENTE"]
[3208472021,"SUBDIRECCION DE ADMINISTRACION INMOBILIARIA Y DE ESPACIO PUBLICO","E-MAIL","DERECHO DE PETICION DE INTERES GENERAL",16,"PENDIENTE"]
[3209982021,"SUBDIRECCION ADMINISTRATIVA  FINANCIERA Y DE CONTROL DISCIPLINARIO","WEB","DENUNCIA POR ACTOS DE CORRUPCION",1,"GESTIONADOS"]
[3210172021,"SUBDIRECCION DE ADMINISTRACION INMOBILIARIA Y DE ESPACIO PUBLICO","WEB","DERECHO DE PETICION DE INTERES GENERAL",17,"PENDIENTE"]
[3210402021,"SUBDIRECCION ADMINISTRATIVA  FINANCIERA Y DE CONTROL DISCIPLINARIO","WEB","DERECHO DE PETICION DE INTERES GENERAL",2,"GESTIONADOS"]
[3211382021,"OFICINA ASESORA JURIDICA","WEB","DERECHO DE PETICION DE INTERES PARTICULAR"]
[3212982021,"SUBDIRECCION DE ADMINISTRACION INMOBILIARIA Y DE ESPACIO PUBLICO","WEB","SOLICITUD DE COPIA",16,"GESTIONADOS"]
[3218112021,"SUBDIRECCION DE REGISTRO INMOBILIARIO","ESCRITO","DERECHO DE PETICION DE INTERES GENERAL",16,"PENDIENTE"]
[3218592021,"SUBDIRECCION DE ADMINISTRACION INMOBILIARIA Y DE ESPACIO PUBLICO","ESCRITO","DERECHO DE PETICION DE INTERES PARTICULAR"]
[3218772021,"SUBDIRECCION DE ADMINISTRACION INMOBILIARIA Y DE ESPACIO PUBLICO","ESCRITO","DERECHO DE PETICION DE INTERES PARTICULAR"]
[3218912021,"SUBDIRECCION DE ADMINISTRACION INMOBILIARIA Y DE ESPACIO PUBLICO","ESCRITO","DERECHO DE PETICION DE INTERES PARTICULAR"]
[3220072021,"SUBDIRECCION DE ADMINISTRACION INMOBILIARIA Y DE ESPACIO PUBLICO","WEB","DERECHO DE PETICION DE INTERES PARTICULAR"]
[3222362021,"SUBDIRECCION DE ADMINISTRACION INMOBILIARIA Y DE ESPACIO PUBLICO","WEB","DERECHO DE PETICION DE INTERES PARTICULAR"]
[3222432021,"SUBDIRECCION DE REGISTRO INMOBILIARIO","WEB","DERECHO DE PETICION DE INTERES PARTICULAR"]
[3222622021,"SUBDIRECCION DE ADMINISTRACION INMOBILIARIA Y DE ESPACIO PUBLICO","ESCRITO","DERECHO DE PETICION DE INTERES PARTICULAR"]
[3222812021,"SUBDIRECCION DE ADMINISTRACION INMOBILIARIA Y DE ESPACIO PUBLICO","E-MAIL","DERECHO DE PETICION DE INTERES PARTICULAR"]
[3223612021,"SUBDIRECCION DE ADMINISTRACION INMOBILIARIA Y DE ESPACIO PUBLICO","ESCRITO","DERECHO DE PETICION DE INTERES PARTICULAR"]
[3224062021,"SUBDIRECCION DE ADMINISTRACION INMOBILIARIA Y DE ESPACIO PUBLICO","ESCRITO","DERECHO DE PETICION DE INTERES PARTICULAR"]
[3224952021,"SUBDIRECCION DE ADMINISTRACION INMOBILIARIA Y DE ESPACIO PUBLICO","WEB","DERECHO DE PETICION DE INTERES PARTICULAR"]
[3225682021,"SUBDIRECCION DE REGISTRO INMOBILIARIO","ESCRITO","DERECHO DE PETICION DE INTERES PARTICULAR"]
[3228272021,"DESPACHO","WEB","FELICITACION",16,"PENDIENTE"]
[3229712021,"SUBDIRECCION DE ADMINISTRACION INMOBILIARIA Y DE ESPACIO PUBLICO","WEB","DERECHO DE PETICION DE INTERES PARTICULAR"]
[3230872021,"SUBDIRECCION DE REGISTRO INMOBILIARIO","ESCRITO","DERECHO DE PETICION DE INTERES PARTICULAR"]
[3230892021,"SUBDIRECCION DE ADMINISTRACION INMOBILIARIA Y DE ESPACIO PUBLICO","ESCRITO","DERECHO DE PETICION DE INTERES PARTICULAR"]
[3231132021,"SUBDIRECCION DE ADMINISTRACION INMOBILIARIA Y DE ESPACIO PUBLICO","ESCRITO","DERECHO DE PETICION DE INTERES GENERAL",15,"PENDIENTE"]
[3231642021,"SUBDIRECCION DE ADMINISTRACION INMOBILIARIA Y DE ESPACIO PUBLICO","ESCRITO","DERECHO DE PETICION DE INTERES PARTICULAR"]
[3234622021,"SUBDIRECCION DE ADMINISTRACION INMOBILIARIA Y DE ESPACIO PUBLICO","TELEFONO","DERECHO DE PETICION DE INTERES GENERAL",15,"PENDIENTE"]
[3243162021,"SUBDIRECCION DE ADMINISTRACION INMOBILIARIA Y DE ESPACIO PUBLICO","WEB","DERECHO DE PETICION DE INTERES PARTICULAR"]
[3245782021,"SUBDIRECCION DE REGISTRO INMOBILIARIO","WEB","DERECHO DE PETICION DE INTERES PARTICULAR"]
[3249962021,"SUBDIRECCION DE REGISTRO INMOBILIARIO","ESCRITO","DERECHO DE PETICION DE INTERES PARTICULAR"]
[3250002021,"SUBDIRECCION DE REGISTRO INMOBILIARIO","ESCRITO","DERECHO DE PETICION DE INTERES PARTICULAR"]
[3250092021,"SUBDIRECCION DE ADMINISTRACION INMOBILIARIA Y DE ESPACIO PUBLICO","ESCRITO","DERECHO DE PETICION DE INTERES PARTICULAR"]
[3250162021,"SUBDIRECCION DE ADMINISTRACION INMOBILIARIA Y DE ESPACIO PUBLICO","WEB","DERECHO DE PETICION DE INTERES GENERAL",14,"PENDIENTE"]
[3250182021,"SUBDIRECCION DE ADMINISTRACION INMOBILIARIA Y DE ESPACIO PUBLICO","ESCRITO","DERECHO DE PETICION DE INTERES PARTICULAR"]
[3250442021,"SUBDIRECCION ADMINISTRATIVA  FINANCIERA Y DE CONTROL DISCIPLINARIO","WEB","DERECHO DE PETICION DE INTERES GENERAL",1,"GESTIONADOS"]
[3251122021,"SUBDIRECCION DE ADMINISTRACION INMOBILIARIA Y DE ESPACIO PUBLICO","ESCRITO","DERECHO DE PETICION DE INTERES PARTICULAR"]
[3251722021,"SUBDIRECCION DE ADMINISTRACION INMOBILIARIA Y DE ESPACIO PUBLICO","E-MAIL","DERECHO DE PETICION DE INTERES PARTICULAR"]
[3252042021,"SUBDIRECCION DE REGISTRO INMOBILIARIO","ESCRITO","DERECHO DE PETICION DE INTERES PARTICULAR"]
[3252632021,"SUBDIRECCION DE REGISTRO INMOBILIARIO","ESCRITO","DERECHO DE PETICION DE INTERES PARTICULAR"]
[3252852021,"SUBDIRECCION DE ADMINISTRACION INMOBILIARIA Y DE ESPACIO PUBLICO","ESCRITO","DERECHO DE PETICION DE INTERES PARTICULAR"]
[3253582021,"SUBDIRECCION DE ADMINISTRACION INMOBILIARIA Y DE ESPACIO PUBLICO","ESCRITO","DERECHO DE PETICION DE INTERES PARTICULAR"]
[3253822021,"SUBDIRECCION DE REGISTRO INMOBILIARIO","ESCRITO","DERECHO DE PETICION DE INTERES PARTICULAR"]
[3258612021,"SUBDIRECCION DE ADMINISTRACION INMOBILIARIA Y DE ESPACIO PUBLICO","WEB","DERECHO DE PETICION DE INTERES PARTICULAR"]
[3259722021,"SUBDIRECCION DE ADMINISTRACION INMOBILIARIA Y DE ESPACIO PUBLICO","WEB","DERECHO DE PETICION DE INTERES GENERAL",14,"PENDIENTE"]
[3260632021,"SUBDIRECCION DE ADMINISTRACION INMOBILIARIA Y DE ESPACIO PUBLICO","WEB","DERECHO DE PETICION DE INTERES GENERAL",14,"PENDIENTE"]
[3261342021,"SUBDIRECCION DE ADMINISTRACION INMOBILIARIA Y DE ESPACIO PUBLICO","WEB","DERECHO DE PETICION DE INTERES PARTICULAR"]
[3263632021,"SUBDIRECCION DE ADMINISTRACION INMOBILIARIA Y DE ESPACIO PUBLICO","WEB","QUEJA",14,"PENDIENTE"]
[3264652021,"SUBDIRECCION DE ADMINISTRACION INMOBILIARIA Y DE ESPACIO PUBLICO","WEB","DERECHO DE PETICION DE INTERES PARTICULAR"]
[3264892021,"SUBDIRECCION DE ADMINISTRACION INMOBILIARIA Y DE ESPACIO PUBLICO","WEB","DERECHO DE PETICION DE INTERES PARTICULAR"]
[3272782021,"SUBDIRECCION DE ADMINISTRACION INMOBILIARIA Y DE ESPACIO PUBLICO","ESCRITO","DERECHO DE PETICION DE INTERES PARTICULAR"]
[3272982021,"SUBDIRECCION DE REGISTRO INMOBILIARIO","ESCRITO","DERECHO DE PETICION DE INTERES PARTICULAR"]
[3273412021,"SUBDIRECCION DE ADMINISTRACION INMOBILIARIA Y DE ESPACIO PUBLICO","ESCRITO","DERECHO DE PETICION DE INTERES PARTICULAR"]
[3274212021,"SUBDIRECCION DE ADMINISTRACION INMOBILIARIA Y DE ESPACIO PUBLICO","ESCRITO","DERECHO DE PETICION DE INTERES PARTICULAR"]
[3274212021,"SUBDIRECCION DE REGISTRO INMOBILIARIO","ESCRITO","DERECHO DE PETICION DE INTERES PARTICULAR"]
[3276682021,"SUBDIRECCION DE REGISTRO INMOBILIARIO","E-MAIL","RECLAMO",12,"PENDIENTE"]
[3277272021,"SUBDIRECCION DE ADMINISTRACION INMOBILIARIA Y DE ESPACIO PUBLICO","WEB","DERECHO DE PETICION DE INTERES GENERAL",13,"PENDIENTE"]
[3281132021,"SUBDIRECCION DE REGISTRO INMOBILIARIO","ESCRITO","DERECHO DE PETICION DE INTERES PARTICULAR"]
[3281712021,"SUBDIRECCION DE ADMINISTRACION INMOBILIARIA Y DE ESPACIO PUBLICO","ESCRITO","DERECHO DE PETICION DE INTERES PARTICULAR"]
[3281762021,"SUBDIRECCION DE REGISTRO INMOBILIARIO","ESCRITO","DERECHO DE PETICION DE INTERES PARTICULAR"]
[3282232021,"SUBDIRECCION DE ADMINISTRACION INMOBILIARIA Y DE ESPACIO PUBLICO","ESCRITO","DERECHO DE PETICION DE INTERES GENERAL",13,"PENDIENTE"]
[3283322021,"SUBDIRECCION DE ADMINISTRACION INMOBILIARIA Y DE ESPACIO PUBLICO","WEB","DERECHO DE PETICION DE INTERES PARTICULAR"]
[3287602021,"SUBDIRECCION DE ADMINISTRACION INMOBILIARIA Y DE ESPACIO PUBLICO","ESCRITO","DERECHO DE PETICION DE INTERES GENERAL",12,"PENDIENTE"]
[3287692021,"SUBDIRECCION DE REGISTRO INMOBILIARIO","ESCRITO","DERECHO DE PETICION DE INTERES PARTICULAR"]
[3287812021,"SUBDIRECCION DE ADMINISTRACION INMOBILIARIA Y DE ESPACIO PUBLICO","ESCRITO","DERECHO DE PETICION DE INTERES PARTICULAR"]
[3287982021,"SUBDIRECCION DE ADMINISTRACION INMOBILIARIA Y DE ESPACIO PUBLICO","ESCRITO","DERECHO DE PETICION DE INTERES PARTICULAR"]
[3288412021,"SUBDIRECCION DE ADMINISTRACION INMOBILIARIA Y DE ESPACIO PUBLICO","ESCRITO","DERECHO DE PETICION DE INTERES PARTICULAR"]
[3288592021,"SUBDIRECCION DE ADMINISTRACION INMOBILIARIA Y DE ESPACIO PUBLICO","ESCRITO","DERECHO DE PETICION DE INTERES PARTICULAR"]
[3288732021,"SUBDIRECCION DE ADMINISTRACION INMOBILIARIA Y DE ESPACIO PUBLICO","TELEFONO","DERECHO DE PETICION DE INTERES GENERAL",12,"PENDIENTE"]
[3288962021,"SUBDIRECCION DE ADMINISTRACION INMOBILIARIA Y DE ESPACIO PUBLICO","ESCRITO","DERECHO DE PETICION DE INTERES PARTICULAR"]
[3289352021,"SUBDIRECCION DE ADMINISTRACION INMOBILIARIA Y DE ESPACIO PUBLICO","ESCRITO","DERECHO DE PETICION DE INTERES PARTICULAR"]
[3289562021,"SUBDIRECCION DE ADMINISTRACION INMOBILIARIA Y DE ESPACIO PUBLICO","ESCRITO","DERECHO DE PETICION DE INTERES PARTICULAR"]
[3290232021,"SUBDIRECCION DE ADMINISTRACION INMOBILIARIA Y DE ESPACIO PUBLICO","ESCRITO","DERECHO DE PETICION DE INTERES PARTICULAR"]
[3290672021,"SUBDIRECCION DE ADMINISTRACION INMOBILIARIA Y DE ESPACIO PUBLICO","ESCRITO","DERECHO DE PETICION DE INTERES PARTICULAR"]
[3290942021,"SUBDIRECCION DE REGISTRO INMOBILIARIO","ESCRITO","DERECHO DE PETICION DE INTERES PARTICULAR"]
[3292992021,"SUBDIRECCION DE ADMINISTRACION INMOBILIARIA Y DE ESPACIO PUBLICO","ESCRITO","DERECHO DE PETICION DE INTERES PARTICULAR"]
[3293052021,"SUBDIRECCION DE REGISTRO INMOBILIARIO","ESCRITO","DERECHO DE PETICION DE INTERES PARTICULAR"]
[3305332021,"SUBDIRECCION DE REGISTRO INMOBILIARIO","ESCRITO","DERECHO DE PETICION DE INTERES PARTICULAR"]
[3305352021,"SUBDIRECCION DE REGISTRO INMOBILIARIO","ESCRITO","DERECHO DE PETICION DE INTERES PARTICULAR"]
[3305402021,"SUBDIRECCION DE REGISTRO INMOBILIARIO","ESCRITO","DERECHO DE PETICION DE INTERES PARTICULAR"]
[3305642021,"SUBDIRECCION DE REGISTRO INMOBILIARIO","ESCRITO","DERECHO DE PETICION DE INTERES PARTICULAR"]
[3305732021,"SUBDIRECCION DE ADMINISTRACION INMOBILIARIA Y DE ESPACIO PUBLICO","ESCRITO","DERECHO DE PETICION DE INTERES PARTICULAR"]
[3305762021,"SUBDIRECCION DE REGISTRO INMOBILIARIO","ESCRITO","DERECHO DE PETICION DE INTERES PARTICULAR"]
[3307752021,"SUBDIRECCION DE ADMINISTRACION INMOBILIARIA Y DE ESPACIO PUBLICO","ESCRITO","DERECHO DE PETICION DE INTERES PARTICULAR"]
[3307892021,"SUBDIRECCION DE ADMINISTRACION INMOBILIARIA Y DE ESPACIO PUBLICO","ESCRITO","DERECHO DE PETICION DE INTERES PARTICULAR"]
[3308012021,"SUBDIRECCION DE REGISTRO INMOBILIARIO","ESCRITO","DERECHO DE PETICION DE INTERES PARTICULAR"]
[3308322021,"OFICINA ASESORA JURIDICA","WEB","DERECHO DE PETICION DE INTERES PARTICULAR"]
[3308502021,"SUBDIRECCION DE REGISTRO INMOBILIARIO","ESCRITO","DERECHO DE PETICION DE INTERES PARTICULAR"]
[3308772021,"SUBDIRECCION DE ADMINISTRACION INMOBILIARIA Y DE ESPACIO PUBLICO","ESCRITO","DERECHO DE PETICION DE INTERES PARTICULAR"]
[3308982021,"SUBDIRECCION DE ADMINISTRACION INMOBILIARIA Y DE ESPACIO PUBLICO","WEB","DERECHO DE PETICION DE INTERES PARTICULAR"]
[3309282021,"SUBDIRECCION DE ADMINISTRACION INMOBILIARIA Y DE ESPACIO PUBLICO","E-MAIL","DERECHO DE PETICION DE INTERES PARTICULAR"]
[3309312021,"SUBDIRECCION DE ADMINISTRACION INMOBILIARIA Y DE ESPACIO PUBLICO","WEB","DERECHO DE PETICION DE INTERES PARTICULAR"]
[3309432021,"SUBDIRECCION DE ADMINISTRACION INMOBILIARIA Y DE ESPACIO PUBLICO","ESCRITO","DERECHO DE PETICION DE INTERES PARTICULAR"]
[3309862021,"SUBDIRECCION DE ADMINISTRACION INMOBILIARIA Y DE ESPACIO PUBLICO","WEB","DERECHO DE PETICION DE INTERES PARTICULAR"]
[3310012021,"SUBDIRECCION DE ADMINISTRACION INMOBILIARIA Y DE ESPACIO PUBLICO","WEB","DERECHO DE PETICION DE INTERES PARTICULAR"]
[3310062021,"SUBDIRECCION DE ADMINISTRACION INMOBILIARIA Y DE ESPACIO PUBLICO","WEB","DERECHO DE PETICION DE INTERES PARTICULAR"]
[3311152021,"SUBDIRECCION DE ADMINISTRACION INMOBILIARIA Y DE ESPACIO PUBLICO","E-MAIL","DERECHO DE PETICION DE INTERES PARTICULAR"]
[3311292021,"SUBDIRECCION DE ADMINISTRACION INMOBILIARIA Y DE ESPACIO PUBLICO","E-MAIL","DERECHO DE PETICION DE INTERES PARTICULAR"]
[3311522021,"SUBDIRECCION DE REGISTRO INMOBILIARIO","E-MAIL","DERECHO DE PETICION DE INTERES PARTICULAR"]
[3311742021,"SUBDIRECCION DE ADMINISTRACION INMOBILIARIA Y DE ESPACIO PUBLICO","E-MAIL","DERECHO DE PETICION DE INTERES PARTICULAR"]
[3311892021,"SUBDIRECCION DE ADMINISTRACION INMOBILIARIA Y DE ESPACIO PUBLICO","E-MAIL","DERECHO DE PETICION DE INTERES PARTICULAR"]
[3312132021,"SUBDIRECCION DE ADMINISTRACION INMOBILIARIA Y DE ESPACIO PUBLICO","E-MAIL","DERECHO DE PETICION DE INTERES PARTICULAR"]
[3312292021,"SUBDIRECCION DE ADMINISTRACION INMOBILIARIA Y DE ESPACIO PUBLICO","E-MAIL","DERECHO DE PETICION DE INTERES PARTICULAR"]
[3312382021,"SUBDIRECCION DE ADMINISTRACION INMOBILIARIA Y DE ESPACIO PUBLICO","WEB","QUEJA",10,"PENDIENTE"]
[3312462021,"SUBDIRECCION DE ADMINISTRACION INMOBILIARIA Y DE ESPACIO PUBLICO","E-MAIL","DERECHO DE PETICION DE INTERES PARTICULAR"]
[3312542021,"SUBDIRECCION DE REGISTRO INMOBILIARIO","WEB","DERECHO DE PETICION DE INTERES GENERAL",11,"PENDIENTE"]
[3312602021,"SUBDIRECCION DE REGISTRO INMOBILIARIO","ESCRITO","DERECHO DE PETICION DE INTERES PARTICULAR"]
[3313422021,"SUBDIRECCION DE ADMINISTRACION INMOBILIARIA Y DE ESPACIO PUBLICO","WEB","CONSULTA",10,"PENDIENTE"]
[3313452021,"SUBDIRECCION DE ADMINISTRACION INMOBILIARIA Y DE ESPACIO PUBLICO","ESCRITO","DERECHO DE PETICION DE INTERES PARTICULAR"]
[3313642021,"SUBDIRECCION DE ADMINISTRACION INMOBILIARIA Y DE ESPACIO PUBLICO","ESCRITO","DERECHO DE PETICION DE INTERES PARTICULAR"]
[3313702021,"SUBDIRECCION DE REGISTRO INMOBILIARIO","WEB","DERECHO DE PETICION DE INTERES GENERAL",11,"PENDIENTE"]
[3313802021,"SUBDIRECCION DE ADMINISTRACION INMOBILIARIA Y DE ESPACIO PUBLICO","ESCRITO","DERECHO DE PETICION DE INTERES PARTICULAR"]
[3317272021,"SUBDIRECCION DE REGISTRO INMOBILIARIO","WEB","DERECHO DE PETICION DE INTERES GENERAL",11,"PENDIENTE"]
[3318982021,"SUBDIRECCION DE ADMINISTRACION INMOBILIARIA Y DE ESPACIO PUBLICO","ESCRITO","DERECHO DE PETICION DE INTERES PARTICULAR"]
[3319022021,"SUBDIRECCION DE ADMINISTRACION INMOBILIARIA Y DE ESPACIO PUBLICO","ESCRITO","DERECHO DE PETICION DE INTERES PARTICULAR"]
[3322502021,"SUBDIRECCION DE ADMINISTRACION INMOBILIARIA Y DE ESPACIO PUBLICO","TELEFONO","DERECHO DE PETICION DE INTERES GENERAL",10,"PENDIENTE"]
[3325852021,"SUBDIRECCION DE REGISTRO INMOBILIARIO","ESCRITO","DERECHO DE PETICION DE INTERES PARTICULAR"]
[3326052021,"SUBDIRECCION DE REGISTRO INMOBILIARIO","E-MAIL","DERECHO DE PETICION DE INTERES PARTICULAR"]
[3326292021,"OFICINA ASESORA JURIDICA","ESCRITO","DERECHO DE PETICION DE INTERES PARTICULAR"]
[3326802021,"SUBDIRECCION DE REGISTRO INMOBILIARIO","E-MAIL","DERECHO DE PETICION DE INTERES PARTICULAR"]
[3326832021,"SUBDIRECCION DE ADMINISTRACION INMOBILIARIA Y DE ESPACIO PUBLICO","ESCRITO","DERECHO DE PETICION DE INTERES PARTICULAR"]
[3328122021,"SUBDIRECCION DE ADMINISTRACION INMOBILIARIA Y DE ESPACIO PUBLICO","WEB","DERECHO DE PETICION DE INTERES GENERAL",10,"PENDIENTE"]
[3329172021,"DESPACHO","ESCRITO","DERECHO DE PETICION DE INTERES PARTICULAR"]
[3329502021,"SUBDIRECCION DE ADMINISTRACION INMOBILIARIA Y DE ESPACIO PUBLICO","ESCRITO","DERECHO DE PETICION DE INTERES PARTICULAR"]
[3338142021,"SUBDIRECCION DE ADMINISTRACION INMOBILIARIA Y DE ESPACIO PUBLICO","WEB","DERECHO DE PETICION DE INTERES PARTICULAR"]
[3338972021,"SUBDIRECCION DE ADMINISTRACION INMOBILIARIA Y DE ESPACIO PUBLICO","ESCRITO","DERECHO DE PETICION DE INTERES PARTICULAR"]
[3339052021,"SUBDIRECCION DE REGISTRO INMOBILIARIO","ESCRITO","DERECHO DE PETICION DE INTERES PARTICULAR"]
[3339092021,"SUBDIRECCION DE ADMINISTRACION INMOBILIARIA Y DE ESPACIO PUBLICO","ESCRITO","DERECHO DE PETICION DE INTERES PARTICULAR"]
[3339152021,"SUBDIRECCION DE ADMINISTRACION INMOBILIARIA Y DE ESPACIO PUBLICO","ESCRITO","DERECHO DE PETICION DE INTERES PARTICULAR"]
[3339572021,"SUBDIRECCION DE ADMINISTRACION INMOBILIARIA Y DE ESPACIO PUBLICO","WEB","DERECHO DE PETICION DE INTERES GENERAL",9,"PENDIENTE"]
[3342412021,"SUBDIRECCION DE ADMINISTRACION INMOBILIARIA Y DE ESPACIO PUBLICO","ESCRITO","DERECHO DE PETICION DE INTERES PARTICULAR"]
[3344672021,"SUBDIRECCION DE ADMINISTRACION INMOBILIARIA Y DE ESPACIO PUBLICO","ESCRITO","DERECHO DE PETICION DE INTERES PARTICULAR"]
[3345452021,"SUBDIRECCION DE ADMINISTRACION INMOBILIARIA Y DE ESPACIO PUBLICO","ESCRITO","DERECHO DE PETICION DE INTERES PARTICULAR"]
[3345592021,"SUBDIRECCION DE ADMINISTRACION INMOBILIARIA Y DE ESPACIO PUBLICO","ESCRITO","DERECHO DE PETICION DE INTERES PARTICULAR"]
[3345652021,"SUBDIRECCION DE ADMINISTRACION INMOBILIARIA Y DE ESPACIO PUBLICO","ESCRITO","DERECHO DE PETICION DE INTERES PARTICULAR"]
[3345892021,"SUBDIRECCION DE ADMINISTRACION INMOBILIARIA Y DE ESPACIO PUBLICO","WEB","DERECHO DE PETICION DE INTERES PARTICULAR"]
[3348592021,"SUBDIRECCION DE ADMINISTRACION INMOBILIARIA Y DE ESPACIO PUBLICO","ESCRITO","DERECHO DE PETICION DE INTERES PARTICULAR"]
[3348832021,"SUBDIRECCION DE ADMINISTRACION INMOBILIARIA Y DE ESPACIO PUBLICO","ESCRITO","DERECHO DE PETICION DE INTERES PARTICULAR"]
[3349012021,"SUBDIRECCION DE ADMINISTRACION INMOBILIARIA Y DE ESPACIO PUBLICO","ESCRITO","DERECHO DE PETICION DE INTERES PARTICULAR"]
[3349172021,"SUBDIRECCION DE ADMINISTRACION INMOBILIARIA Y DE ESPACIO PUBLICO","ESCRITO","DERECHO DE PETICION DE INTERES GENERAL",9,"PENDIENTE"]
[3349312021,"SUBDIRECCION DE ADMINISTRACION INMOBILIARIA Y DE ESPACIO PUBLICO","ESCRITO","DERECHO DE PETICION DE INTERES PARTICULAR"]
[3351312021,"SUBDIRECCION DE ADMINISTRACION INMOBILIARIA Y DE ESPACIO PUBLICO","WEB","DERECHO DE PETICION DE INTERES GENERAL",9,"PENDIENTE"]
[3354892021,"SUBDIRECCION DE ADMINISTRACION INMOBILIARIA Y DE ESPACIO PUBLICO","TELEFONO","DERECHO DE PETICION DE INTERES GENERAL",9,"PENDIENTE"]
[3356972021,"SUBDIRECCION DE ADMINISTRACION INMOBILIARIA Y DE ESPACIO PUBLICO","WEB","DERECHO DE PETICION DE INTERES GENERAL",9,"PENDIENTE"]
[3357212021,"SUBDIRECCION ADMINISTRATIVA  FINANCIERA Y DE CONTROL DISCIPLINARIO","WEB","DERECHO DE PETICION DE INTERES GENERAL",1,"GESTIONADOS"]
[3358412021,"SUBDIRECCION DE ADMINISTRACION INMOBILIARIA Y DE ESPACIO PUBLICO","WEB","DERECHO DE PETICION DE INTERES GENERAL",9,"PENDIENTE"]
[3359432021,"SUBDIRECCION DE ADMINISTRACION INMOBILIARIA Y DE ESPACIO PUBLICO","TELEFONO","DERECHO DE PETICION DE INTERES PARTICULAR"]
[3361772021,"SUBDIRECCION DE ADMINISTRACION INMOBILIARIA Y DE ESPACIO PUBLICO","ESCRITO","DERECHO DE PETICION DE INTERES PARTICULAR"]
[3361962021,"SUBDIRECCION DE ADMINISTRACION INMOBILIARIA Y DE ESPACIO PUBLICO","ESCRITO","DERECHO DE PETICION DE INTERES PARTICULAR"]
[3362022021,"SUBDIRECCION DE ADMINISTRACION INMOBILIARIA Y DE ESPACIO PUBLICO","ESCRITO","DERECHO DE PETICION DE INTERES PARTICULAR"]
[3362122021,"SUBDIRECCION DE ADMINISTRACION INMOBILIARIA Y DE ESPACIO PUBLICO","ESCRITO","DERECHO DE PETICION DE INTERES GENERAL",8,"PENDIENTE"]
[3362142021,"SUBDIRECCION DE REGISTRO INMOBILIARIO","ESCRITO","DERECHO DE PETICION DE INTERES PARTICULAR"]
[3367672021,"SUBDIRECCION DE REGISTRO INMOBILIARIO","ESCRITO","DERECHO DE PETICION DE INTERES PARTICULAR"]
[3367832021,"SUBDIRECCION DE ADMINISTRACION INMOBILIARIA Y DE ESPACIO PUBLICO","ESCRITO","DERECHO DE PETICION DE INTERES PARTICULAR"]
[3368012021,"SUBDIRECCION DE ADMINISTRACION INMOBILIARIA Y DE ESPACIO PUBLICO","ESCRITO","DERECHO DE PETICION DE INTERES PARTICULAR"]
[3368282021,"SUBDIRECCION DE ADMINISTRACION INMOBILIARIA Y DE ESPACIO PUBLICO","ESCRITO","DERECHO DE PETICION DE INTERES PARTICULAR"]
[3368562021,"SUBDIRECCION DE ADMINISTRACION INMOBILIARIA Y DE ESPACIO PUBLICO","ESCRITO","DERECHO DE PETICION DE INTERES PARTICULAR"]
[3368922021,"SUBDIRECCION DE ADMINISTRACION INMOBILIARIA Y DE ESPACIO PUBLICO","ESCRITO","DERECHO DE PETICION DE INTERES PARTICULAR"]
[3369242021,"SUBDIRECCION DE ADMINISTRACION INMOBILIARIA Y DE ESPACIO PUBLICO","E-MAIL","DERECHO DE PETICION DE INTERES PARTICULAR"]
[3370492021,"SUBDIRECCION DE REGISTRO INMOBILIARIO","ESCRITO","DERECHO DE PETICION DE INTERES PARTICULAR"]
[3371042021,"SUBDIRECCION DE ADMINISTRACION INMOBILIARIA Y DE ESPACIO PUBLICO","ESCRITO","DERECHO DE PETICION DE INTERES PARTICULAR"]
[3371172021,"SUBDIRECCION DE REGISTRO INMOBILIARIO","ESCRITO","DERECHO DE PETICION DE INTERES PARTICULAR"]
[3371552021,"SUBDIRECCION DE ADMINISTRACION INMOBILIARIA Y DE ESPACIO PUBLICO","ESCRITO","DERECHO DE PETICION DE INTERES PARTICULAR"]
[3372262021,"SUBDIRECCION DE ADMINISTRACION INMOBILIARIA Y DE ESPACIO PUBLICO","ESCRITO","DERECHO DE PETICION DE INTERES PARTICULAR"]
[3374862021,"SUBDIRECCION DE ADMINISTRACION INMOBILIARIA Y DE ESPACIO PUBLICO","ESCRITO","DERECHO DE PETICION DE INTERES PARTICULAR"]
[3374872021,"SUBDIRECCION DE REGISTRO INMOBILIARIO","ESCRITO","DERECHO DE PETICION DE INTERES PARTICULAR"]
[3374912021,"SUBDIRECCION DE ADMINISTRACION INMOBILIARIA Y DE ESPACIO PUBLICO","ESCRITO","DERECHO DE PETICION DE INTERES PARTICULAR"]
[3375112021,"SUBDIRECCION DE ADMINISTRACION INMOBILIARIA Y DE ESPACIO PUBLICO","ESCRITO","DERECHO DE PETICION DE INTERES PARTICULAR"]
[3375222021,"SUBDIRECCION DE REGISTRO INMOBILIARIO","ESCRITO","DERECHO DE PETICION DE INTERES PARTICULAR"]
[3376792021,"SUBDIRECCION DE ADMINISTRACION INMOBILIARIA Y DE ESPACIO PUBLICO","WEB","DERECHO DE PETICION DE INTERES PARTICULAR"]
[3376862021,"SUBDIRECCION DE ADMINISTRACION INMOBILIARIA Y DE ESPACIO PUBLICO","WEB","DERECHO DE PETICION DE INTERES GENERAL",8,"PENDIENTE"]
[3378062021,"SUBDIRECCION DE ADMINISTRACION INMOBILIARIA Y DE ESPACIO PUBLICO","WEB","DERECHO DE PETICION DE INTERES GENERAL",8,"PENDIENTE"]
[3379722021,"SUBDIRECCION DE REGISTRO INMOBILIARIO","WEB","DERECHO DE PETICION DE INTERES GENERAL",3,"PENDIENTE"]
[3382022021,"SUBDIRECCION DE ADMINISTRACION INMOBILIARIA Y DE ESPACIO PUBLICO","ESCRITO","DERECHO DE PETICION DE INTERES PARTICULAR"]
[3382082021,"SUBDIRECCION DE REGISTRO INMOBILIARIO","ESCRITO","DERECHO DE PETICION DE INTERES PARTICULAR"]
[3384192021,"SUBDIRECCION DE ADMINISTRACION INMOBILIARIA Y DE ESPACIO PUBLICO","ESCRITO","DERECHO DE PETICION DE INTERES PARTICULAR"]
[3384392021,"OFICINA ASESORA JURIDICA","ESCRITO","DERECHO DE PETICION DE INTERES PARTICULAR"]
[3385392021,"SUBDIRECCION DE ADMINISTRACION INMOBILIARIA Y DE ESPACIO PUBLICO","ESCRITO","DERECHO DE PETICION DE INTERES PARTICULAR"]
[3385612021,"SUBDIRECCION DE ADMINISTRACION INMOBILIARIA Y DE ESPACIO PUBLICO","ESCRITO","DERECHO DE PETICION DE INTERES PARTICULAR"]
[3385832021,"SUBDIRECCION DE REGISTRO INMOBILIARIO","ESCRITO","DERECHO DE PETICION DE INTERES PARTICULAR"]
[3386572021,"SUBDIRECCION DE ADMINISTRACION INMOBILIARIA Y DE ESPACIO PUBLICO","WEB","DERECHO DE PETICION DE INTERES PARTICULAR"]
[3387142021,"SUBDIRECCION DE ADMINISTRACION INMOBILIARIA Y DE ESPACIO PUBLICO","WEB","DERECHO DE PETICION DE INTERES GENERAL",7,"PENDIENTE"]
[3396832021,"SUBDIRECCION DE ADMINISTRACION INMOBILIARIA Y DE ESPACIO PUBLICO","WEB","DERECHO DE PETICION DE INTERES PARTICULAR"]
[3397672021,"SUBDIRECCION DE ADMINISTRACION INMOBILIARIA Y DE ESPACIO PUBLICO","WEB","DERECHO DE PETICION DE INTERES GENERAL",7,"PENDIENTE"]
[3399382021,"SUBDIRECCION DE ADMINISTRACION INMOBILIARIA Y DE ESPACIO PUBLICO","WEB","DERECHO DE PETICION DE INTERES PARTICULAR"]
[3399732021,"SUBDIRECCION DE ADMINISTRACION INMOBILIARIA Y DE ESPACIO PUBLICO","ESCRITO","DERECHO DE PETICION DE INTERES GENERAL",6,"PENDIENTE"]
[3399872021,"SUBDIRECCION DE REGISTRO INMOBILIARIO","ESCRITO","DERECHO DE PETICION DE INTERES PARTICULAR"]
[3399932021,"SUBDIRECCION DE ADMINISTRACION INMOBILIARIA Y DE ESPACIO PUBLICO","ESCRITO","DERECHO DE PETICION DE INTERES PARTICULAR"]
[3400022021,"SUBDIRECCION DE ADMINISTRACION INMOBILIARIA Y DE ESPACIO PUBLICO","ESCRITO","DERECHO DE PETICION DE INTERES GENERAL",6,"PENDIENTE"]
[3400082021,"SUBDIRECCION DE ADMINISTRACION INMOBILIARIA Y DE ESPACIO PUBLICO","ESCRITO","DERECHO DE PETICION DE INTERES PARTICULAR"]
[3405442021,"SUBDIRECCION DE ADMINISTRACION INMOBILIARIA Y DE ESPACIO PUBLICO","WEB","DERECHO DE PETICION DE INTERES PARTICULAR"]
[3407242021,"DESPACHO","ESCRITO","DERECHO DE PETICION DE INTERES PARTICULAR"]
[3407242021,"OFICINA ASESORA JURIDICA","ESCRITO","DERECHO DE PETICION DE INTERES PARTICULAR"]
[3407512021,"SUBDIRECCION DE REGISTRO INMOBILIARIO","ESCRITO","DERECHO DE PETICION DE INTERES PARTICULAR"]
[3408362021,"SUBDIRECCION DE REGISTRO INMOBILIARIO","ESCRITO","DERECHO DE PETICION DE INTERES PARTICULAR"]
[3409632021,"SUBDIRECCION DE ADMINISTRACION INMOBILIARIA Y DE ESPACIO PUBLICO","WEB","DERECHO DE PETICION DE INTERES PARTICULAR"]
[3410042021,"SUBDIRECCION DE ADMINISTRACION INMOBILIARIA Y DE ESPACIO PUBLICO","ESCRITO","DERECHO DE PETICION DE INTERES PARTICULAR"]
[3410252021,"SUBDIRECCION DE ADMINISTRACION INMOBILIARIA Y DE ESPACIO PUBLICO","ESCRITO","DERECHO DE PETICION DE INTERES PARTICULAR"]
[3414602021,"SUBDIRECCION DE REGISTRO INMOBILIARIO","WEB","DERECHO DE PETICION DE INTERES PARTICULAR"]
[3414872021,"SUBDIRECCION DE REGISTRO INMOBILIARIO","WEB","DERECHO DE PETICION DE INTERES PARTICULAR"]
[3414962021,"SUBDIRECCION DE ADMINISTRACION INMOBILIARIA Y DE ESPACIO PUBLICO","WEB","DERECHO DE PETICION DE INTERES GENERAL",6,"PENDIENTE"]
[3415032021,"SUBDIRECCION DE REGISTRO INMOBILIARIO","E-MAIL","DERECHO DE PETICION DE INTERES GENERAL",6,"PENDIENTE"]
[3415062021,"SUBDIRECCION DE ADMINISTRACION INMOBILIARIA Y DE ESPACIO PUBLICO","ESCRITO","DERECHO DE PETICION DE INTERES PARTICULAR"]
[3415802021,"SUBDIRECCION DE REGISTRO INMOBILIARIO","WEB","DERECHO DE PETICION DE INTERES GENERAL",6,"PENDIENTE"]
[3416912021,"SUBDIRECCION DE ADMINISTRACION INMOBILIARIA Y DE ESPACIO PUBLICO","WEB","DERECHO DE PETICION DE INTERES PARTICULAR"]
[3417382021,"SUBDIRECCION DE ADMINISTRACION INMOBILIARIA Y DE ESPACIO PUBLICO","WEB","DERECHO DE PETICION DE INTERES PARTICULAR"]
[3418602021,"SUBDIRECCION DE REGISTRO INMOBILIARIO","ESCRITO","DERECHO DE PETICION DE INTERES PARTICULAR"]
[3418712021,"SUBDIRECCION DE ADMINISTRACION INMOBILIARIA Y DE ESPACIO PUBLICO","ESCRITO","DERECHO DE PETICION DE INTERES PARTICULAR"]
[3418862021,"SUBDIRECCION DE ADMINISTRACION INMOBILIARIA Y DE ESPACIO PUBLICO","ESCRITO","DERECHO DE PETICION DE INTERES GENERAL",5,"PENDIENTE"]
[3425362021,"DESPACHO","ESCRITO","DERECHO DE PETICION DE INTERES PARTICULAR"]
[3425612021,"SUBDIRECCION DE ADMINISTRACION INMOBILIARIA Y DE ESPACIO PUBLICO","ESCRITO","DERECHO DE PETICION DE INTERES PARTICULAR"]
[3425802021,"SUBDIRECCION DE ADMINISTRACION INMOBILIARIA Y DE ESPACIO PUBLICO","ESCRITO","DERECHO DE PETICION DE INTERES PARTICULAR"]
[3425882021,"SUBDIRECCION DE ADMINISTRACION INMOBILIARIA Y DE ESPACIO PUBLICO","ESCRITO","DERECHO DE PETICION DE INTERES PARTICULAR"]
[3425922021,"SUBDIRECCION DE ADMINISTRACION INMOBILIARIA Y DE ESPACIO PUBLICO","TELEFONO","DERECHO DE PETICION DE INTERES PARTICULAR"]
[3426302021,"SUBDIRECCION DE ADMINISTRACION INMOBILIARIA Y DE ESPACIO PUBLICO","ESCRITO","DERECHO DE PETICION DE INTERES PARTICULAR"]
[3431452021,"SUBDIRECCION DE ADMINISTRACION INMOBILIARIA Y DE ESPACIO PUBLICO","E-MAIL","DERECHO DE PETICION DE INTERES GENERAL",5,"PENDIENTE"]
[3435642021,"SUBDIRECCION DE ADMINISTRACION INMOBILIARIA Y DE ESPACIO PUBLICO","WEB","DERECHO DE PETICION DE INTERES GENERAL",5,"PENDIENTE"]
[3439692021,"SUBDIRECCION DE ADMINISTRACION INMOBILIARIA Y DE ESPACIO PUBLICO","WEB","DERECHO DE PETICION DE INTERES GENERAL",3,"PENDIENTE"]
[3439782021,"SUBDIRECCION ADMINISTRATIVA  FINANCIERA Y DE CONTROL DISCIPLINARIO","WEB","DERECHO DE PETICION DE INTERES PARTICULAR"]
[3444202021,"SUBDIRECCION DE ADMINISTRACION INMOBILIARIA Y DE ESPACIO PUBLICO","WEB","QUEJA",5,"PENDIENTE"]
[3446552021,"SUBDIRECCION DE REGISTRO INMOBILIARIO","WEB","QUEJA",4,"PENDIENTE"]
[3447442021,"SUBDIRECCION DE ADMINISTRACION INMOBILIARIA Y DE ESPACIO PUBLICO","ESCRITO","DERECHO DE PETICION DE INTERES PARTICULAR"]
[3447852021,"SUBDIRECCION DE REGISTRO INMOBILIARIO","WEB","DERECHO DE PETICION DE INTERES PARTICULAR"]
[3449912021,"SUBDIRECCION DE ADMINISTRACION INMOBILIARIA Y DE ESPACIO PUBLICO","ESCRITO","DERECHO DE PETICION DE INTERES PARTICULAR"]
[3450142021,"SUBDIRECCION DE ADMINISTRACION INMOBILIARIA Y DE ESPACIO PUBLICO","ESCRITO","DERECHO DE PETICION DE INTERES PARTICULAR"]
[3450482021,"SUBDIRECCION DE ADMINISTRACION INMOBILIARIA Y DE ESPACIO PUBLICO","ESCRITO","DERECHO DE PETICION DE INTERES PARTICULAR"]
[3450682021,"SUBDIRECCION DE ADMINISTRACION INMOBILIARIA Y DE ESPACIO PUBLICO","ESCRITO","DERECHO DE PETICION DE INTERES PARTICULAR"]
[3451282021,"SUBDIRECCION DE REGISTRO INMOBILIARIO","ESCRITO","DERECHO DE PETICION DE INTERES PARTICULAR"]
[3451602021,"SUBDIRECCION DE ADMINISTRACION INMOBILIARIA Y DE ESPACIO PUBLICO","ESCRITO","DERECHO DE PETICION DE INTERES PARTICULAR"]
[3453922021,"SUBDIRECCION DE REGISTRO INMOBILIARIO","WEB","DERECHO DE PETICION DE INTERES PARTICULAR"]
[3458032021,"SUBDIRECCION DE ADMINISTRACION INMOBILIARIA Y DE ESPACIO PUBLICO","WEB","DERECHO DE PETICION DE INTERES PARTICULAR"]
[3458122021,"SUBDIRECCION DE REGISTRO INMOBILIARIO","WEB","DERECHO DE PETICION DE INTERES PARTICULAR"]
[3458522021,"SUBDIRECCION DE ADMINISTRACION INMOBILIARIA Y DE ESPACIO PUBLICO","WEB","CONSULTA",1,"PENDIENTE"]
[3460972021,"SUBDIRECCION DE ADMINISTRACION INMOBILIARIA Y DE ESPACIO PUBLICO","WEB","DERECHO DE PETICION DE INTERES PARTICULAR"]
[3461902021,"SUBDIRECCION DE ADMINISTRACION INMOBILIARIA Y DE ESPACIO PUBLICO","ESCRITO","DERECHO DE PETICION DE INTERES PARTICULAR"]
[3462032021,"SUBDIRECCION DE ADMINISTRACION INMOBILIARIA Y DE ESPACIO PUBLICO","ESCRITO","DERECHO DE PETICION DE INTERES PARTICULAR"]
[3462312021,"SUBDIRECCION DE ADMINISTRACION INMOBILIARIA Y DE ESPACIO PUBLICO","ESCRITO","DERECHO DE PETICION DE INTERES PARTICULAR"]
[3463242021,"SUBDIRECCION DE ADMINISTRACION INMOBILIARIA Y DE ESPACIO PUBLICO","ESCRITO","DERECHO DE PETICION DE INTERES PARTICULAR"]
[3463842021,"SUBDIRECCION DE ADMINISTRACION INMOBILIARIA Y DE ESPACIO PUBLICO","ESCRITO","DERECHO DE PETICION DE INTERES PARTICULAR"]
[3463962021,"SUBDIRECCION DE REGISTRO INMOBILIARIO","ESCRITO","DERECHO DE PETICION DE INTERES GENERAL",3,"PENDIENTE"]
[3464092021,"SUBDIRECCION DE ADMINISTRACION INMOBILIARIA Y DE ESPACIO PUBLICO","ESCRITO","DERECHO DE PETICION DE INTERES PARTICULAR"]
[3464472021,"SUBDIRECCION DE ADMINISTRACION INMOBILIARIA Y DE ESPACIO PUBLICO","ESCRITO","DERECHO DE PETICION DE INTERES PARTICULAR"]
[3464662021,"SUBDIRECCION DE ADMINISTRACION INMOBILIARIA Y DE ESPACIO PUBLICO","ESCRITO","DERECHO DE PETICION DE INTERES PARTICULAR"]
[3464852021,"SUBDIRECCION DE ADMINISTRACION INMOBILIARIA Y DE ESPACIO PUBLICO","ESCRITO","DERECHO DE PETICION DE INTERES GENERAL",3,"PENDIENTE"]
[3464982021,"SUBDIRECCION DE REGISTRO INMOBILIARIO","ESCRITO","DERECHO DE PETICION DE INTERES PARTICULAR"]
[3465002021,"SUBDIRECCION DE ADMINISTRACION INMOBILIARIA Y DE ESPACIO PUBLICO","ESCRITO","DERECHO DE PETICION DE INTERES PARTICULAR"]
[3465032021,"SUBDIRECCION DE REGISTRO INMOBILIARIO","ESCRITO","DERECHO DE PETICION DE INTERES PARTICULAR"]
[3465082021,"SUBDIRECCION DE ADMINISTRACION INMOBILIARIA Y DE ESPACIO PUBLICO","ESCRITO","DERECHO DE PETICION DE INTERES PARTICULAR"]
[3467512021,"SUBDIRECCION DE ADMINISTRACION INMOBILIARIA Y DE ESPACIO PUBLICO","ESCRITO","DERECHO DE PETICION DE INTERES PARTICULAR"]
[3467652021,"SUBDIRECCION DE ADMINISTRACION INMOBILIARIA Y DE ESPACIO PUBLICO","ESCRITO","DERECHO DE PETICION DE INTERES PARTICULAR"]
[3467872021,"SUBDIRECCION DE ADMINISTRACION INMOBILIARIA Y DE ESPACIO PUBLICO","WEB","DERECHO DE PETICION DE INTERES PARTICULAR"]
[3468112021,"SUBDIRECCION DE ADMINISTRACION INMOBILIARIA Y DE ESPACIO PUBLICO","ESCRITO","DERECHO DE PETICION DE INTERES PARTICULAR"]
[3468522021,"SUBDIRECCION DE ADMINISTRACION INMOBILIARIA Y DE ESPACIO PUBLICO","ESCRITO","DERECHO DE PETICION DE INTERES PARTICULAR"]
[3468582021,"SUBDIRECCION DE ADMINISTRACION INMOBILIARIA Y DE ESPACIO PUBLICO","WEB","CONSULTA",3,"PENDIENTE"]
[3468882021,"SUBDIRECCION DE ADMINISTRACION INMOBILIARIA Y DE ESPACIO PUBLICO","ESCRITO","DERECHO DE PETICION DE INTERES PARTICULAR"]
[3469242021,"SUBDIRECCION DE ADMINISTRACION INMOBILIARIA Y DE ESPACIO PUBLICO","ESCRITO","DERECHO DE PETICION DE INTERES PARTICULAR"]
[3469542021,"SUBDIRECCION DE ADMINISTRACION INMOBILIARIA Y DE ESPACIO PUBLICO","ESCRITO","DERECHO DE PETICION DE INTERES PARTICULAR"]
[3470502021,"SUBDIRECCION DE ADMINISTRACION INMOBILIARIA Y DE ESPACIO PUBLICO","WEB","DERECHO DE PETICION DE INTERES PARTICULAR"]
[3472892021,"SUBDIRECCION DE REGISTRO INMOBILIARIO","ESCRITO","DERECHO DE PETICION DE INTERES PARTICULAR"]
[3472932021,"SUBDIRECCION DE ADMINISTRACION INMOBILIARIA Y DE ESPACIO PUBLICO","ESCRITO","DERECHO DE PETICION DE INTERES PARTICULAR"]
[3473832021,"SUBDIRECCION DE ADMINISTRACION INMOBILIARIA Y DE ESPACIO PUBLICO","WEB","DERECHO DE PETICION DE INTERES PARTICULAR"]
[3479192021,"SUBDIRECCION DE ADMINISTRACION INMOBILIARIA Y DE ESPACIO PUBLICO","ESCRITO","DERECHO DE PETICION DE INTERES PARTICULAR"]
[3480932021,"SUBDIRECCION DE ADMINISTRACION INMOBILIARIA Y DE ESPACIO PUBLICO","WEB","DERECHO DE PETICION DE INTERES GENERAL",2,"PENDIENTE"]
[3484872021,"SUBDIRECCION DE ADMINISTRACION INMOBILIARIA Y DE ESPACIO PUBLICO","WEB","DERECHO DE PETICION DE INTERES GENERAL",2,"PENDIENTE"]
[3484982021,"SUBDIRECCION DE ADMINISTRACION INMOBILIARIA Y DE ESPACIO PUBLICO","WEB","DERECHO DE PETICION DE INTERES GENERAL",2,"PENDIENTE"]
[3485242021,"SUBDIRECCION DE ADMINISTRACION INMOBILIARIA Y DE ESPACIO PUBLICO","WEB","DERECHO DE PETICION DE INTERES GENERAL",2,"PENDIENTE"]
[3485242021,"SUBDIRECCION ADMINISTRATIVA  FINANCIERA Y DE CONTROL DISCIPLINARIO","WEB","DERECHO DE PETICION DE INTERES GENERAL",2,"GESTIONADOS"]
[3485302021,"SUBDIRECCION DE ADMINISTRACION INMOBILIARIA Y DE ESPACIO PUBLICO","WEB","DERECHO DE PETICION DE INTERES GENERAL",2,"PENDIENTE"]
[3487682021,"SUBDIRECCION DE ADMINISTRACION INMOBILIARIA Y DE ESPACIO PUBLICO","ESCRITO","DERECHO DE PETICION DE INTERES PARTICULAR"]
[3496192021,"SUBDIRECCION DE ADMINISTRACION INMOBILIARIA Y DE ESPACIO PUBLICO","WEB","DERECHO DE PETICION DE INTERES PARTICULAR"]
[3497322021,"SUBDIRECCION DE ADMINISTRACION INMOBILIARIA Y DE ESPACIO PUBLICO","ESCRITO","DERECHO DE PETICION DE INTERES PARTICULAR"]
[3497372021,"SUBDIRECCION DE REGISTRO INMOBILIARIO","ESCRITO","DERECHO DE PETICION DE INTERES PARTICULAR"]
[3497392021,"SUBDIRECCION DE REGISTRO INMOBILIARIO","ESCRITO","DERECHO DE PETICION DE INTERES PARTICULAR"]
[3499682021,"SUBDIRECCION DE REGISTRO INMOBILIARIO","ESCRITO","DERECHO DE PETICION DE INTERES PARTICULAR"]
[3500822021,"SUBDIRECCION DE ADMINISTRACION INMOBILIARIA Y DE ESPACIO PUBLICO","ESCRITO","DERECHO DE PETICION DE INTERES PARTICULAR"]
[3501332021,"DESPACHO","ESCRITO","DERECHO DE PETICION DE INTERES PARTICULAR"]
[3501752021,"SUBDIRECCION DE ADMINISTRACION INMOBILIARIA Y DE ESPACIO PUBLICO","ESCRITO","DERECHO DE PETICION DE INTERES GENERAL",1,"PENDIENTE"]
[3501982021,"SUBDIRECCION DE ADMINISTRACION INMOBILIARIA Y DE ESPACIO PUBLICO","ESCRITO","DERECHO DE PETICION DE INTERES PARTICULAR"]
[3502112021,"SUBDIRECCION DE REGISTRO INMOBILIARIO","ESCRITO","DERECHO DE PETICION DE INTERES GENERAL",1,"PENDIENTE"]
[3502162021,"SUBDIRECCION DE ADMINISTRACION INMOBILIARIA Y DE ESPACIO PUBLICO","ESCRITO","DERECHO DE PETICION DE INTERES PARTICULAR"]
[3502172021,"SUBDIRECCION DE ADMINISTRACION INMOBILIARIA Y DE ESPACIO PUBLICO","ESCRITO","DERECHO DE PETICION DE INTERES PARTICULAR"]
[3502202021,"SUBDIRECCION DE ADMINISTRACION INMOBILIARIA Y DE ESPACIO PUBLICO","ESCRITO","DERECHO DE PETICION DE INTERES PARTICULAR"]
[3508412021,"SUBDIRECCION DE ADMINISTRACION INMOBILIARIA Y DE ESPACIO PUBLICO","TELEFONO","DERECHO DE PETICION DE INTERES GENERAL",1,"PENDIENTE"]
[3509442021,"SUBDIRECCION DE ADMINISTRACION INMOBILIARIA Y DE ESPACIO PUBLICO","WEB","DERECHO DE PETICION DE INTERES PARTICULAR"]
[3514942021,"SUBDIRECCION DE ADMINISTRACION INMOBILIARIA Y DE ESPACIO PUBLICO","ESCRITO","DERECHO DE PETICION DE INTERES PARTICULAR"]
[3514982021,"SUBDIRECCION DE REGISTRO INMOBILIARIO","ESCRITO","DERECHO DE PETICION DE INTERES PARTICULAR"]
[3515472021,"OFICINA ASESORA JURIDICA","ESCRITO","DERECHO DE PETICION DE INTERES PARTICULAR"]
[3516502021,"SUBDIRECCION DE REGISTRO INMOBILIARIO","WEB","DERECHO DE PETICION DE INTERES GENERAL",1,"PENDIENTE"]
[3517422021,"SUBDIRECCION DE ADMINISTRACION INMOBILIARIA Y DE ESPACIO PUBLICO","WEB","DERECHO DE PETICION DE INTERES GENERAL",1,"PENDIENTE"]
[3518772021,"SUBDIRECCION DE REGISTRO INMOBILIARIO","WEB","DERECHO DE PETICION DE INTERES GENERAL",1,"PENDIENTE"]
[3521242021,"SUBDIRECCION DE ADMINISTRACION INMOBILIARIA Y DE ESPACIO PUBLICO","WEB","DERECHO DE PETICION DE INTERES GENERAL",1,"PENDIENTE"]
[3521512021,"SUBDIRECCION DE ADMINISTRACION INMOBILIARIA Y DE ESPACIO PUBLICO","ESCRITO","DERECHO DE PETICION DE INTERES PARTICULAR"]
[3521782021,"SUBDIRECCION DE REGISTRO INMOBILIARIO","ESCRITO","DERECHO DE PETICION DE INTERES PARTICULAR"]
[3521922021,"SUBDIRECCION DE ADMINISTRACION INMOBILIARIA Y DE ESPACIO PUBLICO","ESCRITO","DERECHO DE PETICION DE INTERES PARTICULAR"]
[3522022021,"SUBDIRECCION DE ADMINISTRACION INMOBILIARIA Y DE ESPACIO PUBLICO","ESCRITO","DERECHO DE PETICION DE INTERES PARTICULAR"]
[3522152021,"SUBDIRECCION DE ADMINISTRACION INMOBILIARIA Y DE ESPACIO PUBLICO","ESCRITO","DERECHO DE PETICION DE INTERES PARTICULAR"]
[3522322021,"SUBDIRECCION DE ADMINISTRACION INMOBILIARIA Y DE ESPACIO PUBLICO","ESCRITO","DERECHO DE PETICION DE INTERES PARTICULAR"]
[3522442021,"SUBDIRECCION DE ADMINISTRACION INMOBILIARIA Y DE ESPACIO PUBLICO","ESCRITO","DERECHO DE PETICION DE INTERES PARTICULAR"]
[3524492021,"SUBDIRECCION DE REGISTRO INMOBILIARIO","ESCRITO","DERECHO DE PETICION DE INTERES PARTICULAR"]
[3524712021,"SUBDIRECCION DE ADMINISTRACION INMOBILIARIA Y DE ESPACIO PUBLICO","ESCRITO","DERECHO DE PETICION DE INTERES PARTICULAR"]
[3525082021,"SUBDIRECCION DE ADMINISTRACION INMOBILIARIA Y DE ESPACIO PUBLICO","ESCRITO","DERECHO DE PETICION DE INTERES PARTICULAR"]
[3525292021,"SUBDIRECCION DE REGISTRO INMOBILIARIO","ESCRITO","DERECHO DE PETICION DE INTERES PARTICULAR"]

{"sheet":"Portada","index":1,"n_rows":0,"n_cols":0,"rows_kept":0,"cut":false,"hidden":false,"merged":[]}

{"sheet":"Análisis","index":2,"n_rows":56,"n_cols":30,"rows_kept":56,"cut":false,"hidden":false,"merged":[[33,25,33,26],[33,23,33,24],[33,21,33,22],[33,19,33,20],[22,5,23,30],[33,27,33,28],[33,29,33,30],[33,5,33,14],[37,15,37,16],[37,17,37,18],[37,19,37,20],[39,5,39,14],[39,15,39,16],[39,17,39,18],[36,15,36,16],[36,17,36,18],[36,19,36,20],[36,21,36,22],[36,23,36,24],[34,19,34,20],[34,21,34,22],[34,23,34,24],[18,2,20,3],[36,2,39,3],[33,15,33,16],[33,17,33,18],[17,5,20,30],[34,27,34,28],[35,27,35,28],[36,27,36,28],[37,27,37,28],[38,27,38,28],[39,27,39,28],[30,5,31,30],[38,25,38,26],[35,23,35,24],[39,19,39,20],[39,21,39,22],[39,23,39,24],[39,25,39,26],[37,21,37,22],[37,23,37,24],[37,25,37,26],[36,25,36,26],[38,29,38,30],[39,29,39,30],[55,2,56,3],[41,5,52,30],[38,5,38,14],[38,19,38,20],[38,21,38,22],[38,23,38,24],[38,15,38,16],[38,17,38,18],[41,2,41,3],[34,29,34,30],[35,29,35,30],[36,29,36,30],[37,29,37,30],[37,5,37,14],[34,5,34,14],[36,5,36,14],[34,25,34,26],[35,5,35,14],[35,15,35,16],[35,25,35,26],[34,15,34,16],[34,17,34,18],[35,17,35,18],[35,19,35,20],[35,21,35,22]]}
[]
[]
[]
[]
[]
[]
[]
[]
[]
[]
[]
[]
[]
[]
[]
[]
[null,null,"Solicitudes de información recibidas en el mes "]
[null,null,null,null,null,"Tiempos de respuesta de las solicitudes de información recibidas "]
[null,null,"En la siguiente tabla se registra la cantidad de solicitudes de información recibidas por la Defensoría del Espacio Público en el mes de estudio. "]
[]
[]
[]
[null,null,null,null,null,"Los tiempos de respuesta establecidos en el artículo 5 del decreto 491 de 2020 para las peticiones radicadas durante la emergencia sanitaria, ampliada con la resolución 222 de 2021 hasta el 31 de mayo de 2021, son los siguientes:"]
[]
[]
[]
[]
[]
[]
[]
[null,null,null,null,null,"Con base en el reporte del Sistema de gestión de peticiones ciudadanas Bogotá te escucha y de conformidad con  el tiempo promedio de respuesta de las dependencias y/o áreas de la Defensoría del Espacio Público fue de 24 días, como se muestra a continuación:"]
[]
[null,null,"Número de solicitudes \nrecibidas y registradas","Número de solicitudes trasladadas  a otra entidad"]
[null,null,540,315,null,"Dependencia",null,null,null,null,null,null,null,null,null,{"$f":"+'xa pqrs'!M20","v":"Consulta"},null,{"$f":"+'xa pqrs'!N20","v":"Derecho de petición de interés general"},null,{"$f":"+'xa pqrs'!O20","v":"Derecho de petición de interés particular"},null,{"$f":"+'xa pqrs'!P20","v":"Queja"},null,{"$f":"+'xa pqrs'!Q20","v":"Reclamo"},null,{"$f":"+'xa pqrs'!R20","v":"Solicitud de acceso a la información"},null,{"$f":"+'xa pqrs'!S20","v":"Solicitud de copia"},null,{"$f":"+'xa pqrs'!T20","v":"Total general"}]
[null,null,null,null,null,{"$f":"+'xa pqrs'!D21","v":"Área de atención a la ciudadanía"},null,null,null,null,null,null,null,null,null,{"$f":"+'xa pqrs'!M21","v":1.5},null,{"$f":"+'xa pqrs'!N21","v":24.875},null,{"$f":"+'xa pqrs'!O21","v":27.5},null,{"$f":"+'xa pqrs'!P21","v":10},null,{"$f":"+'xa pqrs'!Q21","v":1},null,{"$f":"+'xa pqrs'!R21","v":1},null,{"$f":"+'xa pqrs'!S21","v":0},null,{"$f":"+'xa pqrs'!T21","v":20.666666666666668}]
[null,null,null,null,null,{"$f":"+'xa pqrs'!D22","v":"Oficina asesora jurídica"},null,null,null,null,null,null,null,null,null,{"$f":"+'xa pqrs'!M22","v":17},null,{"$f":"+'xa pqrs'!N22","v":0},null,{"$f":"+'xa pqrs'!O22","v":10.8},null,{"$f":"+'xa pqrs'!P22","v":0},null,{"$f":"+'xa pqrs'!Q22","v":0},null,{"$f":"+'xa pqrs'!R22","v":0},null,{"$f":"+'xa pqrs'!S22","v":0},null,{"$f":"+'xa pqrs'!T22","v":11.833333333333334}]
[null,null,"De acuerdo con las cifras anteriores, tomadas del reporte del sistema Bogotá te escucha, las solicitudes recibidas y registradas por la Defensoría del Espacio Público se clasifican de la siguiente manera por tipo de petición.",null,null,{"$f":"+'xa pqrs'!D23","v":"Subdirección administrativa y financiera"},null,null,null,null,null,null,null,null,null,{"$f":"+'xa pqrs'!M23","v":18},null,{"$f":"+'xa pqrs'!N23","v":0},null,{"$f":"+'xa pqrs'!O23","v":13.333333333333334},null,{"$f":"+'xa pqrs'!P23","v":0},null,{"$f":"+'xa pqrs'!Q23","v":0},null,{"$f":"+'xa pqrs'!R23","v":0},null,{"$f":"+'xa pqrs'!S23","v":0},null,{"$f":"+'xa pqrs'!T23","v":14.5}]
[null,null,null,null,null,{"$f":"+'xa pqrs'!D24","v":"Subdirección de administración inmobiliaria y de espacio publico"},null,null,null,null,null,null,null,null,null,{"$f":"+'xa pqrs'!M24","v":32.166666666666664},null,{"$f":"+'xa pqrs'!N24","v":27.689655172413794},null,{"$f":"+'xa pqrs'!O24","v":27.333333333333332},null,{"$f":"+'xa pqrs'!P24","v":28},null,{"$f":"+'xa pqrs'!Q24","v":27},null,{"$f":"+'xa pqrs'!R24","v":0},null,{"$f":"+'xa pqrs'!S24","v":16.666666666666668},null,{"$f":"+'xa pqrs'!T24","v":27.441176470588236}]
[null,null,null,null,null,{"$f":"+'xa pqrs'!D25","v":"Subdirección de registro inmobiliario"},null,null,null,null,null,null,null,null,null,{"$f":"+'xa pqrs'!M25","v":24.666666666666668},null,{"$f":"+'xa pqrs'!N25","v":22.923076923076923},null,{"$f":"+'xa pqrs'!O25","v":21.1864406779661},null,{"$f":"+'xa pqrs'!P25","v":0},null,{"$f":"+'xa pqrs'!Q25","v":0},null,{"$f":"+'xa pqrs'!R25","v":0},null,{"$f":"+'xa pqrs'!S25","v":0},null,{"$f":"+'xa pqrs'!T25","v":21.952380952380953}]
[null,null,null,null,null,"Promedio días por tipología ",null,null,null,null,null,null,null,null,null,{"$f":"+'xa pqrs'!M26","v":23.954545454545453},null,{"$f":"+'xa pqrs'!N26","v":26},null,{"$f":"+'xa pqrs'!O26","v":23.818840579710145},null,{"$f":"+'xa pqrs'!P26","v":22},null,{"$f":"+'xa pqrs'!Q26","v":9.6666666666666661},null,{"$f":"+'xa pqrs'!R26","v":1},null,{"$f":"+'xa pqrs'!S26","v":16.666666666666668},null,{"$f":"+'xa pqrs'!T26","v":23.858407079646017}]
[]
[null,null,"Tipo de petición",null,null,"De acuerdo con el cuadro anterior, el tiempo promedio de respuesta, por tipología fue el siguiente:\n\nConsulta;24 días\nDerecho de petición de interés general: 26 días\nDerecho de petición de interés particular: 24 días\nQueja: 22 días\nReclamo: 10 días\nSolicitud de acceso a la información: 1 día\nSolicitud de copia; fue de 17 días."]
[null,null,{"$f":"+'xa pqrs'!A24","v":"DERECHO DE PETICION DE INTERES PARTICULAR"},324]
[null,null,{"$f":"+'xa pqrs'!A25","v":"DERECHO DE PETICION DE INTERES GENERAL"},150]
[null,null,{"$f":"+'xa pqrs'!A26","v":"QUEJA"},35]
[null,null,{"$f":"+'xa pqrs'!A27","v":"RECLAMO"},12]
[null,null,{"$f":"+'xa pqrs'!A28","v":"CONSULTA"},12]
[null,null,{"$f":"+'xa pqrs'!A29","v":"SOLICITUD DE ACCESO A LA INFORMACION"},3]
[null,null,{"$f":"+'xa pqrs'!A30","v":"SOLICITUD DE COPIA"},1]
[null,null,{"$f":"+'xa pqrs'!A31","v":"DENUNCIA POR ACTOS DE CORRUPCION"},1]
[null,null,{"$f":"+'xa pqrs'!A32","v":"SUGERENCIA"},1]
[null,null,{"$f":"+'xa pqrs'!A33","v":"FELICITACION"},1]
[null,null,"TOTAL GENERAL",{"$f":"SUM(D43:D52)","v":540}]
[]
[]
[null,null,"Por otra parte, la Defensoría del Espacio Público trasladó por competencia, 315 solicitudes."]

{"sheet":"Registradas y Recibidas","index":3,"n_rows":558,"n_cols":7,"rows_kept":558,"cut":false,"hidden":false,"merged":[[8,1,14,2],[11,3,13,4]]}
[]
[]
[]
[]
[]
[]
[]
[]
[null,"REPORTE  GESTIÓN DE PETICIONES\n\nFecha:  2021- 10- 01    a   2021 - 10 - 31\nEstado de Petición:  Al Periodo"]
[]
[]
[]
[]
[]
[]
[]
[]
[null,"Número petición\nNumero de registro en el Sistema","Dependencia:\nNombre asociado al usuario que tiene a cargo la petición ","Canal:\nNombre del canal parametrizado en el sistema por el cual fue registrada la petición","Tipología actualizada: \nTipo de documento utilizado por la entidad","Días gestión\nDías calendario transcurridos desde la fecha de inicio de términos hasta el último día del mes","Estado del Requerimiento\n \"Gestionado\" o \"Pendiente\" de respuesta definitiva por  parte de la Defensoría del Espacio Público o de las entidades competentes"]
[null,2691222021,"AREA DE ATENCION A LA CIUDADANIA","WEB","DERECHO DE PETICION DE INTERES GENERAL",1,"GESTIONADO"]
[null,2842242021,"SUBDIRECCION DE REGISTRO INMOBILIARIO","ESCRITO","DERECHO DE PETICION DE INTERES PARTICULAR",1,"PENDIENTE"]
[null,2888292021,"AREA DE ATENCION A LA CIUDADANIA","ESCRITO","SOLICITUD DE ACCESO A LA INFORMACION",1,"GESTIONADO"]
[null,2916552021,"AREA DE ATENCION A LA CIUDADANIA","E-MAIL","DERECHO DE PETICION DE INTERES GENERAL",1,"GESTIONADO"]
[null,3089232021,"SUBDIRECCION ADMINISTRATIVA  FINANCIERA Y DE CONTROL DISCIPLINARIO","WEB","DERECHO DE PETICION DE INTERES GENERAL",2,"PENDIENTE"]
[null,3089252021,"SUBDIRECCION DE ADMINISTRACION INMOBILIARIA Y DE ESPACIO PUBLICO","WEB","DERECHO DE PETICION DE INTERES GENERAL",1,"PENDIENTE"]
[null,3089262021,"SUBDIRECCION ADMINISTRATIVA  FINANCIERA Y DE CONTROL DISCIPLINARIO","WEB","DERECHO DE PETICION DE INTERES GENERAL",1,"GESTIONADO"]
[null,3089452021,"AREA DE ATENCION A LA CIUDADANIA","WEB","DERECHO DE PETICION DE INTERES GENERAL",1,"GESTIONADO"]
[null,3095302021,"AREA DE ATENCION A LA CIUDADANIA","ESCRITO","DERECHO DE PETICION DE INTERES GENERAL",1,"GESTIONADO"]
[null,3108282021,"AREA DE ATENCION A LA CIUDADANIA","WEB","DERECHO DE PETICION DE INTERES GENERAL",1,"GESTIONADO"]
[null,3121752021,"AREA DE ATENCION A LA CIUDADANIA","WEB","DERECHO DE PETICION DE INTERES PARTICULAR",1,"GESTIONADO"]
[null,3149232021,"AREA DE ATENCION A LA CIUDADANIA","TELEFONO","RECLAMO",1,"GESTIONADO"]
[null,3150282021,"SUBDIRECCION DE ADMINISTRACION INMOBILIARIA Y DE ESPACIO PUBLICO","WEB","DERECHO DE PETICION DE INTERES GENERAL",1,"PENDIENTE"]
[null,3156142021,"AREA DE ATENCION A LA CIUDADANIA","WEB","QUEJA",1,"GESTIONADO"]
[null,3156292021,"AREA DE ATENCION A LA CIUDADANIA","WEB","RECLAMO",1,"GESTIONADO"]
[null,3159822021,"AREA DE ATENCION A LA CIUDADANIA","WEB","DERECHO DE PETICION DE INTERES PARTICULAR",1,"GESTIONADO"]
[null,3160972021,"SUBDIRECCION DE ADMINISTRACION INMOBILIARIA Y DE ESPACIO PUBLICO","WEB","QUEJA",1,"PENDIENTE"]
[null,3162702021,"SUBDIRECCION DE ADMINISTRACION INMOBILIARIA Y DE ESPACIO PUBLICO","WEB","DERECHO DE PETICION DE INTERES GENERAL",1,"PENDIENTE"]
[null,3163052021,"AREA DE ATENCION A LA CIUDADANIA","WEB","DERECHO DE PETICION DE INTERES PARTICULAR",1,"GESTIONADO"]
[null,3163562021,"SUBDIRECCION DE ADMINISTRACION INMOBILIARIA Y DE ESPACIO PUBLICO","WEB","QUEJA",1,"PENDIENTE"]
[null,3167002021,"SUBDIRECCION DE ADMINISTRACION INMOBILIARIA Y DE ESPACIO PUBLICO","E-MAIL","DERECHO DE PETICION DE INTERES PARTICULAR",1,"PENDIENTE"]
[null,3167252021,"SUBDIRECCION DE ADMINISTRACION INMOBILIARIA Y DE ESPACIO PUBLICO","ESCRITO","DERECHO DE PETICION DE INTERES PARTICULAR",1,"PENDIENTE"]
[null,3169842021,"AREA DE ATENCION A LA CIUDADANIA","WEB","CONSULTA",2,"GESTIONADO"]
[null,3171062021,"AREA DE ATENCION A LA CIUDADANIA","WEB","QUEJA",1,"GESTIONADO"]
[null,3171232021,"SUBDIRECCION DE ADMINISTRACION INMOBILIARIA Y DE ESPACIO PUBLICO","WEB","QUEJA",1,"PENDIENTE"]
[null,3171392021,"SUBDIRECCION DE ADMINISTRACION INMOBILIARIA Y DE ESPACIO PUBLICO","WEB","DERECHO DE PETICION DE INTERES GENERAL",1,"PENDIENTE"]
[null,3172032021,"AREA DE ATENCION A LA CIUDADANIA","WEB","DERECHO DE PETICION DE INTERES GENERAL",1,"GESTIONADO"]
[null,3174542021,"AREA DE ATENCION A LA CIUDADANIA","WEB","DERECHO DE PETICION DE INTERES GENERAL",1,"GESTIONADO"]
[null,3174562021,"AREA DE ATENCION A LA CIUDADANIA","WEB","CONSULTA",2,"GESTIONADO"]
[null,3174582021,"AREA DE ATENCION A LA CIUDADANIA","WEB","QUEJA",1,"GESTIONADO"]
[null,3175732021,"SUBDIRECCION DE ADMINISTRACION INMOBILIARIA Y DE ESPACIO PUBLICO","TELEFONO","DERECHO DE PETICION DE INTERES GENERAL",1,"PENDIENTE"]
[null,3176722021,"AREA DE ATENCION A LA CIUDADANIA","WEB","SOLICITUD DE ACCESO A LA INFORMACION",1,"GESTIONADO"]
[null,3177482021,"AREA DE ATENCION A LA CIUDADANIA","WEB","DERECHO DE PETICION DE INTERES GENERAL",1,"GESTIONADO"]
[null,3178682021,"SUBDIRECCION DE ADMINISTRACION INMOBILIARIA Y DE ESPACIO PUBLICO","WEB","DERECHO DE PETICION DE INTERES GENERAL",1,"PENDIENTE"]
[null,3179292021,"SUBDIRECCION DE ADMINISTRACION INMOBILIARIA Y DE ESPACIO PUBLICO","WEB","QUEJA",1,"PENDIENTE"]
[null,3179942021,"SUBDIRECCION DE ADMINISTRACION INMOBILIARIA Y DE ESPACIO PUBLICO","WEB","DERECHO DE PETICION DE INTERES PARTICULAR",1,"PENDIENTE"]
[null,3182672021,"SUBDIRECCION DE ADMINISTRACION INMOBILIARIA Y DE ESPACIO PUBLICO","WEB","DERECHO DE PETICION DE INTERES GENERAL",1,"PENDIENTE"]
[null,3184432021,"SUBDIRECCION DE ADMINISTRACION INMOBILIARIA Y DE ESPACIO PUBLICO","WEB","DERECHO DE PETICION DE INTERES GENERAL",1,"PENDIENTE"]
[null,3185162021,"SUBDIRECCION DE ADMINISTRACION INMOBILIARIA Y DE ESPACIO PUBLICO","ESCRITO","DERECHO DE PETICION DE INTERES GENERAL",1,"PENDIENTE"]
[null,3186352021,"AREA DE ATENCION A LA CIUDADANIA","WEB","QUEJA",1,"GESTIONADO"]
[null,3186402021,"SUBDIRECCION DE ADMINISTRACION INMOBILIARIA Y DE ESPACIO PUBLICO","WEB","QUEJA",1,"PENDIENTE"]
[null,3186522021,"SUBDIRECCION DE ADMINISTRACION INMOBILIARIA Y DE ESPACIO PUBLICO","ESCRITO","DERECHO DE PETICION DE INTERES PARTICULAR",1,"PENDIENTE"]
[null,3186842021,"AREA DE ATENCION A LA CIUDADANIA","WEB","RECLAMO",1,"GESTIONADO"]
[null,3187682021,"SUBDIRECCION DE ADMINISTRACION INMOBILIARIA Y DE ESPACIO PUBLICO","ESCRITO","DERECHO DE PETICION DE INTERES PARTICULAR",1,"PENDIENTE"]
[null,3187822021,"SUBDIRECCION DE ADMINISTRACION INMOBILIARIA Y DE ESPACIO PUBLICO","ESCRITO","DERECHO DE PETICION DE INTERES PARTICULAR",1,"PENDIENTE"]
[null,3187852021,"SUBDIRECCION DE ADMINISTRACION INMOBILIARIA Y DE ESPACIO PUBLICO","ESCRITO","DERECHO DE PETICION DE INTERES PARTICULAR",1,"PENDIENTE"]
[null,3187912021,"SUBDIRECCION DE ADMINISTRACION INMOBILIARIA Y DE ESPACIO PUBLICO","ESCRITO","DERECHO DE PETICION DE INTERES PARTICULAR",1,"PENDIENTE"]
[null,3188312021,"SUBDIRECCION DE ADMINISTRACION INMOBILIARIA Y DE ESPACIO PUBLICO","ESCRITO","DERECHO DE PETICION DE INTERES GENERAL",1,"PENDIENTE"]
[null,3189532021,"AREA DE ATENCION A LA CIUDADANIA","WEB","DERECHO DE PETICION DE INTERES GENERAL",1,"GESTIONADO"]
[null,3190392021,"AREA DE ATENCION A LA CIUDADANIA","WEB","DERECHO DE PETICION DE INTERES GENERAL",1,"GESTIONADO"]
[null,3190482021,"SUBDIRECCION DE REGISTRO INMOBILIARIO","WEB","DERECHO DE PETICION DE INTERES PARTICULAR",1,"PENDIENTE"]
[null,3191152021,"SUBDIRECCION DE ADMINISTRACION INMOBILIARIA Y DE ESPACIO PUBLICO","ESCRITO","DERECHO DE PETICION DE INTERES GENERAL",1,"PENDIENTE"]
[null,3191262021,"AREA DE ATENCION A LA CIUDADANIA","WEB","DERECHO DE PETICION DE INTERES PARTICULAR",1,"GESTIONADO"]
[null,3191382021,"SUBDIRECCION DE ADMINISTRACION INMOBILIARIA Y DE ESPACIO PUBLICO","ESCRITO","DERECHO DE PETICION DE INTERES GENERAL",1,"PENDIENTE"]
[null,3191582021,"SUBDIRECCION DE ADMINISTRACION INMOBILIARIA Y DE ESPACIO PUBLICO","ESCRITO","DERECHO DE PETICION DE INTERES PARTICULAR",1,"PENDIENTE"]
[null,3193332021,"AREA DE ATENCION A LA CIUDADANIA","WEB","DERECHO DE PETICION DE INTERES GENERAL",1,"GESTIONADO"]
[null,3193632021,"AREA DE ATENCION A LA CIUDADANIA","WEB","DERECHO DE PETICION DE INTERES PARTICULAR",1,"GESTIONADO"]
[null,3194232021,"SUBDIRECCION DE REGISTRO INMOBILIARIO","E-MAIL","DERECHO DE PETICION DE INTERES PARTICULAR",1,"GESTIONADO"]
[null,3194262021,"SUBDIRECCION DE ADMINISTRACION INMOBILIARIA Y DE ESPACIO PUBLICO","E-MAIL","DERECHO DE PETICION DE INTERES PARTICULAR",1,"PENDIENTE"]
[null,3194302021,"SUBDIRECCION DE ADMINISTRACION INMOBILIARIA Y DE ESPACIO PUBLICO","E-MAIL","DERECHO DE PETICION DE INTERES PARTICULAR",1,"PENDIENTE"]
[null,3195782021,"AREA DE ATENCION A LA CIUDADANIA","WEB","SUGERENCIA",1,"GESTIONADO"]
[null,3198022021,"AREA DE ATENCION A LA CIUDADANIA","WEB","DERECHO DE PETICION DE INTERES GENERAL",1,"GESTIONADO"]
[null,3198142021,"AREA DE ATENCION A LA CIUDADANIA","WEB","DERECHO DE PETICION DE INTERES GENERAL",1,"GESTIONADO"]
[null,3200252021,"AREA DE ATENCION A LA CIUDADANIA","WEB","DERECHO DE PETICION DE INTERES PARTICULAR",1,"GESTIONADO"]
[null,3200452021,"SUBDIRECCION DE ADMINISTRACION INMOBILIARIA Y DE ESPACIO PUBLICO","ESCRITO","DERECHO DE PETICION DE INTERES PARTICULAR",1,"PENDIENTE"]
[null,3200462021,"AREA DE ATENCION A LA CIUDADANIA","WEB","DERECHO DE PETICION DE INTERES GENERAL",1,"GESTIONADO"]
[null,3200562021,"AREA DE ATENCION A LA CIUDADANIA","WEB","DERECHO DE PETICION DE INTERES PARTICULAR",1,"GESTIONADO"]
[null,3200582021,"SUBDIRECCION DE ADMINISTRACION INMOBILIARIA Y DE ESPACIO PUBLICO","ESCRITO","DERECHO DE PETICION DE INTERES PARTICULAR",1,"PENDIENTE"]
[null,3200642021,"SUBDIRECCION DE REGISTRO INMOBILIARIO","ESCRITO","DERECHO DE PETICION DE INTERES PARTICULAR",1,"GESTIONADO"]
[null,3200702021,"SUBDIRECCION DE ADMINISTRACION INMOBILIARIA Y DE ESPACIO PUBLICO","ESCRITO","DERECHO DE PETICION DE INTERES PARTICULAR",1,"PENDIENTE"]
[null,3200852021,"SUBDIRECCION DE ADMINISTRACION INMOBILIARIA Y DE ESPACIO PUBLICO","ESCRITO","CONSULTA",1,"PENDIENTE"]
[null,3201682021,"AREA DE ATENCION A LA CIUDADANIA","WEB","DERECHO DE PETICION DE INTERES GENERAL",1,"GESTIONADO"]
[null,3202812021,"SUBDIRECCION DE ADMINISTRACION INMOBILIARIA Y DE ESPACIO PUBLICO","TELEFONO","DERECHO DE PETICION DE INTERES GENERAL",1,"PENDIENTE"]
[null,3203492021,"AREA DE ATENCION A LA CIUDADANIA","WEB","QUEJA",1,"GESTIONADO"]
[null,3204692021,"AREA DE ATENCION A LA CIUDADANIA","WEB","QUEJA",1,"GESTIONADO"]
[null,3204982021,"SUBDIRECCION DE ADMINISTRACION INMOBILIARIA Y DE ESPACIO PUBLICO","ESCRITO","DERECHO DE PETICION DE INTERES PARTICULAR",1,"PENDIENTE"]
[null,3205082021,"SUBDIRECCION DE ADMINISTRACION INMOBILIARIA Y DE ESPACIO PUBLICO","ESCRITO","DERECHO DE PETICION DE INTERES PARTICULAR",1,"PENDIENTE"]
[null,3205952021,"SUBDIRECCION DE ADMINISTRACION INMOBILIARIA Y DE ESPACIO PUBLICO","WEB","DERECHO DE PETICION DE INTERES PARTICULAR",1,"PENDIENTE"]
[null,3207102021,"SUBDIRECCION DE REGISTRO INMOBILIARIO","WEB","DERECHO DE PETICION DE INTERES GENERAL",1,"PENDIENTE"]
[null,3208472021,"SUBDIRECCION DE ADMINISTRACION INMOBILIARIA Y DE ESPACIO PUBLICO","E-MAIL","DERECHO DE PETICION DE INTERES GENERAL",1,"PENDIENTE"]
[null,3209982021,"SUBDIRECCION ADMINISTRATIVA  FINANCIERA Y DE CONTROL DISCIPLINARIO","WEB","DENUNCIA POR ACTOS DE CORRUPCION",1,"GESTIONADO"]
[null,3210172021,"SUBDIRECCION DE ADMINISTRACION INMOBILIARIA Y DE ESPACIO PUBLICO","WEB","DERECHO DE PETICION DE INTERES GENERAL",1,"PENDIENTE"]
[null,3210402021,"SUBDIRECCION ADMINISTRATIVA  FINANCIERA Y DE CONTROL DISCIPLINARIO","WEB","DERECHO DE PETICION DE INTERES GENERAL",2,"GESTIONADO"]
[null,3211382021,"OFICINA ASESORA JURIDICA","WEB","DERECHO DE PETICION DE INTERES PARTICULAR",1,"GESTIONADO"]
[null,3211622021,"AREA DE ATENCION A LA CIUDADANIA","WEB","CONSULTA",1,"GESTIONADO"]
[null,3212982021,"SUBDIRECCION DE ADMINISTRACION INMOBILIARIA Y DE ESPACIO PUBLICO","WEB","SOLICITUD DE COPIA",1,"GESTIONADO"]
[null,3216452021,"AREA DE ATENCION A LA CIUDADANIA","WEB","QUEJA",1,"GESTIONADO"]
[null,3217932021,"AREA DE ATENCION A LA CIUDADANIA","WEB","DERECHO DE PETICION DE INTERES PARTICULAR",1,"GESTIONADO"]
[null,3218112021,"SUBDIRECCION DE REGISTRO INMOBILIARIO","ESCRITO","DERECHO DE PETICION DE INTERES GENERAL",1,"PENDIENTE"]
[null,3218592021,"SUBDIRECCION DE ADMINISTRACION INMOBILIARIA Y DE ESPACIO PUBLICO","ESCRITO","DERECHO DE PETICION DE INTERES PARTICULAR",1,"PENDIENTE"]
[null,3218772021,"SUBDIRECCION DE ADMINISTRACION INMOBILIARIA Y DE ESPACIO PUBLICO","ESCRITO","DERECHO DE PETICION DE INTERES PARTICULAR",1,"PENDIENTE"]
[null,3218912021,"SUBDIRECCION DE ADMINISTRACION INMOBILIARIA Y DE ESPACIO PUBLICO","ESCRITO","DERECHO DE PETICION DE INTERES PARTICULAR",1,"PENDIENTE"]
[null,3219862021,"AREA DE ATENCION A LA CIUDADANIA","WEB","RECLAMO",1,"GESTIONADO"]
[null,3220072021,"SUBDIRECCION DE ADMINISTRACION INMOBILIARIA Y DE ESPACIO PUBLICO","WEB","DERECHO DE PETICION DE INTERES PARTICULAR",1,"PENDIENTE"]
[null,3222362021,"SUBDIRECCION DE ADMINISTRACION INMOBILIARIA Y DE ESPACIO PUBLICO","WEB","DERECHO DE PETICION DE INTERES PARTICULAR",1,"PENDIENTE"]
[null,3222432021,"SUBDIRECCION DE REGISTRO INMOBILIARIO","WEB","DERECHO DE PETICION DE INTERES PARTICULAR",1,"PENDIENTE"]
[null,3222622021,"SUBDIRECCION DE ADMINISTRACION INMOBILIARIA Y DE ESPACIO PUBLICO","ESCRITO","DERECHO DE PETICION DE INTERES PARTICULAR",1,"PENDIENTE"]
[null,3222812021,"SUBDIRECCION DE ADMINISTRACION INMOBILIARIA Y DE ESPACIO PUBLICO","E-MAIL","DERECHO DE PETICION DE INTERES PARTICULAR",1,"PENDIENTE"]
[null,3223612021,"SUBDIRECCION DE ADMINISTRACION INMOBILIARIA Y DE ESPACIO PUBLICO","ESCRITO","DERECHO DE PETICION DE INTERES PARTICULAR",1,"PENDIENTE"]
[null,3224062021,"SUBDIRECCION DE ADMINISTRACION INMOBILIARIA Y DE ESPACIO PUBLICO","ESCRITO","DERECHO DE PETICION DE INTERES PARTICULAR",1,"PENDIENTE"]
[null,3224132021,"AREA DE ATENCION A LA CIUDADANIA","WEB","CONSULTA",1,"GESTIONADO"]
[null,3224922021,"AREA DE ATENCION A LA CIUDADANIA","WEB","DERECHO DE PETICION DE INTERES PARTICULAR",1,"GESTIONADO"]
[null,3224952021,"SUBDIRECCION DE ADMINISTRACION INMOBILIARIA Y DE ESPACIO PUBLICO","WEB","DERECHO DE PETICION DE INTERES PARTICULAR",1,"PENDIENTE"]
[null,3225682021,"SUBDIRECCION DE REGISTRO INMOBILIARIO","ESCRITO","DERECHO DE PETICION DE INTERES PARTICULAR",1,"PENDIENTE"]
[null,3226372021,"AREA DE ATENCION A LA CIUDADANIA","WEB","DERECHO DE PETICION DE INTERES GENERAL",1,"GESTIONADO"]
[null,3228272021,"DESPACHO","WEB","FELICITACION",1,"PENDIENTE"]
[null,3229712021,"SUBDIRECCION DE ADMINISTRACION INMOBILIARIA Y DE ESPACIO PUBLICO","WEB","DERECHO DE PETICION DE INTERES PARTICULAR",1,"PENDIENTE"]
[null,3230872021,"SUBDIRECCION DE REGISTRO INMOBILIARIO","ESCRITO","DERECHO DE PETICION DE INTERES PARTICULAR",1,"PENDIENTE"]
[null,3230892021,"SUBDIRECCION DE ADMINISTRACION INMOBILIARIA Y DE ESPACIO PUBLICO","ESCRITO","DERECHO DE PETICION DE INTERES PARTICULAR",1,"PENDIENTE"]
[null,3231132021,"SUBDIRECCION DE ADMINISTRACION INMOBILIARIA Y DE ESPACIO PUBLICO","ESCRITO","DERECHO DE PETICION DE INTERES GENERAL",1,"PENDIENTE"]
[null,3231642021,"SUBDIRECCION DE ADMINISTRACION INMOBILIARIA Y DE ESPACIO PUBLICO","ESCRITO","DERECHO DE PETICION DE INTERES PARTICULAR",1,"PENDIENTE"]
[null,3232252021,"AREA DE ATENCION A LA CIUDADANIA","WEB","DERECHO DE PETICION DE INTERES PARTICULAR",1,"GESTIONADO"]
[null,3233782021,"AREA DE ATENCION A LA CIUDADANIA","REDES SOCIALES","DERECHO DE PETICION DE INTERES PARTICULAR",1,"GESTIONADO"]
[null,3234622021,"SUBDIRECCION DE ADMINISTRACION INMOBILIARIA Y DE ESPACIO PUBLICO","TELEFONO","DERECHO DE PETICION DE INTERES GENERAL",1,"PENDIENTE"]
[null,3236202021,"AREA DE ATENCION A LA CIUDADANIA","WEB","DERECHO DE PETICION DE INTERES PARTICULAR",1,"GESTIONADO"]
[null,3238772021,"AREA DE ATENCION A LA CIUDADANIA","WEB","DERECHO DE PETICION DE INTERES GENERAL",1,"GESTIONADO"]
[null,3239202021,"AREA DE ATENCION A LA CIUDADANIA","E-MAIL","DERECHO DE PETICION DE INTERES GENERAL",1,"GESTIONADO"]
[null,3242062021,"AREA DE ATENCION A LA CIUDADANIA","WEB","DERECHO DE PETICION DE INTERES GENERAL",1,"GESTIONADO"]
[null,3243162021,"SUBDIRECCION DE ADMINISTRACION INMOBILIARIA Y DE ESPACIO PUBLICO","WEB","DERECHO DE PETICION DE INTERES PARTICULAR",1,"PENDIENTE"]
[null,3245782021,"SUBDIRECCION DE REGISTRO INMOBILIARIO","WEB","DERECHO DE PETICION DE INTERES PARTICULAR",1,"PENDIENTE"]
[null,3245812021,"AREA DE ATENCION A LA CIUDADANIA","WEB","SOLICITUD DE ACCESO A LA INFORMACION",1,"GESTIONADO"]
[null,3245852021,"AREA DE ATENCION A LA CIUDADANIA","WEB","DERECHO DE PETICION DE INTERES PARTICULAR",1,"GESTIONADO"]
[null,3245922021,"AREA DE ATENCION A LA CIUDADANIA","WEB","DERECHO DE PETICION DE INTERES PARTICULAR",1,"GESTIONADO"]
[null,3249012021,"AREA DE ATENCION A LA CIUDADANIA","WEB","CONSULTA",1,"GESTIONADO"]
[null,3249962021,"SUBDIRECCION DE REGISTRO INMOBILIARIO","ESCRITO","DERECHO DE PETICION DE INTERES PARTICULAR",1,"PENDIENTE"]
[null,3250002021,"SUBDIRECCION DE REGISTRO INMOBILIARIO","ESCRITO","DERECHO DE PETICION DE INTERES PARTICULAR",1,"PENDIENTE"]
[null,3250092021,"SUBDIRECCION DE ADMINISTRACION INMOBILIARIA Y DE ESPACIO PUBLICO","ESCRITO","DERECHO DE PETICION DE INTERES PARTICULAR",1,"PENDIENTE"]
[null,3250162021,"SUBDIRECCION DE ADMINISTRACION INMOBILIARIA Y DE ESPACIO PUBLICO","WEB","DERECHO DE PETICION DE INTERES GENERAL",1,"PENDIENTE"]
[null,3250182021,"SUBDIRECCION DE ADMINISTRACION INMOBILIARIA Y DE ESPACIO PUBLICO","ESCRITO","DERECHO DE PETICION DE INTERES PARTICULAR",1,"PENDIENTE"]
[null,3250442021,"SUBDIRECCION ADMINISTRATIVA  FINANCIERA Y DE CONTROL DISCIPLINARIO","WEB","DERECHO DE PETICION DE INTERES GENERAL",1,"GESTIONADO"]
[null,3251122021,"SUBDIRECCION DE ADMINISTRACION INMOBILIARIA Y DE ESPACIO PUBLICO","ESCRITO","DERECHO DE PETICION DE INTERES PARTICULAR",1,"PENDIENTE"]
[null,3251132021,"AREA DE ATENCION A LA CIUDADANIA","WEB","DERECHO DE PETICION DE INTERES GENERAL",1,"GESTIONADO"]
[null,3251722021,"SUBDIRECCION DE ADMINISTRACION INMOBILIARIA Y DE ESPACIO PUBLICO","E-MAIL","DERECHO DE PETICION DE INTERES PARTICULAR",1,"PENDIENTE"]
[null,3251972021,"AREA DE ATENCION A LA CIUDADANIA","WEB","DERECHO DE PETICION DE INTERES PARTICULAR",1,"GESTIONADO"]
[null,3252042021,"SUBDIRECCION DE REGISTRO INMOBILIARIO","ESCRITO","DERECHO DE PETICION DE INTERES PARTICULAR",1,"PENDIENTE"]
[null,3252632021,"SUBDIRECCION DE REGISTRO INMOBILIARIO","ESCRITO","DERECHO DE PETICION DE INTERES PARTICULAR",1,"PENDIENTE"]
[null,3252852021,"SUBDIRECCION DE ADMINISTRACION INMOBILIARIA Y DE ESPACIO PUBLICO","ESCRITO","DERECHO DE PETICION DE INTERES PARTICULAR",1,"PENDIENTE"]
[null,3253582021,"SUBDIRECCION DE ADMINISTRACION INMOBILIARIA Y DE ESPACIO PUBLICO","ESCRITO","DERECHO DE PETICION DE INTERES PARTICULAR",1,"PENDIENTE"]
[null,3253822021,"SUBDIRECCION DE REGISTRO INMOBILIARIO","ESCRITO","DERECHO DE PETICION DE INTERES PARTICULAR",1,"PENDIENTE"]
[null,3256512021,"AREA DE ATENCION A LA CIUDADANIA","E-MAIL","DERECHO DE PETICION DE INTERES GENERAL",1,"GESTIONADO"]
[null,3258612021,"SUBDIRECCION DE ADMINISTRACION INMOBILIARIA Y DE ESPACIO PUBLICO","WEB","DERECHO DE PETICION DE INTERES PARTICULAR",1,"PENDIENTE"]
[null,3259722021,"SUBDIRECCION DE ADMINISTRACION INMOBILIARIA Y DE ESPACIO PUBLICO","WEB","DERECHO DE PETICION DE INTERES GENERAL",1,"PENDIENTE"]
[null,3260632021,"SUBDIRECCION DE ADMINISTRACION INMOBILIARIA Y DE ESPACIO PUBLICO","WEB","DERECHO DE PETICION DE INTERES GENERAL",1,"PENDIENTE"]
[null,3261342021,"SUBDIRECCION DE ADMINISTRACION INMOBILIARIA Y DE ESPACIO PUBLICO","WEB","DERECHO DE PETICION DE INTERES PARTICULAR",1,"PENDIENTE"]
[null,3263632021,"SUBDIRECCION DE ADMINISTRACION INMOBILIARIA Y DE ESPACIO PUBLICO","WEB","QUEJA",1,"PENDIENTE"]
[null,3264652021,"SUBDIRECCION DE ADMINISTRACION INMOBILIARIA Y DE ESPACIO PUBLICO","WEB","DERECHO DE PETICION DE INTERES PARTICULAR",1,"PENDIENTE"]
[null,3264892021,"SUBDIRECCION DE ADMINISTRACION INMOBILIARIA Y DE ESPACIO PUBLICO","WEB","DERECHO DE PETICION DE INTERES PARTICULAR",1,"PENDIENTE"]
[null,3267372021,"AREA DE ATENCION A LA CIUDADANIA","WEB","CONSULTA",1,"GESTIONADO"]
[null,3268322021,"AREA DE ATENCION A LA CIUDADANIA","TELEFONO","DERECHO DE PETICION DE INTERES GENERAL",1,"GESTIONADO"]
[null,3270132021,"AREA DE ATENCION A LA CIUDADANIA","WEB","CONSULTA",1,"GESTIONADO"]
[null,3272312021,"AREA DE ATENCION A LA CIUDADANIA","WEB","DERECHO DE PETICION DE INTERES GENERAL",1,"GESTIONADO"]
[null,3272782021,"SUBDIRECCION DE ADMINISTRACION INMOBILIARIA Y DE ESPACIO PUBLICO","ESCRITO","DERECHO DE PETICION DE INTERES PARTICULAR",1,"PENDIENTE"]
[null,3272982021,"SUBDIRECCION DE REGISTRO INMOBILIARIO","ESCRITO","DERECHO DE PETICION DE INTERES PARTICULAR",1,"PENDIENTE"]
[null,3273412021,"SUBDIRECCION DE ADMINISTRACION INMOBILIARIA Y DE ESPACIO PUBLICO","ESCRITO","DERECHO DE PETICION DE INTERES PARTICULAR",1,"PENDIENTE"]
[null,3274212021,"SUBDIRECCION DE ADMINISTRACION INMOBILIARIA Y DE ESPACIO PUBLICO","ESCRITO","DERECHO DE PETICION DE INTERES PARTICULAR",1,"PENDIENTE"]
[null,3276032021,"AREA DE ATENCION A LA CIUDADANIA","E-MAIL","DERECHO DE PETICION DE INTERES GENERAL",1,"GESTIONADO"]
[null,3276682021,"SUBDIRECCION DE REGISTRO INMOBILIARIO","E-MAIL","RECLAMO",1,"PENDIENTE"]
[null,3277272021,"SUBDIRECCION DE ADMINISTRACION INMOBILIARIA Y DE ESPACIO PUBLICO","WEB","DERECHO DE PETICION DE INTERES GENERAL",1,"PENDIENTE"]
[null,3277402021,"AREA DE ATENCION A LA CIUDADANIA","WEB","DERECHO DE PETICION DE INTERES PARTICULAR",1,"GESTIONADO"]
[null,3278992021,"AREA DE ATENCION A LA CIUDADANIA","WEB","DERECHO DE PETICION DE INTERES PARTICULAR",1,"GESTIONADO"]
[null,3281132021,"SUBDIRECCION DE REGISTRO INMOBILIARIO","ESCRITO","DERECHO DE PETICION DE INTERES PARTICULAR",1,"PENDIENTE"]
[null,3281712021,"SUBDIRECCION DE ADMINISTRACION INMOBILIARIA Y DE ESPACIO PUBLICO","ESCRITO","DERECHO DE PETICION DE INTERES PARTICULAR",1,"PENDIENTE"]
[null,3281762021,"SUBDIRECCION DE REGISTRO INMOBILIARIO","ESCRITO","DERECHO DE PETICION DE INTERES PARTICULAR",1,"PENDIENTE"]
[null,3282232021,"SUBDIRECCION DE ADMINISTRACION INMOBILIARIA Y DE ESPACIO PUBLICO","ESCRITO","DERECHO DE PETICION DE INTERES GENERAL",1,"PENDIENTE"]
[null,3282312021,"AREA DE ATENCION A LA CIUDADANIA","WEB","DERECHO DE PETICION DE INTERES PARTICULAR",1,"GESTIONADO"]
[null,3282442021,"AREA DE ATENCION A LA CIUDADANIA","WEB","DERECHO DE PETICION DE INTERES PARTICULAR",1,"GESTIONADO"]
[null,3282732021,"AREA DE ATENCION A LA CIUDADANIA","WEB","DERECHO DE PETICION DE INTERES GENERAL",1,"GESTIONADO"]
[null,3283322021,"SUBDIRECCION DE ADMINISTRACION INMOBILIARIA Y DE ESPACIO PUBLICO","WEB","DERECHO DE PETICION DE INTERES PARTICULAR",1,"PENDIENTE"]
[null,3287602021,"SUBDIRECCION DE ADMINISTRACION INMOBILIARIA Y DE ESPACIO PUBLICO","ESCRITO","DERECHO DE PETICION DE INTERES GENERAL",1,"PENDIENTE"]
[null,3287692021,"SUBDIRECCION DE REGISTRO INMOBILIARIO","ESCRITO","DERECHO DE PETICION DE INTERES PARTICULAR",1,"PENDIENTE"]
[null,3287812021,"SUBDIRECCION DE ADMINISTRACION INMOBILIARIA Y DE ESPACIO PUBLICO","ESCRITO","DERECHO DE PETICION DE INTERES PARTICULAR",1,"PENDIENTE"]
[null,3287932021,"AREA DE ATENCION A LA CIUDADANIA","WEB","QUEJA",1,"GESTIONADO"]
[null,3287982021,"SUBDIRECCION DE ADMINISTRACION INMOBILIARIA Y DE ESPACIO PUBLICO","ESCRITO","DERECHO DE PETICION DE INTERES PARTICULAR",1,"PENDIENTE"]
[null,3288212021,"AREA DE ATENCION A LA CIUDADANIA","WEB","DERECHO DE PETICION DE INTERES PARTICULAR",1,"GESTIONADO"]
[null,3288412021,"SUBDIRECCION DE ADMINISTRACION INMOBILIARIA Y DE ESPACIO PUBLICO","ESCRITO","DERECHO DE PETICION DE INTERES PARTICULAR",1,"PENDIENTE"]
[null,3288592021,"SUBDIRECCION DE ADMINISTRACION INMOBILIARIA Y DE ESPACIO PUBLICO","ESCRITO","DERECHO DE PETICION DE INTERES PARTICULAR",1,"PENDIENTE"]
[null,3288732021,"SUBDIRECCION DE ADMINISTRACION INMOBILIARIA Y DE ESPACIO PUBLICO","TELEFONO","DERECHO DE PETICION DE INTERES GENERAL",1,"PENDIENTE"]
[null,3288962021,"SUBDIRECCION DE ADMINISTRACION INMOBILIARIA Y DE ESPACIO PUBLICO","ESCRITO","DERECHO DE PETICION DE INTERES PARTICULAR",1,"PENDIENTE"]
[null,3289352021,"SUBDIRECCION DE ADMINISTRACION INMOBILIARIA Y DE ESPACIO PUBLICO","ESCRITO","DERECHO DE PETICION DE INTERES PARTICULAR",1,"PENDIENTE"]
[null,3289502021,"AREA DE ATENCION A LA CIUDADANIA","WEB","DERECHO DE PETICION DE INTERES PARTICULAR",1,"GESTIONADO"]
[null,3289542021,"AREA DE ATENCION A LA CIUDADANIA","WEB","DERECHO DE PETICION DE INTERES PARTICULAR",1,"GESTIONADO"]
[null,3289562021,"SUBDIRECCION DE ADMINISTRACION INMOBILIARIA Y DE ESPACIO PUBLICO","ESCRITO","DERECHO DE PETICION DE INTERES PARTICULAR",1,"PENDIENTE"]
[null,3289622021,"AREA DE ATENCION A LA CIUDADANIA","E-MAIL","DERECHO DE PETICION DE INTERES PARTICULAR",1,"GESTIONADO"]
[null,3290232021,"SUBDIRECCION DE ADMINISTRACION INMOBILIARIA Y DE ESPACIO PUBLICO","ESCRITO","DERECHO DE PETICION DE INTERES PARTICULAR",1,"PENDIENTE"]
[null,3290602021,"AREA DE ATENCION A LA CIUDADANIA","WEB","DERECHO DE PETICION DE INTERES PARTICULAR",1,"GESTIONADO"]
[null,3290672021,"SUBDIRECCION DE ADMINISTRACION INMOBILIARIA Y DE ESPACIO PUBLICO","ESCRITO","DERECHO DE PETICION DE INTERES PARTICULAR",1,"PENDIENTE"]
[null,3290942021,"SUBDIRECCION DE REGISTRO INMOBILIARIO","ESCRITO","DERECHO DE PETICION DE INTERES PARTICULAR",1,"PENDIENTE"]
[null,3292992021,"SUBDIRECCION DE ADMINISTRACION INMOBILIARIA Y DE ESPACIO PUBLICO","ESCRITO","DERECHO DE PETICION DE INTERES PARTICULAR",1,"PENDIENTE"]
[null,3293052021,"SUBDIRECCION DE REGISTRO INMOBILIARIO","ESCRITO","DERECHO DE PETICION DE INTERES PARTICULAR",1,"PENDIENTE"]
[null,3294572021,"AREA DE ATENCION A LA CIUDADANIA","WEB","RECLAMO",1,"GESTIONADO"]
[null,3296242021,"AREA DE ATENCION A LA CIUDADANIA","WEB","DERECHO DE PETICION DE INTERES PARTICULAR",1,"GESTIONADO"]
[null,3298922021,"AREA DE ATENCION A LA CIUDADANIA","WEB","DERECHO DE PETICION DE INTERES PARTICULAR",1,"GESTIONADO"]
[null,3299802021,"AREA DE ATENCION A LA CIUDADANIA","WEB","DERECHO DE PETICION DE INTERES PARTICULAR",1,"GESTIONADO"]
[null,3300202021,"AREA DE ATENCION A LA CIUDADANIA","WEB","DERECHO DE PETICION DE INTERES PARTICULAR",1,"GESTIONADO"]
[null,3300432021,"AREA DE ATENCION A LA CIUDADANIA","WEB","DERECHO DE PETICION DE INTERES GENERAL",1,"GESTIONADO"]
[null,3300452021,"AREA DE ATENCION A LA CIUDADANIA","WEB","DERECHO DE PETICION DE INTERES PARTICULAR",1,"GESTIONADO"]
[null,3300472021,"AREA DE ATENCION A LA CIUDADANIA","WEB","RECLAMO",1,"GESTIONADO"]
[null,3300492021,"AREA DE ATENCION A LA CIUDADANIA","WEB","DERECHO DE PETICION DE INTERES GENERAL",1,"GESTIONADO"]
[null,3300502021,"AREA DE ATENCION A LA CIUDADANIA","WEB","DERECHO DE PETICION DE INTERES GENERAL",1,"GESTIONADO"]
[null,3301532021,"AREA DE ATENCION A LA CIUDADANIA","WEB","DERECHO DE PETICION DE INTERES PARTICULAR",1,"GESTIONADO"]
[null,3301682021,"AREA DE ATENCION A LA CIUDADANIA","TELEFONO","DERECHO DE PETICION DE INTERES GENERAL",1,"GESTIONADO"]
[null,3302362021,"AREA DE ATENCION A LA CIUDADANIA","WEB","RECLAMO",1,"GESTIONADO"]
[null,3302992021,"AREA DE ATENCION A LA CIUDADANIA","WEB","CONSULTA",1,"GESTIONADO"]
[null,3304952021,"AREA DE ATENCION A LA CIUDADANIA","WEB","DERECHO DE PETICION DE INTERES PARTICULAR",1,"GESTIONADO"]
[null,3305332021,"SUBDIRECCION DE REGISTRO INMOBILIARIO","ESCRITO","DERECHO DE PETICION DE INTERES PARTICULAR",1,"PENDIENTE"]
[null,3305352021,"SUBDIRECCION DE REGISTRO INMOBILIARIO","ESCRITO","DERECHO DE PETICION DE INTERES PARTICULAR",1,"PENDIENTE"]
[null,3305402021,"SUBDIRECCION DE REGISTRO INMOBILIARIO","ESCRITO","DERECHO DE PETICION DE INTERES PARTICULAR",1,"PENDIENTE"]
[null,3305472021,"AREA DE ATENCION A LA CIUDADANIA","WEB","DERECHO DE PETICION DE INTERES GENERAL",1,"GESTIONADO"]
[null,3305632021,"AREA DE ATENCION A LA CIUDADANIA","WEB","DERECHO DE PETICION DE INTERES PARTICULAR",1,"GESTIONADO"]
[null,3305642021,"SUBDIRECCION DE REGISTRO INMOBILIARIO","ESCRITO","DERECHO DE PETICION DE INTERES PARTICULAR",1,"PENDIENTE"]
[null,3305732021,"SUBDIRECCION DE ADMINISTRACION INMOBILIARIA Y DE ESPACIO PUBLICO","ESCRITO","DERECHO DE PETICION DE INTERES PARTICULAR",1,"PENDIENTE"]
[null,3305762021,"SUBDIRECCION DE REGISTRO INMOBILIARIO","ESCRITO","DERECHO DE PETICION DE INTERES PARTICULAR",1,"PENDIENTE"]
[null,3305982021,"AREA DE ATENCION A LA CIUDADANIA","WEB","DERECHO DE PETICION DE INTERES GENERAL",1,"GESTIONADO"]
[null,3307752021,"SUBDIRECCION DE ADMINISTRACION INMOBILIARIA Y DE ESPACIO PUBLICO","ESCRITO","DERECHO DE PETICION DE INTERES PARTICULAR",1,"PENDIENTE"]
[null,3307892021,"SUBDIRECCION DE ADMINISTRACION INMOBILIARIA Y DE ESPACIO PUBLICO","ESCRITO","DERECHO DE PETICION DE INTERES PARTICULAR",1,"PENDIENTE"]
[null,3308012021,"SUBDIRECCION DE REGISTRO INMOBILIARIO","ESCRITO","DERECHO DE PETICION DE INTERES PARTICULAR",1,"PENDIENTE"]
[null,3308322021,"OFICINA ASESORA JURIDICA","WEB","DERECHO DE PETICION DE INTERES PARTICULAR",1,"PENDIENTE"]
[null,3308502021,"SUBDIRECCION DE REGISTRO INMOBILIARIO","ESCRITO","DERECHO DE PETICION DE INTERES PARTICULAR",1,"PENDIENTE"]
[null,3308772021,"SUBDIRECCION DE ADMINISTRACION INMOBILIARIA Y DE ESPACIO PUBLICO","ESCRITO","DERECHO DE PETICION DE INTERES PARTICULAR",1,"PENDIENTE"]
[null,3308982021,"SUBDIRECCION DE ADMINISTRACION INMOBILIARIA Y DE ESPACIO PUBLICO","WEB","DERECHO DE PETICION DE INTERES PARTICULAR",1,"PENDIENTE"]
[null,3309282021,"SUBDIRECCION DE ADMINISTRACION INMOBILIARIA Y DE ESPACIO PUBLICO","E-MAIL","DERECHO DE PETICION DE INTERES PARTICULAR",1,"PENDIENTE"]
[null,3309312021,"SUBDIRECCION DE ADMINISTRACION INMOBILIARIA Y DE ESPACIO PUBLICO","WEB","DERECHO DE PETICION DE INTERES PARTICULAR",1,"PENDIENTE"]
[null,3309432021,"SUBDIRECCION DE ADMINISTRACION INMOBILIARIA Y DE ESPACIO PUBLICO","ESCRITO","DERECHO DE PETICION DE INTERES PARTICULAR",1,"PENDIENTE"]
[null,3309862021,"SUBDIRECCION DE ADMINISTRACION INMOBILIARIA Y DE ESPACIO PUBLICO","WEB","DERECHO DE PETICION DE INTERES PARTICULAR",1,"PENDIENTE"]
[null,3310012021,"SUBDIRECCION DE ADMINISTRACION INMOBILIARIA Y DE ESPACIO PUBLICO","WEB","DERECHO DE PETICION DE INTERES PARTICULAR",1,"PENDIENTE"]
[null,3310062021,"SUBDIRECCION DE ADMINISTRACION INMOBILIARIA Y DE ESPACIO PUBLICO","WEB","DERECHO DE PETICION DE INTERES PARTICULAR",1,"PENDIENTE"]
[null,3311152021,"SUBDIRECCION DE ADMINISTRACION INMOBILIARIA Y DE ESPACIO PUBLICO","E-MAIL","DERECHO DE PETICION DE INTERES PARTICULAR",1,"PENDIENTE"]
[null,3311292021,"SUBDIRECCION DE ADMINISTRACION INMOBILIARIA Y DE ESPACIO PUBLICO","E-MAIL","DERECHO DE PETICION DE INTERES PARTICULAR",1,"PENDIENTE"]
[null,3311522021,"SUBDIRECCION DE REGISTRO INMOBILIARIO","E-MAIL","DERECHO DE PETICION DE INTERES PARTICULAR",1,"PENDIENTE"]
[null,3311742021,"SUBDIRECCION DE ADMINISTRACION INMOBILIARIA Y DE ESPACIO PUBLICO","E-MAIL","DERECHO DE PETICION DE INTERES PARTICULAR",1,"PENDIENTE"]
[null,3311892021,"SUBDIRECCION DE ADMINISTRACION INMOBILIARIA Y DE ESPACIO PUBLICO","E-MAIL","DERECHO DE PETICION DE INTERES PARTICULAR",1,"PENDIENTE"]
[null,3312132021,"SUBDIRECCION DE ADMINISTRACION INMOBILIARIA Y DE ESPACIO PUBLICO","E-MAIL","DERECHO DE PETICION DE INTERES PARTICULAR",1,"PENDIENTE"]
[null,3312292021,"SUBDIRECCION DE ADMINISTRACION INMOBILIARIA Y DE ESPACIO PUBLICO","E-MAIL","DERECHO DE PETICION DE INTERES PARTICULAR",1,"PENDIENTE"]
[null,3312382021,"SUBDIRECCION DE ADMINISTRACION INMOBILIARIA Y DE ESPACIO PUBLICO","WEB","QUEJA",1,"PENDIENTE"]
[null,3312462021,"SUBDIRECCION DE ADMINISTRACION INMOBILIARIA Y DE ESPACIO PUBLICO","E-MAIL","DERECHO DE PETICION DE INTERES PARTICULAR",1,"PENDIENTE"]
[null,3312542021,"SUBDIRECCION DE REGISTRO INMOBILIARIO","WEB","DERECHO DE PETICION DE INTERES GENERAL",1,"PENDIENTE"]
[null,3312602021,"SUBDIRECCION DE REGISTRO INMOBILIARIO","ESCRITO","DERECHO DE PETICION DE INTERES PARTICULAR",1,"PENDIENTE"]
[null,3313142021,"AREA DE ATENCION A LA CIUDADANIA","ESCRITO","DERECHO DE PETICION DE INTERES PARTICULAR",1,"GESTIONADO"]
[null,3313422021,"SUBDIRECCION DE ADMINISTRACION INMOBILIARIA Y DE ESPACIO PUBLICO","WEB","CONSULTA",1,"PENDIENTE"]
[null,3313452021,"SUBDIRECCION DE ADMINISTRACION INMOBILIARIA Y DE ESPACIO PUBLICO","ESCRITO","DERECHO DE PETICION DE INTERES PARTICULAR",1,"PENDIENTE"]
[null,3313642021,"SUBDIRECCION DE ADMINISTRACION INMOBILIARIA Y DE ESPACIO PUBLICO","ESCRITO","DERECHO DE PETICION DE INTERES PARTICULAR",1,"PENDIENTE"]
[null,3313702021,"SUBDIRECCION DE REGISTRO INMOBILIARIO","WEB","DERECHO DE PETICION DE INTERES GENERAL",1,"PENDIENTE"]
[null,3313802021,"SUBDIRECCION DE ADMINISTRACION INMOBILIARIA Y DE ESPACIO PUBLICO","ESCRITO","DERECHO DE PETICION DE INTERES PARTICULAR",1,"PENDIENTE"]
[null,3313932021,"AREA DE ATENCION A LA CIUDADANIA","ESCRITO","DERECHO DE PETICION DE INTERES GENERAL",1,"GESTIONADO"]
[null,3316292021,"AREA DE ATENCION A LA CIUDADANIA","WEB","DERECHO DE PETICION DE INTERES PARTICULAR",1,"GESTIONADO"]
[null,3317272021,"SUBDIRECCION DE REGISTRO INMOBILIARIO","WEB","DERECHO DE PETICION DE INTERES GENERAL",1,"PENDIENTE"]
[null,3318982021,"SUBDIRECCION DE ADMINISTRACION INMOBILIARIA Y DE ESPACIO PUBLICO","ESCRITO","DERECHO DE PETICION DE INTERES PARTICULAR",1,"PENDIENTE"]
[null,3319022021,"SUBDIRECCION DE ADMINISTRACION INMOBILIARIA Y DE ESPACIO PUBLICO","ESCRITO","DERECHO DE PETICION DE INTERES PARTICULAR",1,"PENDIENTE"]
[null,3322502021,"SUBDIRECCION DE ADMINISTRACION INMOBILIARIA Y DE ESPACIO PUBLICO","TELEFONO","DERECHO DE PETICION DE INTERES GENERAL",1,"PENDIENTE"]
[null,3325802021,"AREA DE ATENCION A LA CIUDADANIA","WEB","QUEJA",1,"GESTIONADO"]
[null,3325852021,"SUBDIRECCION DE REGISTRO INMOBILIARIO","ESCRITO","DERECHO DE PETICION DE INTERES PARTICULAR",1,"PENDIENTE"]
[null,3326052021,"SUBDIRECCION DE REGISTRO INMOBILIARIO","E-MAIL","DERECHO DE PETICION DE INTERES PARTICULAR",1,"PENDIENTE"]
[null,3326082021,"AREA DE ATENCION A LA CIUDADANIA","WEB","DERECHO DE PETICION DE INTERES PARTICULAR",1,"GESTIONADO"]
[null,3326292021,"OFICINA ASESORA JURIDICA","ESCRITO","DERECHO DE PETICION DE INTERES PARTICULAR",1,"PENDIENTE"]
[null,3326802021,"SUBDIRECCION DE REGISTRO INMOBILIARIO","E-MAIL","DERECHO DE PETICION DE INTERES PARTICULAR",1,"PENDIENTE"]
[null,3326812021,"AREA DE ATENCION A LA CIUDADANIA","TELEFONO","DERECHO DE PETICION DE INTERES PARTICULAR",1,"GESTIONADO"]
[null,3326832021,"SUBDIRECCION DE ADMINISTRACION INMOBILIARIA Y DE ESPACIO PUBLICO","ESCRITO","DERECHO DE PETICION DE INTERES PARTICULAR",1,"PENDIENTE"]
[null,3328022021,"AREA DE ATENCION A LA CIUDADANIA","WEB","DERECHO DE PETICION DE INTERES GENERAL",1,"GESTIONADO"]
[null,3328122021,"SUBDIRECCION DE ADMINISTRACION INMOBILIARIA Y DE ESPACIO PUBLICO","WEB","DERECHO DE PETICION DE INTERES GENERAL",1,"PENDIENTE"]
[null,3329172021,"DESPACHO","ESCRITO","DERECHO DE PETICION DE INTERES PARTICULAR",1,"PENDIENTE"]
[null,3329432021,"AREA DE ATENCION A LA CIUDADANIA","WEB","DERECHO DE PETICION DE INTERES PARTICULAR",1,"GESTIONADO"]
[null,3329502021,"SUBDIRECCION DE ADMINISTRACION INMOBILIARIA Y DE ESPACIO PUBLICO","ESCRITO","DERECHO DE PETICION DE INTERES PARTICULAR",1,"PENDIENTE"]
[null,3337172021,"AREA DE ATENCION A LA CIUDADANIA","WEB","DERECHO DE PETICION DE INTERES GENERAL",1,"GESTIONADO"]
[null,3338142021,"SUBDIRECCION DE ADMINISTRACION INMOBILIARIA Y DE ESPACIO PUBLICO","WEB","DERECHO DE PETICION DE INTERES PARTICULAR",1,"PENDIENTE"]
[null,3338972021,"SUBDIRECCION DE ADMINISTRACION INMOBILIARIA Y DE ESPACIO PUBLICO","ESCRITO","DERECHO DE PETICION DE INTERES PARTICULAR",1,"PENDIENTE"]
[null,3339052021,"SUBDIRECCION DE REGISTRO INMOBILIARIO","ESCRITO","DERECHO DE PETICION DE INTERES PARTICULAR",1,"PENDIENTE"]
[null,3339092021,"SUBDIRECCION DE ADMINISTRACION INMOBILIARIA Y DE ESPACIO PUBLICO","ESCRITO","DERECHO DE PETICION DE INTERES PARTICULAR",1,"GESTIONADO"]
[null,3339152021,"SUBDIRECCION DE ADMINISTRACION INMOBILIARIA Y DE ESPACIO PUBLICO","ESCRITO","DERECHO DE PETICION DE INTERES PARTICULAR",1,"PENDIENTE"]
[null,3339572021,"SUBDIRECCION DE ADMINISTRACION INMOBILIARIA Y DE ESPACIO PUBLICO","WEB","DERECHO DE PETICION DE INTERES GENERAL",1,"PENDIENTE"]
[null,3342412021,"SUBDIRECCION DE ADMINISTRACION INMOBILIARIA Y DE ESPACIO PUBLICO","ESCRITO","DERECHO DE PETICION DE INTERES PARTICULAR",1,"PENDIENTE"]
[null,3343252021,"AREA DE ATENCION A LA CIUDADANIA","WEB","DERECHO DE PETICION DE INTERES PARTICULAR",1,"GESTIONADO"]
[null,3344672021,"SUBDIRECCION DE ADMINISTRACION INMOBILIARIA Y DE ESPACIO PUBLICO","ESCRITO","DERECHO DE PETICION DE INTERES PARTICULAR",1,"PENDIENTE"]
[null,3345452021,"SUBDIRECCION DE ADMINISTRACION INMOBILIARIA Y DE ESPACIO PUBLICO","ESCRITO","DERECHO DE PETICION DE INTERES PARTICULAR",1,"PENDIENTE"]
[null,3345592021,"SUBDIRECCION DE ADMINISTRACION INMOBILIARIA Y DE ESPACIO PUBLICO","ESCRITO","DERECHO DE PETICION DE INTERES PARTICULAR",1,"PENDIENTE"]
[null,3345652021,"SUBDIRECCION DE ADMINISTRACION INMOBILIARIA Y DE ESPACIO PUBLICO","ESCRITO","DERECHO DE PETICION DE INTERES PARTICULAR",1,"PENDIENTE"]
[null,3345682021,"AREA DE ATENCION A LA CIUDADANIA","WEB","DERECHO DE PETICION DE INTERES PARTICULAR",1,"GESTIONADO"]
[null,3345892021,"SUBDIRECCION DE ADMINISTRACION INMOBILIARIA Y DE ESPACIO PUBLICO","WEB","DERECHO DE PETICION DE INTERES PARTICULAR",1,"PENDIENTE"]
[null,3348592021,"SUBDIRECCION DE ADMINISTRACION INMOBILIARIA Y DE ESPACIO PUBLICO","ESCRITO","DERECHO DE PETICION DE INTERES PARTICULAR",1,"PENDIENTE"]
[null,3348832021,"SUBDIRECCION DE ADMINISTRACION INMOBILIARIA Y DE ESPACIO PUBLICO","ESCRITO","DERECHO DE PETICION DE INTERES PARTICULAR",1,"PENDIENTE"]
[null,3349012021,"SUBDIRECCION DE ADMINISTRACION INMOBILIARIA Y DE ESPACIO PUBLICO","ESCRITO","DERECHO DE PETICION DE INTERES PARTICULAR",1,"PENDIENTE"]
[null,3349062021,"AREA DE ATENCION A LA CIUDADANIA","TELEFONO","DERECHO DE PETICION DE INTERES GENERAL",1,"GESTIONADO"]
[null,3349172021,"SUBDIRECCION DE ADMINISTRACION INMOBILIARIA Y DE ESPACIO PUBLICO","ESCRITO","DERECHO DE PETICION DE INTERES GENERAL",1,"PENDIENTE"]
[null,3349312021,"SUBDIRECCION DE ADMINISTRACION INMOBILIARIA Y DE ESPACIO PUBLICO","ESCRITO","DERECHO DE PETICION DE INTERES PARTICULAR",1,"PENDIENTE"]
[null,3351312021,"SUBDIRECCION DE ADMINISTRACION INMOBILIARIA Y DE ESPACIO PUBLICO","WEB","DERECHO DE PETICION DE INTERES GENERAL",1,"PENDIENTE"]
[null,3351432021,"AREA DE ATENCION A LA CIUDADANIA","ESCRITO","DERECHO DE PETICION DE INTERES GENERAL",1,"GESTIONADO"]
[null,3353962021,"AREA DE ATENCION A LA CIUDADANIA","TELEFONO","DERECHO DE PETICION DE INTERES GENERAL",1,"GESTIONADO"]
[null,3354602021,"AREA DE ATENCION A LA CIUDADANIA","TELEFONO","DERECHO DE PETICION DE INTERES PARTICULAR",1,"GESTIONADO"]
[null,3354782021,"AREA DE ATENCION A LA CIUDADANIA","WEB","RECLAMO",1,"GESTIONADO"]
[null,3354892021,"SUBDIRECCION DE ADMINISTRACION INMOBILIARIA Y DE ESPACIO PUBLICO","TELEFONO","DERECHO DE PETICION DE INTERES GENERAL",1,"PENDIENTE"]
[null,3355602021,"AREA DE ATENCION A LA CIUDADANIA","WEB","QUEJA",1,"GESTIONADO"]
[null,3355632021,"AREA DE ATENCION A LA CIUDADANIA","WEB","QUEJA",1,"GESTIONADO"]
[null,3355902021,"AREA DE ATENCION A LA CIUDADANIA","TELEFONO","DERECHO DE PETICION DE INTERES GENERAL",1,"GESTIONADO"]
[null,3356022021,"AREA DE ATENCION A LA CIUDADANIA","WEB","QUEJA",1,"GESTIONADO"]
[null,3356972021,"SUBDIRECCION DE ADMINISTRACION INMOBILIARIA Y DE ESPACIO PUBLICO","WEB","DERECHO DE PETICION DE INTERES GENERAL",1,"PENDIENTE"]
[null,3357212021,"SUBDIRECCION ADMINISTRATIVA  FINANCIERA Y DE CONTROL DISCIPLINARIO","WEB","DERECHO DE PETICION DE INTERES GENERAL",1,"GESTIONADO"]
[null,3358222021,"AREA DE ATENCION A LA CIUDADANIA","WEB","DERECHO DE PETICION DE INTERES PARTICULAR",1,"GESTIONADO"]
[null,3358332021,"AREA DE ATENCION A LA CIUDADANIA","WEB","DERECHO DE PETICION DE INTERES GENERAL",1,"GESTIONADO"]
[null,3358352021,"AREA DE ATENCION A LA CIUDADANIA","WEB","DERECHO DE PETICION DE INTERES GENERAL",1,"GESTIONADO"]
[null,3358372021,"AREA DE ATENCION A LA CIUDADANIA","WEB","DERECHO DE PETICION DE INTERES GENERAL",1,"GESTIONADO"]
[null,3358412021,"SUBDIRECCION DE ADMINISTRACION INMOBILIARIA Y DE ESPACIO PUBLICO","WEB","DERECHO DE PETICION DE INTERES GENERAL",1,"PENDIENTE"]
[null,3359242021,"AREA DE ATENCION A LA CIUDADANIA","WEB","QUEJA",1,"GESTIONADO"]
[null,3359432021,"SUBDIRECCION DE ADMINISTRACION INMOBILIARIA Y DE ESPACIO PUBLICO","TELEFONO","DERECHO DE PETICION DE INTERES PARTICULAR",1,"PENDIENTE"]
[null,3359982021,"AREA DE ATENCION A LA CIUDADANIA","WEB","DERECHO DE PETICION DE INTERES GENERAL",1,"GESTIONADO"]
[null,3360592021,"AREA DE ATENCION A LA CIUDADANIA","WEB","DERECHO DE PETICION DE INTERES GENERAL",1,"GESTIONADO"]
[null,3360692021,"AREA DE ATENCION A LA CIUDADANIA","WEB","DERECHO DE PETICION DE INTERES GENERAL",1,"GESTIONADO"]
[null,3360782021,"AREA DE ATENCION A LA CIUDADANIA","WEB","DERECHO DE PETICION DE INTERES GENERAL",1,"GESTIONADO"]
[null,3361542021,"AREA DE ATENCION A LA CIUDADANIA","WEB","DERECHO DE PETICION DE INTERES GENERAL",1,"GESTIONADO"]
[null,3361772021,"SUBDIRECCION DE ADMINISTRACION INMOBILIARIA Y DE ESPACIO PUBLICO","ESCRITO","DERECHO DE PETICION DE INTERES PARTICULAR",1,"PENDIENTE"]
[null,3361962021,"SUBDIRECCION DE ADMINISTRACION INMOBILIARIA Y DE ESPACIO PUBLICO","ESCRITO","DERECHO DE PETICION DE INTERES PARTICULAR",1,"PENDIENTE"]
[null,3362022021,"SUBDIRECCION DE ADMINISTRACION INMOBILIARIA Y DE ESPACIO PUBLICO","ESCRITO","DERECHO DE PETICION DE INTERES PARTICULAR",1,"PENDIENTE"]
[null,3362122021,"SUBDIRECCION DE ADMINISTRACION INMOBILIARIA Y DE ESPACIO PUBLICO","ESCRITO","DERECHO DE PETICION DE INTERES GENERAL",1,"PENDIENTE"]
[null,3362142021,"SUBDIRECCION DE REGISTRO INMOBILIARIO","ESCRITO","DERECHO DE PETICION DE INTERES PARTICULAR",1,"PENDIENTE"]
[null,3362342021,"AREA DE ATENCION A LA CIUDADANIA","ESCRITO","DERECHO DE PETICION DE INTERES PARTICULAR",1,"GESTIONADO"]
[null,3363162021,"AREA DE ATENCION A LA CIUDADANIA","WEB","DERECHO DE PETICION DE INTERES GENERAL",1,"GESTIONADO"]
[null,3366572021,"AREA DE ATENCION A LA CIUDADANIA","WEB","DERECHO DE PETICION DE INTERES GENERAL",1,"GESTIONADO"]
[null,3366842021,"AREA DE ATENCION A LA CIUDADANIA","WEB","DERECHO DE PETICION DE INTERES PARTICULAR",1,"GESTIONADO"]
[null,3367672021,"SUBDIRECCION DE REGISTRO INMOBILIARIO","ESCRITO","DERECHO DE PETICION DE INTERES PARTICULAR",1,"PENDIENTE"]
[null,3367832021,"SUBDIRECCION DE ADMINISTRACION INMOBILIARIA Y DE ESPACIO PUBLICO","ESCRITO","DERECHO DE PETICION DE INTERES PARTICULAR",1,"PENDIENTE"]
[null,3368012021,"SUBDIRECCION DE ADMINISTRACION INMOBILIARIA Y DE ESPACIO PUBLICO","ESCRITO","DERECHO DE PETICION DE INTERES PARTICULAR",1,"PENDIENTE"]
[null,3368282021,"SUBDIRECCION DE ADMINISTRACION INMOBILIARIA Y DE ESPACIO PUBLICO","ESCRITO","DERECHO DE PETICION DE INTERES PARTICULAR",1,"PENDIENTE"]
[null,3368562021,"SUBDIRECCION DE ADMINISTRACION INMOBILIARIA Y DE ESPACIO PUBLICO","ESCRITO","DERECHO DE PETICION DE INTERES PARTICULAR",1,"PENDIENTE"]
[null,3368922021,"SUBDIRECCION DE ADMINISTRACION INMOBILIARIA Y DE ESPACIO PUBLICO","ESCRITO","DERECHO DE PETICION DE INTERES PARTICULAR",1,"PENDIENTE"]
[null,3369242021,"SUBDIRECCION DE ADMINISTRACION INMOBILIARIA Y DE ESPACIO PUBLICO","E-MAIL","DERECHO DE PETICION DE INTERES PARTICULAR",1,"PENDIENTE"]
[null,3370412021,"AREA DE ATENCION A LA CIUDADANIA","WEB","RECLAMO",1,"GESTIONADO"]
[null,3370492021,"SUBDIRECCION DE REGISTRO INMOBILIARIO","ESCRITO","DERECHO DE PETICION DE INTERES PARTICULAR",1,"PENDIENTE"]
[null,3371042021,"SUBDIRECCION DE ADMINISTRACION INMOBILIARIA Y DE ESPACIO PUBLICO","ESCRITO","DERECHO DE PETICION DE INTERES PARTICULAR",1,"PENDIENTE"]
[null,3371172021,"SUBDIRECCION DE REGISTRO INMOBILIARIO","ESCRITO","DERECHO DE PETICION DE INTERES PARTICULAR",1,"PENDIENTE"]
[null,3371552021,"SUBDIRECCION DE ADMINISTRACION INMOBILIARIA Y DE ESPACIO PUBLICO","ESCRITO","DERECHO DE PETICION DE INTERES PARTICULAR",1,"PENDIENTE"]
[null,3372262021,"SUBDIRECCION DE ADMINISTRACION INMOBILIARIA Y DE ESPACIO PUBLICO","ESCRITO","DERECHO DE PETICION DE INTERES PARTICULAR",1,"PENDIENTE"]
[null,3374862021,"SUBDIRECCION DE ADMINISTRACION INMOBILIARIA Y DE ESPACIO PUBLICO","ESCRITO","DERECHO DE PETICION DE INTERES PARTICULAR",1,"PENDIENTE"]
[null,3374872021,"SUBDIRECCION DE REGISTRO INMOBILIARIO","ESCRITO","DERECHO DE PETICION DE INTERES PARTICULAR",1,"PENDIENTE"]
[null,3374912021,"SUBDIRECCION DE ADMINISTRACION INMOBILIARIA Y DE ESPACIO PUBLICO","ESCRITO","DERECHO DE PETICION DE INTERES PARTICULAR",1,"PENDIENTE"]
[null,3375112021,"SUBDIRECCION DE ADMINISTRACION INMOBILIARIA Y DE ESPACIO PUBLICO","ESCRITO","DERECHO DE PETICION DE INTERES PARTICULAR",1,"PENDIENTE"]
[null,3375222021,"SUBDIRECCION DE REGISTRO INMOBILIARIO","ESCRITO","DERECHO DE PETICION DE INTERES PARTICULAR",1,"PENDIENTE"]
[null,3376532021,"AREA DE ATENCION A LA CIUDADANIA","WEB","QUEJA",1,"GESTIONADO"]
[null,3376592021,"AREA DE ATENCION A LA CIUDADANIA","WEB","DERECHO DE PETICION DE INTERES PARTICULAR",1,"GESTIONADO"]
[null,3376792021,"SUBDIRECCION DE ADMINISTRACION INMOBILIARIA Y DE ESPACIO PUBLICO","WEB","DERECHO DE PETICION DE INTERES PARTICULAR",1,"PENDIENTE"]
[null,3376862021,"SUBDIRECCION DE ADMINISTRACION INMOBILIARIA Y DE ESPACIO PUBLICO","WEB","DERECHO DE PETICION DE INTERES GENERAL",1,"PENDIENTE"]
[null,3378062021,"SUBDIRECCION DE ADMINISTRACION INMOBILIARIA Y DE ESPACIO PUBLICO","WEB","DERECHO DE PETICION DE INTERES GENERAL",1,"PENDIENTE"]
[null,3379722021,"SUBDIRECCION DE REGISTRO INMOBILIARIO","WEB","DERECHO DE PETICION DE INTERES GENERAL",1,"PENDIENTE"]
[null,3380742021,"AREA DE ATENCION A LA CIUDADANIA","WEB","QUEJA",1,"GESTIONADO"]
[null,3380952021,"AREA DE ATENCION A LA CIUDADANIA","TELEFONO","DERECHO DE PETICION DE INTERES PARTICULAR",1,"GESTIONADO"]
[null,3382022021,"SUBDIRECCION DE ADMINISTRACION INMOBILIARIA Y DE ESPACIO PUBLICO","ESCRITO","DERECHO DE PETICION DE INTERES PARTICULAR",1,"PENDIENTE"]
[null,3382082021,"SUBDIRECCION DE REGISTRO INMOBILIARIO","ESCRITO","DERECHO DE PETICION DE INTERES PARTICULAR",1,"PENDIENTE"]
[null,3384192021,"SUBDIRECCION DE ADMINISTRACION INMOBILIARIA Y DE ESPACIO PUBLICO","ESCRITO","DERECHO DE PETICION DE INTERES PARTICULAR",1,"PENDIENTE"]
[null,3384392021,"OFICINA ASESORA JURIDICA","ESCRITO","DERECHO DE PETICION DE INTERES PARTICULAR",1,"GESTIONADO"]
[null,3385372021,"AREA DE ATENCION A LA CIUDADANIA","E-MAIL","DERECHO DE PETICION DE INTERES PARTICULAR",1,"GESTIONADO"]
[null,3385392021,"SUBDIRECCION DE ADMINISTRACION INMOBILIARIA Y DE ESPACIO PUBLICO","ESCRITO","DERECHO DE PETICION DE INTERES PARTICULAR",1,"PENDIENTE"]
[null,3385612021,"SUBDIRECCION DE ADMINISTRACION INMOBILIARIA Y DE ESPACIO PUBLICO","ESCRITO","DERECHO DE PETICION DE INTERES PARTICULAR",1,"PENDIENTE"]
[null,3385832021,"SUBDIRECCION DE REGISTRO INMOBILIARIO","ESCRITO","DERECHO DE PETICION DE INTERES PARTICULAR",1,"PENDIENTE"]
[null,3386572021,"SUBDIRECCION DE ADMINISTRACION INMOBILIARIA Y DE ESPACIO PUBLICO","WEB","DERECHO DE PETICION DE INTERES PARTICULAR",1,"PENDIENTE"]
[null,3387142021,"SUBDIRECCION DE ADMINISTRACION INMOBILIARIA Y DE ESPACIO PUBLICO","WEB","DERECHO DE PETICION DE INTERES GENERAL",1,"PENDIENTE"]
[null,3387362021,"AREA DE ATENCION A LA CIUDADANIA","WEB","QUEJA",1,"GESTIONADO"]
[null,3387572021,"AREA DE ATENCION A LA CIUDADANIA","WEB","DERECHO DE PETICION DE INTERES PARTICULAR",1,"GESTIONADO"]
[null,3388732021,"AREA DE ATENCION A LA CIUDADANIA","WEB","DERECHO DE PETICION DE INTERES GENERAL",1,"GESTIONADO"]
[null,3396832021,"SUBDIRECCION DE ADMINISTRACION INMOBILIARIA Y DE ESPACIO PUBLICO","WEB","DERECHO DE PETICION DE INTERES PARTICULAR",1,"PENDIENTE"]
[null,3397642021,"AREA DE ATENCION A LA CIUDADANIA","WEB","DERECHO DE PETICION DE INTERES PARTICULAR",1,"GESTIONADO"]
[null,3397672021,"SUBDIRECCION DE ADMINISTRACION INMOBILIARIA Y DE ESPACIO PUBLICO","WEB","DERECHO DE PETICION DE INTERES GENERAL",1,"PENDIENTE"]
[null,3399382021,"SUBDIRECCION DE ADMINISTRACION INMOBILIARIA Y DE ESPACIO PUBLICO","WEB","DERECHO DE PETICION DE INTERES PARTICULAR",1,"PENDIENTE"]
[null,3399732021,"SUBDIRECCION DE ADMINISTRACION INMOBILIARIA Y DE ESPACIO PUBLICO","ESCRITO","DERECHO DE PETICION DE INTERES GENERAL",1,"PENDIENTE"]
[null,3399872021,"SUBDIRECCION DE REGISTRO INMOBILIARIO","ESCRITO","DERECHO DE PETICION DE INTERES PARTICULAR",1,"PENDIENTE"]
[null,3399932021,"SUBDIRECCION DE ADMINISTRACION INMOBILIARIA Y DE ESPACIO PUBLICO","ESCRITO","DERECHO DE PETICION DE INTERES PARTICULAR",1,"PENDIENTE"]
[null,3400022021,"SUBDIRECCION DE ADMINISTRACION INMOBILIARIA Y DE ESPACIO PUBLICO","ESCRITO","DERECHO DE PETICION DE INTERES GENERAL",1,"PENDIENTE"]
[null,3400082021,"SUBDIRECCION DE ADMINISTRACION INMOBILIARIA Y DE ESPACIO PUBLICO","ESCRITO","DERECHO DE PETICION DE INTERES PARTICULAR",1,"PENDIENTE"]
[null,3403922021,"AREA DE ATENCION A LA CIUDADANIA","TELEFONO","DERECHO DE PETICION DE INTERES GENERAL",1,"GESTIONADO"]
[null,3404822021,"AREA DE ATENCION A LA CIUDADANIA","WEB","DERECHO DE PETICION DE INTERES GENERAL",1,"GESTIONADO"]
[null,3405442021,"SUBDIRECCION DE ADMINISTRACION INMOBILIARIA Y DE ESPACIO PUBLICO","WEB","DERECHO DE PETICION DE INTERES PARTICULAR",1,"PENDIENTE"]
[null,3406392021,"AREA DE ATENCION A LA CIUDADANIA","WEB","DERECHO DE PETICION DE INTERES GENERAL",1,"GESTIONADO"]
[null,3407242021,"DESPACHO","ESCRITO","DERECHO DE PETICION DE INTERES PARTICULAR",1,"PENDIENTE"]
[null,3407512021,"SUBDIRECCION DE REGISTRO INMOBILIARIO","ESCRITO","DERECHO DE PETICION DE INTERES PARTICULAR",1,"PENDIENTE"]
[null,3408362021,"SUBDIRECCION DE REGISTRO INMOBILIARIO","ESCRITO","DERECHO DE PETICION DE INTERES PARTICULAR",1,"PENDIENTE"]
[null,3408552021,"AREA DE ATENCION A LA CIUDADANIA","TELEFONO","DERECHO DE PETICION DE INTERES PARTICULAR",1,"GESTIONADO"]
[null,3409592021,"AREA DE ATENCION A LA CIUDADANIA","WEB","DERECHO DE PETICION DE INTERES PARTICULAR",1,"GESTIONADO"]
[null,3409632021,"SUBDIRECCION DE ADMINISTRACION INMOBILIARIA Y DE ESPACIO PUBLICO","WEB","DERECHO DE PETICION DE INTERES PARTICULAR",1,"PENDIENTE"]
[null,3409882021,"AREA DE ATENCION A LA CIUDADANIA","TELEFONO","DERECHO DE PETICION DE INTERES PARTICULAR",1,"GESTIONADO"]
[null,3410042021,"SUBDIRECCION DE ADMINISTRACION INMOBILIARIA Y DE ESPACIO PUBLICO","ESCRITO","DERECHO DE PETICION DE INTERES PARTICULAR",1,"PENDIENTE"]
[null,3410252021,"SUBDIRECCION DE ADMINISTRACION INMOBILIARIA Y DE ESPACIO PUBLICO","ESCRITO","DERECHO DE PETICION DE INTERES PARTICULAR",1,"PENDIENTE"]
[null,3411762021,"AREA DE ATENCION A LA CIUDADANIA","WEB","DERECHO DE PETICION DE INTERES PARTICULAR",1,"GESTIONADO"]
[null,3414032021,"AREA DE ATENCION A LA CIUDADANIA","E-MAIL","DERECHO DE PETICION DE INTERES PARTICULAR",1,"GESTIONADO"]
[null,3414602021,"SUBDIRECCION DE REGISTRO INMOBILIARIO","WEB","DERECHO DE PETICION DE INTERES PARTICULAR",1,"PENDIENTE"]
[null,3414652021,"AREA DE ATENCION A LA CIUDADANIA","WEB","DERECHO DE PETICION DE INTERES PARTICULAR",1,"GESTIONADO"]
[null,3414872021,"SUBDIRECCION DE REGISTRO INMOBILIARIO","WEB","DERECHO DE PETICION DE INTERES PARTICULAR",1,"PENDIENTE"]
[null,3414962021,"SUBDIRECCION DE ADMINISTRACION INMOBILIARIA Y DE ESPACIO PUBLICO","WEB","DERECHO DE PETICION DE INTERES GENERAL",1,"PENDIENTE"]
[null,3415032021,"SUBDIRECCION DE REGISTRO INMOBILIARIO","E-MAIL","DERECHO DE PETICION DE INTERES GENERAL",1,"PENDIENTE"]
[null,3415062021,"SUBDIRECCION DE ADMINISTRACION INMOBILIARIA Y DE ESPACIO PUBLICO","ESCRITO","DERECHO DE PETICION DE INTERES PARTICULAR",1,"PENDIENTE"]
[null,3415802021,"SUBDIRECCION DE REGISTRO INMOBILIARIO","WEB","DERECHO DE PETICION DE INTERES GENERAL",1,"PENDIENTE"]
[null,3416912021,"SUBDIRECCION DE ADMINISTRACION INMOBILIARIA Y DE ESPACIO PUBLICO","WEB","DERECHO DE PETICION DE INTERES PARTICULAR",1,"PENDIENTE"]
[null,3417382021,"SUBDIRECCION DE ADMINISTRACION INMOBILIARIA Y DE ESPACIO PUBLICO","WEB","DERECHO DE PETICION DE INTERES PARTICULAR",1,"PENDIENTE"]
[null,3418602021,"SUBDIRECCION DE REGISTRO INMOBILIARIO","ESCRITO","DERECHO DE PETICION DE INTERES PARTICULAR",1,"PENDIENTE"]
[null,3418712021,"SUBDIRECCION DE ADMINISTRACION INMOBILIARIA Y DE ESPACIO PUBLICO","ESCRITO","DERECHO DE PETICION DE INTERES PARTICULAR",1,"PENDIENTE"]
[null,3418862021,"SUBDIRECCION DE ADMINISTRACION INMOBILIARIA Y DE ESPACIO PUBLICO","ESCRITO","DERECHO DE PETICION DE INTERES GENERAL",1,"PENDIENTE"]
[null,3419902021,"AREA DE ATENCION A LA CIUDADANIA","TELEFONO","DERECHO DE PETICION DE INTERES GENERAL",1,"GESTIONADO"]
[null,3420302021,"AREA DE ATENCION A LA CIUDADANIA","WEB","DERECHO DE PETICION DE INTERES GENERAL",1,"GESTIONADO"]
[null,3422362021,"AREA DE ATENCION A LA CIUDADANIA","TELEFONO","DERECHO DE PETICION DE INTERES GENERAL",1,"GESTIONADO"]
[null,3424982021,"AREA DE ATENCION A LA CIUDADANIA","WEB","DERECHO DE PETICION DE INTERES GENERAL",1,"GESTIONADO"]
[null,3425362021,"DESPACHO","ESCRITO","DERECHO DE PETICION DE INTERES PARTICULAR",1,"PENDIENTE"]
[null,3425612021,"SUBDIRECCION DE ADMINISTRACION INMOBILIARIA Y DE ESPACIO PUBLICO","ESCRITO","DERECHO DE PETICION DE INTERES PARTICULAR",1,"PENDIENTE"]
[null,3425802021,"SUBDIRECCION DE ADMINISTRACION INMOBILIARIA Y DE ESPACIO PUBLICO","ESCRITO","DERECHO DE PETICION DE INTERES PARTICULAR",1,"PENDIENTE"]
[null,3425882021,"SUBDIRECCION DE ADMINISTRACION INMOBILIARIA Y DE ESPACIO PUBLICO","ESCRITO","DERECHO DE PETICION DE INTERES PARTICULAR",1,"PENDIENTE"]
[null,3425922021,"SUBDIRECCION DE ADMINISTRACION INMOBILIARIA Y DE ESPACIO PUBLICO","TELEFONO","DERECHO DE PETICION DE INTERES PARTICULAR",1,"PENDIENTE"]
[null,3426302021,"SUBDIRECCION DE ADMINISTRACION INMOBILIARIA Y DE ESPACIO PUBLICO","ESCRITO","DERECHO DE PETICION DE INTERES PARTICULAR",1,"PENDIENTE"]
[null,3427292021,"AREA DE ATENCION A LA CIUDADANIA","TELEFONO","DERECHO DE PETICION DE INTERES GENERAL",1,"GESTIONADO"]
[null,3431452021,"SUBDIRECCION DE ADMINISTRACION INMOBILIARIA Y DE ESPACIO PUBLICO","E-MAIL","DERECHO DE PETICION DE INTERES GENERAL",1,"PENDIENTE"]
[null,3431862021,"AREA DE ATENCION A LA CIUDADANIA","WEB","DERECHO DE PETICION DE INTERES GENERAL",1,"GESTIONADO"]
[null,3434012021,"AREA DE ATENCION A LA CIUDADANIA","WEB","QUEJA",1,"GESTIONADO"]
[null,3435642021,"SUBDIRECCION DE ADMINISTRACION INMOBILIARIA Y DE ESPACIO PUBLICO","WEB","DERECHO DE PETICION DE INTERES GENERAL",1,"PENDIENTE"]
[null,3438732021,"AREA DE ATENCION A LA CIUDADANIA","WEB","DERECHO DE PETICION DE INTERES GENERAL",1,"GESTIONADO"]
[null,3439692021,"SUBDIRECCION DE ADMINISTRACION INMOBILIARIA Y DE ESPACIO PUBLICO","WEB","DERECHO DE PETICION DE INTERES GENERAL",1,"PENDIENTE"]
[null,3439782021,"SUBDIRECCION ADMINISTRATIVA  FINANCIERA Y DE CONTROL DISCIPLINARIO","WEB","DERECHO DE PETICION DE INTERES PARTICULAR",1,"GESTIONADO"]
[null,3441012021,"AREA DE ATENCION A LA CIUDADANIA","WEB","QUEJA",1,"GESTIONADO"]
[null,3441142021,"AREA DE ATENCION A LA CIUDADANIA","WEB","DERECHO DE PETICION DE INTERES PARTICULAR",1,"GESTIONADO"]
[null,3443012021,"AREA DE ATENCION A LA CIUDADANIA","WEB","QUEJA",1,"GESTIONADO"]
[null,3443832021,"AREA DE ATENCION A LA CIUDADANIA","WEB","DERECHO DE PETICION DE INTERES PARTICULAR",1,"GESTIONADO"]
[null,3444032021,"AREA DE ATENCION A LA CIUDADANIA","WEB","DERECHO DE PETICION DE INTERES GENERAL",1,"GESTIONADO"]
[null,3444192021,"AREA DE ATENCION A LA CIUDADANIA","WEB","QUEJA",1,"GESTIONADO"]
[null,3444202021,"SUBDIRECCION DE ADMINISTRACION INMOBILIARIA Y DE ESPACIO PUBLICO","WEB","QUEJA",1,"PENDIENTE"]
[null,3444212021,"AREA DE ATENCION A LA CIUDADANIA","WEB","DERECHO DE PETICION DE INTERES PARTICULAR",1,"GESTIONADO"]
[null,3445032021,"AREA DE ATENCION A LA CIUDADANIA","WEB","DERECHO DE PETICION DE INTERES PARTICULAR",1,"GESTIONADO"]
[null,3445762021,"AREA DE ATENCION A LA CIUDADANIA","TELEFONO","DERECHO DE PETICION DE INTERES PARTICULAR",1,"GESTIONADO"]
[null,3446552021,"SUBDIRECCION DE REGISTRO INMOBILIARIO","WEB","QUEJA",1,"PENDIENTE"]
[null,3446682021,"AREA DE ATENCION A LA CIUDADANIA","WEB","DERECHO DE PETICION DE INTERES GENERAL",1,"GESTIONADO"]
[null,3447442021,"SUBDIRECCION DE ADMINISTRACION INMOBILIARIA Y DE ESPACIO PUBLICO","ESCRITO","DERECHO DE PETICION DE INTERES PARTICULAR",1,"PENDIENTE"]
[null,3447522021,"AREA DE ATENCION A LA CIUDADANIA","WEB","DERECHO DE PETICION DE INTERES PARTICULAR",1,"GESTIONADO"]
[null,3447852021,"SUBDIRECCION DE REGISTRO INMOBILIARIO","WEB","DERECHO DE PETICION DE INTERES PARTICULAR",1,"PENDIENTE"]
[null,3448462021,"AREA DE ATENCION A LA CIUDADANIA","WEB","RECLAMO",1,"GESTIONADO"]
[null,3449912021,"SUBDIRECCION DE ADMINISTRACION INMOBILIARIA Y DE ESPACIO PUBLICO","ESCRITO","DERECHO DE PETICION DE INTERES PARTICULAR",1,"PENDIENTE"]
[null,3450142021,"SUBDIRECCION DE ADMINISTRACION INMOBILIARIA Y DE ESPACIO PUBLICO","ESCRITO","DERECHO DE PETICION DE INTERES PARTICULAR",1,"PENDIENTE"]
[null,3450482021,"SUBDIRECCION DE ADMINISTRACION INMOBILIARIA Y DE ESPACIO PUBLICO","ESCRITO","DERECHO DE PETICION DE INTERES PARTICULAR",1,"PENDIENTE"]
[null,3450682021,"SUBDIRECCION DE ADMINISTRACION INMOBILIARIA Y DE ESPACIO PUBLICO","ESCRITO","DERECHO DE PETICION DE INTERES PARTICULAR",1,"PENDIENTE"]
[null,3450812021,"AREA DE ATENCION A LA CIUDADANIA","WEB","QUEJA",1,"GESTIONADO"]
[null,3451282021,"SUBDIRECCION DE REGISTRO INMOBILIARIO","ESCRITO","DERECHO DE PETICION DE INTERES PARTICULAR",1,"PENDIENTE"]
[null,3451602021,"SUBDIRECCION DE ADMINISTRACION INMOBILIARIA Y DE ESPACIO PUBLICO","ESCRITO","DERECHO DE PETICION DE INTERES PARTICULAR",1,"PENDIENTE"]
[null,3451842021,"AREA DE ATENCION A LA CIUDADANIA","WEB","DERECHO DE PETICION DE INTERES GENERAL",1,"GESTIONADO"]
[null,3452832021,"AREA DE ATENCION A LA CIUDADANIA","WEB","DERECHO DE PETICION DE INTERES GENERAL",1,"GESTIONADO"]
[null,3453922021,"SUBDIRECCION DE REGISTRO INMOBILIARIO","WEB","DERECHO DE PETICION DE INTERES PARTICULAR",1,"PENDIENTE"]
[null,3454722021,"AREA DE ATENCION A LA CIUDADANIA","TELEFONO","DERECHO DE PETICION DE INTERES GENERAL",3,"GESTIONADO"]
[null,3455862021,"AREA DE ATENCION A LA CIUDADANIA","WEB","DERECHO DE PETICION DE INTERES PARTICULAR",1,"GESTIONADO"]
[null,3458032021,"SUBDIRECCION DE ADMINISTRACION INMOBILIARIA Y DE ESPACIO PUBLICO","WEB","DERECHO DE PETICION DE INTERES PARTICULAR",1,"PENDIENTE"]
[null,3458082021,"AREA DE ATENCION A LA CIUDADANIA","WEB","DERECHO DE PETICION DE INTERES PARTICULAR",1,"GESTIONADO"]
[null,3458122021,"SUBDIRECCION DE REGISTRO INMOBILIARIO","WEB","DERECHO DE PETICION DE INTERES PARTICULAR",1,"PENDIENTE"]
[null,3458522021,"SUBDIRECCION DE ADMINISTRACION INMOBILIARIA Y DE ESPACIO PUBLICO","WEB","CONSULTA",1,"PENDIENTE"]
[null,3458812021,"AREA DE ATENCION A LA CIUDADANIA","WEB","DERECHO DE PETICION DE INTERES PARTICULAR",1,"GESTIONADO"]
[null,3460252021,"AREA DE ATENCION A LA CIUDADANIA","WEB","DERECHO DE PETICION DE INTERES PARTICULAR",1,"GESTIONADO"]
[null,3460972021,"SUBDIRECCION DE ADMINISTRACION INMOBILIARIA Y DE ESPACIO PUBLICO","WEB","DERECHO DE PETICION DE INTERES PARTICULAR",1,"PENDIENTE"]
[null,3461902021,"SUBDIRECCION DE ADMINISTRACION INMOBILIARIA Y DE ESPACIO PUBLICO","ESCRITO","DERECHO DE PETICION DE INTERES PARTICULAR",1,"PENDIENTE"]
[null,3462032021,"SUBDIRECCION DE ADMINISTRACION INMOBILIARIA Y DE ESPACIO PUBLICO","ESCRITO","DERECHO DE PETICION DE INTERES PARTICULAR",1,"PENDIENTE"]
[null,3462312021,"SUBDIRECCION DE ADMINISTRACION INMOBILIARIA Y DE ESPACIO PUBLICO","ESCRITO","DERECHO DE PETICION DE INTERES PARTICULAR",1,"PENDIENTE"]
[null,3463242021,"SUBDIRECCION DE ADMINISTRACION INMOBILIARIA Y DE ESPACIO PUBLICO","ESCRITO","DERECHO DE PETICION DE INTERES PARTICULAR",1,"PENDIENTE"]
[null,3463842021,"SUBDIRECCION DE ADMINISTRACION INMOBILIARIA Y DE ESPACIO PUBLICO","ESCRITO","DERECHO DE PETICION DE INTERES PARTICULAR",1,"PENDIENTE"]
[null,3463962021,"SUBDIRECCION DE REGISTRO INMOBILIARIO","ESCRITO","DERECHO DE PETICION DE INTERES GENERAL",1,"PENDIENTE"]
[null,3464092021,"SUBDIRECCION DE ADMINISTRACION INMOBILIARIA Y DE ESPACIO PUBLICO","ESCRITO","DERECHO DE PETICION DE INTERES PARTICULAR",1,"PENDIENTE"]
[null,3464462021,"AREA DE ATENCION A LA CIUDADANIA","WEB","DERECHO DE PETICION DE INTERES PARTICULAR",1,"GESTIONADO"]
[null,3464472021,"SUBDIRECCION DE ADMINISTRACION INMOBILIARIA Y DE ESPACIO PUBLICO","ESCRITO","DERECHO DE PETICION DE INTERES PARTICULAR",1,"PENDIENTE"]
[null,3464662021,"SUBDIRECCION DE ADMINISTRACION INMOBILIARIA Y DE ESPACIO PUBLICO","ESCRITO","DERECHO DE PETICION DE INTERES PARTICULAR",1,"PENDIENTE"]
[null,3464852021,"SUBDIRECCION DE ADMINISTRACION INMOBILIARIA Y DE ESPACIO PUBLICO","ESCRITO","DERECHO DE PETICION DE INTERES GENERAL",1,"PENDIENTE"]
[null,3464982021,"SUBDIRECCION DE REGISTRO INMOBILIARIO","ESCRITO","DERECHO DE PETICION DE INTERES PARTICULAR",1,"PENDIENTE"]
[null,3465002021,"SUBDIRECCION DE ADMINISTRACION INMOBILIARIA Y DE ESPACIO PUBLICO","ESCRITO","DERECHO DE PETICION DE INTERES PARTICULAR",1,"PENDIENTE"]
[null,3465032021,"SUBDIRECCION DE REGISTRO INMOBILIARIO","ESCRITO","DERECHO DE PETICION DE INTERES PARTICULAR",1,"PENDIENTE"]
[null,3465082021,"SUBDIRECCION DE ADMINISTRACION INMOBILIARIA Y DE ESPACIO PUBLICO","ESCRITO","DERECHO DE PETICION DE INTERES PARTICULAR",1,"PENDIENTE"]
[null,3467512021,"SUBDIRECCION DE ADMINISTRACION INMOBILIARIA Y DE ESPACIO PUBLICO","ESCRITO","DERECHO DE PETICION DE INTERES PARTICULAR",1,"PENDIENTE"]
[null,3467652021,"SUBDIRECCION DE ADMINISTRACION INMOBILIARIA Y DE ESPACIO PUBLICO","ESCRITO","DERECHO DE PETICION DE INTERES PARTICULAR",1,"PENDIENTE"]
[null,3467872021,"SUBDIRECCION DE ADMINISTRACION INMOBILIARIA Y DE ESPACIO PUBLICO","WEB","DERECHO DE PETICION DE INTERES PARTICULAR",1,"PENDIENTE"]
[null,3468112021,"SUBDIRECCION DE ADMINISTRACION INMOBILIARIA Y DE ESPACIO PUBLICO","ESCRITO","DERECHO DE PETICION DE INTERES PARTICULAR",1,"PENDIENTE"]
[null,3468522021,"SUBDIRECCION DE ADMINISTRACION INMOBILIARIA Y DE ESPACIO PUBLICO","ESCRITO","DERECHO DE PETICION DE INTERES PARTICULAR",1,"PENDIENTE"]
[null,3468582021,"SUBDIRECCION DE ADMINISTRACION INMOBILIARIA Y DE ESPACIO PUBLICO","WEB","CONSULTA",1,"PENDIENTE"]
[null,3468882021,"SUBDIRECCION DE ADMINISTRACION INMOBILIARIA Y DE ESPACIO PUBLICO","ESCRITO","DERECHO DE PETICION DE INTERES PARTICULAR",1,"PENDIENTE"]
[null,3469242021,"SUBDIRECCION DE ADMINISTRACION INMOBILIARIA Y DE ESPACIO PUBLICO","ESCRITO","DERECHO DE PETICION DE INTERES PARTICULAR",1,"PENDIENTE"]
[null,3469542021,"SUBDIRECCION DE ADMINISTRACION INMOBILIARIA Y DE ESPACIO PUBLICO","ESCRITO","DERECHO DE PETICION DE INTERES PARTICULAR",1,"PENDIENTE"]
[null,3470502021,"SUBDIRECCION DE ADMINISTRACION INMOBILIARIA Y DE ESPACIO PUBLICO","WEB","DERECHO DE PETICION DE INTERES PARTICULAR",1,"PENDIENTE"]
[null,3471712021,"AREA DE ATENCION A LA CIUDADANIA","WEB","DERECHO DE PETICION DE INTERES GENERAL",1,"GESTIONADO"]
[null,3472892021,"SUBDIRECCION DE REGISTRO INMOBILIARIO","ESCRITO","DERECHO DE PETICION DE INTERES PARTICULAR",1,"PENDIENTE"]
[null,3472932021,"SUBDIRECCION DE ADMINISTRACION INMOBILIARIA Y DE ESPACIO PUBLICO","ESCRITO","DERECHO DE PETICION DE INTERES PARTICULAR",1,"PENDIENTE"]
[null,3473832021,"SUBDIRECCION DE ADMINISTRACION INMOBILIARIA Y DE ESPACIO PUBLICO","WEB","DERECHO DE PETICION DE INTERES PARTICULAR",1,"PENDIENTE"]
[null,3475122021,"AREA DE ATENCION A LA CIUDADANIA","WEB","DERECHO DE PETICION DE INTERES GENERAL",1,"GESTIONADO"]
[null,3478252021,"AREA DE ATENCION A LA CIUDADANIA","WEB","DERECHO DE PETICION DE INTERES GENERAL",1,"GESTIONADO"]
[null,3479192021,"SUBDIRECCION DE ADMINISTRACION INMOBILIARIA Y DE ESPACIO PUBLICO","ESCRITO","DERECHO DE PETICION DE INTERES PARTICULAR",1,"PENDIENTE"]
[null,3480932021,"SUBDIRECCION DE ADMINISTRACION INMOBILIARIA Y DE ESPACIO PUBLICO","WEB","DERECHO DE PETICION DE INTERES GENERAL",1,"PENDIENTE"]
[null,3484732021,"AREA DE ATENCION A LA CIUDADANIA","WEB","DERECHO DE PETICION DE INTERES GENERAL",1,"GESTIONADO"]
[null,3484872021,"SUBDIRECCION DE ADMINISTRACION INMOBILIARIA Y DE ESPACIO PUBLICO","WEB","DERECHO DE PETICION DE INTERES GENERAL",1,"PENDIENTE"]
[null,3484982021,"SUBDIRECCION DE ADMINISTRACION INMOBILIARIA Y DE ESPACIO PUBLICO","WEB","DERECHO DE PETICION DE INTERES GENERAL",1,"PENDIENTE"]
[null,3485242021,"SUBDIRECCION ADMINISTRATIVA  FINANCIERA Y DE CONTROL DISCIPLINARIO","WEB","DERECHO DE PETICION DE INTERES GENERAL",2,"PENDIENTE"]
[null,3485302021,"SUBDIRECCION DE ADMINISTRACION INMOBILIARIA Y DE ESPACIO PUBLICO","WEB","DERECHO DE PETICION DE INTERES GENERAL",1,"PENDIENTE"]
[null,3485742021,"AREA DE ATENCION A LA CIUDADANIA","WEB","DERECHO DE PETICION DE INTERES PARTICULAR",1,"GESTIONADO"]
[null,3487682021,"SUBDIRECCION DE ADMINISTRACION INMOBILIARIA Y DE ESPACIO PUBLICO","ESCRITO","DERECHO DE PETICION DE INTERES PARTICULAR",1,"PENDIENTE"]
[null,3488192021,"AREA DE ATENCION A LA CIUDADANIA","TELEFONO","DERECHO DE PETICION DE INTERES GENERAL",1,"GESTIONADO"]
[null,3488812021,"AREA DE ATENCION A LA CIUDADANIA","WEB","DERECHO DE PETICION DE INTERES PARTICULAR",1,"GESTIONADO"]
[null,3489482021,"AREA DE ATENCION A LA CIUDADANIA","TELEFONO","DERECHO DE PETICION DE INTERES GENERAL",1,"GESTIONADO"]
[null,3489812021,"AREA DE ATENCION A LA CIUDADANIA","TELEFONO","DERECHO DE PETICION DE INTERES GENERAL",2,"GESTIONADO"]
[null,3490922021,"AREA DE ATENCION A LA CIUDADANIA","WEB","DERECHO DE PETICION DE INTERES PARTICULAR",1,"GESTIONADO"]
[null,3492962021,"AREA DE ATENCION A LA CIUDADANIA","WEB","QUEJA",1,"GESTIONADO"]
[null,3493422021,"AREA DE ATENCION A LA CIUDADANIA","WEB","DERECHO DE PETICION DE INTERES PARTICULAR",1,"GESTIONADO"]
[null,3493842021,"AREA DE ATENCION A LA CIUDADANIA","WEB","DERECHO DE PETICION DE INTERES GENERAL",1,"GESTIONADO"]
[null,3495582021,"AREA DE ATENCION A LA CIUDADANIA","WEB","DERECHO DE PETICION DE INTERES GENERAL",1,"GESTIONADO"]
[null,3496192021,"SUBDIRECCION DE ADMINISTRACION INMOBILIARIA Y DE ESPACIO PUBLICO","WEB","DERECHO DE PETICION DE INTERES PARTICULAR",1,"PENDIENTE"]
[null,3496482021,"AREA DE ATENCION A LA CIUDADANIA","WEB","DERECHO DE PETICION DE INTERES PARTICULAR",1,"GESTIONADO"]
[null,3496872021,"AREA DE ATENCION A LA CIUDADANIA","WEB","DERECHO DE PETICION DE INTERES GENERAL",1,"GESTIONADO"]
[null,3496902021,"AREA DE ATENCION A LA CIUDADANIA","WEB","DERECHO DE PETICION DE INTERES GENERAL",1,"GESTIONADO"]
[null,3497322021,"SUBDIRECCION DE ADMINISTRACION INMOBILIARIA Y DE ESPACIO PUBLICO","ESCRITO","DERECHO DE PETICION DE INTERES PARTICULAR",1,"PENDIENTE"]
[null,3497372021,"SUBDIRECCION DE REGISTRO INMOBILIARIO","ESCRITO","DERECHO DE PETICION DE INTERES PARTICULAR",1,"PENDIENTE"]
[null,3497392021,"SUBDIRECCION DE REGISTRO INMOBILIARIO","ESCRITO","DERECHO DE PETICION DE INTERES PARTICULAR",1,"PENDIENTE"]
[null,3499682021,"SUBDIRECCION DE REGISTRO INMOBILIARIO","ESCRITO","DERECHO DE PETICION DE INTERES PARTICULAR",1,"PENDIENTE"]
[null,3499862021,"AREA DE ATENCION A LA CIUDADANIA","WEB","DERECHO DE PETICION DE INTERES GENERAL",1,"GESTIONADO"]
[null,3500202021,"AREA DE ATENCION A LA CIUDADANIA","TELEFONO","DERECHO DE PETICION DE INTERES GENERAL",1,"GESTIONADO"]
[null,3500822021,"SUBDIRECCION DE ADMINISTRACION INMOBILIARIA Y DE ESPACIO PUBLICO","ESCRITO","DERECHO DE PETICION DE INTERES PARTICULAR",1,"PENDIENTE"]
[null,3501332021,"DESPACHO","ESCRITO","DERECHO DE PETICION DE INTERES PARTICULAR",1,"PENDIENTE"]
[null,3501752021,"SUBDIRECCION DE ADMINISTRACION INMOBILIARIA Y DE ESPACIO PUBLICO","ESCRITO","DERECHO DE PETICION DE INTERES GENERAL",1,"PENDIENTE"]
[null,3501982021,"SUBDIRECCION DE ADMINISTRACION INMOBILIARIA Y DE ESPACIO PUBLICO","ESCRITO","DERECHO DE PETICION DE INTERES PARTICULAR",1,"PENDIENTE"]
[null,3502112021,"SUBDIRECCION DE REGISTRO INMOBILIARIO","ESCRITO","DERECHO DE PETICION DE INTERES GENERAL",1,"PENDIENTE"]
[null,3502162021,"SUBDIRECCION DE ADMINISTRACION INMOBILIARIA Y DE ESPACIO PUBLICO","ESCRITO","DERECHO DE PETICION DE INTERES PARTICULAR",1,"PENDIENTE"]
[null,3502172021,"SUBDIRECCION DE ADMINISTRACION INMOBILIARIA Y DE ESPACIO PUBLICO","ESCRITO","DERECHO DE PETICION DE INTERES PARTICULAR",1,"PENDIENTE"]
[null,3502202021,"SUBDIRECCION DE ADMINISTRACION INMOBILIARIA Y DE ESPACIO PUBLICO","ESCRITO","DERECHO DE PETICION DE INTERES PARTICULAR",1,"PENDIENTE"]
[null,3504172021,"AREA DE ATENCION A LA CIUDADANIA","WEB","DERECHO DE PETICION DE INTERES PARTICULAR",1,"PENDIENTE"]
[null,3505672021,"AREA DE ATENCION A LA CIUDADANIA","WEB","QUEJA",1,"GESTIONADO"]
[null,3505982021,"AREA DE ATENCION A LA CIUDADANIA","TELEFONO","DERECHO DE PETICION DE INTERES GENERAL",1,"GESTIONADO"]
[null,3506422021,"AREA DE ATENCION A LA CIUDADANIA","WEB","QUEJA",1,"GESTIONADO"]
[null,3508412021,"SUBDIRECCION DE ADMINISTRACION INMOBILIARIA Y DE ESPACIO PUBLICO","TELEFONO","DERECHO DE PETICION DE INTERES GENERAL",1,"PENDIENTE"]
[null,3509442021,"SUBDIRECCION DE ADMINISTRACION INMOBILIARIA Y DE ESPACIO PUBLICO","WEB","DERECHO DE PETICION DE INTERES PARTICULAR",1,"PENDIENTE"]
[null,3514942021,"SUBDIRECCION DE ADMINISTRACION INMOBILIARIA Y DE ESPACIO PUBLICO","ESCRITO","DERECHO DE PETICION DE INTERES PARTICULAR",1,"PENDIENTE"]
[null,3514952021,"AREA DE ATENCION A LA CIUDADANIA","TELEFONO","RECLAMO",1,"GESTIONADO"]
[null,3514982021,"SUBDIRECCION DE REGISTRO INMOBILIARIO","ESCRITO","DERECHO DE PETICION DE INTERES PARTICULAR",1,"PENDIENTE"]
[null,3515472021,"OFICINA ASESORA JURIDICA","ESCRITO","DERECHO DE PETICION DE INTERES PARTICULAR",1,"PENDIENTE"]
[null,3516502021,"SUBDIRECCION DE REGISTRO INMOBILIARIO","WEB","DERECHO DE PETICION DE INTERES GENERAL",1,"PENDIENTE"]
[null,3517422021,"SUBDIRECCION DE ADMINISTRACION INMOBILIARIA Y DE ESPACIO PUBLICO","WEB","DERECHO DE PETICION DE INTERES GENERAL",1,"PENDIENTE"]
[null,3518772021,"SUBDIRECCION DE REGISTRO INMOBILIARIO","WEB","DERECHO DE PETICION DE INTERES GENERAL",1,"PENDIENTE"]
[null,3521242021,"SUBDIRECCION DE ADMINISTRACION INMOBILIARIA Y DE ESPACIO PUBLICO","WEB","DERECHO DE PETICION DE INTERES GENERAL",1,"PENDIENTE"]
[null,3521512021,"SUBDIRECCION DE ADMINISTRACION INMOBILIARIA Y DE ESPACIO PUBLICO","ESCRITO","DERECHO DE PETICION DE INTERES PARTICULAR",1,"PENDIENTE"]
[null,3521782021,"SUBDIRECCION DE REGISTRO INMOBILIARIO","ESCRITO","DERECHO DE PETICION DE INTERES PARTICULAR",1,"PENDIENTE"]
[null,3521922021,"SUBDIRECCION DE ADMINISTRACION INMOBILIARIA Y DE ESPACIO PUBLICO","ESCRITO","DERECHO DE PETICION DE INTERES PARTICULAR",1,"PENDIENTE"]
[null,3522022021,"SUBDIRECCION DE ADMINISTRACION INMOBILIARIA Y DE ESPACIO PUBLICO","ESCRITO","DERECHO DE PETICION DE INTERES PARTICULAR",1,"PENDIENTE"]
[null,3522152021,"SUBDIRECCION DE ADMINISTRACION INMOBILIARIA Y DE ESPACIO PUBLICO","ESCRITO","DERECHO DE PETICION DE INTERES PARTICULAR",1,"PENDIENTE"]
[null,3522322021,"SUBDIRECCION DE ADMINISTRACION INMOBILIARIA Y DE ESPACIO PUBLICO","ESCRITO","DERECHO DE PETICION DE INTERES PARTICULAR",1,"PENDIENTE"]
[null,3522442021,"SUBDIRECCION DE ADMINISTRACION INMOBILIARIA Y DE ESPACIO PUBLICO","ESCRITO","DERECHO DE PETICION DE INTERES PARTICULAR",1,"PENDIENTE"]
[null,3522562021,"AREA DE ATENCION A LA CIUDADANIA","WEB","DERECHO DE PETICION DE INTERES PARTICULAR",1,"GESTIONADO"]
[null,3524492021,"SUBDIRECCION DE REGISTRO INMOBILIARIO","ESCRITO","DERECHO DE PETICION DE INTERES PARTICULAR",1,"PENDIENTE"]
[null,3524712021,"SUBDIRECCION DE ADMINISTRACION INMOBILIARIA Y DE ESPACIO PUBLICO","ESCRITO","DERECHO DE PETICION DE INTERES PARTICULAR",1,"PENDIENTE"]
[null,3525082021,"SUBDIRECCION DE ADMINISTRACION INMOBILIARIA Y DE ESPACIO PUBLICO","ESCRITO","DERECHO DE PETICION DE INTERES PARTICULAR",1,"PENDIENTE"]
[null,3525292021,"SUBDIRECCION DE REGISTRO INMOBILIARIO","ESCRITO","DERECHO DE PETICION DE INTERES PARTICULAR",1,"PENDIENTE"]
[null,3532872021,"AREA DE ATENCION A LA CIUDADANIA","WEB","QUEJA",1,"PENDIENTE"]
[null,3532972021,"AREA DE ATENCION A LA CIUDADANIA","WEB","QUEJA",1,"PENDIENTE"]
[null,3535722021,"AREA DE ATENCION A LA CIUDADANIA","WEB","DERECHO DE PETICION DE INTERES GENERAL",1,"PENDIENTE"]

{"sheet":"Traslados","index":4,"n_rows":334,"n_cols":8,"rows_kept":334,"cut":false,"hidden":false,"merged":[[10,1,15,2],[10,3,14,5],[8,1,9,1]]}
[]
[]
[]
[]
[]
[]
[]
[]
[]
[]
[null,"REPORTE  GESTIÓN DE PETICIONES\n\nFecha:  2021-10- 01    a   2021 - 10 - 31\nEstado de Petición:  Al Periodo"]
[]
[]
[]
[]
[]
[]
[]
[null,"Número petición\nNumero de registro en el Sistema","Dependencia:\nNombre asociado al usuario que tiene a cargo la petición ","Canal:\nNombre del canal parametrizado en el sistema por el cual fue registrada la petición","Tipología actualizada: \nTipo de documento utilizado por la entidad","Traslado a otras Entidades: \nPeticiones que por competencia son trasladadas a otras entidades.","Entidad Destino","Estado del Requerimiento\n \"Gestionado\" o \"Pendiente\" de respuesta definitiva por  parte de la Defensoría del Espacio Público o de las entidades competentes"]
[null,1763792021,"SUBDIRECCION DE ADMINISTRACION INMOBILIARIA Y DE ESPACIO PUBLICO","ESCRITO","DERECHO DE PETICION DE INTERES GENERAL","Solucionado - Por traslado","SECRETARIA DE SALUD","GESTIONADO"]
[null,2403902021,"SUBDIRECCION DE ADMINISTRACION INMOBILIARIA Y DE ESPACIO PUBLICO","WEB","DERECHO DE PETICION DE INTERES GENERAL","Solucionado - Por traslado","IPES","GESTIONADO"]
[null,2470722021,"SUBDIRECCION DE ADMINISTRACION INMOBILIARIA Y DE ESPACIO PUBLICO","E-MAIL","DERECHO DE PETICION DE INTERES GENERAL","Solucionado - Por traslado","SECRETARIA DE GOBIERNO","GESTIONADO"]
[null,2658352021,"SUBDIRECCION DE ADMINISTRACION INMOBILIARIA Y DE ESPACIO PUBLICO","E-MAIL","DERECHO DE PETICION DE INTERES GENERAL","Solucionado - Por traslado","JBB - JARDIN BOTANICO","GESTIONADO"]
[null,2663082021,"SUBDIRECCION DE ADMINISTRACION INMOBILIARIA Y DE ESPACIO PUBLICO","WEB","DERECHO DE PETICION DE INTERES GENERAL","Solucionado - Por traslado","SECRETARIA DE GOBIERNO","GESTIONADO"]
[null,2667202021,"SUBDIRECCION DE ADMINISTRACION INMOBILIARIA Y DE ESPACIO PUBLICO","ESCRITO","DERECHO DE PETICION DE INTERES PARTICULAR","Solucionado - Por traslado","SECRETARIA DE GOBIERNO","GESTIONADO"]
[null,2667292021,"SUBDIRECCION DE ADMINISTRACION INMOBILIARIA Y DE ESPACIO PUBLICO","ESCRITO","DERECHO DE PETICION DE INTERES PARTICULAR","Solucionado - Por traslado","IDRD","GESTIONADO"]
[null,2667302021,"SUBDIRECCION DE ADMINISTRACION INMOBILIARIA Y DE ESPACIO PUBLICO","ESCRITO","DERECHO DE PETICION DE INTERES PARTICULAR","Solucionado - Por traslado","SECRETARIA DE GOBIERNO","GESTIONADO"]
[null,2667462021,"SUBDIRECCION DE ADMINISTRACION INMOBILIARIA Y DE ESPACIO PUBLICO","ESCRITO","DERECHO DE PETICION DE INTERES PARTICULAR","Solucionado - Por traslado","SECRETARIA DE GOBIERNO","GESTIONADO"]
[null,2667712021,"SUBDIRECCION DE ADMINISTRACION INMOBILIARIA Y DE ESPACIO PUBLICO","ESCRITO","DERECHO DE PETICION DE INTERES PARTICULAR","Solucionado - Por traslado","SECRETARIA DE GOBIERNO","GESTIONADO"]
[null,2674062021,"SUBDIRECCION DE ADMINISTRACION INMOBILIARIA Y DE ESPACIO PUBLICO","WEB","DERECHO DE PETICION DE INTERES GENERAL","Solucionado - Por traslado","SECRETARIA DE GOBIERNO","GESTIONADO"]
[null,2674862021,"SUBDIRECCION DE ADMINISTRACION INMOBILIARIA Y DE ESPACIO PUBLICO","WEB","DERECHO DE PETICION DE INTERES GENERAL","Solucionado - Por traslado","SECRETARIA DE GOBIERNO","GESTIONADO"]
[null,2675592021,"SUBDIRECCION DE ADMINISTRACION INMOBILIARIA Y DE ESPACIO PUBLICO","ESCRITO","DERECHO DE PETICION DE INTERES PARTICULAR","Solucionado - Por traslado","SECRETARIA DE GOBIERNO","GESTIONADO"]
[null,2677412021,"SUBDIRECCION DE ADMINISTRACION INMOBILIARIA Y DE ESPACIO PUBLICO","WEB","QUEJA","Solucionado - Por traslado","TRANSMILENIO","GESTIONADO"]
[null,2679592021,"SUBDIRECCION DE ADMINISTRACION INMOBILIARIA Y DE ESPACIO PUBLICO","ESCRITO","DERECHO DE PETICION DE INTERES PARTICULAR","Solucionado - Por traslado","SECRETARIA DE GOBIERNO","GESTIONADO"]
[null,2684822021,"SUBDIRECCION DE ADMINISTRACION INMOBILIARIA Y DE ESPACIO PUBLICO","ESCRITO","DERECHO DE PETICION DE INTERES PARTICULAR","Solucionado - Por traslado","SECRETARIA DE GOBIERNO","GESTIONADO"]
[null,2694572021,"SUBDIRECCION DE ADMINISTRACION INMOBILIARIA Y DE ESPACIO PUBLICO","ESCRITO","DERECHO DE PETICION DE INTERES PARTICULAR","Solucionado - Por traslado","SECRETARIA DE GOBIERNO","GESTIONADO"]
[null,2694652021,"SUBDIRECCION DE ADMINISTRACION INMOBILIARIA Y DE ESPACIO PUBLICO","ESCRITO","DERECHO DE PETICION DE INTERES PARTICULAR","Solucionado - Por traslado","SECRETARIA DE GOBIERNO","GESTIONADO"]
[null,2694922021,"SUBDIRECCION DE ADMINISTRACION INMOBILIARIA Y DE ESPACIO PUBLICO","ESCRITO","DERECHO DE PETICION DE INTERES GENERAL","Solucionado - Por traslado","IDPAC","GESTIONADO"]
[null,2694962021,"SUBDIRECCION DE ADMINISTRACION INMOBILIARIA Y DE ESPACIO PUBLICO","ESCRITO","DERECHO DE PETICION DE INTERES PARTICULAR","Solucionado - Por traslado","IDIPRON","GESTIONADO"]
[null,2698542021,"SUBDIRECCION DE ADMINISTRACION INMOBILIARIA Y DE ESPACIO PUBLICO","WEB","QUEJA","Solucionado - Por traslado","IDRD","GESTIONADO"]
[null,2699872021,"SUBDIRECCION DE ADMINISTRACION INMOBILIARIA Y DE ESPACIO PUBLICO","WEB","DERECHO DE PETICION DE INTERES GENERAL","Solucionado - Por traslado","SECRETARIA DE GOBIERNO","GESTIONADO"]
[null,2701892021,"SUBDIRECCION DE ADMINISTRACION INMOBILIARIA Y DE ESPACIO PUBLICO","ESCRITO","DERECHO DE PETICION DE INTERES PARTICULAR","Solucionado - Por traslado","SECRETARIA DE GOBIERNO","GESTIONADO"]
[null,2701922021,"SUBDIRECCION DE ADMINISTRACION INMOBILIARIA Y DE ESPACIO PUBLICO","ESCRITO","DERECHO DE PETICION DE INTERES PARTICULAR","Solucionado - Por traslado","PERSONERIA DE BOGOTA","GESTIONADO"]
[null,2703902021,"SUBDIRECCION DE ADMINISTRACION INMOBILIARIA Y DE ESPACIO PUBLICO","ESCRITO","DERECHO DE PETICION DE INTERES PARTICULAR","Solucionado - Por traslado","LA TERMINAL DE TRANSPORTE","GESTIONADO"]
[null,2703922021,"SUBDIRECCION DE ADMINISTRACION INMOBILIARIA Y DE ESPACIO PUBLICO","ESCRITO","DERECHO DE PETICION DE INTERES PARTICULAR","Solucionado - Por traslado","LA TERMINAL DE TRANSPORTE","GESTIONADO"]
[null,2722152021,"SUBDIRECCION DE ADMINISTRACION INMOBILIARIA Y DE ESPACIO PUBLICO","ESCRITO","DERECHO DE PETICION DE INTERES PARTICULAR","Solucionado - Por traslado","IDU","GESTIONADO"]
[null,2722332021,"SUBDIRECCION DE ADMINISTRACION INMOBILIARIA Y DE ESPACIO PUBLICO","ESCRITO","DERECHO DE PETICION DE INTERES PARTICULAR","Solucionado - Por traslado","IDRD","GESTIONADO"]
[null,2722822021,"SUBDIRECCION DE ADMINISTRACION INMOBILIARIA Y DE ESPACIO PUBLICO","WEB","DERECHO DE PETICION DE INTERES GENERAL","Solucionado - Por traslado","SECRETARIA DE GOBIERNO","GESTIONADO"]
[null,2734272021,"SUBDIRECCION DE ADMINISTRACION INMOBILIARIA Y DE ESPACIO PUBLICO","WEB","DERECHO DE PETICION DE INTERES PARTICULAR","Solucionado - Por traslado","SECRETARIA DE GOBIERNO","GESTIONADO"]
[null,2739272021,"SUBDIRECCION DE ADMINISTRACION INMOBILIARIA Y DE ESPACIO PUBLICO","ESCRITO","DERECHO DE PETICION DE INTERES PARTICULAR","Solucionado - Por traslado","SECRETARIA DE GOBIERNO","GESTIONADO"]
[null,2739452021,"SUBDIRECCION DE ADMINISTRACION INMOBILIARIA Y DE ESPACIO PUBLICO","ESCRITO","DERECHO DE PETICION DE INTERES PARTICULAR","Solucionado - Por traslado","SECRETARIA DE GOBIERNO","GESTIONADO"]
[null,2739782021,"SUBDIRECCION DE ADMINISTRACION INMOBILIARIA Y DE ESPACIO PUBLICO","ESCRITO","DERECHO DE PETICION DE INTERES GENERAL","Solucionado - Por traslado","SECRETARIA JURIDICA","GESTIONADO"]
[null,2740562021,"SUBDIRECCION DE ADMINISTRACION INMOBILIARIA Y DE ESPACIO PUBLICO","ESCRITO","DERECHO DE PETICION DE INTERES PARTICULAR","Solucionado - Por traslado","SECRETARIA DE GOBIERNO","GESTIONADO"]
[null,2743562021,"SUBDIRECCION DE ADMINISTRACION INMOBILIARIA Y DE ESPACIO PUBLICO","WEB","DERECHO DE PETICION DE INTERES PARTICULAR","Solucionado - Por traslado","IDU","GESTIONADO"]
[null,2746132021,"SUBDIRECCION DE ADMINISTRACION INMOBILIARIA Y DE ESPACIO PUBLICO","ESCRITO","DERECHO DE PETICION DE INTERES GENERAL","Solucionado - Por traslado","SECRETARIA DE GOBIERNO","GESTIONADO"]
[null,2747072021,"SUBDIRECCION DE ADMINISTRACION INMOBILIARIA Y DE ESPACIO PUBLICO","E-MAIL","DERECHO DE PETICION DE INTERES PARTICULAR","Solucionado - Por traslado","IDU","GESTIONADO"]
[null,2750092021,"SUBDIRECCION DE ADMINISTRACION INMOBILIARIA Y DE ESPACIO PUBLICO","WEB","QUEJA","Solucionado - Por traslado","IDRD","GESTIONADO"]
[null,2751812021,"SUBDIRECCION DE ADMINISTRACION INMOBILIARIA Y DE ESPACIO PUBLICO","WEB","DERECHO DE PETICION DE INTERES PARTICULAR","Solucionado - Por traslado","SECRETARIA DE GOBIERNO","GESTIONADO"]
[null,2753922021,"SUBDIRECCION DE ADMINISTRACION INMOBILIARIA Y DE ESPACIO PUBLICO","WEB","DERECHO DE PETICION DE INTERES GENERAL","Solucionado - Por traslado","SECRETARIA DE GOBIERNO","GESTIONADO"]
[null,2754832021,"SUBDIRECCION DE ADMINISTRACION INMOBILIARIA Y DE ESPACIO PUBLICO","WEB","DERECHO DE PETICION DE INTERES PARTICULAR","Solucionado - Por traslado","SECRETARIA DE GOBIERNO","GESTIONADO"]
[null,2755202021,"SUBDIRECCION DE ADMINISTRACION INMOBILIARIA Y DE ESPACIO PUBLICO","WEB","DERECHO DE PETICION DE INTERES GENERAL","Solucionado - Por traslado","ACUEDUCTO - EAAB-ESP","GESTIONADO"]
[null,2755762021,"SUBDIRECCION DE ADMINISTRACION INMOBILIARIA Y DE ESPACIO PUBLICO","ESCRITO","DERECHO DE PETICION DE INTERES PARTICULAR","Solucionado - Por traslado","SECRETARIA DE GOBIERNO","GESTIONADO"]
[null,2757642021,"SUBDIRECCION DE ADMINISTRACION INMOBILIARIA Y DE ESPACIO PUBLICO","ESCRITO","DERECHO DE PETICION DE INTERES PARTICULAR","Solucionado - Por traslado","SECRETARIA DE GOBIERNO","GESTIONADO"]
[null,2757852021,"SUBDIRECCION DE ADMINISTRACION INMOBILIARIA Y DE ESPACIO PUBLICO","ESCRITO","DERECHO DE PETICION DE INTERES PARTICULAR","Solucionado - Por traslado","ACUEDUCTO - EAAB-ESP","GESTIONADO"]
[null,2758052021,"SUBDIRECCION DE ADMINISTRACION INMOBILIARIA Y DE ESPACIO PUBLICO","ESCRITO","DERECHO DE PETICION DE INTERES PARTICULAR","Solucionado - Por traslado","SECRETARIA DE GOBIERNO","GESTIONADO"]
[null,2759512021,"SUBDIRECCION DE ADMINISTRACION INMOBILIARIA Y DE ESPACIO PUBLICO","ESCRITO","DERECHO DE PETICION DE INTERES PARTICULAR","Solucionado - Por traslado","SECRETARIA DE GOBIERNO","GESTIONADO"]
[null,2763342021,"SUBDIRECCION DE ADMINISTRACION INMOBILIARIA Y DE ESPACIO PUBLICO","ESCRITO","DERECHO DE PETICION DE INTERES PARTICULAR","Solucionado - Por traslado","SECRETARIA JURIDICA","GESTIONADO"]
[null,2766252021,"SUBDIRECCION DE ADMINISTRACION INMOBILIARIA Y DE ESPACIO PUBLICO","ESCRITO","DERECHO DE PETICION DE INTERES PARTICULAR","Solucionado - Por traslado","IPES","GESTIONADO"]
[null,2766382021,"SUBDIRECCION DE ADMINISTRACION INMOBILIARIA Y DE ESPACIO PUBLICO","ESCRITO","DERECHO DE PETICION DE INTERES PARTICULAR","Solucionado - Por traslado","IPES","GESTIONADO"]
[null,2766412021,"SUBDIRECCION DE ADMINISTRACION INMOBILIARIA Y DE ESPACIO PUBLICO","ESCRITO","DERECHO DE PETICION DE INTERES PARTICULAR","Solucionado - Por traslado","SECRETARIA DE INTEGRACION SOCIAL","GESTIONADO"]
[null,2767622021,"SUBDIRECCION DE ADMINISTRACION INMOBILIARIA Y DE ESPACIO PUBLICO","WEB","DERECHO DE PETICION DE INTERES GENERAL","Solucionado - Por traslado","SECRETARIA DE AMBIENTE","GESTIONADO"]
[null,2768232021,"SUBDIRECCION DE ADMINISTRACION INMOBILIARIA Y DE ESPACIO PUBLICO","ESCRITO","DERECHO DE PETICION DE INTERES PARTICULAR","Solucionado - Por traslado","SECRETARIA DE GOBIERNO","GESTIONADO"]
[null,2771052021,"SUBDIRECCION DE ADMINISTRACION INMOBILIARIA Y DE ESPACIO PUBLICO","TELEFONO","DERECHO DE PETICION DE INTERES GENERAL","Solucionado - Por traslado","SECRETARIA MOVILIDAD","GESTIONADO"]
[null,2778462021,"SUBDIRECCION DE ADMINISTRACION INMOBILIARIA Y DE ESPACIO PUBLICO","ESCRITO","DERECHO DE PETICION DE INTERES PARTICULAR","Solucionado - Por traslado","IDU","GESTIONADO"]
[null,2779352021,"SUBDIRECCION DE ADMINISTRACION INMOBILIARIA Y DE ESPACIO PUBLICO","ESCRITO","DERECHO DE PETICION DE INTERES PARTICULAR","Solucionado - Por traslado","IDRD","GESTIONADO"]
[null,2779422021,"SUBDIRECCION DE ADMINISTRACION INMOBILIARIA Y DE ESPACIO PUBLICO","ESCRITO","DERECHO DE PETICION DE INTERES PARTICULAR","Solucionado - Por traslado","IDRD","GESTIONADO"]
[null,2780282021,"SUBDIRECCION DE ADMINISTRACION INMOBILIARIA Y DE ESPACIO PUBLICO","ESCRITO","DERECHO DE PETICION DE INTERES PARTICULAR","Solucionado - Por traslado","IDU","GESTIONADO"]
[null,2780912021,"SUBDIRECCION DE ADMINISTRACION INMOBILIARIA Y DE ESPACIO PUBLICO","TELEFONO","DERECHO DE PETICION DE INTERES GENERAL","Solucionado - Por traslado","SECRETARIA DE GOBIERNO","GESTIONADO"]
[null,2786902021,"SUBDIRECCION DE ADMINISTRACION INMOBILIARIA Y DE ESPACIO PUBLICO","TELEFONO","DERECHO DE PETICION DE INTERES GENERAL","Solucionado - Por traslado","IDRD","GESTIONADO"]
[null,2788482021,"SUBDIRECCION DE ADMINISTRACION INMOBILIARIA Y DE ESPACIO PUBLICO","TELEFONO","DERECHO DE PETICION DE INTERES GENERAL","Solucionado - Por traslado","IPES","GESTIONADO"]
[null,2788912021,"SUBDIRECCION DE ADMINISTRACION INMOBILIARIA Y DE ESPACIO PUBLICO","ESCRITO","DERECHO DE PETICION DE INTERES GENERAL","Solucionado - Por traslado","SECRETARIA DE GOBIERNO","GESTIONADO"]
[null,2795902021,"SUBDIRECCION DE ADMINISTRACION INMOBILIARIA Y DE ESPACIO PUBLICO","ESCRITO","DERECHO DE PETICION DE INTERES PARTICULAR","Solucionado - Por traslado","SECRETARIA DE GOBIERNO","GESTIONADO"]
[null,2796372021,"SUBDIRECCION DE ADMINISTRACION INMOBILIARIA Y DE ESPACIO PUBLICO","ESCRITO","DERECHO DE PETICION DE INTERES PARTICULAR","Solucionado - Por traslado","ETB - EMPRESA DE TELEFONOS","GESTIONADO"]
[null,2797462021,"SUBDIRECCION DE ADMINISTRACION INMOBILIARIA Y DE ESPACIO PUBLICO","ESCRITO","DERECHO DE PETICION DE INTERES PARTICULAR","Solucionado - Por traslado","PERSONERIA DE BOGOTA","GESTIONADO"]
[null,2797642021,"SUBDIRECCION DE ADMINISTRACION INMOBILIARIA Y DE ESPACIO PUBLICO","ESCRITO","DERECHO DE PETICION DE INTERES PARTICULAR","Solucionado - Por traslado","IDPAC","GESTIONADO"]
[null,2797782021,"SUBDIRECCION DE ADMINISTRACION INMOBILIARIA Y DE ESPACIO PUBLICO","ESCRITO","DERECHO DE PETICION DE INTERES GENERAL","Solucionado - Por traslado","IDU","GESTIONADO"]
[null,2797902021,"SUBDIRECCION DE ADMINISTRACION INMOBILIARIA Y DE ESPACIO PUBLICO","ESCRITO","DERECHO DE PETICION DE INTERES GENERAL","Solucionado - Por traslado","PERSONERIA DE BOGOTA","GESTIONADO"]
[null,2798082021,"SUBDIRECCION DE ADMINISTRACION INMOBILIARIA Y DE ESPACIO PUBLICO","ESCRITO","DERECHO DE PETICION DE INTERES GENERAL","Solucionado - Por traslado","SECRETARIA DE GOBIERNO","GESTIONADO"]
[null,2803872021,"SUBDIRECCION DE ADMINISTRACION INMOBILIARIA Y DE ESPACIO PUBLICO","ESCRITO","DERECHO DE PETICION DE INTERES PARTICULAR","Solucionado - Por traslado","IDRD","GESTIONADO"]
[null,2804592021,"SUBDIRECCION DE ADMINISTRACION INMOBILIARIA Y DE ESPACIO PUBLICO","ESCRITO","DERECHO DE PETICION DE INTERES PARTICULAR","Solucionado - Por traslado","IPES","GESTIONADO"]
[null,2807512021,"SUBDIRECCION DE ADMINISTRACION INMOBILIARIA Y DE ESPACIO PUBLICO","WEB","DERECHO DE PETICION DE INTERES GENERAL","Solucionado - Por traslado","SECRETARIA DE GOBIERNO","GESTIONADO"]
[null,2809062021,"SUBDIRECCION DE ADMINISTRACION INMOBILIARIA Y DE ESPACIO PUBLICO","ESCRITO","DERECHO DE PETICION DE INTERES PARTICULAR","Solucionado - Por traslado","IDRD","GESTIONADO"]
[null,2812942021,"SUBDIRECCION DE ADMINISTRACION INMOBILIARIA Y DE ESPACIO PUBLICO","WEB","DERECHO DE PETICION DE INTERES GENERAL","Solucionado - Por traslado","IDU","GESTIONADO"]
[null,2814532021,"SUBDIRECCION DE REGISTRO INMOBILIARIO","WEB","CONSULTA","Solucionado - Por traslado","SECRETARIA DE PLANEACION","GESTIONADO"]
[null,2825152021,"SUBDIRECCION DE ADMINISTRACION INMOBILIARIA Y DE ESPACIO PUBLICO","ESCRITO","DERECHO DE PETICION DE INTERES PARTICULAR","Solucionado - Por traslado","IDU","GESTIONADO"]
[null,2825542021,"AREA DE ATENCION A LA CIUDADANIA","WEB","DERECHO DE PETICION DE INTERES GENERAL","Solucionado - Por traslado","SECRETARIA MOVILIDAD","GESTIONADO"]
[null,2825622021,"SUBDIRECCION DE ADMINISTRACION INMOBILIARIA Y DE ESPACIO PUBLICO","ESCRITO","DERECHO DE PETICION DE INTERES PARTICULAR","Solucionado - Por traslado","SECRETARIA DE GOBIERNO","GESTIONADO"]
[null,2825792021,"SUBDIRECCION DE ADMINISTRACION INMOBILIARIA Y DE ESPACIO PUBLICO","ESCRITO","DERECHO DE PETICION DE INTERES PARTICULAR","Solucionado - Por traslado","SECRETARIA DE GOBIERNO","GESTIONADO"]
[null,2826112021,"AREA DE ATENCION A LA CIUDADANIA","WEB","DERECHO DE PETICION DE INTERES GENERAL","Solucionado - Por traslado","SECRETARIA MOVILIDAD","GESTIONADO"]
[null,2829762021,"SUBDIRECCION DE REGISTRO INMOBILIARIO","WEB","DERECHO DE PETICION DE INTERES GENERAL","Solucionado - Por traslado","SECRETARIA DE PLANEACION","GESTIONADO"]
[null,2831512021,"SUBDIRECCION DE ADMINISTRACION INMOBILIARIA Y DE ESPACIO PUBLICO","ESCRITO","DERECHO DE PETICION DE INTERES PARTICULAR","Solucionado - Por traslado","SECRETARIA DE PLANEACION","GESTIONADO"]
[null,2831732021,"SUBDIRECCION DE ADMINISTRACION INMOBILIARIA Y DE ESPACIO PUBLICO","ESCRITO","DERECHO DE PETICION DE INTERES PARTICULAR","Solucionado - Por traslado","SECRETARIA DE GOBIERNO","GESTIONADO"]
[null,2833522021,"SUBDIRECCION DE ADMINISTRACION INMOBILIARIA Y DE ESPACIO PUBLICO","E-MAIL","RECLAMO","Solucionado - Por traslado","IPES","GESTIONADO"]
[null,2837962021,"SUBDIRECCION DE ADMINISTRACION INMOBILIARIA Y DE ESPACIO PUBLICO","WEB","DERECHO DE PETICION DE INTERES GENERAL","Solucionado - Por traslado","CATASTRO","GESTIONADO"]
[null,2839662021,"SUBDIRECCION DE ADMINISTRACION INMOBILIARIA Y DE ESPACIO PUBLICO","ESCRITO","DERECHO DE PETICION DE INTERES PARTICULAR","Solucionado - Por traslado","IDRD","GESTIONADO"]
[null,2841972021,"SUBDIRECCION DE ADMINISTRACION INMOBILIARIA Y DE ESPACIO PUBLICO","ESCRITO","DERECHO DE PETICION DE INTERES PARTICULAR","Solucionado - Por traslado","IDU","GESTIONADO"]
[null,2842442021,"SUBDIRECCION DE ADMINISTRACION INMOBILIARIA Y DE ESPACIO PUBLICO","ESCRITO","DERECHO DE PETICION DE INTERES PARTICULAR","Solucionado - Por traslado","SECRETARIA DE GOBIERNO","GESTIONADO"]
[null,2843212021,"SUBDIRECCION DE ADMINISTRACION INMOBILIARIA Y DE ESPACIO PUBLICO","ESCRITO","DERECHO DE PETICION DE INTERES PARTICULAR","Solucionado - Por traslado","SECRETARIA DE GOBIERNO","GESTIONADO"]
[null,2850402021,"SUBDIRECCION DE ADMINISTRACION INMOBILIARIA Y DE ESPACIO PUBLICO","ESCRITO","DERECHO DE PETICION DE INTERES PARTICULAR","Solucionado - Por traslado","SECRETARIA DE GOBIERNO","GESTIONADO"]
[null,2850512021,"SUBDIRECCION DE ADMINISTRACION INMOBILIARIA Y DE ESPACIO PUBLICO","ESCRITO","DERECHO DE PETICION DE INTERES PARTICULAR","Solucionado - Por traslado","SECRETARIA DE GOBIERNO","GESTIONADO"]
[null,2851132021,"SUBDIRECCION DE ADMINISTRACION INMOBILIARIA Y DE ESPACIO PUBLICO","WEB","DERECHO DE PETICION DE INTERES PARTICULAR","Solucionado - Por traslado","SECRETARIA DE GOBIERNO","GESTIONADO"]
[null,2857842021,"SUBDIRECCION DE ADMINISTRACION INMOBILIARIA Y DE ESPACIO PUBLICO","ESCRITO","DERECHO DE PETICION DE INTERES PARTICULAR","Solucionado - Por traslado","SECRETARIA DE GOBIERNO","GESTIONADO"]
[null,2858152021,"SUBDIRECCION DE ADMINISTRACION INMOBILIARIA Y DE ESPACIO PUBLICO","ESCRITO","DERECHO DE PETICION DE INTERES PARTICULAR","Solucionado - Por traslado","IDRD","GESTIONADO"]
[null,2860542021,"SUBDIRECCION DE ADMINISTRACION INMOBILIARIA Y DE ESPACIO PUBLICO","E-MAIL","DERECHO DE PETICION DE INTERES PARTICULAR","Solucionado - Por traslado","IDU","GESTIONADO"]
[null,2866952021,"SUBDIRECCION DE ADMINISTRACION INMOBILIARIA Y DE ESPACIO PUBLICO","ESCRITO","DERECHO DE PETICION DE INTERES PARTICULAR","Solucionado - Por traslado","IPES","GESTIONADO"]
[null,2867432021,"SUBDIRECCION DE ADMINISTRACION INMOBILIARIA Y DE ESPACIO PUBLICO","ESCRITO","DERECHO DE PETICION DE INTERES PARTICULAR","Solucionado - Por traslado","IDRD","GESTIONADO"]
[null,2867982021,"SUBDIRECCION DE ADMINISTRACION INMOBILIARIA Y DE ESPACIO PUBLICO","WEB","QUEJA","Solucionado - Por traslado","IDRD","GESTIONADO"]
[null,2871222021,"SUBDIRECCION DE ADMINISTRACION INMOBILIARIA Y DE ESPACIO PUBLICO","WEB","DERECHO DE PETICION DE INTERES GENERAL","Solucionado - Por traslado","SECRETARIA DE GOBIERNO","GESTIONADO"]
[null,2875722021,"SUBDIRECCION DE ADMINISTRACION INMOBILIARIA Y DE ESPACIO PUBLICO","TELEFONO","DERECHO DE PETICION DE INTERES GENERAL","Solucionado - Por traslado","SECRETARIA MOVILIDAD","GESTIONADO"]
[null,2876712021,"SUBDIRECCION DE ADMINISTRACION INMOBILIARIA Y DE ESPACIO PUBLICO","WEB","DERECHO DE PETICION DE INTERES GENERAL","Solucionado - Por traslado","IDRD","GESTIONADO"]
[null,2881242021,"SUBDIRECCION DE ADMINISTRACION INMOBILIARIA Y DE ESPACIO PUBLICO","ESCRITO","DERECHO DE PETICION DE INTERES PARTICULAR","Solucionado - Por traslado","SECRETARIA DE AMBIENTE","GESTIONADO"]
[null,2885532021,"SUBDIRECCION DE ADMINISTRACION INMOBILIARIA Y DE ESPACIO PUBLICO","ESCRITO","DERECHO DE PETICION DE INTERES PARTICULAR","Solucionado - Por traslado","IDU","GESTIONADO"]
[null,2885782021,"SUBDIRECCION DE ADMINISTRACION INMOBILIARIA Y DE ESPACIO PUBLICO","ESCRITO","DERECHO DE PETICION DE INTERES PARTICULAR","Solucionado - Por traslado","IDRD","GESTIONADO"]
[null,2886712021,"SUBDIRECCION DE ADMINISTRACION INMOBILIARIA Y DE ESPACIO PUBLICO","ESCRITO","DERECHO DE PETICION DE INTERES PARTICULAR","Solucionado - Por traslado","IDRD","GESTIONADO"]
[null,2901262021,"SUBDIRECCION DE ADMINISTRACION INMOBILIARIA Y DE ESPACIO PUBLICO","ESCRITO","DERECHO DE PETICION DE INTERES PARTICULAR","Solucionado - Por traslado","IDRD","GESTIONADO"]
[null,2901312021,"SUBDIRECCION DE ADMINISTRACION INMOBILIARIA Y DE ESPACIO PUBLICO","ESCRITO","DERECHO DE PETICION DE INTERES PARTICULAR","Solucionado - Por traslado","SECRETARIA DE GOBIERNO","GESTIONADO"]
[null,2901492021,"SUBDIRECCION DE ADMINISTRACION INMOBILIARIA Y DE ESPACIO PUBLICO","ESCRITO","DERECHO DE PETICION DE INTERES PARTICULAR","Solucionado - Por traslado","IDRD","GESTIONADO"]
[null,2908682021,"SUBDIRECCION DE ADMINISTRACION INMOBILIARIA Y DE ESPACIO PUBLICO","WEB","DERECHO DE PETICION DE INTERES GENERAL","Solucionado - Por traslado","ACUEDUCTO - EAAB-ESP","GESTIONADO"]
[null,2913942021,"SUBDIRECCION DE ADMINISTRACION INMOBILIARIA Y DE ESPACIO PUBLICO","ESCRITO","DERECHO DE PETICION DE INTERES PARTICULAR","Solucionado - Por traslado","SECRETARIA DE GOBIERNO","GESTIONADO"]
[null,2916552021,"AREA DE ATENCION A LA CIUDADANIA","E-MAIL","DERECHO DE PETICION DE INTERES GENERAL","Solucionado - Por traslado","IDRD","GESTIONADO"]
[null,2916832021,"SUBDIRECCION DE ADMINISTRACION INMOBILIARIA Y DE ESPACIO PUBLICO","ESCRITO","DERECHO DE PETICION DE INTERES PARTICULAR","Solucionado - Por traslado","IDU","GESTIONADO"]
[null,2917532021,"SUBDIRECCION DE ADMINISTRACION INMOBILIARIA Y DE ESPACIO PUBLICO","ESCRITO","DERECHO DE PETICION DE INTERES PARTICULAR","Solucionado - Por traslado","IPES","GESTIONADO"]
[null,2919492021,"SUBDIRECCION DE ADMINISTRACION INMOBILIARIA Y DE ESPACIO PUBLICO","ESCRITO","DERECHO DE PETICION DE INTERES PARTICULAR","Solucionado - Por traslado","SECRETARIA DE GOBIERNO","GESTIONADO"]
[null,2924522021,"SUBDIRECCION DE ADMINISTRACION INMOBILIARIA Y DE ESPACIO PUBLICO","WEB","DERECHO DE PETICION DE INTERES GENERAL","Solucionado - Por traslado","IDRD","GESTIONADO"]
[null,2929282021,"SUBDIRECCION DE ADMINISTRACION INMOBILIARIA Y DE ESPACIO PUBLICO","E-MAIL","DERECHO DE PETICION DE INTERES PARTICULAR","Solucionado - Por traslado","IPES","GESTIONADO"]
[null,2931052021,"SUBDIRECCION DE ADMINISTRACION INMOBILIARIA Y DE ESPACIO PUBLICO","ESCRITO","DERECHO DE PETICION DE INTERES PARTICULAR","Solucionado - Por traslado","SECRETARIA DE DESARROLLO ECONOMICO","GESTIONADO"]
[null,2934932021,"SUBDIRECCION DE ADMINISTRACION INMOBILIARIA Y DE ESPACIO PUBLICO","ESCRITO","DERECHO DE PETICION DE INTERES PARTICULAR","Solucionado - Por traslado","SECRETARIA DE GOBIERNO","GESTIONADO"]
[null,2937972021,"SUBDIRECCION DE ADMINISTRACION INMOBILIARIA Y DE ESPACIO PUBLICO","ESCRITO","DERECHO DE PETICION DE INTERES PARTICULAR","Solucionado - Por traslado","IDPAC","GESTIONADO"]
[null,2938332021,"SUBDIRECCION DE ADMINISTRACION INMOBILIARIA Y DE ESPACIO PUBLICO","ESCRITO","DERECHO DE PETICION DE INTERES GENERAL","Solucionado - Por traslado","PERSONERIA DE BOGOTA","GESTIONADO"]
[null,2938472021,"SUBDIRECCION DE ADMINISTRACION INMOBILIARIA Y DE ESPACIO PUBLICO","WEB","CONSULTA","Solucionado - Por traslado","SECRETARIA DE GOBIERNO","GESTIONADO"]
[null,2938542021,"SUBDIRECCION DE ADMINISTRACION INMOBILIARIA Y DE ESPACIO PUBLICO","ESCRITO","DERECHO DE PETICION DE INTERES GENERAL","Solucionado - Por traslado","SECRETARIA DE GOBIERNO","GESTIONADO"]
[null,2938682021,"SUBDIRECCION DE ADMINISTRACION INMOBILIARIA Y DE ESPACIO PUBLICO","ESCRITO","DERECHO DE PETICION DE INTERES PARTICULAR","Solucionado - Por traslado","SECRETARIA DE GOBIERNO","GESTIONADO"]
[null,2946382021,"SUBDIRECCION DE ADMINISTRACION INMOBILIARIA Y DE ESPACIO PUBLICO","ESCRITO","DERECHO DE PETICION DE INTERES PARTICULAR","Solucionado - Por traslado","SECRETARIA DE GOBIERNO","GESTIONADO"]
[null,2947392021,"SUBDIRECCION DE ADMINISTRACION INMOBILIARIA Y DE ESPACIO PUBLICO","WEB","QUEJA","Solucionado - Por traslado","SECRETARIA DE GOBIERNO","GESTIONADO"]
[null,2958332021,"SUBDIRECCION DE ADMINISTRACION INMOBILIARIA Y DE ESPACIO PUBLICO","WEB","DERECHO DE PETICION DE INTERES PARTICULAR","Solucionado - Por traslado","SECRETARIA DE GOBIERNO","GESTIONADO"]
[null,2959082021,"SUBDIRECCION DE ADMINISTRACION INMOBILIARIA Y DE ESPACIO PUBLICO","WEB","DERECHO DE PETICION DE INTERES GENERAL","Solucionado - Por traslado","SECRETARIA DE GOBIERNO","GESTIONADO"]
[null,2966972021,"SUBDIRECCION DE ADMINISTRACION INMOBILIARIA Y DE ESPACIO PUBLICO","ESCRITO","DERECHO DE PETICION DE INTERES PARTICULAR","Solucionado - Por traslado","IDRD","GESTIONADO"]
[null,2968162021,"SUBDIRECCION DE ADMINISTRACION INMOBILIARIA Y DE ESPACIO PUBLICO","ESCRITO","DERECHO DE PETICION DE INTERES PARTICULAR","Solucionado - Por traslado","SECRETARIA DE GOBIERNO","GESTIONADO"]
[null,2968692021,"SUBDIRECCION DE ADMINISTRACION INMOBILIARIA Y DE ESPACIO PUBLICO","ESCRITO","DERECHO DE PETICION DE INTERES PARTICULAR","Solucionado - Por traslado","SECRETARIA DE GOBIERNO","GESTIONADO"]
[null,2969052021,"SUBDIRECCION DE ADMINISTRACION INMOBILIARIA Y DE ESPACIO PUBLICO","ESCRITO","DERECHO DE PETICION DE INTERES PARTICULAR","Solucionado - Por traslado","SECRETARIA DE GOBIERNO","GESTIONADO"]
[null,2970092021,"SUBDIRECCION DE ADMINISTRACION INMOBILIARIA Y DE ESPACIO PUBLICO","WEB","DERECHO DE PETICION DE INTERES GENERAL","Solucionado - Por traslado","SECRETARIA DE GOBIERNO","GESTIONADO"]
[null,2990522021,"SUBDIRECCION DE ADMINISTRACION INMOBILIARIA Y DE ESPACIO PUBLICO","WEB","DERECHO DE PETICION DE INTERES GENERAL","Solucionado - Por traslado","SECRETARIA DE GOBIERNO","GESTIONADO"]
[null,2993672021,"SUBDIRECCION DE REGISTRO INMOBILIARIO","WEB","DERECHO DE PETICION DE INTERES PARTICULAR","Solucionado - Por traslado","IDRD","GESTIONADO"]
[null,2997822021,"SUBDIRECCION DE ADMINISTRACION INMOBILIARIA Y DE ESPACIO PUBLICO","ESCRITO","DERECHO DE PETICION DE INTERES PARTICULAR","Solucionado - Por traslado","IDPAC","GESTIONADO"]
[null,2998042021,"SUBDIRECCION DE ADMINISTRACION INMOBILIARIA Y DE ESPACIO PUBLICO","ESCRITO","DERECHO DE PETICION DE INTERES PARTICULAR","Solucionado - Por traslado","SECRETARIA DE GOBIERNO","GESTIONADO"]
[null,2998152021,"SUBDIRECCION DE ADMINISTRACION INMOBILIARIA Y DE ESPACIO PUBLICO","ESCRITO","DERECHO DE PETICION DE INTERES PARTICULAR","Solucionado - Por traslado","IDRD","GESTIONADO"]
[null,2998462021,"SUBDIRECCION DE ADMINISTRACION INMOBILIARIA Y DE ESPACIO PUBLICO","ESCRITO","DERECHO DE PETICION DE INTERES PARTICULAR","Solucionado - Por traslado","SECRETARIA DE GOBIERNO","GESTIONADO"]
[null,2998512021,"SUBDIRECCION DE ADMINISTRACION INMOBILIARIA Y DE ESPACIO PUBLICO","ESCRITO","DERECHO DE PETICION DE INTERES PARTICULAR","Solucionado - Por traslado","IPES","GESTIONADO"]
[null,2999132021,"SUBDIRECCION DE ADMINISTRACION INMOBILIARIA Y DE ESPACIO PUBLICO","ESCRITO","DERECHO DE PETICION DE INTERES GENERAL","Solucionado - Por traslado","SECRETARIA DE GOBIERNO","GESTIONADO"]
[null,2999212021,"SUBDIRECCION DE ADMINISTRACION INMOBILIARIA Y DE ESPACIO PUBLICO","ESCRITO","DERECHO DE PETICION DE INTERES GENERAL","Solucionado - Por traslado","IPES","GESTIONADO"]
[null,3005022021,"SUBDIRECCION DE ADMINISTRACION INMOBILIARIA Y DE ESPACIO PUBLICO","WEB","DERECHO DE PETICION DE INTERES PARTICULAR","Solucionado - Por traslado","IDRD","GESTIONADO"]
[null,3010162021,"SUBDIRECCION DE ADMINISTRACION INMOBILIARIA Y DE ESPACIO PUBLICO","WEB","DERECHO DE PETICION DE INTERES GENERAL","Solucionado - Por traslado","IDRD","GESTIONADO"]
[null,3011132021,"SUBDIRECCION DE ADMINISTRACION INMOBILIARIA Y DE ESPACIO PUBLICO","ESCRITO","DERECHO DE PETICION DE INTERES PARTICULAR","Solucionado - Por traslado","IDU","GESTIONADO"]
[null,3014742021,"SUBDIRECCION DE ADMINISTRACION INMOBILIARIA Y DE ESPACIO PUBLICO","ESCRITO","DERECHO DE PETICION DE INTERES PARTICULAR","Solucionado - Por traslado","SECRETARIA DE GOBIERNO","GESTIONADO"]
[null,3015102021,"SUBDIRECCION DE ADMINISTRACION INMOBILIARIA Y DE ESPACIO PUBLICO","ESCRITO","DERECHO DE PETICION DE INTERES PARTICULAR","Solucionado - Por traslado","PERSONERIA DE BOGOTA","GESTIONADO"]
[null,3015362021,"SUBDIRECCION DE ADMINISTRACION INMOBILIARIA Y DE ESPACIO PUBLICO","ESCRITO","SOLICITUD DE COPIA","Solucionado - Por traslado","SECRETARIA DE GOBIERNO","GESTIONADO"]
[null,3015422021,"SUBDIRECCION DE ADMINISTRACION INMOBILIARIA Y DE ESPACIO PUBLICO","ESCRITO","SOLICITUD DE COPIA","Solucionado - Por traslado","IDPAC","GESTIONADO"]
[null,3019312021,"SUBDIRECCION DE ADMINISTRACION INMOBILIARIA Y DE ESPACIO PUBLICO","ESCRITO","DERECHO DE PETICION DE INTERES PARTICULAR","Solucionado - Por traslado","IDRD","GESTIONADO"]
[null,3039712021,"SUBDIRECCION DE ADMINISTRACION INMOBILIARIA Y DE ESPACIO PUBLICO","ESCRITO","DERECHO DE PETICION DE INTERES GENERAL","Solucionado - Por traslado","SECRETARIA DE GOBIERNO","GESTIONADO"]
[null,3040042021,"SUBDIRECCION DE ADMINISTRACION INMOBILIARIA Y DE ESPACIO PUBLICO","WEB","DERECHO DE PETICION DE INTERES GENERAL","Solucionado - Por traslado","IDRD","GESTIONADO"]
[null,3085062021,"SUBDIRECCION DE REGISTRO INMOBILIARIO","WEB","DERECHO DE PETICION DE INTERES PARTICULAR","Solucionado - Por traslado","SECRETARIA DE PLANEACION","GESTIONADO"]
[null,3095302021,"AREA DE ATENCION A LA CIUDADANIA","ESCRITO","DERECHO DE PETICION DE INTERES GENERAL","Solucionado - Por traslado","SECRETARIA DE GOBIERNO","GESTIONADO"]
[null,3121752021,"AREA DE ATENCION A LA CIUDADANIA","WEB","DERECHO DE PETICION DE INTERES PARTICULAR","Solucionado - Por traslado","SECRETARIA DE SALUD","GESTIONADO"]
[null,3156202021,"AREA DE ATENCION A LA CIUDADANIA","WEB","RECLAMO","Solucionado - Por traslado","SECRETARIA DE AMBIENTE","GESTIONADO"]
[null,3159822021,"AREA DE ATENCION A LA CIUDADANIA","WEB","DERECHO DE PETICION DE INTERES PARTICULAR","Solucionado - Por traslado","ACUEDUCTO - EAAB-ESP","GESTIONADO"]
[null,3160972021,"AREA DE ATENCION A LA CIUDADANIA","WEB","QUEJA","Solucionado - Por traslado","SECRETARIA DE AMBIENTE","PENDIENTE"]
[null,3163052021,"AREA DE ATENCION A LA CIUDADANIA","WEB","DERECHO DE PETICION DE INTERES PARTICULAR","Solucionado - Por traslado","SECRETARIA DE AMBIENTE","GESTIONADO"]
[null,3169842021,"AREA DE ATENCION A LA CIUDADANIA","WEB","CONSULTA","Solucionado - Por traslado","SECRETARIA DE GOBIERNO","GESTIONADO"]
[null,3171062021,"AREA DE ATENCION A LA CIUDADANIA","WEB","QUEJA","Solucionado - Por traslado","SECRETARIA DE EDUCACION","GESTIONADO"]
[null,3171392021,"AREA DE ATENCION A LA CIUDADANIA","WEB","DERECHO DE PETICION DE INTERES GENERAL","Solucionado por asignar - Trasladar","SECRETARIA DE AMBIENTE","PENDIENTE"]
[null,3172032021,"AREA DE ATENCION A LA CIUDADANIA","WEB","DERECHO DE PETICION DE INTERES GENERAL","Solucionado - Por traslado","SECRETARIA DE AMBIENTE","GESTIONADO"]
[null,3174562021,"AREA DE ATENCION A LA CIUDADANIA","WEB","CONSULTA","Solucionado - Por traslado","IDRD","GESTIONADO"]
[null,3174582021,"AREA DE ATENCION A LA CIUDADANIA","WEB","QUEJA","Solucionado - Por traslado","IDRD","GESTIONADO"]
[null,3179292021,"AREA DE ATENCION A LA CIUDADANIA","WEB","QUEJA","Solucionado por asignar - Trasladar","SECRETARIA DE AMBIENTE","PENDIENTE"]
[null,3182672021,"AREA DE ATENCION A LA CIUDADANIA","WEB","DERECHO DE PETICION DE INTERES GENERAL","Solucionado por asignar - Trasladar","SECRETARIA DE AMBIENTE","PENDIENTE"]
[null,3189532021,"AREA DE ATENCION A LA CIUDADANIA","WEB","DERECHO DE PETICION DE INTERES GENERAL","Solucionado - Por traslado","IDRD","GESTIONADO"]
[null,3191262021,"AREA DE ATENCION A LA CIUDADANIA","WEB","DERECHO DE PETICION DE INTERES PARTICULAR","Solucionado - Por traslado","SECRETARIA DE GOBIERNO","GESTIONADO"]
[null,3193632021,"AREA DE ATENCION A LA CIUDADANIA","WEB","DERECHO DE PETICION DE INTERES PARTICULAR","Solucionado - Por traslado","ACUEDUCTO - EAAB-ESP","GESTIONADO"]
[null,3198022021,"AREA DE ATENCION A LA CIUDADANIA","WEB","DERECHO DE PETICION DE INTERES GENERAL","Solucionado - Por traslado","SECRETARIA DE GOBIERNO","GESTIONADO"]
[null,3198142021,"AREA DE ATENCION A LA CIUDADANIA","WEB","DERECHO DE PETICION DE INTERES GENERAL","Solucionado - Por traslado","SECRETARIA DE GOBIERNO","GESTIONADO"]
[null,3200562021,"AREA DE ATENCION A LA CIUDADANIA","WEB","DERECHO DE PETICION DE INTERES PARTICULAR","Solucionado - Por traslado","SECRETARIA DE GOBIERNO","GESTIONADO"]
[null,3201682021,"AREA DE ATENCION A LA CIUDADANIA","WEB","DERECHO DE PETICION DE INTERES GENERAL","Solucionado - Por traslado","SECRETARIA DE GOBIERNO","GESTIONADO"]
[null,3203492021,"AREA DE ATENCION A LA CIUDADANIA","WEB","QUEJA","Solucionado - Por traslado","SECRETARIA DE GOBIERNO","GESTIONADO"]
[null,3204692021,"AREA DE ATENCION A LA CIUDADANIA","WEB","QUEJA","Solucionado - Por traslado","SECRETARIA DE GOBIERNO","GESTIONADO"]
[null,3210402021,"AREA DE ATENCION A LA CIUDADANIA","WEB","DERECHO DE PETICION DE INTERES GENERAL","Solucionado - Por traslado","SECRETARIA MOVILIDAD","GESTIONADO"]
[null,3211622021,"AREA DE ATENCION A LA CIUDADANIA","WEB","CONSULTA","Solucionado - Por traslado","SECRETARIA DE GOBIERNO","GESTIONADO"]
[null,3216452021,"AREA DE ATENCION A LA CIUDADANIA","WEB","QUEJA","Solucionado - Por traslado","SECRETARIA DE GOBIERNO","GESTIONADO"]
[null,3224922021,"AREA DE ATENCION A LA CIUDADANIA","WEB","DERECHO DE PETICION DE INTERES PARTICULAR","Solucionado - Por traslado","IDRD","GESTIONADO"]
[null,3229712021,"AREA DE ATENCION A LA CIUDADANIA","WEB","DERECHO DE PETICION DE INTERES PARTICULAR","Solucionado - Por traslado","SECRETARIA DE GOBIERNO","PENDIENTE"]
[null,3232252021,"AREA DE ATENCION A LA CIUDADANIA","WEB","DERECHO DE PETICION DE INTERES PARTICULAR","Solucionado - Por traslado","SECRETARIA DE GOBIERNO","GESTIONADO"]
[null,3233782021,"AREA DE ATENCION A LA CIUDADANIA","REDES SOCIALES","DERECHO DE PETICION DE INTERES PARTICULAR","Solucionado - Por traslado","SECRETARIA DE GOBIERNO","GESTIONADO"]
[null,3236202021,"AREA DE ATENCION A LA CIUDADANIA","WEB","DERECHO DE PETICION DE INTERES PARTICULAR","Solucionado - Por traslado","SECRETARIA DE GOBIERNO","GESTIONADO"]
[null,3239202021,"AREA DE ATENCION A LA CIUDADANIA","E-MAIL","DERECHO DE PETICION DE INTERES GENERAL","Solucionado - Por traslado","SECRETARIA DE PLANEACION","GESTIONADO"]
[null,3242062021,"AREA DE ATENCION A LA CIUDADANIA","WEB","DERECHO DE PETICION DE INTERES GENERAL","Solucionado - Por traslado","SECRETARIA DE GOBIERNO","GESTIONADO"]
[null,3243162021,"AREA DE ATENCION A LA CIUDADANIA","WEB","DERECHO DE PETICION DE INTERES PARTICULAR","Solucionado por asignar - Trasladar","SECRETARIA DE AMBIENTE","PENDIENTE"]
[null,3245782021,"AREA DE ATENCION A LA CIUDADANIA","WEB","DERECHO DE PETICION DE INTERES PARTICULAR","Solucionado por asignar - Trasladar","SECRETARIA DE GOBIERNO","PENDIENTE"]
[null,3245852021,"AREA DE ATENCION A LA CIUDADANIA","WEB","DERECHO DE PETICION DE INTERES PARTICULAR","Solucionado - Por traslado","CATASTRO","GESTIONADO"]
[null,3245922021,"AREA DE ATENCION A LA CIUDADANIA","WEB","DERECHO DE PETICION DE INTERES PARTICULAR","Solucionado - Por traslado","SECRETARIA DE GOBIERNO","GESTIONADO"]
[null,3250162021,"AREA DE ATENCION A LA CIUDADANIA","WEB","DERECHO DE PETICION DE INTERES GENERAL","Solucionado por asignar - Trasladar","SECRETARIA DE AMBIENTE","PENDIENTE"]
[null,3250442021,"AREA DE ATENCION A LA CIUDADANIA","WEB","DERECHO DE PETICION DE INTERES GENERAL","Solucionado - Por traslado","SECRETARIA DE GOBIERNO","GESTIONADO"]
[null,3251972021,"AREA DE ATENCION A LA CIUDADANIA","WEB","DERECHO DE PETICION DE INTERES PARTICULAR","Solucionado - Por traslado","CATASTRO","GESTIONADO"]
[null,3258612021,"AREA DE ATENCION A LA CIUDADANIA","WEB","DERECHO DE PETICION DE INTERES PARTICULAR","Solucionado por asignar - Trasladar","SECRETARIA DE AMBIENTE","PENDIENTE"]
[null,3259722021,"AREA DE ATENCION A LA CIUDADANIA","WEB","DERECHO DE PETICION DE INTERES GENERAL","Solucionado por asignar - Trasladar","SECRETARIA DE AMBIENTE","PENDIENTE"]
[null,3267372021,"AREA DE ATENCION A LA CIUDADANIA","WEB","CONSULTA","Solucionado - Por traslado","SECRETARIA DE GOBIERNO","GESTIONADO"]
[null,3268322021,"AREA DE ATENCION A LA CIUDADANIA","TELEFONO","DERECHO DE PETICION DE INTERES GENERAL","Solucionado - Por traslado","IDRD","GESTIONADO"]
[null,3270132021,"AREA DE ATENCION A LA CIUDADANIA","WEB","CONSULTA","Solucionado - Por traslado","SECRETARIA DE GOBIERNO","GESTIONADO"]
[null,3276032021,"AREA DE ATENCION A LA CIUDADANIA","E-MAIL","DERECHO DE PETICION DE INTERES GENERAL","Solucionado - Por traslado","SECRETARIA DE GOBIERNO","GESTIONADO"]
[null,3277402021,"AREA DE ATENCION A LA CIUDADANIA","WEB","DERECHO DE PETICION DE INTERES PARTICULAR","Solucionado - Por traslado","SECRETARIA DE GOBIERNO","GESTIONADO"]
[null,3282312021,"AREA DE ATENCION A LA CIUDADANIA","WEB","DERECHO DE PETICION DE INTERES PARTICULAR","Solucionado - Por traslado","ACUEDUCTO - EAAB-ESP","GESTIONADO"]
[null,3282442021,"AREA DE ATENCION A LA CIUDADANIA","WEB","DERECHO DE PETICION DE INTERES PARTICULAR","Solucionado - Por traslado","SECRETARIA DE AMBIENTE","GESTIONADO"]
[null,3282732021,"AREA DE ATENCION A LA CIUDADANIA","WEB","DERECHO DE PETICION DE INTERES GENERAL","Solucionado - Por traslado","IDRD","GESTIONADO"]
[null,3283322021,"AREA DE ATENCION A LA CIUDADANIA","WEB","DERECHO DE PETICION DE INTERES PARTICULAR","Solucionado por asignar - Trasladar","SECRETARIA DE AMBIENTE","PENDIENTE"]
[null,3287932021,"AREA DE ATENCION A LA CIUDADANIA","WEB","QUEJA","Solucionado - Por traslado","SECRETARIA DE GOBIERNO","GESTIONADO"]
[null,3288212021,"AREA DE ATENCION A LA CIUDADANIA","WEB","DERECHO DE PETICION DE INTERES PARTICULAR","Solucionado - Por traslado","SECRETARIA DE PLANEACION","GESTIONADO"]
[null,3289502021,"AREA DE ATENCION A LA CIUDADANIA","WEB","DERECHO DE PETICION DE INTERES PARTICULAR","Solucionado - Por traslado","SECRETARIA DE AMBIENTE","GESTIONADO"]
[null,3289542021,"AREA DE ATENCION A LA CIUDADANIA","WEB","DERECHO DE PETICION DE INTERES PARTICULAR","Solucionado - Por traslado","SECRETARIA DE GOBIERNO","GESTIONADO"]
[null,3289622021,"AREA DE ATENCION A LA CIUDADANIA","E-MAIL","DERECHO DE PETICION DE INTERES PARTICULAR","Solucionado - Por traslado","SECRETARIA DE GOBIERNO","GESTIONADO"]
[null,3290602021,"AREA DE ATENCION A LA CIUDADANIA","WEB","DERECHO DE PETICION DE INTERES PARTICULAR","Solucionado - Por traslado","SECRETARIA DE GOBIERNO","GESTIONADO"]
[null,3294572021,"AREA DE ATENCION A LA CIUDADANIA","WEB","RECLAMO","Solucionado - Por traslado","UAESP","GESTIONADO"]
[null,3296242021,"AREA DE ATENCION A LA CIUDADANIA","WEB","DERECHO DE PETICION DE INTERES PARTICULAR","Solucionado - Por traslado","SECRETARIA DE GOBIERNO","GESTIONADO"]
[null,3298922021,"AREA DE ATENCION A LA CIUDADANIA","WEB","DERECHO DE PETICION DE INTERES PARTICULAR","Solucionado - Por traslado","SECRETARIA DE GOBIERNO","GESTIONADO"]
[null,3299802021,"AREA DE ATENCION A LA CIUDADANIA","WEB","DERECHO DE PETICION DE INTERES PARTICULAR","Solucionado - Por traslado","SECRETARIA DE GOBIERNO","GESTIONADO"]
[null,3300202021,"AREA DE ATENCION A LA CIUDADANIA","WEB","DERECHO DE PETICION DE INTERES PARTICULAR","Solucionado - Por traslado","SECRETARIA DE PLANEACION","GESTIONADO"]
[null,3300432021,"AREA DE ATENCION A LA CIUDADANIA","WEB","DERECHO DE PETICION DE INTERES GENERAL","Solucionado - Por traslado","SECRETARIA DE GOBIERNO","GESTIONADO"]
[null,3300452021,"AREA DE ATENCION A LA CIUDADANIA","WEB","DERECHO DE PETICION DE INTERES PARTICULAR","Solucionado - Por traslado","SECRETARIA DE GOBIERNO","GESTIONADO"]
[null,3300472021,"AREA DE ATENCION A LA CIUDADANIA","WEB","RECLAMO","Solucionado - Por traslado","SECRETARIA DE GOBIERNO","GESTIONADO"]
[null,3300492021,"AREA DE ATENCION A LA CIUDADANIA","WEB","DERECHO DE PETICION DE INTERES GENERAL","Solucionado - Por traslado","SECRETARIA DE GOBIERNO","GESTIONADO"]
[null,3300502021,"AREA DE ATENCION A LA CIUDADANIA","WEB","DERECHO DE PETICION DE INTERES GENERAL","Solucionado - Por traslado","SECRETARIA DE GOBIERNO","GESTIONADO"]
[null,3301532021,"AREA DE ATENCION A LA CIUDADANIA","WEB","DERECHO DE PETICION DE INTERES PARTICULAR","Solucionado - Por traslado","SECRETARIA DE GOBIERNO","GESTIONADO"]
[null,3302362021,"AREA DE ATENCION A LA CIUDADANIA","WEB","RECLAMO","Solucionado - Por traslado","SECRETARIA DE GOBIERNO","GESTIONADO"]
[null,3304952021,"AREA DE ATENCION A LA CIUDADANIA","WEB","DERECHO DE PETICION DE INTERES PARTICULAR","Solucionado - Por traslado","SECRETARIA DE GOBIERNO","GESTIONADO"]
[null,3305472021,"AREA DE ATENCION A LA CIUDADANIA","WEB","DERECHO DE PETICION DE INTERES GENERAL","Solucionado - Por traslado","SECRETARIA DE GOBIERNO","GESTIONADO"]
[null,3305632021,"AREA DE ATENCION A LA CIUDADANIA","WEB","DERECHO DE PETICION DE INTERES PARTICULAR","Solucionado - Por traslado","SECRETARIA DE GOBIERNO","GESTIONADO"]
[null,3305982021,"AREA DE ATENCION A LA CIUDADANIA","WEB","DERECHO DE PETICION DE INTERES GENERAL","Solucionado - Por traslado","SECRETARIA DE GOBIERNO","GESTIONADO"]
[null,3308982021,"AREA DE ATENCION A LA CIUDADANIA","WEB","DERECHO DE PETICION DE INTERES PARTICULAR","Solucionado por asignar - Trasladar","SECRETARIA DE INTEGRACION SOCIAL","PENDIENTE"]
[null,3316292021,"AREA DE ATENCION A LA CIUDADANIA","WEB","DERECHO DE PETICION DE INTERES PARTICULAR","Solucionado - Por traslado","ACUEDUCTO - EAAB-ESP","GESTIONADO"]
[null,3325802021,"AREA DE ATENCION A LA CIUDADANIA","WEB","QUEJA","Solucionado - Por traslado","SECRETARIA DE GOBIERNO","GESTIONADO"]
[null,3326082021,"AREA DE ATENCION A LA CIUDADANIA","WEB","DERECHO DE PETICION DE INTERES PARTICULAR","Solucionado - Por traslado","SECRETARIA DE GOBIERNO","GESTIONADO"]
[null,3329432021,"AREA DE ATENCION A LA CIUDADANIA","WEB","DERECHO DE PETICION DE INTERES PARTICULAR","Solucionado - Por traslado","SECRETARIA MOVILIDAD","GESTIONADO"]
[null,3337172021,"AREA DE ATENCION A LA CIUDADANIA","WEB","DERECHO DE PETICION DE INTERES GENERAL","Solucionado - Por traslado","IDRD","GESTIONADO"]
[null,3339572021,"AREA DE ATENCION A LA CIUDADANIA","WEB","DERECHO DE PETICION DE INTERES GENERAL","Solucionado por asignar - Trasladar","SECRETARIA DE AMBIENTE","PENDIENTE"]
[null,3343252021,"AREA DE ATENCION A LA CIUDADANIA","WEB","DERECHO DE PETICION DE INTERES PARTICULAR","Solucionado - Por traslado","SECRETARIA DE GOBIERNO","GESTIONADO"]
[null,3345682021,"AREA DE ATENCION A LA CIUDADANIA","WEB","DERECHO DE PETICION DE INTERES PARTICULAR","Solucionado - Por traslado","SECRETARIA DE AMBIENTE","GESTIONADO"]
[null,3345892021,"AREA DE ATENCION A LA CIUDADANIA","WEB","DERECHO DE PETICION DE INTERES PARTICULAR","Solucionado por asignar - Trasladar","SECRETARIA DE GOBIERNO","PENDIENTE"]
[null,3351312021,"AREA DE ATENCION A LA CIUDADANIA","WEB","DERECHO DE PETICION DE INTERES GENERAL","Solucionado por asignar - Trasladar","SECRETARIA DE GOBIERNO","PENDIENTE"]
[null,3354892021,"AREA DE ATENCION A LA CIUDADANIA","TELEFONO","DERECHO DE PETICION DE INTERES GENERAL","Solucionado por asignar - Trasladar","SECRETARIA DE GOBIERNO","PENDIENTE"]
[null,3355602021,"AREA DE ATENCION A LA CIUDADANIA","WEB","QUEJA","Solucionado - Por traslado","SECRETARIA MOVILIDAD","GESTIONADO"]
[null,3355632021,"AREA DE ATENCION A LA CIUDADANIA","WEB","QUEJA","Solucionado - Por traslado","SECRETARIA MOVILIDAD","GESTIONADO"]
[null,3355902021,"AREA DE ATENCION A LA CIUDADANIA","TELEFONO","DERECHO DE PETICION DE INTERES GENERAL","Solucionado - Por traslado","SECRETARIA DE INTEGRACION SOCIAL","GESTIONADO"]
[null,3356022021,"AREA DE ATENCION A LA CIUDADANIA","WEB","QUEJA","Solucionado - Por traslado","SECRETARIA DE GOBIERNO","GESTIONADO"]
[null,3356972021,"AREA DE ATENCION A LA CIUDADANIA","WEB","DERECHO DE PETICION DE INTERES GENERAL","Solucionado por asignar - Trasladar","SECRETARIA DE GOBIERNO","PENDIENTE"]
[null,3357212021,"AREA DE ATENCION A LA CIUDADANIA","WEB","DERECHO DE PETICION DE INTERES GENERAL","Solucionado - Por traslado","SECRETARIA DE GOBIERNO","GESTIONADO"]
[null,3358222021,"AREA DE ATENCION A LA CIUDADANIA","WEB","DERECHO DE PETICION DE INTERES PARTICULAR","Solucionado - Por traslado","SECRETARIA DE AMBIENTE","GESTIONADO"]
[null,3358372021,"AREA DE ATENCION A LA CIUDADANIA","WEB","DERECHO DE PETICION DE INTERES GENERAL","Solucionado - Por traslado","SECRETARIA DE GOBIERNO","GESTIONADO"]
[null,3359242021,"AREA DE ATENCION A LA CIUDADANIA","WEB","QUEJA","Solucionado - Por traslado","SECRETARIA DE GOBIERNO","GESTIONADO"]
[null,3359982021,"AREA DE ATENCION A LA CIUDADANIA","WEB","DERECHO DE PETICION DE INTERES GENERAL","Solucionado - Por traslado","SECRETARIA DE GOBIERNO","GESTIONADO"]
[null,3360592021,"AREA DE ATENCION A LA CIUDADANIA","WEB","DERECHO DE PETICION DE INTERES GENERAL","Solucionado - Por traslado","SECRETARIA DE GOBIERNO","GESTIONADO"]
[null,3360692021,"AREA DE ATENCION A LA CIUDADANIA","WEB","DERECHO DE PETICION DE INTERES GENERAL","Solucionado - Por traslado","SECRETARIA DE GOBIERNO","GESTIONADO"]
[null,3360782021,"AREA DE ATENCION A LA CIUDADANIA","WEB","DERECHO DE PETICION DE INTERES GENERAL","Solucionado - Por traslado","SECRETARIA DE GOBIERNO","GESTIONADO"]
[null,3363162021,"AREA DE ATENCION A LA CIUDADANIA","WEB","DERECHO DE PETICION DE INTERES GENERAL","Solucionado - Por traslado","ACUEDUCTO - EAAB-ESP","GESTIONADO"]
[null,3366572021,"AREA DE ATENCION A LA CIUDADANIA","WEB","DERECHO DE PETICION DE INTERES GENERAL","Solucionado - Por traslado","SECRETARIA DE AMBIENTE","GESTIONADO"]
[null,3366842021,"AREA DE ATENCION A LA CIUDADANIA","WEB","DERECHO DE PETICION DE INTERES PARTICULAR","Solucionado - Por traslado","IDU","GESTIONADO"]
[null,3370412021,"AREA DE ATENCION A LA CIUDADANIA","WEB","RECLAMO","Solucionado - Por traslado","SECRETARIA DE GOBIERNO","GESTIONADO"]
[null,3376792021,"AREA DE ATENCION A LA CIUDADANIA","WEB","DERECHO DE PETICION DE INTERES PARTICULAR","Solucionado por asignar - Trasladar","SECRETARIA DE GOBIERNO","PENDIENTE"]
[null,3380742021,"AREA DE ATENCION A LA CIUDADANIA","WEB","QUEJA","Solucionado - Por traslado","SECRETARIA DE GOBIERNO","GESTIONADO"]
[null,3386572021,"AREA DE ATENCION A LA CIUDADANIA","WEB","DERECHO DE PETICION DE INTERES PARTICULAR","Solucionado por asignar - Trasladar","SECRETARIA DE GOBIERNO","PENDIENTE"]
[null,3387142021,"AREA DE ATENCION A LA CIUDADANIA","WEB","DERECHO DE PETICION DE INTERES GENERAL","Solucionado por asignar - Trasladar","IDU","PENDIENTE"]
[null,3387362021,"AREA DE ATENCION A LA CIUDADANIA","WEB","QUEJA","Solucionado - Por traslado","SECRETARIA DE GOBIERNO","GESTIONADO"]
[null,3388732021,"AREA DE ATENCION A LA CIUDADANIA","WEB","DERECHO DE PETICION DE INTERES GENERAL","Solucionado - Por traslado","SECRETARIA DE GOBIERNO","GESTIONADO"]
[null,3396832021,"AREA DE ATENCION A LA CIUDADANIA","WEB","DERECHO DE PETICION DE INTERES PARTICULAR","Solucionado por asignar - Trasladar","IPES","PENDIENTE"]
[null,3397642021,"AREA DE ATENCION A LA CIUDADANIA","WEB","DERECHO DE PETICION DE INTERES PARTICULAR","Solucionado - Por traslado","ACUEDUCTO - EAAB-ESP","GESTIONADO"]
[null,3403922021,"AREA DE ATENCION A LA CIUDADANIA","TELEFONO","DERECHO DE PETICION DE INTERES GENERAL","Solucionado - Por traslado","ACUEDUCTO - EAAB-ESP","GESTIONADO"]
[null,3404822021,"AREA DE ATENCION A LA CIUDADANIA","WEB","DERECHO DE PETICION DE INTERES GENERAL","Solucionado - Por traslado","SECRETARIA DE GOBIERNO","GESTIONADO"]
[null,3406392021,"AREA DE ATENCION A LA CIUDADANIA","WEB","DERECHO DE PETICION DE INTERES GENERAL","Solucionado - Por traslado","SECRETARIA DE GOBIERNO","GESTIONADO"]
[null,3409592021,"AREA DE ATENCION A LA CIUDADANIA","WEB","DERECHO DE PETICION DE INTERES PARTICULAR","Solucionado - Por traslado","SECRETARIA MOVILIDAD","GESTIONADO"]
[null,3409882021,"AREA DE ATENCION A LA CIUDADANIA","TELEFONO","DERECHO DE PETICION DE INTERES PARTICULAR","Solucionado - Por traslado","UAESP","GESTIONADO"]
[null,3411762021,"AREA DE ATENCION A LA CIUDADANIA","WEB","DERECHO DE PETICION DE INTERES PARTICULAR","Solucionado - Por traslado","SECRETARIA DE GOBIERNO","GESTIONADO"]
[null,3414032021,"AREA DE ATENCION A LA CIUDADANIA","E-MAIL","DERECHO DE PETICION DE INTERES PARTICULAR","Solucionado - Por traslado","SECRETARIA DE AMBIENTE","GESTIONADO"]
[null,3415032021,"AREA DE ATENCION A LA CIUDADANIA","E-MAIL","DERECHO DE PETICION DE INTERES GENERAL","Solucionado por asignar - Trasladar","IDU","PENDIENTE"]
[null,3417382021,"AREA DE ATENCION A LA CIUDADANIA","WEB","DERECHO DE PETICION DE INTERES PARTICULAR","Solucionado por asignar - Trasladar","SECRETARIA DE GOBIERNO","PENDIENTE"]
[null,3420302021,"AREA DE ATENCION A LA CIUDADANIA","WEB","DERECHO DE PETICION DE INTERES GENERAL","Solucionado - Por traslado","SECRETARIA DE AMBIENTE","GESTIONADO"]
[null,3424982021,"AREA DE ATENCION A LA CIUDADANIA","WEB","DERECHO DE PETICION DE INTERES GENERAL","Solucionado - Por traslado","SECRETARIA DE GOBIERNO","GESTIONADO"]
[null,3431452021,"AREA DE ATENCION A LA CIUDADANIA","E-MAIL","DERECHO DE PETICION DE INTERES GENERAL","Solucionado por asignar - Trasladar","ACUEDUCTO - EAAB-ESP","PENDIENTE"]
[null,3434012021,"AREA DE ATENCION A LA CIUDADANIA","WEB","QUEJA","Solucionado - Por traslado","SECRETARIA DE GOBIERNO","GESTIONADO"]
[null,3438732021,"AREA DE ATENCION A LA CIUDADANIA","WEB","DERECHO DE PETICION DE INTERES GENERAL","Solucionado - Por traslado","IDIPRON","GESTIONADO"]
[null,3439782021,"AREA DE ATENCION A LA CIUDADANIA","WEB","DERECHO DE PETICION DE INTERES PARTICULAR","Solucionado - Por traslado","SECRETARIA DE GOBIERNO","GESTIONADO"]
[null,3441012021,"AREA DE ATENCION A LA CIUDADANIA","WEB","QUEJA","Solucionado - Por traslado","SECRETARIA DE GOBIERNO","GESTIONADO"]
[null,3441142021,"AREA DE ATENCION A LA CIUDADANIA","WEB","DERECHO DE PETICION DE INTERES PARTICULAR","Solucionado - Por traslado","SECRETARIA DE GOBIERNO","GESTIONADO"]
[null,3443012021,"AREA DE ATENCION A LA CIUDADANIA","WEB","QUEJA","Solucionado - Por traslado","SECRETARIA DE GOBIERNO","GESTIONADO"]
[null,3443832021,"AREA DE ATENCION A LA CIUDADANIA","WEB","DERECHO DE PETICION DE INTERES PARTICULAR","Solucionado - Por traslado","SECRETARIA DE AMBIENTE","GESTIONADO"]
[null,3444192021,"AREA DE ATENCION A LA CIUDADANIA","WEB","QUEJA","Solucionado - Por traslado","IDRD","GESTIONADO"]
[null,3444212021,"AREA DE ATENCION A LA CIUDADANIA","WEB","DERECHO DE PETICION DE INTERES PARTICULAR","Solucionado - Por traslado","IDRD","GESTIONADO"]
[null,3445032021,"AREA DE ATENCION A LA CIUDADANIA","WEB","DERECHO DE PETICION DE INTERES PARTICULAR","Solucionado - Por traslado","SECRETARIA DE GOBIERNO","GESTIONADO"]
[null,3445762021,"AREA DE ATENCION A LA CIUDADANIA","TELEFONO","DERECHO DE PETICION DE INTERES PARTICULAR","Solucionado - Por traslado","SECRETARIA GENERAL","GESTIONADO"]
[null,3446682021,"AREA DE ATENCION A LA CIUDADANIA","WEB","DERECHO DE PETICION DE INTERES GENERAL","Solucionado - Por traslado","CATASTRO","GESTIONADO"]
[null,3447522021,"AREA DE ATENCION A LA CIUDADANIA","WEB","DERECHO DE PETICION DE INTERES PARTICULAR","Solucionado - Por traslado","SECRETARIA DE AMBIENTE","GESTIONADO"]
[null,3448462021,"AREA DE ATENCION A LA CIUDADANIA","WEB","RECLAMO","Solucionado - Por traslado","SECRETARIA DE GOBIERNO","GESTIONADO"]
[null,3451842021,"AREA DE ATENCION A LA CIUDADANIA","WEB","DERECHO DE PETICION DE INTERES GENERAL","Solucionado - Por traslado","SECRETARIA DE GOBIERNO","GESTIONADO"]
[null,3454722021,"AREA DE ATENCION A LA CIUDADANIA","TELEFONO","DERECHO DE PETICION DE INTERES GENERAL","Solucionado - Por traslado","SECRETARIA DE AMBIENTE","GESTIONADO"]
[null,3455862021,"AREA DE ATENCION A LA CIUDADANIA","WEB","DERECHO DE PETICION DE INTERES PARTICULAR","Solucionado - Por traslado","SECRETARIA DE GOBIERNO","GESTIONADO"]
[null,3458082021,"AREA DE ATENCION A LA CIUDADANIA","WEB","DERECHO DE PETICION DE INTERES PARTICULAR","Solucionado - Por traslado","SECRETARIA DE GOBIERNO","GESTIONADO"]
[null,3460252021,"AREA DE ATENCION A LA CIUDADANIA","WEB","DERECHO DE PETICION DE INTERES PARTICULAR","Solucionado - Por traslado","IDU","GESTIONADO"]
[null,3464462021,"AREA DE ATENCION A LA CIUDADANIA","WEB","DERECHO DE PETICION DE INTERES PARTICULAR","Solucionado - Por traslado","SECRETARIA DE GOBIERNO","GESTIONADO"]
[null,3471712021,"AREA DE ATENCION A LA CIUDADANIA","WEB","DERECHO DE PETICION DE INTERES GENERAL","Solucionado - Por traslado","SECRETARIA DE INTEGRACION SOCIAL","GESTIONADO"]
[null,3475122021,"AREA DE ATENCION A LA CIUDADANIA","WEB","DERECHO DE PETICION DE INTERES GENERAL","Solucionado - Por traslado","SECRETARIA DE GOBIERNO","GESTIONADO"]
[null,3478252021,"AREA DE ATENCION A LA CIUDADANIA","WEB","DERECHO DE PETICION DE INTERES GENERAL","Solucionado - Por traslado","SECRETARIA MOVILIDAD","GESTIONADO"]
[null,3484732021,"AREA DE ATENCION A LA CIUDADANIA","WEB","DERECHO DE PETICION DE INTERES GENERAL","Solucionado - Por traslado","SECRETARIA DE GOBIERNO","GESTIONADO"]
[null,3484872021,"AREA DE ATENCION A LA CIUDADANIA","WEB","DERECHO DE PETICION DE INTERES GENERAL","Solucionado - Por traslado","IDRD","PENDIENTE"]
[null,3485742021,"AREA DE ATENCION A LA CIUDADANIA","WEB","DERECHO DE PETICION DE INTERES PARTICULAR","Solucionado - Por traslado","SECRETARIA DE GOBIERNO","GESTIONADO"]
[null,3488812021,"AREA DE ATENCION A LA CIUDADANIA","WEB","DERECHO DE PETICION DE INTERES PARTICULAR","Solucionado - Por traslado","SECRETARIA DE GOBIERNO","GESTIONADO"]
[null,3489482021,"AREA DE ATENCION A LA CIUDADANIA","TELEFONO","DERECHO DE PETICION DE INTERES GENERAL","Solucionado - Por traslado","SECRETARIA DE AMBIENTE","GESTIONADO"]
[null,3489812021,"AREA DE ATENCION A LA CIUDADANIA","TELEFONO","DERECHO DE PETICION DE INTERES GENERAL","Solucionado - Por traslado","IDU","GESTIONADO"]
[null,3490922021,"AREA DE ATENCION A LA CIUDADANIA","WEB","DERECHO DE PETICION DE INTERES PARTICULAR","Solucionado - Por traslado","SECRETARIA DE GOBIERNO","GESTIONADO"]
[null,3492962021,"AREA DE ATENCION A LA CIUDADANIA","WEB","QUEJA","Solucionado - Por traslado","SECRETARIA MOVILIDAD","GESTIONADO"]
[null,3493422021,"AREA DE ATENCION A LA CIUDADANIA","WEB","DERECHO DE PETICION DE INTERES PARTICULAR","Solucionado - Por traslado","SECRETARIA MOVILIDAD","GESTIONADO"]
[null,3493842021,"AREA DE ATENCION A LA CIUDADANIA","WEB","DERECHO DE PETICION DE INTERES GENERAL","Solucionado - Por traslado","SECRETARIA DE GOBIERNO","GESTIONADO"]
[null,3495582021,"AREA DE ATENCION A LA CIUDADANIA","WEB","DERECHO DE PETICION DE INTERES GENERAL","Solucionado - Por traslado","SECRETARIA DE GOBIERNO","GESTIONADO"]
[null,3496192021,"AREA DE ATENCION A LA CIUDADANIA","WEB","DERECHO DE PETICION DE INTERES PARTICULAR","Solucionado por asignar - Trasladar","IDU","PENDIENTE"]
[null,3496482021,"AREA DE ATENCION A LA CIUDADANIA","WEB","DERECHO DE PETICION DE INTERES PARTICULAR","Solucionado - Por traslado","SECRETARIA DE GOBIERNO","GESTIONADO"]
[null,3496872021,"AREA DE ATENCION A LA CIUDADANIA","WEB","DERECHO DE PETICION DE INTERES GENERAL","Solucionado - Por traslado","SECRETARIA DE GOBIERNO","GESTIONADO"]
[null,3496902021,"AREA DE ATENCION A LA CIUDADANIA","WEB","DERECHO DE PETICION DE INTERES GENERAL","Solucionado - Por traslado","JBB - JARDIN BOTANICO","GESTIONADO"]
[null,3499862021,"AREA DE ATENCION A LA CIUDADANIA","WEB","DERECHO DE PETICION DE INTERES GENERAL","Solucionado - Por traslado","SECRETARIA DE GOBIERNO","GESTIONADO"]
[null,3514952021,"AREA DE ATENCION A LA CIUDADANIA","TELEFONO","RECLAMO","Solucionado - Por traslado","SECRETARIA DE GOBIERNO","GESTIONADO"]
[null,3522562021,"AREA DE ATENCION A LA CIUDADANIA","WEB","DERECHO DE PETICION DE INTERES PARTICULAR","Solucionado - Por traslado","SECRETARIA DE GOBIERNO","GESTIONADO"]

{"sheet":"Asignadas a dependencias","index":5,"n_rows":17,"n_cols":4,"rows_kept":17,"cut":false,"hidden":false,"merged":[[16,1,28,3],[9,1,14,2],[10,3,14,4]]}
[]
[]
[]
[]
[]
[]
[]
[]
[]
[null,"REPORTE  GESTIÓN DE PETICIONES\n\nFecha:  2021- 10- 01    a   2021 - 10 - 31\nEstado de Petición:  Al Periodo"]
[null,null,null,"\n"]
[]
[]
[]
[]
[]
[null,"El tiempo promedio de respuesta general según el Decreto 491 de 2020  de las dependencias y/o áreas de la Defensoría del Espacio Público fue de 24 días como se observa en la tabla,  sin embargo la Subdirección Administrativa Financiera y de Control Disciplinario respondío una Denuncia por actos de corrupción cuatro días despues de los terminos de ley  ya que para este tipo de solicitud el tiempo de respuesta es de 30 días y la Subdirección de Administración Inmobiliaria y de Espacio Público respondio una solicitud de copia 2 días despues de los terminos de ley, ya que para este tipo de solicitud el tiempo de respuesta es de 20 días."]

{"sheet":"Peticiones ciudadanas por tema","index":6,"n_rows":43,"n_cols":5,"rows_kept":43,"cut":false,"hidden":false,"merged":[[33,1,35,1],[8,2,9,4],[11,1,12,4],[13,4,29,6],[14,1,18,1],[19,1,23,1],[24,1,28,1],[29,1,32,1],[10,1,10,4]]}
[]
[]
[]
[]
[]
[]
[]
[]
[]
[]
[]
[]
[]
[null,"Dependencia","Tema de la petición","cantidad","En el cuadro se presenta el TOP 5 por dependencia, de los temas mas frecuentes asociados a los trámites y servicios en las PQRS presentadas por la ciudadanía, durante el periodo en estudio y asignadas a la entidad, registrados en el formato 127- FORAC-19 establecido en el Sistema de Gestión Institucional ."]
[null,"SUBDIRECCION DE REGISTRO INMOBILIARIO","Competencia otras entidades",16]
[null,null,"Denuncia otros elementos",10]
[null,null,"Asesoría en administración y sostenibilidad del espacio público",9]
[null,null,"Certificación de la propiedad inmobiliaria",6]
[null,null,"Denuncia extensión actividad comercial",5]
[null,"SUBDIRECCION DE ADMINISTRACION INMOBILIARIA Y DE ESPACIO PUBLICO","Competencia otras entidades",65]
[null,null,"Asesoría en administración y sostenibilidad del espacio público",47]
[null,null,"Certificación de la propiedad inmobiliaria",26]
[null,null,"Denuncia otros elementos",15]
[null,null,"Asesoria en contratos de administración",11]
[null,"SUBDIRECCION ADMINISTRATIVA  FINANCIERA Y DE CONTROL DISCIPLINARIO","Competencia otras entidades",2]
[null,null,"Denuncia basuras",1]
[null,null,"Peticiones entre entidades",1]
[null,null,"Información de zonas de cesión",1]
[null,null,"Certificación de la propiedad inmobiliaria",1]
[null,"OFICINA ASESORA JURIDICA","Certificación de la propiedad inmobiliaria",2]
[null,null,"Competencia otras entidades",1]
[null,null,"Asesoría en administración y sostenibilidad del espacio público",1]
[null,null,"Autorización de uso",1]
[null,"DESPACHO","Mantenimiento espacio público",1]
[null,null,"Asesoría en administración y sostenibilidad del espacio público",1]
[null,null,"Parqueaderos",1]
[null,null,"Denuncia ventas informales",1]
[null,null,"Entrega de zonas de cesión",1]
[null,"AREA DE ATENCION A LA CIUDADANIA","Competencia otras entidades",70]
[null,null,"Asesoría en administración y sostenibilidad del espacio público",32]
[null,null,"Certificación de la propiedad inmobiliaria",18]
[null,null,"Autorización de uso",11]
[null,null,"Denuncia otros elementos",10]

{"sheet":"Peticiones asignadas a la entid","index":7,"n_rows":383,"n_cols":7,"rows_kept":383,"cut":false,"hidden":false,"merged":[[9,1,15,2],[12,3,14,4]]}
[]
[]
[]
[]
[]
[]
[]
[]
[]
[null,"REPORTE  GESTIÓN DE PETICIONES\n\nFecha:  2021- 10- 01    a   2021 - 10 - 31\nEstado de Petición:  Al Periodo"]
[]
[]
[]
[]
[]
[]
[]
[]
[null,"Número petición\nNumero de registro en el Sistema","Dependencia:\nNombre asociado al usuario que tiene a cargo la petición ","Canal:\nNombre del canal parametrizado en el sistema por el cual fue registrada la petición","Tipología actualizada: \nTipo de documento utilizado por la entidad","Días gestión\nDías calendario transcurridos desde la fecha de inicio de términos hasta el último día del mes","Estado del Requerimiento\n \"Gestionado\" o \"Pendiente\" de respuesta definitiva por  parte de la Defensoría del Espacio Público o de las entidades competentes"]
[null,2694862021,"SUBDIRECCION DE REGISTRO INMOBILIARIO","ESCRITO","DERECHO DE PETICION DE INTERES GENERAL",30,"GESTIONADO"]
[null,2694892021,"SUBDIRECCION DE REGISTRO INMOBILIARIO","ESCRITO","DERECHO DE PETICION DE INTERES GENERAL",30,"GESTIONADO"]
[null,2728892021,"SUBDIRECCION DE REGISTRO INMOBILIARIO","ESCRITO","DERECHO DE PETICION DE INTERES PARTICULAR",28,"GESTIONADO"]
[null,2747132021,"SUBDIRECCION DE ADMINISTRACION INMOBILIARIA Y DE ESPACIO PUBLICO","WEB","DERECHO DE PETICION DE INTERES GENERAL",31,"GESTIONADO"]
[null,2797992021,"SUBDIRECCION DE REGISTRO INMOBILIARIO","ESCRITO","DERECHO DE PETICION DE INTERES PARTICULAR",29,"GESTIONADO"]
[null,2809612021,"SUBDIRECCION DE REGISTRO INMOBILIARIO","E-MAIL","DERECHO DE PETICION DE INTERES GENERAL",28,"GESTIONADO"]
[null,2829762021,"SUBDIRECCION DE REGISTRO INMOBILIARIO","WEB","DERECHO DE PETICION DE INTERES GENERAL",29,"GESTIONADO"]
[null,2842242021,"SUBDIRECCION DE REGISTRO INMOBILIARIO","ESCRITO","DERECHO DE PETICION DE INTERES PARTICULAR",8,"PENDIENTE"]
[null,2844282021,"SUBDIRECCION DE REGISTRO INMOBILIARIO","WEB","DERECHO DE PETICION DE INTERES PARTICULAR",29,"GESTIONADO"]
[null,2868042021,"SUBDIRECCION DE REGISTRO INMOBILIARIO","ESCRITO","DERECHO DE PETICION DE INTERES PARTICULAR",31,"GESTIONADO"]
[null,2887192021,"SUBDIRECCION DE REGISTRO INMOBILIARIO","WEB","DERECHO DE PETICION DE INTERES GENERAL",30,"GESTIONADO"]
[null,2935812021,"SUBDIRECCION DE REGISTRO INMOBILIARIO","WEB","DERECHO DE PETICION DE INTERES GENERAL",27,"GESTIONADO"]
[null,2968432021,"SUBDIRECCION DE REGISTRO INMOBILIARIO","ESCRITO","DERECHO DE PETICION DE INTERES GENERAL",27,"GESTIONADO"]
[null,2998262021,"SUBDIRECCION DE ADMINISTRACION INMOBILIARIA Y DE ESPACIO PUBLICO","ESCRITO","DERECHO DE PETICION DE INTERES PARTICULAR",28,"PENDIENTE"]
[null,2999072021,"SUBDIRECCION DE REGISTRO INMOBILIARIO","ESCRITO","DERECHO DE PETICION DE INTERES PARTICULAR",28,"PENDIENTE"]
[null,2999212021,"SUBDIRECCION DE ADMINISTRACION INMOBILIARIA Y DE ESPACIO PUBLICO","ESCRITO","DERECHO DE PETICION DE INTERES GENERAL",27,"GESTIONADO"]
[null,3011222021,"SUBDIRECCION DE REGISTRO INMOBILIARIO","ESCRITO","DERECHO DE PETICION DE INTERES PARTICULAR",28,"GESTIONADO"]
[null,3066402021,"SUBDIRECCION DE ADMINISTRACION INMOBILIARIA Y DE ESPACIO PUBLICO","ESCRITO","DERECHO DE PETICION DE INTERES PARTICULAR",25,"PENDIENTE"]
[null,3074242021,"SUBDIRECCION DE ADMINISTRACION INMOBILIARIA Y DE ESPACIO PUBLICO","ESCRITO","DERECHO DE PETICION DE INTERES PARTICULAR",24,"PENDIENTE"]
[null,3074602021,"SUBDIRECCION DE ADMINISTRACION INMOBILIARIA Y DE ESPACIO PUBLICO","WEB","DERECHO DE PETICION DE INTERES PARTICULAR",23,"PENDIENTE"]
[null,3089232021,"SUBDIRECCION DE ADMINISTRACION INMOBILIARIA Y DE ESPACIO PUBLICO","WEB","DERECHO DE PETICION DE INTERES GENERAL",2,"PENDIENTE"]
[null,3089232021,"SUBDIRECCION ADMINISTRATIVA  FINANCIERA Y DE CONTROL DISCIPLINARIO","WEB","DERECHO DE PETICION DE INTERES GENERAL",7,"PENDIENTE"]
[null,3089252021,"SUBDIRECCION DE ADMINISTRACION INMOBILIARIA Y DE ESPACIO PUBLICO","WEB","DERECHO DE PETICION DE INTERES GENERAL",15,"PENDIENTE"]
[null,3089262021,"SUBDIRECCION ADMINISTRATIVA  FINANCIERA Y DE CONTROL DISCIPLINARIO","WEB","DERECHO DE PETICION DE INTERES GENERAL",1,"GESTIONADO"]
[null,3131992021,"OFICINA ASESORA JURIDICA","ESCRITO","DERECHO DE PETICION DE INTERES PARTICULAR",15,"GESTIONADO"]
[null,3150282021,"SUBDIRECCION DE ADMINISTRACION INMOBILIARIA Y DE ESPACIO PUBLICO","WEB","DERECHO DE PETICION DE INTERES GENERAL",19,"PENDIENTE"]
[null,3160972021,"SUBDIRECCION DE ADMINISTRACION INMOBILIARIA Y DE ESPACIO PUBLICO","WEB","QUEJA",19,"PENDIENTE"]
[null,3162702021,"SUBDIRECCION DE ADMINISTRACION INMOBILIARIA Y DE ESPACIO PUBLICO","WEB","DERECHO DE PETICION DE INTERES GENERAL",19,"PENDIENTE"]
[null,3163562021,"SUBDIRECCION DE ADMINISTRACION INMOBILIARIA Y DE ESPACIO PUBLICO","WEB","QUEJA",19,"PENDIENTE"]
[null,3167002021,"SUBDIRECCION DE ADMINISTRACION INMOBILIARIA Y DE ESPACIO PUBLICO","E-MAIL","DERECHO DE PETICION DE INTERES PARTICULAR",19,"PENDIENTE"]
[null,3167252021,"SUBDIRECCION DE ADMINISTRACION INMOBILIARIA Y DE ESPACIO PUBLICO","ESCRITO","DERECHO DE PETICION DE INTERES PARTICULAR",19,"PENDIENTE"]
[null,3171232021,"SUBDIRECCION DE ADMINISTRACION INMOBILIARIA Y DE ESPACIO PUBLICO","WEB","QUEJA",19,"PENDIENTE"]
[null,3171392021,"SUBDIRECCION DE ADMINISTRACION INMOBILIARIA Y DE ESPACIO PUBLICO","WEB","DERECHO DE PETICION DE INTERES GENERAL",19,"PENDIENTE"]
[null,3175732021,"SUBDIRECCION DE ADMINISTRACION INMOBILIARIA Y DE ESPACIO PUBLICO","TELEFONO","DERECHO DE PETICION DE INTERES GENERAL",19,"PENDIENTE"]
[null,3178682021,"SUBDIRECCION DE ADMINISTRACION INMOBILIARIA Y DE ESPACIO PUBLICO","WEB","DERECHO DE PETICION DE INTERES GENERAL",18,"PENDIENTE"]
[null,3179292021,"SUBDIRECCION DE ADMINISTRACION INMOBILIARIA Y DE ESPACIO PUBLICO","WEB","QUEJA",18,"PENDIENTE"]
[null,3179942021,"SUBDIRECCION DE ADMINISTRACION INMOBILIARIA Y DE ESPACIO PUBLICO","WEB","DERECHO DE PETICION DE INTERES PARTICULAR",18,"PENDIENTE"]
[null,3182672021,"SUBDIRECCION DE ADMINISTRACION INMOBILIARIA Y DE ESPACIO PUBLICO","WEB","DERECHO DE PETICION DE INTERES GENERAL",18,"PENDIENTE"]
[null,3184432021,"SUBDIRECCION DE ADMINISTRACION INMOBILIARIA Y DE ESPACIO PUBLICO","WEB","DERECHO DE PETICION DE INTERES GENERAL",18,"PENDIENTE"]
[null,3185162021,"SUBDIRECCION DE ADMINISTRACION INMOBILIARIA Y DE ESPACIO PUBLICO","ESCRITO","DERECHO DE PETICION DE INTERES GENERAL",18,"PENDIENTE"]
[null,3186402021,"SUBDIRECCION DE ADMINISTRACION INMOBILIARIA Y DE ESPACIO PUBLICO","WEB","QUEJA",18,"PENDIENTE"]
[null,3186522021,"SUBDIRECCION DE ADMINISTRACION INMOBILIARIA Y DE ESPACIO PUBLICO","ESCRITO","DERECHO DE PETICION DE INTERES PARTICULAR",18,"PENDIENTE"]
[null,3187682021,"SUBDIRECCION DE ADMINISTRACION INMOBILIARIA Y DE ESPACIO PUBLICO","ESCRITO","DERECHO DE PETICION DE INTERES PARTICULAR",18,"PENDIENTE"]
[null,3187822021,"SUBDIRECCION DE ADMINISTRACION INMOBILIARIA Y DE ESPACIO PUBLICO","ESCRITO","DERECHO DE PETICION DE INTERES PARTICULAR",18,"PENDIENTE"]
[null,3187852021,"SUBDIRECCION DE ADMINISTRACION INMOBILIARIA Y DE ESPACIO PUBLICO","ESCRITO","DERECHO DE PETICION DE INTERES PARTICULAR",18,"PENDIENTE"]
[null,3187912021,"SUBDIRECCION DE ADMINISTRACION INMOBILIARIA Y DE ESPACIO PUBLICO","ESCRITO","DERECHO DE PETICION DE INTERES PARTICULAR",18,"PENDIENTE"]
[null,3188312021,"SUBDIRECCION DE ADMINISTRACION INMOBILIARIA Y DE ESPACIO PUBLICO","ESCRITO","DERECHO DE PETICION DE INTERES GENERAL",18,"PENDIENTE"]
[null,3190482021,"SUBDIRECCION DE REGISTRO INMOBILIARIO","WEB","DERECHO DE PETICION DE INTERES PARTICULAR",18,"PENDIENTE"]
[null,3191152021,"SUBDIRECCION DE ADMINISTRACION INMOBILIARIA Y DE ESPACIO PUBLICO","ESCRITO","DERECHO DE PETICION DE INTERES GENERAL",18,"PENDIENTE"]
[null,3191382021,"SUBDIRECCION DE ADMINISTRACION INMOBILIARIA Y DE ESPACIO PUBLICO","ESCRITO","DERECHO DE PETICION DE INTERES GENERAL",18,"PENDIENTE"]
[null,3191582021,"SUBDIRECCION DE ADMINISTRACION INMOBILIARIA Y DE ESPACIO PUBLICO","ESCRITO","DERECHO DE PETICION DE INTERES PARTICULAR",18,"PENDIENTE"]
[null,3194232021,"SUBDIRECCION DE REGISTRO INMOBILIARIO","E-MAIL","DERECHO DE PETICION DE INTERES PARTICULAR",17,"GESTIONADO"]
[null,3194262021,"SUBDIRECCION DE ADMINISTRACION INMOBILIARIA Y DE ESPACIO PUBLICO","E-MAIL","DERECHO DE PETICION DE INTERES PARTICULAR",18,"PENDIENTE"]
[null,3194302021,"SUBDIRECCION DE ADMINISTRACION INMOBILIARIA Y DE ESPACIO PUBLICO","E-MAIL","DERECHO DE PETICION DE INTERES PARTICULAR",18,"PENDIENTE"]
[null,3200452021,"SUBDIRECCION DE ADMINISTRACION INMOBILIARIA Y DE ESPACIO PUBLICO","ESCRITO","DERECHO DE PETICION DE INTERES PARTICULAR",17,"PENDIENTE"]
[null,3200582021,"SUBDIRECCION DE ADMINISTRACION INMOBILIARIA Y DE ESPACIO PUBLICO","ESCRITO","DERECHO DE PETICION DE INTERES PARTICULAR",17,"PENDIENTE"]
[null,3200642021,"SUBDIRECCION DE REGISTRO INMOBILIARIO","ESCRITO","DERECHO DE PETICION DE INTERES PARTICULAR",16,"GESTIONADO"]
[null,3200702021,"SUBDIRECCION DE ADMINISTRACION INMOBILIARIA Y DE ESPACIO PUBLICO","ESCRITO","DERECHO DE PETICION DE INTERES PARTICULAR",17,"PENDIENTE"]
[null,3200852021,"SUBDIRECCION DE ADMINISTRACION INMOBILIARIA Y DE ESPACIO PUBLICO","ESCRITO","CONSULTA",17,"PENDIENTE"]
[null,3202812021,"SUBDIRECCION DE ADMINISTRACION INMOBILIARIA Y DE ESPACIO PUBLICO","TELEFONO","DERECHO DE PETICION DE INTERES GENERAL",17,"PENDIENTE"]
[null,3204982021,"SUBDIRECCION DE ADMINISTRACION INMOBILIARIA Y DE ESPACIO PUBLICO","ESCRITO","DERECHO DE PETICION DE INTERES PARTICULAR",17,"PENDIENTE"]
[null,3205082021,"SUBDIRECCION DE ADMINISTRACION INMOBILIARIA Y DE ESPACIO PUBLICO","ESCRITO","DERECHO DE PETICION DE INTERES PARTICULAR",17,"PENDIENTE"]
[null,3205952021,"SUBDIRECCION DE ADMINISTRACION INMOBILIARIA Y DE ESPACIO PUBLICO","WEB","DERECHO DE PETICION DE INTERES PARTICULAR",17,"PENDIENTE"]
[null,3207102021,"SUBDIRECCION DE REGISTRO INMOBILIARIO","WEB","DERECHO DE PETICION DE INTERES GENERAL",17,"PENDIENTE"]
[null,3208472021,"SUBDIRECCION DE ADMINISTRACION INMOBILIARIA Y DE ESPACIO PUBLICO","E-MAIL","DERECHO DE PETICION DE INTERES GENERAL",16,"PENDIENTE"]
[null,3209982021,"SUBDIRECCION ADMINISTRATIVA  FINANCIERA Y DE CONTROL DISCIPLINARIO","WEB","DENUNCIA POR ACTOS DE CORRUPCION",1,"GESTIONADO"]
[null,3210172021,"SUBDIRECCION DE ADMINISTRACION INMOBILIARIA Y DE ESPACIO PUBLICO","WEB","DERECHO DE PETICION DE INTERES GENERAL",17,"PENDIENTE"]
[null,3210402021,"SUBDIRECCION ADMINISTRATIVA  FINANCIERA Y DE CONTROL DISCIPLINARIO","WEB","DERECHO DE PETICION DE INTERES GENERAL",2,"GESTIONADO"]
[null,3211382021,"OFICINA ASESORA JURIDICA","WEB","DERECHO DE PETICION DE INTERES PARTICULAR",11,"GESTIONADO"]
[null,3212982021,"SUBDIRECCION DE ADMINISTRACION INMOBILIARIA Y DE ESPACIO PUBLICO","WEB","SOLICITUD DE COPIA",16,"GESTIONADO"]
[null,3218112021,"SUBDIRECCION DE REGISTRO INMOBILIARIO","ESCRITO","DERECHO DE PETICION DE INTERES GENERAL",16,"PENDIENTE"]
[null,3218592021,"SUBDIRECCION DE ADMINISTRACION INMOBILIARIA Y DE ESPACIO PUBLICO","ESCRITO","DERECHO DE PETICION DE INTERES PARTICULAR",16,"PENDIENTE"]
[null,3218772021,"SUBDIRECCION DE ADMINISTRACION INMOBILIARIA Y DE ESPACIO PUBLICO","ESCRITO","DERECHO DE PETICION DE INTERES PARTICULAR",16,"PENDIENTE"]
[null,3218912021,"SUBDIRECCION DE ADMINISTRACION INMOBILIARIA Y DE ESPACIO PUBLICO","ESCRITO","DERECHO DE PETICION DE INTERES PARTICULAR",16,"PENDIENTE"]
[null,3220072021,"SUBDIRECCION DE ADMINISTRACION INMOBILIARIA Y DE ESPACIO PUBLICO","WEB","DERECHO DE PETICION DE INTERES PARTICULAR",16,"PENDIENTE"]
[null,3222362021,"SUBDIRECCION DE ADMINISTRACION INMOBILIARIA Y DE ESPACIO PUBLICO","WEB","DERECHO DE PETICION DE INTERES PARTICULAR",16,"PENDIENTE"]
[null,3222432021,"SUBDIRECCION DE REGISTRO INMOBILIARIO","WEB","DERECHO DE PETICION DE INTERES PARTICULAR",12,"PENDIENTE"]
[null,3222622021,"SUBDIRECCION DE ADMINISTRACION INMOBILIARIA Y DE ESPACIO PUBLICO","ESCRITO","DERECHO DE PETICION DE INTERES PARTICULAR",16,"PENDIENTE"]
[null,3222812021,"SUBDIRECCION DE ADMINISTRACION INMOBILIARIA Y DE ESPACIO PUBLICO","E-MAIL","DERECHO DE PETICION DE INTERES PARTICULAR",16,"PENDIENTE"]
[null,3223612021,"SUBDIRECCION DE ADMINISTRACION INMOBILIARIA Y DE ESPACIO PUBLICO","ESCRITO","DERECHO DE PETICION DE INTERES PARTICULAR",16,"PENDIENTE"]
[null,3224062021,"SUBDIRECCION DE ADMINISTRACION INMOBILIARIA Y DE ESPACIO PUBLICO","ESCRITO","DERECHO DE PETICION DE INTERES PARTICULAR",16,"PENDIENTE"]
[null,3224952021,"SUBDIRECCION DE ADMINISTRACION INMOBILIARIA Y DE ESPACIO PUBLICO","WEB","DERECHO DE PETICION DE INTERES PARTICULAR",16,"PENDIENTE"]
[null,3225682021,"SUBDIRECCION DE REGISTRO INMOBILIARIO","ESCRITO","DERECHO DE PETICION DE INTERES PARTICULAR",16,"PENDIENTE"]
[null,3228272021,"DESPACHO","WEB","FELICITACION",16,"PENDIENTE"]
[null,3229712021,"SUBDIRECCION DE ADMINISTRACION INMOBILIARIA Y DE ESPACIO PUBLICO","WEB","DERECHO DE PETICION DE INTERES PARTICULAR",15,"PENDIENTE"]
[null,3230872021,"SUBDIRECCION DE REGISTRO INMOBILIARIO","ESCRITO","DERECHO DE PETICION DE INTERES PARTICULAR",15,"PENDIENTE"]
[null,3230892021,"SUBDIRECCION DE ADMINISTRACION INMOBILIARIA Y DE ESPACIO PUBLICO","ESCRITO","DERECHO DE PETICION DE INTERES PARTICULAR",15,"PENDIENTE"]
[null,3231132021,"SUBDIRECCION DE ADMINISTRACION INMOBILIARIA Y DE ESPACIO PUBLICO","ESCRITO","DERECHO DE PETICION DE INTERES GENERAL",15,"PENDIENTE"]
[null,3231642021,"SUBDIRECCION DE ADMINISTRACION INMOBILIARIA Y DE ESPACIO PUBLICO","ESCRITO","DERECHO DE PETICION DE INTERES PARTICULAR",15,"PENDIENTE"]
[null,3234622021,"SUBDIRECCION DE ADMINISTRACION INMOBILIARIA Y DE ESPACIO PUBLICO","TELEFONO","DERECHO DE PETICION DE INTERES GENERAL",15,"PENDIENTE"]
[null,3243162021,"SUBDIRECCION DE ADMINISTRACION INMOBILIARIA Y DE ESPACIO PUBLICO","WEB","DERECHO DE PETICION DE INTERES PARTICULAR",15,"PENDIENTE"]
[null,3245782021,"SUBDIRECCION DE REGISTRO INMOBILIARIO","WEB","DERECHO DE PETICION DE INTERES PARTICULAR",14,"PENDIENTE"]
[null,3249962021,"SUBDIRECCION DE REGISTRO INMOBILIARIO","ESCRITO","DERECHO DE PETICION DE INTERES PARTICULAR",14,"PENDIENTE"]
[null,3250002021,"SUBDIRECCION DE REGISTRO INMOBILIARIO","ESCRITO","DERECHO DE PETICION DE INTERES PARTICULAR",14,"PENDIENTE"]
[null,3250092021,"SUBDIRECCION DE ADMINISTRACION INMOBILIARIA Y DE ESPACIO PUBLICO","ESCRITO","DERECHO DE PETICION DE INTERES PARTICULAR",14,"PENDIENTE"]
[null,3250162021,"SUBDIRECCION DE ADMINISTRACION INMOBILIARIA Y DE ESPACIO PUBLICO","WEB","DERECHO DE PETICION DE INTERES GENERAL",14,"PENDIENTE"]
[null,3250182021,"SUBDIRECCION DE ADMINISTRACION INMOBILIARIA Y DE ESPACIO PUBLICO","ESCRITO","DERECHO DE PETICION DE INTERES PARTICULAR",14,"PENDIENTE"]
[null,3250442021,"SUBDIRECCION ADMINISTRATIVA  FINANCIERA Y DE CONTROL DISCIPLINARIO","WEB","DERECHO DE PETICION DE INTERES GENERAL",1,"GESTIONADO"]
[null,3251122021,"SUBDIRECCION DE ADMINISTRACION INMOBILIARIA Y DE ESPACIO PUBLICO","ESCRITO","DERECHO DE PETICION DE INTERES PARTICULAR",14,"PENDIENTE"]
[null,3251722021,"SUBDIRECCION DE ADMINISTRACION INMOBILIARIA Y DE ESPACIO PUBLICO","E-MAIL","DERECHO DE PETICION DE INTERES PARTICULAR",14,"PENDIENTE"]
[null,3252042021,"SUBDIRECCION DE REGISTRO INMOBILIARIO","ESCRITO","DERECHO DE PETICION DE INTERES PARTICULAR",14,"PENDIENTE"]
[null,3252632021,"SUBDIRECCION DE REGISTRO INMOBILIARIO","ESCRITO","DERECHO DE PETICION DE INTERES PARTICULAR",14,"PENDIENTE"]
[null,3252852021,"SUBDIRECCION DE ADMINISTRACION INMOBILIARIA Y DE ESPACIO PUBLICO","ESCRITO","DERECHO DE PETICION DE INTERES PARTICULAR",14,"PENDIENTE"]
[null,3253582021,"SUBDIRECCION DE ADMINISTRACION INMOBILIARIA Y DE ESPACIO PUBLICO","ESCRITO","DERECHO DE PETICION DE INTERES PARTICULAR",14,"PENDIENTE"]
[null,3253822021,"SUBDIRECCION DE REGISTRO INMOBILIARIO","ESCRITO","DERECHO DE PETICION DE INTERES PARTICULAR",14,"PENDIENTE"]
[null,3258612021,"SUBDIRECCION DE ADMINISTRACION INMOBILIARIA Y DE ESPACIO PUBLICO","WEB","DERECHO DE PETICION DE INTERES PARTICULAR",14,"PENDIENTE"]
[null,3259722021,"SUBDIRECCION DE ADMINISTRACION INMOBILIARIA Y DE ESPACIO PUBLICO","WEB","DERECHO DE PETICION DE INTERES GENERAL",14,"PENDIENTE"]
[null,3260632021,"SUBDIRECCION DE ADMINISTRACION INMOBILIARIA Y DE ESPACIO PUBLICO","WEB","DERECHO DE PETICION DE INTERES GENERAL",14,"PENDIENTE"]
[null,3261342021,"SUBDIRECCION DE ADMINISTRACION INMOBILIARIA Y DE ESPACIO PUBLICO","WEB","DERECHO DE PETICION DE INTERES PARTICULAR",14,"PENDIENTE"]
[null,3263632021,"SUBDIRECCION DE ADMINISTRACION INMOBILIARIA Y DE ESPACIO PUBLICO","WEB","QUEJA",14,"PENDIENTE"]
[null,3264652021,"SUBDIRECCION DE ADMINISTRACION INMOBILIARIA Y DE ESPACIO PUBLICO","WEB","DERECHO DE PETICION DE INTERES PARTICULAR",14,"PENDIENTE"]
[null,3264892021,"SUBDIRECCION DE ADMINISTRACION INMOBILIARIA Y DE ESPACIO PUBLICO","WEB","DERECHO DE PETICION DE INTERES PARTICULAR",14,"PENDIENTE"]
[null,3272782021,"SUBDIRECCION DE ADMINISTRACION INMOBILIARIA Y DE ESPACIO PUBLICO","ESCRITO","DERECHO DE PETICION DE INTERES PARTICULAR",13,"PENDIENTE"]
[null,3272982021,"SUBDIRECCION DE REGISTRO INMOBILIARIO","ESCRITO","DERECHO DE PETICION DE INTERES PARTICULAR",13,"PENDIENTE"]
[null,3273412021,"SUBDIRECCION DE ADMINISTRACION INMOBILIARIA Y DE ESPACIO PUBLICO","ESCRITO","DERECHO DE PETICION DE INTERES PARTICULAR",13,"PENDIENTE"]
[null,3274212021,"SUBDIRECCION DE ADMINISTRACION INMOBILIARIA Y DE ESPACIO PUBLICO","ESCRITO","DERECHO DE PETICION DE INTERES PARTICULAR",1,"PENDIENTE"]
[null,3274212021,"SUBDIRECCION DE REGISTRO INMOBILIARIO","ESCRITO","DERECHO DE PETICION DE INTERES PARTICULAR",13,"PENDIENTE"]
[null,3276682021,"SUBDIRECCION DE REGISTRO INMOBILIARIO","E-MAIL","RECLAMO",12,"PENDIENTE"]
[null,3277272021,"SUBDIRECCION DE ADMINISTRACION INMOBILIARIA Y DE ESPACIO PUBLICO","WEB","DERECHO DE PETICION DE INTERES GENERAL",13,"PENDIENTE"]
[null,3281132021,"SUBDIRECCION DE REGISTRO INMOBILIARIO","ESCRITO","DERECHO DE PETICION DE INTERES PARTICULAR",13,"PENDIENTE"]
[null,3281712021,"SUBDIRECCION DE ADMINISTRACION INMOBILIARIA Y DE ESPACIO PUBLICO","ESCRITO","DERECHO DE PETICION DE INTERES PARTICULAR",13,"PENDIENTE"]
[null,3281762021,"SUBDIRECCION DE REGISTRO INMOBILIARIO","ESCRITO","DERECHO DE PETICION DE INTERES PARTICULAR",13,"PENDIENTE"]
[null,3282232021,"SUBDIRECCION DE ADMINISTRACION INMOBILIARIA Y DE ESPACIO PUBLICO","ESCRITO","DERECHO DE PETICION DE INTERES GENERAL",13,"PENDIENTE"]
[null,3283322021,"SUBDIRECCION DE ADMINISTRACION INMOBILIARIA Y DE ESPACIO PUBLICO","WEB","DERECHO DE PETICION DE INTERES PARTICULAR",13,"PENDIENTE"]
[null,3287602021,"SUBDIRECCION DE ADMINISTRACION INMOBILIARIA Y DE ESPACIO PUBLICO","ESCRITO","DERECHO DE PETICION DE INTERES GENERAL",12,"PENDIENTE"]
[null,3287692021,"SUBDIRECCION DE REGISTRO INMOBILIARIO","ESCRITO","DERECHO DE PETICION DE INTERES PARTICULAR",12,"PENDIENTE"]
[null,3287812021,"SUBDIRECCION DE ADMINISTRACION INMOBILIARIA Y DE ESPACIO PUBLICO","ESCRITO","DERECHO DE PETICION DE INTERES PARTICULAR",12,"PENDIENTE"]
[null,3287982021,"SUBDIRECCION DE ADMINISTRACION INMOBILIARIA Y DE ESPACIO PUBLICO","ESCRITO","DERECHO DE PETICION DE INTERES PARTICULAR",12,"PENDIENTE"]
[null,3288412021,"SUBDIRECCION DE ADMINISTRACION INMOBILIARIA Y DE ESPACIO PUBLICO","ESCRITO","DERECHO DE PETICION DE INTERES PARTICULAR",12,"PENDIENTE"]
[null,3288592021,"SUBDIRECCION DE ADMINISTRACION INMOBILIARIA Y DE ESPACIO PUBLICO","ESCRITO","DERECHO DE PETICION DE INTERES PARTICULAR",12,"PENDIENTE"]
[null,3288732021,"SUBDIRECCION DE ADMINISTRACION INMOBILIARIA Y DE ESPACIO PUBLICO","TELEFONO","DERECHO DE PETICION DE INTERES GENERAL",12,"PENDIENTE"]
[null,3288962021,"SUBDIRECCION DE ADMINISTRACION INMOBILIARIA Y DE ESPACIO PUBLICO","ESCRITO","DERECHO DE PETICION DE INTERES PARTICULAR",12,"PENDIENTE"]
[null,3289352021,"SUBDIRECCION DE ADMINISTRACION INMOBILIARIA Y DE ESPACIO PUBLICO","ESCRITO","DERECHO DE PETICION DE INTERES PARTICULAR",12,"PENDIENTE"]
[null,3289562021,"SUBDIRECCION DE ADMINISTRACION INMOBILIARIA Y DE ESPACIO PUBLICO","ESCRITO","DERECHO DE PETICION DE INTERES PARTICULAR",12,"PENDIENTE"]
[null,3290232021,"SUBDIRECCION DE ADMINISTRACION INMOBILIARIA Y DE ESPACIO PUBLICO","ESCRITO","DERECHO DE PETICION DE INTERES PARTICULAR",12,"PENDIENTE"]
[null,3290672021,"SUBDIRECCION DE ADMINISTRACION INMOBILIARIA Y DE ESPACIO PUBLICO","ESCRITO","DERECHO DE PETICION DE INTERES PARTICULAR",12,"PENDIENTE"]
[null,3290942021,"SUBDIRECCION DE REGISTRO INMOBILIARIO","ESCRITO","DERECHO DE PETICION DE INTERES PARTICULAR",9,"PENDIENTE"]
[null,3292992021,"SUBDIRECCION DE ADMINISTRACION INMOBILIARIA Y DE ESPACIO PUBLICO","ESCRITO","DERECHO DE PETICION DE INTERES PARTICULAR",12,"PENDIENTE"]
[null,3293052021,"SUBDIRECCION DE REGISTRO INMOBILIARIO","ESCRITO","DERECHO DE PETICION DE INTERES PARTICULAR",12,"PENDIENTE"]
[null,3305332021,"SUBDIRECCION DE REGISTRO INMOBILIARIO","ESCRITO","DERECHO DE PETICION DE INTERES PARTICULAR",11,"PENDIENTE"]
[null,3305352021,"SUBDIRECCION DE REGISTRO INMOBILIARIO","ESCRITO","DERECHO DE PETICION DE INTERES PARTICULAR",11,"PENDIENTE"]
[null,3305402021,"SUBDIRECCION DE REGISTRO INMOBILIARIO","ESCRITO","DERECHO DE PETICION DE INTERES PARTICULAR",11,"PENDIENTE"]
[null,3305642021,"SUBDIRECCION DE REGISTRO INMOBILIARIO","ESCRITO","DERECHO DE PETICION DE INTERES PARTICULAR",11,"PENDIENTE"]
[null,3305732021,"SUBDIRECCION DE ADMINISTRACION INMOBILIARIA Y DE ESPACIO PUBLICO","ESCRITO","DERECHO DE PETICION DE INTERES PARTICULAR",11,"PENDIENTE"]
[null,3305762021,"SUBDIRECCION DE REGISTRO INMOBILIARIO","ESCRITO","DERECHO DE PETICION DE INTERES PARTICULAR",11,"PENDIENTE"]
[null,3307752021,"SUBDIRECCION DE ADMINISTRACION INMOBILIARIA Y DE ESPACIO PUBLICO","ESCRITO","DERECHO DE PETICION DE INTERES PARTICULAR",11,"PENDIENTE"]
[null,3307892021,"SUBDIRECCION DE ADMINISTRACION INMOBILIARIA Y DE ESPACIO PUBLICO","ESCRITO","DERECHO DE PETICION DE INTERES PARTICULAR",11,"PENDIENTE"]
[null,3308012021,"SUBDIRECCION DE REGISTRO INMOBILIARIO","ESCRITO","DERECHO DE PETICION DE INTERES PARTICULAR",11,"PENDIENTE"]
[null,3308322021,"OFICINA ASESORA JURIDICA","WEB","DERECHO DE PETICION DE INTERES PARTICULAR",7,"PENDIENTE"]
[null,3308502021,"SUBDIRECCION DE REGISTRO INMOBILIARIO","ESCRITO","DERECHO DE PETICION DE INTERES PARTICULAR",11,"PENDIENTE"]
[null,3308772021,"SUBDIRECCION DE ADMINISTRACION INMOBILIARIA Y DE ESPACIO PUBLICO","ESCRITO","DERECHO DE PETICION DE INTERES PARTICULAR",11,"PENDIENTE"]
[null,3308982021,"SUBDIRECCION DE ADMINISTRACION INMOBILIARIA Y DE ESPACIO PUBLICO","WEB","DERECHO DE PETICION DE INTERES PARTICULAR",11,"PENDIENTE"]
[null,3309282021,"SUBDIRECCION DE ADMINISTRACION INMOBILIARIA Y DE ESPACIO PUBLICO","E-MAIL","DERECHO DE PETICION DE INTERES PARTICULAR",11,"PENDIENTE"]
[null,3309312021,"SUBDIRECCION DE ADMINISTRACION INMOBILIARIA Y DE ESPACIO PUBLICO","WEB","DERECHO DE PETICION DE INTERES PARTICULAR",10,"PENDIENTE"]
[null,3309432021,"SUBDIRECCION DE ADMINISTRACION INMOBILIARIA Y DE ESPACIO PUBLICO","ESCRITO","DERECHO DE PETICION DE INTERES PARTICULAR",11,"PENDIENTE"]
[null,3309862021,"SUBDIRECCION DE ADMINISTRACION INMOBILIARIA Y DE ESPACIO PUBLICO","WEB","DERECHO DE PETICION DE INTERES PARTICULAR",10,"PENDIENTE"]
[null,3310012021,"SUBDIRECCION DE ADMINISTRACION INMOBILIARIA Y DE ESPACIO PUBLICO","WEB","DERECHO DE PETICION DE INTERES PARTICULAR",11,"PENDIENTE"]
[null,3310062021,"SUBDIRECCION DE ADMINISTRACION INMOBILIARIA Y DE ESPACIO PUBLICO","WEB","DERECHO DE PETICION DE INTERES PARTICULAR",10,"PENDIENTE"]
[null,3311152021,"SUBDIRECCION DE ADMINISTRACION INMOBILIARIA Y DE ESPACIO PUBLICO","E-MAIL","DERECHO DE PETICION DE INTERES PARTICULAR",11,"PENDIENTE"]
[null,3311292021,"SUBDIRECCION DE ADMINISTRACION INMOBILIARIA Y DE ESPACIO PUBLICO","E-MAIL","DERECHO DE PETICION DE INTERES PARTICULAR",11,"PENDIENTE"]
[null,3311522021,"SUBDIRECCION DE REGISTRO INMOBILIARIO","E-MAIL","DERECHO DE PETICION DE INTERES PARTICULAR",11,"PENDIENTE"]
[null,3311742021,"SUBDIRECCION DE ADMINISTRACION INMOBILIARIA Y DE ESPACIO PUBLICO","E-MAIL","DERECHO DE PETICION DE INTERES PARTICULAR",11,"PENDIENTE"]
[null,3311892021,"SUBDIRECCION DE ADMINISTRACION INMOBILIARIA Y DE ESPACIO PUBLICO","E-MAIL","DERECHO DE PETICION DE INTERES PARTICULAR",11,"PENDIENTE"]
[null,3312132021,"SUBDIRECCION DE ADMINISTRACION INMOBILIARIA Y DE ESPACIO PUBLICO","E-MAIL","DERECHO DE PETICION DE INTERES PARTICULAR",11,"PENDIENTE"]
[null,3312292021,"SUBDIRECCION DE ADMINISTRACION INMOBILIARIA Y DE ESPACIO PUBLICO","E-MAIL","DERECHO DE PETICION DE INTERES PARTICULAR",11,"PENDIENTE"]
[null,3312382021,"SUBDIRECCION DE ADMINISTRACION INMOBILIARIA Y DE ESPACIO PUBLICO","WEB","QUEJA",10,"PENDIENTE"]
[null,3312462021,"SUBDIRECCION DE ADMINISTRACION INMOBILIARIA Y DE ESPACIO PUBLICO","E-MAIL","DERECHO DE PETICION DE INTERES PARTICULAR",11,"PENDIENTE"]
[null,3312542021,"SUBDIRECCION DE REGISTRO INMOBILIARIO","WEB","DERECHO DE PETICION DE INTERES GENERAL",11,"PENDIENTE"]
[null,3312602021,"SUBDIRECCION DE REGISTRO INMOBILIARIO","ESCRITO","DERECHO DE PETICION DE INTERES PARTICULAR",11,"PENDIENTE"]
[null,3313422021,"SUBDIRECCION DE ADMINISTRACION INMOBILIARIA Y DE ESPACIO PUBLICO","WEB","CONSULTA",10,"PENDIENTE"]
[null,3313452021,"SUBDIRECCION DE ADMINISTRACION INMOBILIARIA Y DE ESPACIO PUBLICO","ESCRITO","DERECHO DE PETICION DE INTERES PARTICULAR",11,"PENDIENTE"]
[null,3313642021,"SUBDIRECCION DE ADMINISTRACION INMOBILIARIA Y DE ESPACIO PUBLICO","ESCRITO","DERECHO DE PETICION DE INTERES PARTICULAR",11,"PENDIENTE"]
[null,3313702021,"SUBDIRECCION DE REGISTRO INMOBILIARIO","WEB","DERECHO DE PETICION DE INTERES GENERAL",11,"PENDIENTE"]
[null,3313802021,"SUBDIRECCION DE ADMINISTRACION INMOBILIARIA Y DE ESPACIO PUBLICO","ESCRITO","DERECHO DE PETICION DE INTERES PARTICULAR",11,"PENDIENTE"]
[null,3317272021,"SUBDIRECCION DE REGISTRO INMOBILIARIO","WEB","DERECHO DE PETICION DE INTERES GENERAL",11,"PENDIENTE"]
[null,3318982021,"SUBDIRECCION DE ADMINISTRACION INMOBILIARIA Y DE ESPACIO PUBLICO","ESCRITO","DERECHO DE PETICION DE INTERES PARTICULAR",11,"PENDIENTE"]
[null,3319022021,"SUBDIRECCION DE ADMINISTRACION INMOBILIARIA Y DE ESPACIO PUBLICO","ESCRITO","DERECHO DE PETICION DE INTERES PARTICULAR",11,"PENDIENTE"]
[null,3322502021,"SUBDIRECCION DE ADMINISTRACION INMOBILIARIA Y DE ESPACIO PUBLICO","TELEFONO","DERECHO DE PETICION DE INTERES GENERAL",10,"PENDIENTE"]
[null,3325852021,"SUBDIRECCION DE REGISTRO INMOBILIARIO","ESCRITO","DERECHO DE PETICION DE INTERES PARTICULAR",10,"PENDIENTE"]
[null,3326052021,"SUBDIRECCION DE REGISTRO INMOBILIARIO","E-MAIL","DERECHO DE PETICION DE INTERES PARTICULAR",10,"PENDIENTE"]
[null,3326292021,"OFICINA ASESORA JURIDICA","ESCRITO","DERECHO DE PETICION DE INTERES PARTICULAR",10,"PENDIENTE"]
[null,3326802021,"SUBDIRECCION DE REGISTRO INMOBILIARIO","E-MAIL","DERECHO DE PETICION DE INTERES PARTICULAR",9,"PENDIENTE"]
[null,3326832021,"SUBDIRECCION DE ADMINISTRACION INMOBILIARIA Y DE ESPACIO PUBLICO","ESCRITO","DERECHO DE PETICION DE INTERES PARTICULAR",10,"PENDIENTE"]
[null,3328122021,"SUBDIRECCION DE ADMINISTRACION INMOBILIARIA Y DE ESPACIO PUBLICO","WEB","DERECHO DE PETICION DE INTERES GENERAL",10,"PENDIENTE"]
[null,3329172021,"DESPACHO","ESCRITO","DERECHO DE PETICION DE INTERES PARTICULAR",10,"PENDIENTE"]
[null,3329502021,"SUBDIRECCION DE ADMINISTRACION INMOBILIARIA Y DE ESPACIO PUBLICO","ESCRITO","DERECHO DE PETICION DE INTERES PARTICULAR",10,"PENDIENTE"]
[null,3338142021,"SUBDIRECCION DE ADMINISTRACION INMOBILIARIA Y DE ESPACIO PUBLICO","WEB","DERECHO DE PETICION DE INTERES PARTICULAR",10,"PENDIENTE"]
[null,3338972021,"SUBDIRECCION DE ADMINISTRACION INMOBILIARIA Y DE ESPACIO PUBLICO","ESCRITO","DERECHO DE PETICION DE INTERES PARTICULAR",10,"PENDIENTE"]
[null,3339052021,"SUBDIRECCION DE REGISTRO INMOBILIARIO","ESCRITO","DERECHO DE PETICION DE INTERES PARTICULAR",10,"PENDIENTE"]
[null,3339092021,"SUBDIRECCION DE ADMINISTRACION INMOBILIARIA Y DE ESPACIO PUBLICO","ESCRITO","DERECHO DE PETICION DE INTERES PARTICULAR",9,"GESTIONADO"]
[null,3339152021,"SUBDIRECCION DE ADMINISTRACION INMOBILIARIA Y DE ESPACIO PUBLICO","ESCRITO","DERECHO DE PETICION DE INTERES PARTICULAR",10,"PENDIENTE"]
[null,3339572021,"SUBDIRECCION DE ADMINISTRACION INMOBILIARIA Y DE ESPACIO PUBLICO","WEB","DERECHO DE PETICION DE INTERES GENERAL",9,"PENDIENTE"]
[null,3342412021,"SUBDIRECCION DE ADMINISTRACION INMOBILIARIA Y DE ESPACIO PUBLICO","ESCRITO","DERECHO DE PETICION DE INTERES PARTICULAR",9,"PENDIENTE"]
[null,3344672021,"SUBDIRECCION DE ADMINISTRACION INMOBILIARIA Y DE ESPACIO PUBLICO","ESCRITO","DERECHO DE PETICION DE INTERES PARTICULAR",9,"PENDIENTE"]
[null,3345452021,"SUBDIRECCION DE ADMINISTRACION INMOBILIARIA Y DE ESPACIO PUBLICO","ESCRITO","DERECHO DE PETICION DE INTERES PARTICULAR",9,"PENDIENTE"]
[null,3345592021,"SUBDIRECCION DE ADMINISTRACION INMOBILIARIA Y DE ESPACIO PUBLICO","ESCRITO","DERECHO DE PETICION DE INTERES PARTICULAR",9,"PENDIENTE"]
[null,3345652021,"SUBDIRECCION DE ADMINISTRACION INMOBILIARIA Y DE ESPACIO PUBLICO","ESCRITO","DERECHO DE PETICION DE INTERES PARTICULAR",9,"PENDIENTE"]
[null,3345892021,"SUBDIRECCION DE ADMINISTRACION INMOBILIARIA Y DE ESPACIO PUBLICO","WEB","DERECHO DE PETICION DE INTERES PARTICULAR",9,"PENDIENTE"]
[null,3348592021,"SUBDIRECCION DE ADMINISTRACION INMOBILIARIA Y DE ESPACIO PUBLICO","ESCRITO","DERECHO DE PETICION DE INTERES PARTICULAR",9,"PENDIENTE"]
[null,3348832021,"SUBDIRECCION DE ADMINISTRACION INMOBILIARIA Y DE ESPACIO PUBLICO","ESCRITO","DERECHO DE PETICION DE INTERES PARTICULAR",9,"PENDIENTE"]
[null,3349012021,"SUBDIRECCION DE ADMINISTRACION INMOBILIARIA Y DE ESPACIO PUBLICO","ESCRITO","DERECHO DE PETICION DE INTERES PARTICULAR",9,"PENDIENTE"]
[null,3349172021,"SUBDIRECCION DE ADMINISTRACION INMOBILIARIA Y DE ESPACIO PUBLICO","ESCRITO","DERECHO DE PETICION DE INTERES GENERAL",9,"PENDIENTE"]
[null,3349312021,"SUBDIRECCION DE ADMINISTRACION INMOBILIARIA Y DE ESPACIO PUBLICO","ESCRITO","DERECHO DE PETICION DE INTERES PARTICULAR",9,"PENDIENTE"]
[null,3351312021,"SUBDIRECCION DE ADMINISTRACION INMOBILIARIA Y DE ESPACIO PUBLICO","WEB","DERECHO DE PETICION DE INTERES GENERAL",9,"PENDIENTE"]
[null,3354892021,"SUBDIRECCION DE ADMINISTRACION INMOBILIARIA Y DE ESPACIO PUBLICO","TELEFONO","DERECHO DE PETICION DE INTERES GENERAL",9,"PENDIENTE"]
[null,3356972021,"SUBDIRECCION DE ADMINISTRACION INMOBILIARIA Y DE ESPACIO PUBLICO","WEB","DERECHO DE PETICION DE INTERES GENERAL",9,"PENDIENTE"]
[null,3357212021,"SUBDIRECCION ADMINISTRATIVA  FINANCIERA Y DE CONTROL DISCIPLINARIO","WEB","DERECHO DE PETICION DE INTERES GENERAL",1,"GESTIONADO"]
[null,3358412021,"SUBDIRECCION DE ADMINISTRACION INMOBILIARIA Y DE ESPACIO PUBLICO","WEB","DERECHO DE PETICION DE INTERES GENERAL",9,"PENDIENTE"]
[null,3359432021,"SUBDIRECCION DE ADMINISTRACION INMOBILIARIA Y DE ESPACIO PUBLICO","TELEFONO","DERECHO DE PETICION DE INTERES PARTICULAR",9,"PENDIENTE"]
[null,3361772021,"SUBDIRECCION DE ADMINISTRACION INMOBILIARIA Y DE ESPACIO PUBLICO","ESCRITO","DERECHO DE PETICION DE INTERES PARTICULAR",8,"PENDIENTE"]
[null,3361962021,"SUBDIRECCION DE ADMINISTRACION INMOBILIARIA Y DE ESPACIO PUBLICO","ESCRITO","DERECHO DE PETICION DE INTERES PARTICULAR",8,"PENDIENTE"]
[null,3362022021,"SUBDIRECCION DE ADMINISTRACION INMOBILIARIA Y DE ESPACIO PUBLICO","ESCRITO","DERECHO DE PETICION DE INTERES PARTICULAR",8,"PENDIENTE"]
[null,3362122021,"SUBDIRECCION DE ADMINISTRACION INMOBILIARIA Y DE ESPACIO PUBLICO","ESCRITO","DERECHO DE PETICION DE INTERES GENERAL",8,"PENDIENTE"]
[null,3362142021,"SUBDIRECCION DE REGISTRO INMOBILIARIO","ESCRITO","DERECHO DE PETICION DE INTERES PARTICULAR",8,"PENDIENTE"]
[null,3367672021,"SUBDIRECCION DE REGISTRO INMOBILIARIO","ESCRITO","DERECHO DE PETICION DE INTERES PARTICULAR",8,"PENDIENTE"]
[null,3367832021,"SUBDIRECCION DE ADMINISTRACION INMOBILIARIA Y DE ESPACIO PUBLICO","ESCRITO","DERECHO DE PETICION DE INTERES PARTICULAR",8,"PENDIENTE"]
[null,3368012021,"SUBDIRECCION DE ADMINISTRACION INMOBILIARIA Y DE ESPACIO PUBLICO","ESCRITO","DERECHO DE PETICION DE INTERES PARTICULAR",8,"PENDIENTE"]
[null,3368282021,"SUBDIRECCION DE ADMINISTRACION INMOBILIARIA Y DE ESPACIO PUBLICO","ESCRITO","DERECHO DE PETICION DE INTERES PARTICULAR",8,"PENDIENTE"]
[null,3368562021,"SUBDIRECCION DE ADMINISTRACION INMOBILIARIA Y DE ESPACIO PUBLICO","ESCRITO","DERECHO DE PETICION DE INTERES PARTICULAR",8,"PENDIENTE"]
[null,3368922021,"SUBDIRECCION DE ADMINISTRACION INMOBILIARIA Y DE ESPACIO PUBLICO","ESCRITO","DERECHO DE PETICION DE INTERES PARTICULAR",8,"PENDIENTE"]
[null,3369242021,"SUBDIRECCION DE ADMINISTRACION INMOBILIARIA Y DE ESPACIO PUBLICO","E-MAIL","DERECHO DE PETICION DE INTERES PARTICULAR",8,"PENDIENTE"]
[null,3370492021,"SUBDIRECCION DE REGISTRO INMOBILIARIO","ESCRITO","DERECHO DE PETICION DE INTERES PARTICULAR",8,"PENDIENTE"]
[null,3371042021,"SUBDIRECCION DE ADMINISTRACION INMOBILIARIA Y DE ESPACIO PUBLICO","ESCRITO","DERECHO DE PETICION DE INTERES PARTICULAR",8,"PENDIENTE"]
[null,3371172021,"SUBDIRECCION DE REGISTRO INMOBILIARIO","ESCRITO","DERECHO DE PETICION DE INTERES PARTICULAR",8,"PENDIENTE"]
[null,3371552021,"SUBDIRECCION DE ADMINISTRACION INMOBILIARIA Y DE ESPACIO PUBLICO","ESCRITO","DERECHO DE PETICION DE INTERES PARTICULAR",8,"PENDIENTE"]
[null,3372262021,"SUBDIRECCION DE ADMINISTRACION INMOBILIARIA Y DE ESPACIO PUBLICO","ESCRITO","DERECHO DE PETICION DE INTERES PARTICULAR",8,"PENDIENTE"]
[null,3374862021,"SUBDIRECCION DE ADMINISTRACION INMOBILIARIA Y DE ESPACIO PUBLICO","ESCRITO","DERECHO DE PETICION DE INTERES PARTICULAR",8,"PENDIENTE"]
[null,3374872021,"SUBDIRECCION DE REGISTRO INMOBILIARIO","ESCRITO","DERECHO DE PETICION DE INTERES PARTICULAR",8,"PENDIENTE"]
[null,3374912021,"SUBDIRECCION DE ADMINISTRACION INMOBILIARIA Y DE ESPACIO PUBLICO","ESCRITO","DERECHO DE PETICION DE INTERES PARTICULAR",8,"PENDIENTE"]
[null,3375112021,"SUBDIRECCION DE ADMINISTRACION INMOBILIARIA Y DE ESPACIO PUBLICO","ESCRITO","DERECHO DE PETICION DE INTERES PARTICULAR",8,"PENDIENTE"]
[null,3375222021,"SUBDIRECCION DE REGISTRO INMOBILIARIO","ESCRITO","DERECHO DE PETICION DE INTERES PARTICULAR",8,"PENDIENTE"]
[null,3376792021,"SUBDIRECCION DE ADMINISTRACION INMOBILIARIA Y DE ESPACIO PUBLICO","WEB","DERECHO DE PETICION DE INTERES PARTICULAR",8,"PENDIENTE"]
[null,3376862021,"SUBDIRECCION DE ADMINISTRACION INMOBILIARIA Y DE ESPACIO PUBLICO","WEB","DERECHO DE PETICION DE INTERES GENERAL",8,"PENDIENTE"]
[null,3378062021,"SUBDIRECCION DE ADMINISTRACION INMOBILIARIA Y DE ESPACIO PUBLICO","WEB","DERECHO DE PETICION DE INTERES GENERAL",8,"PENDIENTE"]
[null,3379722021,"SUBDIRECCION DE REGISTRO INMOBILIARIO","WEB","DERECHO DE PETICION DE INTERES GENERAL",3,"PENDIENTE"]
[null,3382022021,"SUBDIRECCION DE ADMINISTRACION INMOBILIARIA Y DE ESPACIO PUBLICO","ESCRITO","DERECHO DE PETICION DE INTERES PARTICULAR",7,"PENDIENTE"]
[null,3382082021,"SUBDIRECCION DE REGISTRO INMOBILIARIO","ESCRITO","DERECHO DE PETICION DE INTERES PARTICULAR",7,"PENDIENTE"]
[null,3384192021,"SUBDIRECCION DE ADMINISTRACION INMOBILIARIA Y DE ESPACIO PUBLICO","ESCRITO","DERECHO DE PETICION DE INTERES PARTICULAR",7,"PENDIENTE"]
[null,3384392021,"OFICINA ASESORA JURIDICA","ESCRITO","DERECHO DE PETICION DE INTERES PARTICULAR",6,"GESTIONADO"]
[null,3385392021,"SUBDIRECCION DE ADMINISTRACION INMOBILIARIA Y DE ESPACIO PUBLICO","ESCRITO","DERECHO DE PETICION DE INTERES PARTICULAR",7,"PENDIENTE"]
[null,3385612021,"SUBDIRECCION DE ADMINISTRACION INMOBILIARIA Y DE ESPACIO PUBLICO","ESCRITO","DERECHO DE PETICION DE INTERES PARTICULAR",7,"PENDIENTE"]
[null,3385832021,"SUBDIRECCION DE REGISTRO INMOBILIARIO","ESCRITO","DERECHO DE PETICION DE INTERES PARTICULAR",7,"PENDIENTE"]
[null,3386572021,"SUBDIRECCION DE ADMINISTRACION INMOBILIARIA Y DE ESPACIO PUBLICO","WEB","DERECHO DE PETICION DE INTERES PARTICULAR",7,"PENDIENTE"]
[null,3387142021,"SUBDIRECCION DE ADMINISTRACION INMOBILIARIA Y DE ESPACIO PUBLICO","WEB","DERECHO DE PETICION DE INTERES GENERAL",7,"PENDIENTE"]
[null,3396832021,"SUBDIRECCION DE ADMINISTRACION INMOBILIARIA Y DE ESPACIO PUBLICO","WEB","DERECHO DE PETICION DE INTERES PARTICULAR",7,"PENDIENTE"]
[null,3397672021,"SUBDIRECCION DE ADMINISTRACION INMOBILIARIA Y DE ESPACIO PUBLICO","WEB","DERECHO DE PETICION DE INTERES GENERAL",7,"PENDIENTE"]
[null,3399382021,"SUBDIRECCION DE ADMINISTRACION INMOBILIARIA Y DE ESPACIO PUBLICO","WEB","DERECHO DE PETICION DE INTERES PARTICULAR",6,"PENDIENTE"]
[null,3399732021,"SUBDIRECCION DE ADMINISTRACION INMOBILIARIA Y DE ESPACIO PUBLICO","ESCRITO","DERECHO DE PETICION DE INTERES GENERAL",6,"PENDIENTE"]
[null,3399872021,"SUBDIRECCION DE REGISTRO INMOBILIARIO","ESCRITO","DERECHO DE PETICION DE INTERES PARTICULAR",6,"PENDIENTE"]
[null,3399932021,"SUBDIRECCION DE ADMINISTRACION INMOBILIARIA Y DE ESPACIO PUBLICO","ESCRITO","DERECHO DE PETICION DE INTERES PARTICULAR",6,"PENDIENTE"]
[null,3400022021,"SUBDIRECCION DE ADMINISTRACION INMOBILIARIA Y DE ESPACIO PUBLICO","ESCRITO","DERECHO DE PETICION DE INTERES GENERAL",6,"PENDIENTE"]
[null,3400082021,"SUBDIRECCION DE ADMINISTRACION INMOBILIARIA Y DE ESPACIO PUBLICO","ESCRITO","DERECHO DE PETICION DE INTERES PARTICULAR",6,"PENDIENTE"]
[null,3405442021,"SUBDIRECCION DE ADMINISTRACION INMOBILIARIA Y DE ESPACIO PUBLICO","WEB","DERECHO DE PETICION DE INTERES PARTICULAR",6,"PENDIENTE"]
[null,3407242021,"DESPACHO","ESCRITO","DERECHO DE PETICION DE INTERES PARTICULAR",6,"PENDIENTE"]
[null,3407242021,"OFICINA ASESORA JURIDICA","ESCRITO","DERECHO DE PETICION DE INTERES PARTICULAR",1,"PENDIENTE"]
[null,3407512021,"SUBDIRECCION DE REGISTRO INMOBILIARIO","ESCRITO","DERECHO DE PETICION DE INTERES PARTICULAR",6,"PENDIENTE"]
[null,3408362021,"SUBDIRECCION DE REGISTRO INMOBILIARIO","ESCRITO","DERECHO DE PETICION DE INTERES PARTICULAR",6,"PENDIENTE"]
[null,3409632021,"SUBDIRECCION DE ADMINISTRACION INMOBILIARIA Y DE ESPACIO PUBLICO","WEB","DERECHO DE PETICION DE INTERES PARTICULAR",6,"PENDIENTE"]
[null,3410042021,"SUBDIRECCION DE ADMINISTRACION INMOBILIARIA Y DE ESPACIO PUBLICO","ESCRITO","DERECHO DE PETICION DE INTERES PARTICULAR",6,"PENDIENTE"]
[null,3410252021,"SUBDIRECCION DE ADMINISTRACION INMOBILIARIA Y DE ESPACIO PUBLICO","ESCRITO","DERECHO DE PETICION DE INTERES PARTICULAR",6,"PENDIENTE"]
[null,3414602021,"SUBDIRECCION DE REGISTRO INMOBILIARIO","WEB","DERECHO DE PETICION DE INTERES PARTICULAR",6,"PENDIENTE"]
[null,3414872021,"SUBDIRECCION DE REGISTRO INMOBILIARIO","WEB","DERECHO DE PETICION DE INTERES PARTICULAR",4,"PENDIENTE"]
[null,3414962021,"SUBDIRECCION DE ADMINISTRACION INMOBILIARIA Y DE ESPACIO PUBLICO","WEB","DERECHO DE PETICION DE INTERES GENERAL",6,"PENDIENTE"]
[null,3415032021,"SUBDIRECCION DE REGISTRO INMOBILIARIO","E-MAIL","DERECHO DE PETICION DE INTERES GENERAL",6,"PENDIENTE"]
[null,3415062021,"SUBDIRECCION DE ADMINISTRACION INMOBILIARIA Y DE ESPACIO PUBLICO","ESCRITO","DERECHO DE PETICION DE INTERES PARTICULAR",6,"PENDIENTE"]
[null,3415802021,"SUBDIRECCION DE REGISTRO INMOBILIARIO","WEB","DERECHO DE PETICION DE INTERES GENERAL",6,"PENDIENTE"]
[null,3416912021,"SUBDIRECCION DE ADMINISTRACION INMOBILIARIA Y DE ESPACIO PUBLICO","WEB","DERECHO DE PETICION DE INTERES PARTICULAR",5,"PENDIENTE"]
[null,3417382021,"SUBDIRECCION DE ADMINISTRACION INMOBILIARIA Y DE ESPACIO PUBLICO","WEB","DERECHO DE PETICION DE INTERES PARTICULAR",6,"PENDIENTE"]
[null,3418602021,"SUBDIRECCION DE REGISTRO INMOBILIARIO","ESCRITO","DERECHO DE PETICION DE INTERES PARTICULAR",5,"PENDIENTE"]
[null,3418712021,"SUBDIRECCION DE ADMINISTRACION INMOBILIARIA Y DE ESPACIO PUBLICO","ESCRITO","DERECHO DE PETICION DE INTERES PARTICULAR",5,"PENDIENTE"]
[null,3418862021,"SUBDIRECCION DE ADMINISTRACION INMOBILIARIA Y DE ESPACIO PUBLICO","ESCRITO","DERECHO DE PETICION DE INTERES GENERAL",5,"PENDIENTE"]
[null,3425362021,"DESPACHO","ESCRITO","DERECHO DE PETICION DE INTERES PARTICULAR",5,"PENDIENTE"]
[null,3425612021,"SUBDIRECCION DE ADMINISTRACION INMOBILIARIA Y DE ESPACIO PUBLICO","ESCRITO","DERECHO DE PETICION DE INTERES PARTICULAR",5,"PENDIENTE"]
[null,3425802021,"SUBDIRECCION DE ADMINISTRACION INMOBILIARIA Y DE ESPACIO PUBLICO","ESCRITO","DERECHO DE PETICION DE INTERES PARTICULAR",5,"PENDIENTE"]
[null,3425882021,"SUBDIRECCION DE ADMINISTRACION INMOBILIARIA Y DE ESPACIO PUBLICO","ESCRITO","DERECHO DE PETICION DE INTERES PARTICULAR",5,"PENDIENTE"]
[null,3425922021,"SUBDIRECCION DE ADMINISTRACION INMOBILIARIA Y DE ESPACIO PUBLICO","TELEFONO","DERECHO DE PETICION DE INTERES PARTICULAR",5,"PENDIENTE"]
[null,3426302021,"SUBDIRECCION DE ADMINISTRACION INMOBILIARIA Y DE ESPACIO PUBLICO","ESCRITO","DERECHO DE PETICION DE INTERES PARTICULAR",5,"PENDIENTE"]
[null,3431452021,"SUBDIRECCION DE ADMINISTRACION INMOBILIARIA Y DE ESPACIO PUBLICO","E-MAIL","DERECHO DE PETICION DE INTERES GENERAL",5,"PENDIENTE"]
[null,3435642021,"SUBDIRECCION DE ADMINISTRACION INMOBILIARIA Y DE ESPACIO PUBLICO","WEB","DERECHO DE PETICION DE INTERES GENERAL",5,"PENDIENTE"]
[null,3439692021,"SUBDIRECCION DE ADMINISTRACION INMOBILIARIA Y DE ESPACIO PUBLICO","WEB","DERECHO DE PETICION DE INTERES GENERAL",3,"PENDIENTE"]
[null,3439782021,"SUBDIRECCION ADMINISTRATIVA  FINANCIERA Y DE CONTROL DISCIPLINARIO","WEB","DERECHO DE PETICION DE INTERES PARTICULAR",1,"GESTIONADO"]
[null,3444202021,"SUBDIRECCION DE ADMINISTRACION INMOBILIARIA Y DE ESPACIO PUBLICO","WEB","QUEJA",5,"PENDIENTE"]
[null,3446552021,"SUBDIRECCION DE REGISTRO INMOBILIARIO","WEB","QUEJA",4,"PENDIENTE"]
[null,3447442021,"SUBDIRECCION DE ADMINISTRACION INMOBILIARIA Y DE ESPACIO PUBLICO","ESCRITO","DERECHO DE PETICION DE INTERES PARTICULAR",4,"PENDIENTE"]
[null,3447852021,"SUBDIRECCION DE REGISTRO INMOBILIARIO","WEB","DERECHO DE PETICION DE INTERES PARTICULAR",4,"PENDIENTE"]
[null,3449912021,"SUBDIRECCION DE ADMINISTRACION INMOBILIARIA Y DE ESPACIO PUBLICO","ESCRITO","DERECHO DE PETICION DE INTERES PARTICULAR",4,"PENDIENTE"]
[null,3450142021,"SUBDIRECCION DE ADMINISTRACION INMOBILIARIA Y DE ESPACIO PUBLICO","ESCRITO","DERECHO DE PETICION DE INTERES PARTICULAR",4,"PENDIENTE"]
[null,3450482021,"SUBDIRECCION DE ADMINISTRACION INMOBILIARIA Y DE ESPACIO PUBLICO","ESCRITO","DERECHO DE PETICION DE INTERES PARTICULAR",4,"PENDIENTE"]
[null,3450682021,"SUBDIRECCION DE ADMINISTRACION INMOBILIARIA Y DE ESPACIO PUBLICO","ESCRITO","DERECHO DE PETICION DE INTERES PARTICULAR",4,"PENDIENTE"]
[null,3451282021,"SUBDIRECCION DE REGISTRO INMOBILIARIO","ESCRITO","DERECHO DE PETICION DE INTERES PARTICULAR",4,"PENDIENTE"]
[null,3451602021,"SUBDIRECCION DE ADMINISTRACION INMOBILIARIA Y DE ESPACIO PUBLICO","ESCRITO","DERECHO DE PETICION DE INTERES PARTICULAR",4,"PENDIENTE"]
[null,3453922021,"SUBDIRECCION DE REGISTRO INMOBILIARIO","WEB","DERECHO DE PETICION DE INTERES PARTICULAR",4,"PENDIENTE"]
[null,3458032021,"SUBDIRECCION DE ADMINISTRACION INMOBILIARIA Y DE ESPACIO PUBLICO","WEB","DERECHO DE PETICION DE INTERES PARTICULAR",4,"PENDIENTE"]
[null,3458122021,"SUBDIRECCION DE REGISTRO INMOBILIARIO","WEB","DERECHO DE PETICION DE INTERES PARTICULAR",4,"PENDIENTE"]
[null,3458522021,"SUBDIRECCION DE ADMINISTRACION INMOBILIARIA Y DE ESPACIO PUBLICO","WEB","CONSULTA",1,"PENDIENTE"]
[null,3460972021,"SUBDIRECCION DE ADMINISTRACION INMOBILIARIA Y DE ESPACIO PUBLICO","WEB","DERECHO DE PETICION DE INTERES PARTICULAR",4,"PENDIENTE"]
[null,3461902021,"SUBDIRECCION DE ADMINISTRACION INMOBILIARIA Y DE ESPACIO PUBLICO","ESCRITO","DERECHO DE PETICION DE INTERES PARTICULAR",3,"PENDIENTE"]
[null,3462032021,"SUBDIRECCION DE ADMINISTRACION INMOBILIARIA Y DE ESPACIO PUBLICO","ESCRITO","DERECHO DE PETICION DE INTERES PARTICULAR",3,"PENDIENTE"]
[null,3462312021,"SUBDIRECCION DE ADMINISTRACION INMOBILIARIA Y DE ESPACIO PUBLICO","ESCRITO","DERECHO DE PETICION DE INTERES PARTICULAR",3,"PENDIENTE"]
[null,3463242021,"SUBDIRECCION DE ADMINISTRACION INMOBILIARIA Y DE ESPACIO PUBLICO","ESCRITO","DERECHO DE PETICION DE INTERES PARTICULAR",3,"PENDIENTE"]
[null,3463842021,"SUBDIRECCION DE ADMINISTRACION INMOBILIARIA Y DE ESPACIO PUBLICO","ESCRITO","DERECHO DE PETICION DE INTERES PARTICULAR",3,"PENDIENTE"]
[null,3463962021,"SUBDIRECCION DE REGISTRO INMOBILIARIO","ESCRITO","DERECHO DE PETICION DE INTERES GENERAL",3,"PENDIENTE"]
[null,3464092021,"SUBDIRECCION DE ADMINISTRACION INMOBILIARIA Y DE ESPACIO PUBLICO","ESCRITO","DERECHO DE PETICION DE INTERES PARTICULAR",3,"PENDIENTE"]
[null,3464472021,"SUBDIRECCION DE ADMINISTRACION INMOBILIARIA Y DE ESPACIO PUBLICO","ESCRITO","DERECHO DE PETICION DE INTERES PARTICULAR",3,"PENDIENTE"]
[null,3464662021,"SUBDIRECCION DE ADMINISTRACION INMOBILIARIA Y DE ESPACIO PUBLICO","ESCRITO","DERECHO DE PETICION DE INTERES PARTICULAR",3,"PENDIENTE"]
[null,3464852021,"SUBDIRECCION DE ADMINISTRACION INMOBILIARIA Y DE ESPACIO PUBLICO","ESCRITO","DERECHO DE PETICION DE INTERES GENERAL",3,"PENDIENTE"]
[null,3464982021,"SUBDIRECCION DE REGISTRO INMOBILIARIO","ESCRITO","DERECHO DE PETICION DE INTERES PARTICULAR",3,"PENDIENTE"]
[null,3465002021,"SUBDIRECCION DE ADMINISTRACION INMOBILIARIA Y DE ESPACIO PUBLICO","ESCRITO","DERECHO DE PETICION DE INTERES PARTICULAR",3,"PENDIENTE"]
[null,3465032021,"SUBDIRECCION DE REGISTRO INMOBILIARIO","ESCRITO","DERECHO DE PETICION DE INTERES PARTICULAR",3,"PENDIENTE"]
[null,3465082021,"SUBDIRECCION DE ADMINISTRACION INMOBILIARIA Y DE ESPACIO PUBLICO","ESCRITO","DERECHO DE PETICION DE INTERES PARTICULAR",3,"PENDIENTE"]
[null,3467512021,"SUBDIRECCION DE ADMINISTRACION INMOBILIARIA Y DE ESPACIO PUBLICO","ESCRITO","DERECHO DE PETICION DE INTERES PARTICULAR",3,"PENDIENTE"]
[null,3467652021,"SUBDIRECCION DE ADMINISTRACION INMOBILIARIA Y DE ESPACIO PUBLICO","ESCRITO","DERECHO DE PETICION DE INTERES PARTICULAR",3,"PENDIENTE"]
[null,3467872021,"SUBDIRECCION DE ADMINISTRACION INMOBILIARIA Y DE ESPACIO PUBLICO","WEB","DERECHO DE PETICION DE INTERES PARTICULAR",3,"PENDIENTE"]
[null,3468112021,"SUBDIRECCION DE ADMINISTRACION INMOBILIARIA Y DE ESPACIO PUBLICO","ESCRITO","DERECHO DE PETICION DE INTERES PARTICULAR",3,"PENDIENTE"]
[null,3468522021,"SUBDIRECCION DE ADMINISTRACION INMOBILIARIA Y DE ESPACIO PUBLICO","ESCRITO","DERECHO DE PETICION DE INTERES PARTICULAR",3,"PENDIENTE"]
[null,3468582021,"SUBDIRECCION DE ADMINISTRACION INMOBILIARIA Y DE ESPACIO PUBLICO","WEB","CONSULTA",3,"PENDIENTE"]
[null,3468882021,"SUBDIRECCION DE ADMINISTRACION INMOBILIARIA Y DE ESPACIO PUBLICO","ESCRITO","DERECHO DE PETICION DE INTERES PARTICULAR",3,"PENDIENTE"]
[null,3469242021,"SUBDIRECCION DE ADMINISTRACION INMOBILIARIA Y DE ESPACIO PUBLICO","ESCRITO","DERECHO DE PETICION DE INTERES PARTICULAR",3,"PENDIENTE"]
[null,3469542021,"SUBDIRECCION DE ADMINISTRACION INMOBILIARIA Y DE ESPACIO PUBLICO","ESCRITO","DERECHO DE PETICION DE INTERES PARTICULAR",3,"PENDIENTE"]
[null,3470502021,"SUBDIRECCION DE ADMINISTRACION INMOBILIARIA Y DE ESPACIO PUBLICO","WEB","DERECHO DE PETICION DE INTERES PARTICULAR",3,"PENDIENTE"]
[null,3472892021,"SUBDIRECCION DE REGISTRO INMOBILIARIO","ESCRITO","DERECHO DE PETICION DE INTERES PARTICULAR",3,"PENDIENTE"]
[null,3472932021,"SUBDIRECCION DE ADMINISTRACION INMOBILIARIA Y DE ESPACIO PUBLICO","ESCRITO","DERECHO DE PETICION DE INTERES PARTICULAR",3,"PENDIENTE"]
[null,3473832021,"SUBDIRECCION DE ADMINISTRACION INMOBILIARIA Y DE ESPACIO PUBLICO","WEB","DERECHO DE PETICION DE INTERES PARTICULAR",3,"PENDIENTE"]
[null,3479192021,"SUBDIRECCION DE ADMINISTRACION INMOBILIARIA Y DE ESPACIO PUBLICO","ESCRITO","DERECHO DE PETICION DE INTERES PARTICULAR",3,"PENDIENTE"]
[null,3480932021,"SUBDIRECCION DE ADMINISTRACION INMOBILIARIA Y DE ESPACIO PUBLICO","WEB","DERECHO DE PETICION DE INTERES GENERAL",2,"PENDIENTE"]
[null,3484872021,"SUBDIRECCION DE ADMINISTRACION INMOBILIARIA Y DE ESPACIO PUBLICO","WEB","DERECHO DE PETICION DE INTERES GENERAL",2,"PENDIENTE"]
[null,3484982021,"SUBDIRECCION DE ADMINISTRACION INMOBILIARIA Y DE ESPACIO PUBLICO","WEB","DERECHO DE PETICION DE INTERES GENERAL",2,"PENDIENTE"]
[null,3485242021,"SUBDIRECCION DE ADMINISTRACION INMOBILIARIA Y DE ESPACIO PUBLICO","WEB","DERECHO DE PETICION DE INTERES GENERAL",2,"PENDIENTE"]
[null,3485242021,"SUBDIRECCION ADMINISTRATIVA  FINANCIERA Y DE CONTROL DISCIPLINARIO","WEB","DERECHO DE PETICION DE INTERES GENERAL",2,"PENDIENTE"]
[null,3485302021,"SUBDIRECCION DE ADMINISTRACION INMOBILIARIA Y DE ESPACIO PUBLICO","WEB","DERECHO DE PETICION DE INTERES GENERAL",2,"PENDIENTE"]
[null,3487682021,"SUBDIRECCION DE ADMINISTRACION INMOBILIARIA Y DE ESPACIO PUBLICO","ESCRITO","DERECHO DE PETICION DE INTERES PARTICULAR",2,"PENDIENTE"]
[null,3496192021,"SUBDIRECCION DE ADMINISTRACION INMOBILIARIA Y DE ESPACIO PUBLICO","WEB","DERECHO DE PETICION DE INTERES PARTICULAR",2,"PENDIENTE"]
[null,3497322021,"SUBDIRECCION DE ADMINISTRACION INMOBILIARIA Y DE ESPACIO PUBLICO","ESCRITO","DERECHO DE PETICION DE INTERES PARTICULAR",2,"PENDIENTE"]
[null,3497372021,"SUBDIRECCION DE REGISTRO INMOBILIARIO","ESCRITO","DERECHO DE PETICION DE INTERES PARTICULAR",2,"PENDIENTE"]
[null,3497392021,"SUBDIRECCION DE REGISTRO INMOBILIARIO","ESCRITO","DERECHO DE PETICION DE INTERES PARTICULAR",2,"PENDIENTE"]
[null,3499682021,"SUBDIRECCION DE REGISTRO INMOBILIARIO","ESCRITO","DERECHO DE PETICION DE INTERES PARTICULAR",1,"PENDIENTE"]
[null,3500822021,"SUBDIRECCION DE ADMINISTRACION INMOBILIARIA Y DE ESPACIO PUBLICO","ESCRITO","DERECHO DE PETICION DE INTERES PARTICULAR",1,"PENDIENTE"]
[null,3501332021,"DESPACHO","ESCRITO","DERECHO DE PETICION DE INTERES PARTICULAR",1,"PENDIENTE"]
[null,3501752021,"SUBDIRECCION DE ADMINISTRACION INMOBILIARIA Y DE ESPACIO PUBLICO","ESCRITO","DERECHO DE PETICION DE INTERES GENERAL",1,"PENDIENTE"]
[null,3501982021,"SUBDIRECCION DE ADMINISTRACION INMOBILIARIA Y DE ESPACIO PUBLICO","ESCRITO","DERECHO DE PETICION DE INTERES PARTICULAR",1,"PENDIENTE"]
[null,3502112021,"SUBDIRECCION DE REGISTRO INMOBILIARIO","ESCRITO","DERECHO DE PETICION DE INTERES GENERAL",1,"PENDIENTE"]
[null,3502162021,"SUBDIRECCION DE ADMINISTRACION INMOBILIARIA Y DE ESPACIO PUBLICO","ESCRITO","DERECHO DE PETICION DE INTERES PARTICULAR",1,"PENDIENTE"]
[null,3502172021,"SUBDIRECCION DE ADMINISTRACION INMOBILIARIA Y DE ESPACIO PUBLICO","ESCRITO","DERECHO DE PETICION DE INTERES PARTICULAR",1,"PENDIENTE"]
[null,3502202021,"SUBDIRECCION DE ADMINISTRACION INMOBILIARIA Y DE ESPACIO PUBLICO","ESCRITO","DERECHO DE PETICION DE INTERES PARTICULAR",1,"PENDIENTE"]
[null,3508412021,"SUBDIRECCION DE ADMINISTRACION INMOBILIARIA Y DE ESPACIO PUBLICO","TELEFONO","DERECHO DE PETICION DE INTERES GENERAL",1,"PENDIENTE"]
[null,3509442021,"SUBDIRECCION DE ADMINISTRACION INMOBILIARIA Y DE ESPACIO PUBLICO","WEB","DERECHO DE PETICION DE INTERES PARTICULAR",1,"PENDIENTE"]
[null,3514942021,"SUBDIRECCION DE ADMINISTRACION INMOBILIARIA Y DE ESPACIO PUBLICO","ESCRITO","DERECHO DE PETICION DE INTERES PARTICULAR",1,"PENDIENTE"]
[null,3514982021,"SUBDIRECCION DE REGISTRO INMOBILIARIO","ESCRITO","DERECHO DE PETICION DE INTERES PARTICULAR",1,"PENDIENTE"]
[null,3515472021,"OFICINA ASESORA JURIDICA","ESCRITO","DERECHO DE PETICION DE INTERES PARTICULAR",1,"PENDIENTE"]
[null,3516502021,"SUBDIRECCION DE REGISTRO INMOBILIARIO","WEB","DERECHO DE PETICION DE INTERES GENERAL",1,"PENDIENTE"]
[null,3517422021,"SUBDIRECCION DE ADMINISTRACION INMOBILIARIA Y DE ESPACIO PUBLICO","WEB","DERECHO DE PETICION DE INTERES GENERAL",1,"PENDIENTE"]
[null,3518772021,"SUBDIRECCION DE REGISTRO INMOBILIARIO","WEB","DERECHO DE PETICION DE INTERES GENERAL",1,"PENDIENTE"]
[null,3521242021,"SUBDIRECCION DE ADMINISTRACION INMOBILIARIA Y DE ESPACIO PUBLICO","WEB","DERECHO DE PETICION DE INTERES GENERAL",1,"PENDIENTE"]
[null,3521512021,"SUBDIRECCION DE ADMINISTRACION INMOBILIARIA Y DE ESPACIO PUBLICO","ESCRITO","DERECHO DE PETICION DE INTERES PARTICULAR",1,"PENDIENTE"]
[null,3521782021,"SUBDIRECCION DE REGISTRO INMOBILIARIO","ESCRITO","DERECHO DE PETICION DE INTERES PARTICULAR",1,"PENDIENTE"]
[null,3521922021,"SUBDIRECCION DE ADMINISTRACION INMOBILIARIA Y DE ESPACIO PUBLICO","ESCRITO","DERECHO DE PETICION DE INTERES PARTICULAR",1,"PENDIENTE"]
[null,3522022021,"SUBDIRECCION DE ADMINISTRACION INMOBILIARIA Y DE ESPACIO PUBLICO","ESCRITO","DERECHO DE PETICION DE INTERES PARTICULAR",1,"PENDIENTE"]
[null,3522152021,"SUBDIRECCION DE ADMINISTRACION INMOBILIARIA Y DE ESPACIO PUBLICO","ESCRITO","DERECHO DE PETICION DE INTERES PARTICULAR",1,"PENDIENTE"]
[null,3522322021,"SUBDIRECCION DE ADMINISTRACION INMOBILIARIA Y DE ESPACIO PUBLICO","ESCRITO","DERECHO DE PETICION DE INTERES PARTICULAR",1,"PENDIENTE"]
[null,3522442021,"SUBDIRECCION DE ADMINISTRACION INMOBILIARIA Y DE ESPACIO PUBLICO","ESCRITO","DERECHO DE PETICION DE INTERES PARTICULAR",1,"PENDIENTE"]
[null,3524492021,"SUBDIRECCION DE REGISTRO INMOBILIARIO","ESCRITO","DERECHO DE PETICION DE INTERES PARTICULAR",1,"PENDIENTE"]
[null,3524712021,"SUBDIRECCION DE ADMINISTRACION INMOBILIARIA Y DE ESPACIO PUBLICO","ESCRITO","DERECHO DE PETICION DE INTERES PARTICULAR",1,"PENDIENTE"]
[null,3525082021,"SUBDIRECCION DE ADMINISTRACION INMOBILIARIA Y DE ESPACIO PUBLICO","ESCRITO","DERECHO DE PETICION DE INTERES PARTICULAR",1,"PENDIENTE"]
[null,3525292021,"SUBDIRECCION DE REGISTRO INMOBILIARIO","ESCRITO","DERECHO DE PETICION DE INTERES PARTICULAR",1,"PENDIENTE"]

{"sheet":"Recomendaciones a la ciudadanía","index":8,"n_rows":13,"n_cols":11,"rows_kept":13,"cut":false,"hidden":false,"merged":[[10,1,23,9],[12,10,12,13],[25,3,25,14],[27,3,27,13]]}
[]
[]
[]
[]
[]
[]
[]
[]
[]
[]
[null,"Se recomienda a la ciudadanía y a otras entidades del distrito, para el registro y/o asignación de peticiones, Quejas, Reclamos o Sugerencias-PQRS tener en cuenta la competencia en materia de recuperación de espacio público y el alcance de  las competencias del DADEP.\n\nLo anterior para evitar los traslados entre entidades y así mejorar la oportunidad de las respuestas de conformidad con los  términos de Ley."]
[]
[null,null,null,null,null,null,null,null,null,null,"Preguntas frecuentes"]